Workbook

Sheet Instructions
I2: Validation - Croisement des tables
B3: Instructions:
A4: 1 | B4: Dupliquer votre modèle de détermination avant de passer aux étapes suivantes. | I4: Ovoltotrec | J4: Rapport GTYF | K4: Rapport ECONO
A5: 2 | B5: Coller les OUTPUTs ci-dessous dans votre modèle de détermination. | I5: =VLOOKUP("Ovoltotrec",Output!$C:$AM,8,FALSE) -> 3058600 | J5: =VLOOKUP("OVOLTOTREC",GTYF!$C:$AQ,8,FALSE)=I5 -> TRUE | K5: =VLOOKUP("OVOLTOTREC",Econo!$C:$AQ,8,FALSE)=I5 -> TRUE
B6: Outputs pour Cahier_Détermination_2023
A7: 3 | B7: Ajouter l'agrégat FCIMPROD_SNAT au thème 5 de la section LANSCAPE de votre modèle et les courbes SNAT
B8: *AGGREGATE FCIMPROD_SNAT FCxxxx
A9: 4 | B9: Copier coller la syntaxe TARGET_GTYF_DET, TARGET_ECONO, TARGET AREA, TARGET DETAIL (voir plus bas) dans la section "Reports" du scénario de détermination.
B10: *TARGET GTYF_DET.dbf
B11: *TARGET_ECONO.dbf
B12: *TARGET AREA.dbf et *TARGET DETAIL.dbf
A13: 5 | B13: Insérer la syntaxe économique dans les sections Output, Lanscape, …
A14: 6 | B14: Compiler le scénario (Faire une fleche sur vos scénarios)
A15: 7 | B15: Ouvrir vos rapports Output, GTYF et ECONO directement de WS. Contrôle A --> Contrôle C
A16: 8 | B16: Copier/coller vos rapports Output, GTYF et ECONO dans les onglets appropriés. Attention de respecter le nombres de colonnes. Les onglets Output, GTYF et ECONO sont préformatés et contiennent des formules aux colonnes AM à AP.
A17: 9 | B17: Valider que la cellule I5 indique vrai lorsque vous aurez collé vos données dans les onglets "Output", "GTYF" et ÉCONO" pour s'assurer que les données proviennent de la même optimisation.
A18: 10 | B18: Utiliser le fichier DBF pour copier/coller votre calendrier de COS dans l'onglet Cedule_COS et y ajouter les COS absents (COS fermés ou toujours ouverts) et compléter leur calendrier par des "0" ou des "1".
A19: 11 | B19: Compléter toutes les cellules et onglets de couleur | D19: jaune
A20: 12 | B20: Notez que les tableaux 9, 10, 13, 15 et 17 ont des instructions particulières

Sheet Suivi_modif
B2: Modifications apportées au cahier:
B3: Version originale (v1) | C3: Version de départ
B4: Version modifiée 2 novembre 2021 (v2) | C4: Correction du calcul de % de sapin en P0 (cellule O9)
B5: Version modifiée 4 novembre 2021 (v3) | C5: Correction du % récolte volume sur pied destiné à l'aménagement (Tableau - CelluleV59)
B6: Version modifiée 4 novembre 2021 (v3) | C6: Correction des valideurs Vrai/Faux (Tableau - Cellule W101, W102, W103)
B7: Version modifiée 8 novembre 2021 (v4) | C7: Onglet "UTA" - Amélioration de la syntaxe des rechercheV
B8: Version modifiée 8 novembre 2021 (v4) | C8: Tableau 3 - ligne 50: changé la police de caractère pour du Arial
B9: Version modifiée 9 novembre 2021 (v5) | C9: Onglet "Target_ECONO": La syntaxe du rapport a été corrigée.
B10: Version modifiée 11 novembre 2021 (v6) | C10: Tableau 1 - Entente Crie - Correction pour considérer le code "EXEC" pour les UA avec Entente Crie
B11: Version modifiée 15 novembre 2021 (v7) | C11: Tableau 3 - ligne 49 en caractère gras - ligne 51 en caractère normal
B12: Version modifiée 19 novembre 2021 (v8) | C12: Tableau 9 - Dernière ligne du tableau effacée
B13: Version modifiée 22 novembre 2021 (v9) | C13: Tableau 4 - Première colonne (ha/an) changé la mise en forme pour avoir des 0 ha/an au lieu de "-" Voir figure --> Format: Nombre - Utiliser séparateur de millier - sans décimales
B14: Version modifiée 25 novembre 2021 (v10) | C14: Tableau 8, cellules G102 (Coupes partielles de peuplements résineux) et G103 (Coupes partielles de peuplements de feuillus tolérants et de pins) arrondies à la dizaine près et ajouté note en bas
B15: 2021-12-08 | C15: Correction à faire dans la cellule H143: changer le format et sélectionner +0% ; -0%; 0%
B17: Validation par Picbr1 2021-11-12
B19: 1. Validation des intrants, Période onglet OUTPUT = Output.dbf, Onglet GTYF = GTYF_DET.dbf et Onglet Econo = ECONO_x.dbf
B20: Onglet OUTPUT | C20: OK
B21: Onglet GTYF | C21: OK
B22: Onglet Econo | C22: OK
B23: 2. Validation des tableaux, Confrontation avec le cahier d'analyse de la détermination (Picbr1) et le fichier de consignation
B24: Validation des catégories de superficie | C24: Ok
B25: Tableau 1 | C25: OK
B26: Tableau 3 | C26: OK
B27: Tableau 4 | C27: OK
B28: Tableau 8 | C28: OK
B29: Tableau 9 | C29: OK
B30: Tableau 10 | C30: OK
B31: Tableau 13 | C31: OK
B32: 3. Validation des figures, Confrontation avec le cahier d'analyse de la détermination (Picbr1) et le fichier de consignation
B33: Figure 2 | C33: OK
B34: Figure 3 | C34: OK
B35: Figure 4 | C35: OK
B36: Figure 5 | C36: OK
B37: Figure 6 | C37: OK
B38: Figure 7 | C38: OK
B39: Figure 9b | C39: OK
B40: Figure 9c | C40: OK
B41: Figure 10a | C41: OK
B42: Figure 10c | C42: OK
B43: Figure 11b | C43: OK
B44: Figure 14 | C44: OK
B45: Figure 15a | C45: OK
B46: Figure 19 | C46: OK
B47: Figure 20 | C47: OK
B48: Figure 21 | C48: OK
B49: Figure 22 | C49: OK
B50: 4. Validation des UTA
B51: Conforme au nombre d'UTA du modèle | C51: OK

Sheet Tableaux
T1: Instructions : Compléter les cellules oranges | AB1: Avec l'utilisation de l'outil à Éric
B2: PROER1 : vous pouvez utiliser l'outil FoxPro pour compléter les cellules oranges : | T2: 1) Cellule V11 : Inscrire la superficie totale brute de la carte WS | AB2: 1052815.2
B3: l'outil intérroge la carte Woodstock et met les valeurs dans un fichier Excel | T3: 2) Cellule V15 : Inscrire la superficie WS des GS RP1 et RP2 (ça ne devrait être que du EXEX et EXTI) | AB3: 0
B4: interroge_carte_WS_pour cahier_analyse.FXP | T4: 3) Cellule V24 : Inscrire la superficie WS des GS RP3 à RP9 sur INC | AB4: 33605.5
B5: T:\Donnees\Courant\CPF_2023-2028\Comite_Vague_2\30_Phase1\32_Sce1\Outils | T5: 4) Cellule V25 : Inscrire la superficie WS des GS SNAT sur INC (qui ne sont pas des RP) | AB5: 47081.6
T6: 5) Cellules L20 à S21 : Inscrire la superficie de la carte WS pour chacune des cases oranges
B7: Catégories | I7: Superficie | Z7: Total | AA7: Sup_aff | AB7: 3085.6
I8: ha | J8: % | V8: Période | Z8: Total | AA8: Sup_empche | AB8: 7851.7
B9: Superficie totale du territoire d'analyse (EXHU exclu) | I9: =V11-V16 -> 1052814.4 | J9: =IFERROR(I9/I9,"-") -> 1 | S9: =LEFT(B$25,10) -> Tableau 1. | T9: Output | U9: Superficie | V9: 0 | Z9: Total | AA9: Sup_ecot | AB9: 3905.3
B10: Pertes (emprise chemin, écotone, improductif) | I10: =U20+V20+Y20 -> 12822 | J10: =I10/I9 -> 0.01217878479 | S10: =LEFT(B$25,10) -> Tableau 1. | T10: OSUPTOT | U10: WS | V10: =VLOOKUP(T10,Output!$C:$H,6,FALSE) -> 1039993.2 | Z10: INC | AA10: Sup_brivAB | AB10: 20323.1
B11: Territoire improductif (EXEX + EXTI) | I11: =SUM(V13:V14) -> 380884.6 | J11: =I11/I9 -> 0.3617775365 | S11: Tableau 1. | U11: Brute | V11: =AB2 -> 1052815.2 | X11: Sup_soustraite : | Y11: =T20+U20+V20+Y20+AA20 -> 16062.3 | Z11: INC | AA11: Sup_brivCD | AB11: 12954.5
B12: sans possibilité de remise en production | I12: =I11-I13 -> 380884.6 | J12: - | S12: Tableau 1. | U12: pertes | V12: =U20+V20+Y20 -> 12822 | X12: Sup nette : | Y12: =V11-Y11 -> 1036752.9 | Z12: Total | AA12: Sup_impro | AB12: 1065
B13: avec possibilité de remise en production (RP1 et RP2) | I13: =V15 -> 0 | J13: - | S13: Tableau 1. | T13: OSUPEXEX | U13: EXEX | V13: =VLOOKUP(T13,Output!$C:$H,6,FALSE) -> 44926.9 | Z13: Total | AA13: Sup_pentf | AB13: 154.7
S14: Tableau 1. | T14: OSUPEXTI | U14: EXTI | V14: =VLOOKUP(T14,Output!$C:$H,6,FALSE) -> 335957.7 | Z14: INC | AA14: Sup_pentf | AB14: 60.3
B15: Territoire inclus dans l’UA mais exclu des activités d'aménagement (EXIN) | I15: =V17 -> 167692.3 | J15: =I15/I9 -> 0.1592800212 | S15: Tableau 1. | U15: RP1/RP2 | V15: =AB3 -> 0
B16: pentes abruptes et sommets (codes F et S) --> potentiellement récoltables | I16: =AA21 -> 60.3 | J16: - | S16: Tableau 1. | T16: OSUPEXHU | U16: EXHU | V16: =VLOOKUP(T16,Output!$C:$H,6,FALSE) -> 0.8
B17: bandes riveraines (densité AB) --> potentiellement récoltables | I17: =W21 -> 20323.1 | J17: - | S17: Tableau 1. | T17: OSUPEXIN | U17: EXIN | V17: =VLOOKUP(T17,Output!$C:$H,6,FALSE) -> 167692.3
B18: bandes riveraines (densité CD) --> potentiellement récoltables | I18: =X21 -> 12954.5 | J18: - | S18: Tableau 1. | T18: ↓ | U18: ↓ | V18: ↓ | Y18: ↓ | AA18: ↓
B19: autres | I19: =I15-I16-I17-I18 -> 134354.4 | S19: Tableau 1. | T19: Sup_aff | U19: Sup_empche | V19: Sup_ecot | W19: Sup_brivAB | X19: Sup_brivCD | Y19: Sup_impro | Z19: Sup_aut | AA19: Sup_pentf
B20: Territoire destiné à l'aménagement forestier (INC) | I20: =V22 -> 491415.5 | J20: =I20/I9 -> 0.4667636575 | S20: Tableau 1. | T20: =AB7 -> 3085.6 | U20: =AB8 -> 7851.7 | V20: =AB9 -> 3905.3 | Y20: =AB12 -> 1065 | AA20: =AB13 -> 154.7 | AB20: Total
B21: forestier exploitable | I21: =V22-I22-I23 -> 410728.4 | J21: - | S21: Tableau 1. | W21: =AB10 -> 20323.1 | X21: =AB11 -> 12954.5 | AA21: =AB14 -> 60.3 | AB21: INC
B22: forestier inexploitable avec possibilité de remise en production (RP3 à RP15) | I22: =V24 -> 33605.5 | J22: - | S22: Tableau 1. | T22: OSUPINC | U22: INC | V22: =VLOOKUP(T22,Output!$C:$H,6,FALSE) -> 491415.5
B23: forestier inexploitable sans possibilité de remise en production (SNAT) | I23: =V25 -> 47081.6 | J23: - | S23: Tableau 1.
S24: Tableau 1. | U24: RP3 à RP9 | V24: =AB4 -> 33605.5
B25: Tableau 1. Répartition de la superficie de l'unité d'aménagement pas catégorie de territoire | S25: Tableau 1. | U25: SNAT | V25: =AB5 -> 47081.6
B26: Catégories | F26: Superficies
F27: Hectares | G27: %
B28: Superficie totale de l’unité d’aménagement | F28: =ROUND(I9,-1) -> 1052810 | G28: =F28/F28 -> 1
B29: Retraits de superficie
B30: Territoire non forestier | F30: =ROUND(I10+I11,-1) -> 393710 | G30: =F30/F28 -> 0.3739611136
B31: Territoire forestier peu productif (30 à 50 m³/ha) | F31: =ROUND(I22+I23,-1) -> 80690 | G31: =F31/F28 -> 0.07664250909
B32: Territoire forestier exclu de l’aménagement | F32: =ROUND(F28-F30-F31-F33,-1) -> 167680 | G32: =F32/F28 -> 0.1592690039 | N32: À compléter UA : | O32: UA:
B33: Superficie destinée à l’aménagement forestier | F33: =ROUND(I21,-1) -> 410730 | G33: =F33/F28 -> 0.3901273734 | O33: 08551 | T33: Légende | U33: Output | V33: P2@P6
S34: =LEFT(B$46,10) -> Tableau 3. | T34: Sepm | U34: OVOLGSEPMREC | V34: =IFERROR(VLOOKUP($U34,Output!$C:$AM,37,FALSE)/5,0) -> 469061.68
S35: Tableau 3.
S36: Tableau 3. | T36: Tho | U36: OVOLTHOREC | V36: =IFERROR(VLOOKUP($U36,Output!$C:$AM,37,FALSE)/5,0) -> 0
S37: Tableau 3. | T37: Pru | U37: OVOLPRUREC | V37: =IFERROR(VLOOKUP($U37,Output!$C:$AM,37,FALSE)/5,0) -> 0
S38: Tableau 3. | T38: Pins | U38: OVOLGPINSREC | V38: =IFERROR(VLOOKUP($U38,Output!$C:$AM,37,FALSE)/5,0) -> 16.47
S39: Tableau 3. | T39: Peu | U39: OVOLGPEUREC | V39: =IFERROR(VLOOKUP($U39,Output!$C:$AM,37,FALSE)/5,0) -> 129519.594
S40: Tableau 3. | T40: Bop | U40: OVOLGBPREC | V40: =IFERROR(VLOOKUP($U40,Output!$C:$AM,37,FALSE)/5,0) -> 13028.3488
S41: Tableau 3. | T41: Boj | U41: OVOLBOJREC | V41: =IFERROR(VLOOKUP($U41,Output!$C:$AM,37,FALSE)/5,0) -> 0
S42: Tableau 3. | T42: Ers | U42: OVOLERSREC | V42: =IFERROR(VLOOKUP($U42,Output!$C:$AM,37,FALSE)/5,0) -> 0
S43: Tableau 3. | T43: Err | U43: OVOLGEROREC | V43: =IFERROR(VLOOKUP($U43,Output!$C:$AM,37,FALSE)/5,0) -> 93.9076
S44: Tableau 3. | T44: Autre .F. (Auf) | V44: =V47-V42-V41 -> 0
S45: Tableau 3. | T45: résineux | U45: OVOLGRREC | V45: =IFERROR(VLOOKUP($U45,Output!$C:$AM,37,FALSE)/5,0) -> 469078.15
B46: Tableau 3. Possibilités forestières par essence ou par groupe d’essences et écart avec la période 2018-2023 | S46: Tableau 3. | T46: intolérant | U46: OVOLGFIREC | V46: =IFERROR(VLOOKUP($U46,Output!$C:$AM,37,FALSE)/5,0) -> 142641.85
B47: Périodes | C47: ="Possibilités forestières (m"&CHAR(179)&" bruts/an)" -> Possibilités forestières (m³ bruts/an) | S47: Tableau 3. | T47: Tolérant | U47: OVOLGFTREC | V47: =IFERROR(VLOOKUP($U47,Output!$C:$AM,37,FALSE)/5,0) -> 0
C48: SEPM | D48: Thuya | E48: Pruche | F48: Pins blanc et rouge | G48: Peupliers | H48: Bouleau à papier | I48: Bouleau jaune | J48: Érables à sucre et rouge | K48: Autres feuillus durs | L48: Total | N48: Possibilité forestière unitaire (PAC / Sup destinée à l'aménagement) | S48: Tableau 3. | T48: Total récoltés | U48: OVOLTOTREC | V48: =IFERROR(VLOOKUP($U48,Output!$C:$AM,37,FALSE)/5,0) -> 611720
B49: 2023-2028 | C49: =ROUND(V$34,-2) -> 469100 | D49: =ROUND(V$36,-2) -> 0 | E49: =ROUND(V$37,-2) -> 0 | F49: =ROUND(V$38,-2) -> 0 | G49: =ROUND(V$39,-2) -> 129500 | H49: =ROUND(V$40,-2) -> 13000 | I49: =ROUND(V$41,-2) -> 0 | J49: =ROUND(V$50,-2) -> 100 | K49: =ROUND(V$44,-2) -> 0 | L49: =SUM(C49:K49) -> 611700 | N49: =V57 -> 1.489348234 | S49: Tableau 3. | T49: FN sur pied | U49: OVOLGFNREC | V49: =IFERROR(VLOOKUP($U49,Output!$C:$AM,37,FALSE)/5,0) -> 0
C50: =C49/$L$49 -> 0.7668791891 | D50: 0 | E50: 0 | F50: 0 | G50: 0.2117050842 | H50: 0.02125224783 | I50: 0 | J50: 0.0001634788295 | K50: 0 | L50: =SUM(C50:K50) -> 1 | S50: Tableau 3. | T50: ER | V50: =V42+V43 -> 93.9076
B51: 2018-2023 | C51: =VLOOKUP($O$33,DataLocal!$A$6:$W$35,13,FALSE) -> 487500 | D51: =VLOOKUP($O$33,DataLocal!$A$6:$W$35,14,FALSE) -> 0 | E51: =VLOOKUP($O$33,DataLocal!$A$6:$W$35,15,FALSE) -> 0 | F51: =VLOOKUP($O$33,DataLocal!$A$6:$W$35,16,FALSE) -> 0 | G51: =VLOOKUP($O$33,DataLocal!$A$6:$W$35,17,FALSE) -> 133300 | H51: =VLOOKUP($O$33,DataLocal!$A$6:$W$35,18,FALSE) -> 11800 | I51: =VLOOKUP($O$33,DataLocal!$A$6:$W$35,19,FALSE) -> 0 | J51: =VLOOKUP($O$33,DataLocal!$A$6:$W$35,20,FALSE) -> 0 | K51: =VLOOKUP($O$33,DataLocal!$A$6:$W$35,21,FALSE) -> 0 | L51: =VLOOKUP($O$33,DataLocal!$A$6:$W$35,23,FALSE) -> 632600 | N51: % du volume sur pied initial | S51: Tableau 3. | U51: OVOLSABREC | V51: =IFERROR(VLOOKUP($U51,Output!$C:$AM,37,FALSE)/5,0) -> 27927.5572
B52: Écart | C52: =IFERROR((C49/C$51)-1,0) -> -0.03774358974 | D52: 0 | E52: 0 | F52: 0 | G52: -0.02850712678 | H52: 0.1016949153 | I52: 0 | J52: 0 | K52: 0 | L52: -0.03303825482 | N52: =V59 -> 0.0221865978 | S52: Tableau 3. | U52: OVOLGEPXREC | V52: =IFERROR(VLOOKUP($U52,Output!$C:$AM,37,FALSE)/5,0) -> 306094.7632
B53: ="Répartition de la composante SEPM des possibilités forestières 2023-2028 : sapin ("&IFERROR(ROUND(V51/V34*100,0),0)&"%), épinettes ("&IFERROR(ROUND(V52/V34*100,0),0)&"%), pin gris ("&IFERROR(ROUND(V53/V34*100,0),0)&"%) et mélèzes ("&IFERROR(ROUND(V54/V34*100,0),0)&"%)." -> Répartition de la composante SEPM des possibilités forestières 2023-2028 : sapin (6%), épinettes (65%), pin gris (28%) et mélèzes (1%). | S53: Tableau 3. | U53: OVOLGPGREC | V53: =IFERROR(VLOOKUP($U53,Output!$C:$AM,37,FALSE)/5,0) -> 130775.1352
B54: ="Répartition de la composante Érables à sucre et rouge des possibilités forestières 2023-2028 : érable à sucre("&IFERROR(ROUND(V42/(V42+V43)*100,0),0)&"%) et érable rouge ("&IFERROR(ROUND(V43/(V42+V43)*100,0),0)&"%)." -> Répartition de la composante Érables à sucre et rouge des possibilités forestières 2023-2028 : érable à sucre(0%) et érable rouge (100%). | S54: Tableau 3. | U54: OVOLGMLREC | V54: =IFERROR(VLOOKUP($U54,Output!$C:$AM,37,FALSE)/5,0) -> 4264.2248
B55: Copier/Coller le tableau ci-dessus avec les lignes 53 et 54 | S55: Tableau 3. | U55: OSUPINC | V55: =IFERROR(VLOOKUP($U55,Output!$C:$AM,6,FALSE),0) -> 491415.5
S56: Tableau 3. | U56: OVOLTOTPIEDINC | V56: =IFERROR(VLOOKUP($U56,Output!$C:$AM,7,FALSE),0) -> 28716505.16
S57: Tableau 3. | U57: Possibilité forestière unitaire | V57: =IFERROR(V48/F33,0) -> 1.489348234
S58: Tableau 3. | U58: % récolte volume sur pied
U59: % récolte volume sur pied destiné à l'aménagement | V59: =V48/Figures!V19 -> 0.0221865978
B61: Tableau 4. Répartition des superficies récoltées et des possibilités forestières par grand type de forêt
B62: Grands types de forêt | D62: Superficie récoltée* | H62: Possibilités forestières* | S62: =LEFT(B$61,10) -> Tableau 4. | V62: Output total non arrondi | W62: Écart entre la somme du tableau et le output total
D63: Coupes totales | F63: Coupes partielles | H63: Résineux | J63: Feuillus tolérants | L63: Feuillus intolérants | N63: Total | S63: Tableau 4. | T63: Total | Z63: P2 à P6
D64: ha/an | E64: % | F64: ha/an | G64: % | H64: m³ bruts/an | I64: % | J64: ="m"&CHAR(179)&" bruts/an" -> m³ bruts/an | K64: % | L64: ="m"&CHAR(179)&" bruts/an" -> m³ bruts/an | M64: % | N64: ="m"&CHAR(179)&" bruts/an" -> m³ bruts/an | O64: % | S64: Tableau 4. | T64: ha/an | U64: % | Y64: Famille de courbe | Z64: OSUPINC | AA64: OSUPREALREGAFIN | AB64: OSUPREALREGAPAR | AC64: OSUPREALREGAPRE | AD64: OVOLGRREC | AE64: OVOLGAURREC | AF64: OVOLGFIREC | AG64: OVOLGFTREC | AH64: OVOLTOTREC
B65: Bétulaies blanches | D65: =ROUND(AA65/5,-1) -> 10 | E65: =IFERROR(D65/D$79,0) -> 0.002173913043 | F65: =ROUND(AB65/5,-1) -> 0 | G65: =IFERROR(F65/F$79,0) -> 0 | H65: =ROUND(AD65/5,-2) -> 200 | I65: =IFERROR(H65/H$79,0) -> 0.0004263483266 | J65: =ROUND(AG65/5,-2) -> 0 | K65: =IFERROR(J65/J$79,0) -> 0 | L65: =ROUND(AF65/5,-2) -> 900 | M65: =L65/L$79 -> 0.006311360449 | N65: =H65+J65+L65 -> 1100 | O65: =N65/$N$79 -> 0.001798267124 | S65: Tableau 4. | T65: =D65+F65 -> 10 | U65: =IFERROR(T65/T$79,0) -> 0.001908396947 | V65: =(AA65+AB65)/5 -> 9.6996 | W65: =T65-V65 -> 0.3004 | Y65: (FCTYF_BOP) | Z65: =VLOOKUP(Z$64&$Y65,GTYF!$C:$AP,6,FALSE) -> 2749.6 | AA65: =VLOOKUP(AA$64&$Y65,GTYF!$C:$AP,37,FALSE) -> 48.498 | AB65: =VLOOKUP(AB$64&$Y65,GTYF!$C:$AP,37,FALSE) -> 0 | AC65: =VLOOKUP(AC$64&$Y65,GTYF!$C:$AP,37,FALSE) -> 48.498 | AD65: =VLOOKUP(AD$64&$Y65,GTYF!$C:$AP,37,FALSE) -> 857.48 | AE65: =VLOOKUP(AE$64&$Y65,GTYF!$C:$AP,37,FALSE) -> 0 | AF65: =VLOOKUP(AF$64&$Y65,GTYF!$C:$AP,37,FALSE) -> 4360.196 | AG65: =VLOOKUP(AG$64&$Y65,GTYF!$C:$AP,37,FALSE) -> 0 | AH65: =VLOOKUP(AH$64&$Y65,GTYF!$C:$AP,37,FALSE) -> 5217.676
B66: Bétulaies blanches à résineux | D66: 0 | E66: =IFERROR(D66/D$79,0) -> 0 | F66: 0 | G66: =IFERROR(F66/F$79,0) -> 0 | H66: =ROUND(AD66/5,-2) -> 100 | I66: =IFERROR(H66/H$79,0) -> 0.0002131741633 | J66: =ROUND(AG66/5,-2) -> 0 | K66: 0 | L66: =ROUND(AF66/5,-2) -> 100 | M66: =L66/L$79 -> 0.0007012622721 | N66: =H66+J66+L66 -> 200 | O66: 0.000326957659 | S66: Tableau 4. | T66: 0 | U66: =IFERROR(T66/T$79,0) -> 0 | V66: =(AA66+AB66)/5 -> 2.788 | W66: -2.788 | Y66: (FCTYF_BOPR) | Z66: =VLOOKUP(Z$64&$Y66,GTYF!$C:$AP,6,FALSE) -> 4568 | AA66: =VLOOKUP(AA$64&$Y66,GTYF!$C:$AP,37,FALSE) -> 13.94 | AB66: =VLOOKUP(AB$64&$Y66,GTYF!$C:$AP,37,FALSE) -> 0 | AC66: =VLOOKUP(AC$64&$Y66,GTYF!$C:$AP,37,FALSE) -> 13.94 | AD66: =VLOOKUP(AD$64&$Y66,GTYF!$C:$AP,37,FALSE) -> 577.15 | AE66: =VLOOKUP(AE$64&$Y66,GTYF!$C:$AP,37,FALSE) -> 0 | AF66: =VLOOKUP(AF$64&$Y66,GTYF!$C:$AP,37,FALSE) -> 745.428 | AG66: =VLOOKUP(AG$64&$Y66,GTYF!$C:$AP,37,FALSE) -> 0 | AH66: =VLOOKUP(AH$64&$Y66,GTYF!$C:$AP,37,FALSE) -> 1322.578
B67: Cédrières | D67: 0 | E67: 0 | F67: 0 | G67: 0 | H67: =ROUND(AD67/5,-2) -> 0 | I67: 0 | J67: 0 | K67: 0 | L67: 0 | M67: 0 | N67: 0 | O67: 0 | S67: Tableau 4. | T67: 0 | U67: 0 | V67: =(AA67+AB67)/5 -> 0 | W67: 0 | Y67: (FCTYF_THO) | Z67: =VLOOKUP(Z$64&$Y67,GTYF!$C:$AP,6,FALSE) -> 0 | AA67: =VLOOKUP(AA$64&$Y67,GTYF!$C:$AP,37,FALSE) -> 0 | AB67: =VLOOKUP(AB$64&$Y67,GTYF!$C:$AP,37,FALSE) -> 0 | AC67: =VLOOKUP(AC$64&$Y67,GTYF!$C:$AP,37,FALSE) -> 0 | AD67: =VLOOKUP(AD$64&$Y67,GTYF!$C:$AP,37,FALSE) -> 0 | AE67: =VLOOKUP(AE$64&$Y67,GTYF!$C:$AP,37,FALSE) -> 0 | AF67: =VLOOKUP(AF$64&$Y67,GTYF!$C:$AP,37,FALSE) -> 0 | AG67: =VLOOKUP(AG$64&$Y67,GTYF!$C:$AP,37,FALSE) -> 0 | AH67: =VLOOKUP(AH$64&$Y67,GTYF!$C:$AP,37,FALSE) -> 0
B68: Érablières rouges | D68: 0 | E68: 0 | F68: 0 | G68: 0 | H68: 0 | I68: 0 | J68: 0 | K68: 0 | L68: 0 | M68: 0 | N68: 0 | O68: 0 | S68: Tableau 4. | T68: 0 | U68: 0 | V68: =(AA68+AB68)/5 -> 0 | W68: 0 | Y68: (FCTYF_ERO) | Z68: =VLOOKUP(Z$64&$Y68,GTYF!$C:$AP,6,FALSE) -> 0 | AA68: =VLOOKUP(AA$64&$Y68,GTYF!$C:$AP,37,FALSE) -> 0 | AB68: =VLOOKUP(AB$64&$Y68,GTYF!$C:$AP,37,FALSE) -> 0 | AC68: =VLOOKUP(AC$64&$Y68,GTYF!$C:$AP,37,FALSE) -> 0 | AD68: =VLOOKUP(AD$64&$Y68,GTYF!$C:$AP,37,FALSE) -> 0 | AE68: =VLOOKUP(AE$64&$Y68,GTYF!$C:$AP,37,FALSE) -> 0 | AF68: =VLOOKUP(AF$64&$Y68,GTYF!$C:$AP,37,FALSE) -> 0 | AG68: =VLOOKUP(AG$64&$Y68,GTYF!$C:$AP,37,FALSE) -> 0 | AH68: =VLOOKUP(AH$64&$Y68,GTYF!$C:$AP,37,FALSE) -> 0
B69: Feuillus tolérants | D69: 0 | E69: 0 | F69: 0 | G69: 0 | H69: 0 | I69: 0 | J69: 0 | K69: 0 | L69: 0 | M69: 0 | N69: 0 | O69: 0 | S69: Tableau 4. | T69: 0 | U69: 0 | V69: 0 | W69: 0 | Y69: (FCTYF_FT) | Z69: =VLOOKUP(Z$64&$Y69,GTYF!$C:$AP,6,FALSE) -> 0 | AA69: =VLOOKUP(AA$64&$Y69,GTYF!$C:$AP,37,FALSE) -> 0 | AB69: =VLOOKUP(AB$64&$Y69,GTYF!$C:$AP,37,FALSE) -> 0 | AC69: =VLOOKUP(AC$64&$Y69,GTYF!$C:$AP,37,FALSE) -> 0 | AD69: =VLOOKUP(AD$64&$Y69,GTYF!$C:$AP,37,FALSE) -> 0 | AE69: =VLOOKUP(AE$64&$Y69,GTYF!$C:$AP,37,FALSE) -> 0 | AF69: =VLOOKUP(AF$64&$Y69,GTYF!$C:$AP,37,FALSE) -> 0 | AG69: =VLOOKUP(AG$64&$Y69,GTYF!$C:$AP,37,FALSE) -> 0 | AH69: =VLOOKUP(AH$64&$Y69,GTYF!$C:$AP,37,FALSE) -> 0
B70: Feuillus tolérants à résineux | D70: 0 | E70: 0 | F70: 0 | G70: 0 | H70: 0 | I70: 0 | J70: 0 | K70: 0 | L70: 0 | M70: 0 | N70: 0 | O70: 0 | S70: Tableau 4. | T70: 0 | U70: 0 | V70: 0 | W70: 0 | Y70: (FCTYF_FTR) | Z70: =VLOOKUP(Z$64&$Y70,GTYF!$C:$AP,6,FALSE) -> 0 | AA70: =VLOOKUP(AA$64&$Y70,GTYF!$C:$AP,37,FALSE) -> 0 | AB70: =VLOOKUP(AB$64&$Y70,GTYF!$C:$AP,37,FALSE) -> 0 | AC70: =VLOOKUP(AC$64&$Y70,GTYF!$C:$AP,37,FALSE) -> 0 | AD70: =VLOOKUP(AD$64&$Y70,GTYF!$C:$AP,37,FALSE) -> 0 | AE70: =VLOOKUP(AE$64&$Y70,GTYF!$C:$AP,37,FALSE) -> 0 | AF70: =VLOOKUP(AF$64&$Y70,GTYF!$C:$AP,37,FALSE) -> 0 | AG70: =VLOOKUP(AG$64&$Y70,GTYF!$C:$AP,37,FALSE) -> 0 | AH70: =VLOOKUP(AH$64&$Y70,GTYF!$C:$AP,37,FALSE) -> 0
B71: Pessières | D71: =ROUND(AA71/5,-1) -> 2330 | E71: 0.5065217391 | F71: 430 | G71: 0.671875 | H71: 253700 | I71: 0.5408228523 | J71: 0 | K71: 0 | L71: 6500 | M71: 0.04558204769 | N71: 260200 | O71: 0.4253719143 | S71: Tableau 4. | T71: 2760 | U71: 0.5267175573 | V71: 2761.614 | W71: =T71-V71 -> -1.614 | Y71: (FCTYF_EPX) | Z71: =VLOOKUP(Z$64&$Y71,GTYF!$C:$AP,6,FALSE) -> 250374.1 | AA71: =VLOOKUP(AA$64&$Y71,GTYF!$C:$AP,37,FALSE) -> 11663.33 | AB71: =VLOOKUP(AB$64&$Y71,GTYF!$C:$AP,37,FALSE) -> 2144.74 | AC71: =VLOOKUP(AC$64&$Y71,GTYF!$C:$AP,37,FALSE) -> 13808.07 | AD71: =VLOOKUP(AD$64&$Y71,GTYF!$C:$AP,37,FALSE) -> 1268598.048 | AE71: =VLOOKUP(AE$64&$Y71,GTYF!$C:$AP,37,FALSE) -> 0 | AF71: =VLOOKUP(AF$64&$Y71,GTYF!$C:$AP,37,FALSE) -> 32386.544 | AG71: =VLOOKUP(AG$64&$Y71,GTYF!$C:$AP,37,FALSE) -> 0 | AH71: =VLOOKUP(AH$64&$Y71,GTYF!$C:$AP,37,FALSE) -> 1300984.594
B72: Peupleraies | D72: 560 | E72: 0.1217391304 | F72: 0 | G72: 0 | H72: 13400 | I72: 0.02856533788 | J72: 0 | K72: 0 | L72: 84700 | M72: 0.5939691445 | N72: 98100 | O72: 0.1603727317 | S72: Tableau 4. | T72: 560 | U72: 0.106870229 | V72: 564.142 | W72: -4.142 | Y72: (FCTYF_PEU) | Z72: =VLOOKUP(Z$64&$Y72,GTYF!$C:$AP,6,FALSE) -> 37837 | AA72: =VLOOKUP(AA$64&$Y72,GTYF!$C:$AP,37,FALSE) -> 2820.71 | AB72: =VLOOKUP(AB$64&$Y72,GTYF!$C:$AP,37,FALSE) -> 0 | AC72: =VLOOKUP(AC$64&$Y72,GTYF!$C:$AP,37,FALSE) -> 2820.71 | AD72: =VLOOKUP(AD$64&$Y72,GTYF!$C:$AP,37,FALSE) -> 66956.91 | AE72: =VLOOKUP(AE$64&$Y72,GTYF!$C:$AP,37,FALSE) -> 0 | AF72: =VLOOKUP(AF$64&$Y72,GTYF!$C:$AP,37,FALSE) -> 423645.496 | AG72: =VLOOKUP(AG$64&$Y72,GTYF!$C:$AP,37,FALSE) -> 0 | AH72: =VLOOKUP(AH$64&$Y72,GTYF!$C:$AP,37,FALSE) -> 490602.4
B73: Peupleraies à résineux | D73: 290 | E73: 0.06304347826 | F73: 0 | G73: 0 | H73: 20300 | I73: 0.04327435515 | J73: 0 | K73: 0 | L73: 27500 | M73: 0.1928471248 | N73: 47800 | O73: 0.0781428805 | S73: Tableau 4. | T73: 290 | U73: 0.05534351145 | V73: 286.172 | W73: 3.828 | Y73: (FCTYF_PEUR) | Z73: =VLOOKUP(Z$64&$Y73,GTYF!$C:$AP,6,FALSE) -> 22548.6 | AA73: =VLOOKUP(AA$64&$Y73,GTYF!$C:$AP,37,FALSE) -> 1430.86 | AB73: =VLOOKUP(AB$64&$Y73,GTYF!$C:$AP,37,FALSE) -> 0 | AC73: =VLOOKUP(AC$64&$Y73,GTYF!$C:$AP,37,FALSE) -> 1430.86 | AD73: =VLOOKUP(AD$64&$Y73,GTYF!$C:$AP,37,FALSE) -> 101375.95 | AE73: =VLOOKUP(AE$64&$Y73,GTYF!$C:$AP,37,FALSE) -> 0 | AF73: =VLOOKUP(AF$64&$Y73,GTYF!$C:$AP,37,FALSE) -> 137307.954 | AG73: =VLOOKUP(AG$64&$Y73,GTYF!$C:$AP,37,FALSE) -> 0 | AH73: =VLOOKUP(AH$64&$Y73,GTYF!$C:$AP,37,FALSE) -> 238683.904
B74: Pinèdes blanches | D74: 0 | E74: 0 | F74: 0 | G74: 0 | H74: 0 | I74: 0 | J74: 0 | K74: 0 | L74: 0 | M74: 0 | N74: 0 | O74: 0 | S74: Tableau 4. | T74: 0 | U74: 0 | V74: 0 | W74: 0 | Y74: (FCTYF_PIN) | Z74: =VLOOKUP(Z$64&$Y74,GTYF!$C:$AP,6,FALSE) -> 0 | AA74: =VLOOKUP(AA$64&$Y74,GTYF!$C:$AP,37,FALSE) -> 0 | AB74: =VLOOKUP(AB$64&$Y74,GTYF!$C:$AP,37,FALSE) -> 0 | AC74: =VLOOKUP(AC$64&$Y74,GTYF!$C:$AP,37,FALSE) -> 0 | AD74: =VLOOKUP(AD$64&$Y74,GTYF!$C:$AP,37,FALSE) -> 0 | AE74: =VLOOKUP(AE$64&$Y74,GTYF!$C:$AP,37,FALSE) -> 0 | AF74: =VLOOKUP(AF$64&$Y74,GTYF!$C:$AP,37,FALSE) -> 0 | AG74: =VLOOKUP(AG$64&$Y74,GTYF!$C:$AP,37,FALSE) -> 0 | AH74: =VLOOKUP(AH$64&$Y74,GTYF!$C:$AP,37,FALSE) -> 0
B75: Pinèdes grises | D75: 980 | E75: 0.2130434783 | F75: 210 | G75: 0.328125 | H75: 139400 | I75: 0.2971647836 | J75: 0 | K75: 0 | L75: 5600 | M75: 0.03927068724 | N75: 145000 | O75: 0.2370443028 | S75: Tableau 4. | T75: 1190 | U75: 0.2270992366 | V75: 1182.8492 | W75: 7.1508 | Y75: (FCTYF_PIG) | Z75: =VLOOKUP(Z$64&$Y75,GTYF!$C:$AP,6,FALSE) -> 54212.3 | AA75: =VLOOKUP(AA$64&$Y75,GTYF!$C:$AP,37,FALSE) -> 4877.426 | AB75: =VLOOKUP(AB$64&$Y75,GTYF!$C:$AP,37,FALSE) -> 1036.82 | AC75: =VLOOKUP(AC$64&$Y75,GTYF!$C:$AP,37,FALSE) -> 5914.246 | AD75: =VLOOKUP(AD$64&$Y75,GTYF!$C:$AP,37,FALSE) -> 697246.04 | AE75: =VLOOKUP(AE$64&$Y75,GTYF!$C:$AP,37,FALSE) -> 82.35 | AF75: =VLOOKUP(AF$64&$Y75,GTYF!$C:$AP,37,FALSE) -> 28061.746 | AG75: =VLOOKUP(AG$64&$Y75,GTYF!$C:$AP,37,FALSE) -> 0 | AH75: =VLOOKUP(AH$64&$Y75,GTYF!$C:$AP,37,FALSE) -> 725307.786
B76: Prucheraies | D76: 0 | E76: 0 | F76: 0 | G76: 0 | H76: 0 | I76: 0 | J76: 0 | K76: 0 | L76: 0 | M76: 0 | N76: 0 | O76: 0 | S76: Tableau 4. | T76: 0 | U76: 0 | V76: 0 | W76: 0 | Y76: (FCTYF_PRU) | Z76: =VLOOKUP(Z$64&$Y76,GTYF!$C:$AP,6,FALSE) -> 0 | AA76: =VLOOKUP(AA$64&$Y76,GTYF!$C:$AP,37,FALSE) -> 0 | AB76: =VLOOKUP(AB$64&$Y76,GTYF!$C:$AP,37,FALSE) -> 0 | AC76: =VLOOKUP(AC$64&$Y76,GTYF!$C:$AP,37,FALSE) -> 0 | AD76: =VLOOKUP(AD$64&$Y76,GTYF!$C:$AP,37,FALSE) -> 0 | AE76: =VLOOKUP(AE$64&$Y76,GTYF!$C:$AP,37,FALSE) -> 0 | AF76: =VLOOKUP(AF$64&$Y76,GTYF!$C:$AP,37,FALSE) -> 0 | AG76: =VLOOKUP(AG$64&$Y76,GTYF!$C:$AP,37,FALSE) -> 0 | AH76: =VLOOKUP(AH$64&$Y76,GTYF!$C:$AP,37,FALSE) -> 0
B77: Résineux à feuillus | D77: 340 | E77: 0.07391304348 | F77: 0 | G77: 0 | H77: 30300 | I77: 0.06459177148 | J77: 0 | K77: 0 | L77: 16500 | M77: 0.1157082749 | N77: 46800 | O77: 0.0765080922 | S77: Tableau 4. | T77: 340 | U77: 0.06488549618 | V77: 339.1876 | W77: 0.8124 | Y77: (FCTYF_RF) | Z77: =VLOOKUP(Z$64&$Y77,GTYF!$C:$AP,6,FALSE) -> 34307.5 | AA77: =VLOOKUP(AA$64&$Y77,GTYF!$C:$AP,37,FALSE) -> 1695.938 | AB77: =VLOOKUP(AB$64&$Y77,GTYF!$C:$AP,37,FALSE) -> 0 | AC77: =VLOOKUP(AC$64&$Y77,GTYF!$C:$AP,37,FALSE) -> 1695.938 | AD77: =VLOOKUP(AD$64&$Y77,GTYF!$C:$AP,37,FALSE) -> 151418.316 | AE77: =VLOOKUP(AE$64&$Y77,GTYF!$C:$AP,37,FALSE) -> 0 | AF77: =VLOOKUP(AF$64&$Y77,GTYF!$C:$AP,37,FALSE) -> 82452.698 | AG77: =VLOOKUP(AG$64&$Y77,GTYF!$C:$AP,37,FALSE) -> 0 | AH77: =VLOOKUP(AH$64&$Y77,GTYF!$C:$AP,37,FALSE) -> 233871.012
B78: Sapinières | D78: 90 | E78: 0.01956521739 | F78: 0 | G78: 0 | H78: 11700 | I78: 0.02494137711 | J78: =ROUND(AG78/5,-2) -> 0 | K78: 0 | L78: 800 | M78: 0.005610098177 | N78: 12500 | O78: 0.02043485369 | S78: Tableau 4. | T78: 90 | U78: 0.01717557252 | V78: 90.652 | W78: -0.652 | Y78: (FCTYF_SAB) | Z78: =VLOOKUP(Z$64&$Y78,GTYF!$C:$AP,6,FALSE) -> 4131.3 | AA78: =VLOOKUP(AA$64&$Y78,GTYF!$C:$AP,37,FALSE) -> 453.26 | AB78: =VLOOKUP(AB$64&$Y78,GTYF!$C:$AP,37,FALSE) -> 0 | AC78: =VLOOKUP(AC$64&$Y78,GTYF!$C:$AP,37,FALSE) -> 453.26 | AD78: =VLOOKUP(AD$64&$Y78,GTYF!$C:$AP,37,FALSE) -> 58360.854 | AE78: =VLOOKUP(AE$64&$Y78,GTYF!$C:$AP,37,FALSE) -> 0 | AF78: =VLOOKUP(AF$64&$Y78,GTYF!$C:$AP,37,FALSE) -> 4249.194 | AG78: =VLOOKUP(AG$64&$Y78,GTYF!$C:$AP,37,FALSE) -> 0 | AH78: =VLOOKUP(AH$64&$Y78,GTYF!$C:$AP,37,FALSE) -> 62610.044
B79: Total | D79: =SUM(D65:D78) -> 4600 | E79: =SUM(E65:E78) -> 1 | F79: =SUM(F65:F78) -> 640 | G79: =SUM(G65:G78) -> 1 | H79: =SUM(H65:H78) -> 469100 | I79: =SUM(I65:I78) -> 1 | J79: 0 | K79: 0 | L79: 142600 | M79: 1 | N79: =SUM(N65:N78) -> 611700 | O79: 1 | S79: Tableau 4. | T79: =SUM(T65:T78) -> 5240 | U79: =SUM(U65:U78) -> 1 | V79: =SUM(V65:V78) -> 5237.1044 | W79: 2.8956 | Y79: Somme | Z79: =SUM(Z65:Z78) -> 410728.4 | AA79: =SUM(AA65:AA78) -> 23003.962 | AB79: =SUM(AB65:AB78) -> 3181.56 | AC79: =SUM(AC65:AC78) -> 26185.522
B80: * Les superficies sont arrondies à la dizaine près et les volumes à la centaine près. Cette opération peut engendrer de légères distorsions sur les sommes | S80: Tableau 4. | Y80: Total (Output) | Z80: =VLOOKUP(Z$64,Output!$C:$AP,6,FALSE) -> 491415.5
Y81: Écart | Z81: =Z79-Z80 -> -80687.1
N82: Écart de possibilité
N83: =Instructions!I5/5-N79 -> 20 | O83: Valideur
B84: Tableau 8. Traitements commerciaux supportant les possibilités forestières
B85: Traitements commerciaux (récolte) | G85: Superficie annuelle moyenne (ha/an) | H85: Superficie antérieure (ha/an) | I85: Écart (ha/an)
T88: Légende | U88: Name | V88: PERIOD2@6
B89: Coupe avec protection de la régénération et des sols (CPRS) | G89: =IFERROR(ROUND(V89,-1),0)-G90-G91 -> 4600 | H89: =IFERROR(ROUND(VLOOKUP(O33,DataLocal!$A:$BH,37,FALSE),-1),0) -> 5310 | I89: =G89-H89 -> -710 | S89: =LEFT(B$84,10) -> Tableau 8. | T89: Coupes avec protection de la régénération et des sols (CPRS) | U89: OSUPCT | V89: =IFERROR(VLOOKUP(U89,Output!$C:$AQ,37,FALSE)/5,"0000") -> 4600.7928
B90: Coupe avec protection des petites tiges marchandes (CPPTM) | G90: =IFERROR(ROUND(V90,-1),0) -> 0 | H90: =IFERROR(ROUND(VLOOKUP(O33,DataLocal!$A:$BH,38,FALSE),-1),0) -> 0 | I90: =G90-H90 -> 0 | S90: Tableau 8. | T90: Coupe avec protection des petites tiges marchandes (CPPTM) | U90: OSUPREALACPPTM | V90: =IFERROR(VLOOKUP(U90,Output!$C:$AQ,37,FALSE)/5,"0000") -> 0
B91: Coupe avec réserve de semenciers (CRS) | G91: =IFERROR(ROUND(V91,-1),0) -> 0 | H91: =IFERROR(ROUND(VLOOKUP(33,DataLocal!$A:$BH,39,FALSE),-1),0) -> 0 | I91: 0 | S91: Tableau 8. | T91: Coupe avec réserve de semenciers (CRS) | U91: OSUPREALACRS | V91: =IFERROR(VLOOKUP(U91,Output!$C:$AQ,37,FALSE)/5,"0000") -> 0
B92: Total des coupes finales | G92: =SUM(G89:G91) -> 4600 | H92: =SUM(H89:H91) -> 5310 | I92: -710 | S92: Tableau 8.
B93: Éclaircie commerciale | G93: =IFERROR(ROUND(V93,-1),0) -> 450 | H93: =IFERROR(ROUND(VLOOKUP(O33,DataLocal!$A:$BH,40,FALSE),-1),0) -> 250 | I93: 200 | S93: Tableau 8. | T93: Éclaircie commerciale (EC) | U93: OSUPEC_SEPM | V93: =IFERROR(VLOOKUP(U93,Output!$C:$AQ,37,FALSE)/5,"0000") -> 446.312
B94: Coupe progressive régulière | G94: =IFERROR(ROUND(V94+V95,-1),0) -> 0 | H94: =IFERROR(ROUND(VLOOKUP(O33,DataLocal!$A:$BH,41,FALSE),-1),0) -> 0 | I94: 0 | S94: Tableau 8. | T94: Coupe progressive régulière initiale (CPROG) | U94: OSUPCPROG_INI | V94: =IFERROR(VLOOKUP(U94,Output!$C:$AQ,37,FALSE)/5,"0000") -> 0000
B95: Coupe progressive irrégulière à régénération lente (CPIL) | G95: =IFERROR(ROUND(V96+V97,-1),0) -> 190 | H95: =IFERROR(ROUND(VLOOKUP(O33,DataLocal!$A:$BH,42,FALSE),-1),0) -> 110 | I95: 80 | S95: Tableau 8. | T95: Coupe progressive régulière finale (CPROG) | U95: OSUPCPROG_FIN | V95: =IFERROR(VLOOKUP(U95,Output!$C:$AQ,37,FALSE)/5,"0000") -> 0000
B96: Coupe progressive irrégulière à couvert permanent (CPICP) | G96: =IFERROR(ROUND(V98,-1),0) -> 0 | H96: =IFERROR(ROUND(VLOOKUP(O33,DataLocal!$A:$BH,43,FALSE),-1),0) -> 0 | I96: 0 | S96: Tableau 8. | T96: Coupe progessive irrégulière initiale (CPIRL) | U96: OSUPCPIRL_INI | V96: =IFERROR(VLOOKUP(U96,Output!$C:$AQ,37,FALSE)/5,"0000") -> 190
B97: Coupes de jardinage ou d'amélioration | G97: =IFERROR(ROUND(V99,-1),0) -> 0 | H97: =IFERROR(ROUND(VLOOKUP(O33,DataLocal!$A:$BH,44,FALSE),-1),0) -> 0 | I97: 0 | T97: Coupe progessive irrégulière finale (CPIRL) | U97: OSUPCPIRL_FIN | V97: =IFERROR(VLOOKUP(U97,Output!$C:$AQ,37,FALSE)/5,"0000") -> 0
B98: Total des coupes partielles | G98: =SUM(G93:G97) -> 640 | H98: =SUM(H93:H97) -> 360 | I98: 280 | S98: =LEFT(B$84,10) -> Tableau 8. | T98: Coupe à couvert permanent (CPICP) | U98: OSUPCPICP | V98: =IFERROR(VLOOKUP(U98,Output!$C:$AQ,37,FALSE)/5,"0000") -> 0000
B99: Total des activités de récolte | G99: =G92+G98 -> 5240 | H99: =H98+H92 -> 5670 | I99: -430 | S99: =LEFT(B$84,10) -> Tableau 8. | T99: Coupe de jardinage (CJ) | U99: OSUPCJ | V99: =IFERROR(VLOOKUP(U99,Output!$C:$AQ,37,FALSE)/5,"0000") -> 0000
B100: % des coupes totales / récolte | G100: =IFERROR(G92/G99,0) -> 0.8778625954 | H100: =IFERROR(H92/H99,0) -> 0.9365079365 | I100: =ROUND(G100-H100,2) -> -0.06 | W100: Valideur
B101: % des coupes partielles / récolte | G101: =IFERROR(G98/G99,0) -> 0.1221374046 | H101: =IFERROR(H98/H99,0) -> 0.06349206349 | I101: =ROUND(G101-H101,2) -> 0.06 | S101: =LEFT(B$84,10) -> Tableau 8. | U101: OSUPREALREGAPAR | V101: =VLOOKUP(U101,Output!$C:$AQ,37,FALSE)/5 -> 636.312 | W101: =ROUND(SUM(V93:V99),0)=ROUND(V101,0) -> TRUE
B102: Coupes partielles de peuplements résineux | G102: =ROUND((AB67+AB71+AB75+AB76+AB77+AB78)/5,-1) -> 640 | H102: =IFERROR(ROUND(VLOOKUP(O33,DataLocal!$A:$BH,45,FALSE),-1),0) -> 360 | I102: 280 | S102: =LEFT(B$84,10) -> Tableau 8. | U102: OSUPREALREGAFIN | V102: =VLOOKUP(U102,Output!$C:$AQ,37,FALSE)/5 -> 4600.7928 | W102: =ROUND((V89),0)=ROUND(V102,0) -> TRUE
B103: Coupes partielles de peuplements de feuillus tolérants et de pins | G103: =ROUND((AB69+AB70+AB74)/5,-1) -> 0 | H103: =IFERROR(ROUND(VLOOKUP(O33,DataLocal!$A:$BH,46,FALSE),-1),0) -> 0 | I103: 0 | S103: =LEFT(B$84,10) -> Tableau 8. | U103: OSUPREALREGAPRE | V103: =VLOOKUP(U103,Output!$C:$AQ,37,FALSE)/5 -> 5237.1048 | W103: =ROUND(V89+SUM(V93:V99),0)=ROUND(V103,0) -> TRUE
B109: Tableau 9. Variables descriptives reliées aux coupes partielles et totales par grand type de forêt | L109: La CRV est-elle compabilisée avec les coupes partielles (regaPar)?
B110: Grands types de forêt | E110: Coupes partielles | H110: Coupes totales | L110: Si Oui - Remplacer alors les valeurs (colonne H et I) par celles-ci
E111: Rotation moyenne | F111: Prélèvement moyen | G111: Surface terrière moyenne avant coupe | H111: Âge moyen des peuplements | I111: Volume moyen toutes essences | J111: Dimension des bois SEPM | M111: Âge moyen des peuplements | N111: Volume moyen toutes essences | P111: Âge moyen des peuplements
S113: Référence Tableau 63 du cahier d'analyse VF
E115: Années | F115: ="m"&CHAR(179)&"/ha" -> m³/ha | G115: ="m"&CHAR(178)&"/ha" -> m²/ha | H115: Années | I115: ="m"&CHAR(179)&"/an" -> m³/an | J115: ="dcm"&CHAR(179)&"/tige" -> dcm³/tige | M115: Années | N115: ="m"&CHAR(179)&"/an" -> m³/an | P115: Années | S115: =LEFT(B$109,10) -> Tableau 9. | V115: OSUPREALREGAPRE | W115: OSUPINC | X115: OVOLGSEPMRECREGAFIN | Y115: ONBTGSEPMRECREGAFIN | Z115: OVOLTOTRECACT | AA115: OVOLTOTRECACFP | AB115: OVOLTOTRECACRS | AC115: OVOLTOTRECACPPTM | AD115: OSUPREALREGAFIN | AE115: OVOLTOTRECACRV | AF115: OAGETOTRECACT | AG115: OAGETOTRECACFP | AH115: OAGETOTRECACRS | AI115: OAGETOTRECACPPTM | AJ115: OSUPREALREGAFIN | AK115: OAGETOTRECACRV | AM115: OVOLTOTRECaEC | AN115: OVOLTOTRECaEC2 | AO115: OVOLTOTRECaEC3 | AP115: OVOLTOTRECaCA | AQ115: OVOLTOTRECaCA2 | AR115: OVOLTOTRECaCPROG | AS115: OVOLTOTRECaCPIL | AT115: OVOLTOTRECaCPIP | AU115: OVOLTOTRECaCPFORT | AV115: OVOLTOTRECaCPFAIBL | AW115: OVOLTOTRECaCP | AX115: OVOLTOTRECaCPJ | AY115: OVOLTOTRECaCJ | AZ115: SOMME | BA115: OSUPREALREGAPAR
B116: =T116 -> Bétulaies blanches | E116: - | F116: =IFERROR($AZ116/$BA116,"-") -> - | G116: - | H116: =IFERROR(($AF116+$AG116+$AH116+$AI116+$AK116)/$AJ116*5,"-") -> 87.34896284 | I116: =IFERROR(($Z116+$AA116+$AB116+$AC116+$AE116)/$AD116,"-") -> 107.585385 | J116: =(IFERROR(X116/Y116*1000,"-")) -> 82.91422398 | M116: =IFERROR(($AF116+$AG116+$AH116+$AI116)/$AJ116*5,"-") -> 87.34896284 | N116: =IFERROR(($Z116+$AA116+$AB116+$AC116)/$AD116,"-") -> 107.585385 | P116: =IFERROR(($AF116+$AG116+$AH116+$AI116+$AK116)/$AJ116*5,"-") -> 87.34896284 | S116: =LEFT(B$109,10) -> Tableau 9. | T116: Bétulaies blanches | U116: (FCTYF_BOP) | V116: =VLOOKUP(V$115&$U116,GTYF!$C:$AQ,37,FALSE) -> 48.498 | W116: =VLOOKUP(W$115&$U116,GTYF!$C:$AQ,6,FALSE) -> 2749.6 | X116: =VLOOKUP(X$115&$U116,GTYF!$C:$AQ,37,FALSE) -> 857.48 | Y116: =VLOOKUP(Y$115&$U116,GTYF!$C:$AQ,37,FALSE) -> 10341.772 | Z116: =VLOOKUP(Z$115&$U116,GTYF!$C:$AQ,37,FALSE) -> 5217.676 | AA116: =VLOOKUP(AA$115&$U116,GTYF!$C:$AQ,37,FALSE) -> 0 | AB116: =VLOOKUP(AB$115&$U116,GTYF!$C:$AQ,37,FALSE) -> 0 | AC116: =VLOOKUP(AC$115&$U116,GTYF!$C:$AQ,37,FALSE) -> 0 | AD116: =VLOOKUP(AD$115&$U116,GTYF!$C:$AQ,37,FALSE) -> 48.498 | AE116: =VLOOKUP(AE$115&$U116,GTYF!$C:$AQ,37,FALSE) -> 0 | AF116: =VLOOKUP(AF$115&$U116,GTYF!$C:$AQ,37,FALSE) -> 847.25 | AG116: =VLOOKUP(AG$115&$U116,GTYF!$C:$AQ,37,FALSE) -> 0 | AH116: =VLOOKUP(AH$115&$U116,GTYF!$C:$AQ,37,FALSE) -> 0 | AI116: =VLOOKUP(AI$115&$U116,GTYF!$C:$AQ,37,FALSE) -> 0 | AJ116: =VLOOKUP(AJ$115&$U116,GTYF!$C:$AQ,37,FALSE) -> 48.498 | AK116: =VLOOKUP(AK$115&$U116,GTYF!$C:$AQ,37,FALSE) -> 0 | AM116: =VLOOKUP(AM$115&$U116,GTYF!$C:$AQ,37,FALSE) -> 0 | AN116: =VLOOKUP(AN$115&$U116,GTYF!$C:$AQ,37,FALSE) -> 0 | AO116: =VLOOKUP(AO$115&$U116,GTYF!$C:$AQ,37,FALSE) -> 0 | AP116: =VLOOKUP(AP$115&$U116,GTYF!$C:$AQ,37,FALSE) -> 0 | AQ116: =VLOOKUP(AQ$115&$U116,GTYF!$C:$AQ,37,FALSE) -> 0 | AR116: =VLOOKUP(AR$115&$U116,GTYF!$C:$AQ,37,FALSE) -> 0 | AS116: =VLOOKUP(AS$115&$U116,GTYF!$C:$AQ,37,FALSE) -> 0 | AT116: =VLOOKUP(AT$115&$U116,GTYF!$C:$AQ,37,FALSE) -> 0 | AU116: =VLOOKUP(AU$115&$U116,GTYF!$C:$AQ,37,FALSE) -> 0 | AV116: =VLOOKUP(AV$115&$U116,GTYF!$C:$AQ,37,FALSE) -> 0 | AW116: =VLOOKUP(AW$115&$U116,GTYF!$C:$AQ,37,FALSE) -> 0 | AX116: =VLOOKUP(AX$115&$U116,GTYF!$C:$AQ,37,FALSE) -> 0 | AY116: =VLOOKUP(AY$115&$U116,GTYF!$C:$AQ,37,FALSE) -> 0 | AZ116: =SUM(AM116:AY116) -> 0 | BA116: =VLOOKUP(BA$115&$U116,GTYF!$C:$AQ,37,FALSE) -> 0
B117: Bétulaies blanches à résineux | E117: - | F117: - | G117: - | H117: >120 | I117: =IFERROR(($Z117+$AA117+$AB117+$AC117+$AE117)/$AD117,"-") -> 94.87647059 | J117: =(IFERROR(X117/Y117*1000,"-")) -> 108.1893215 | M117: =IFERROR(($AF117+$AG117+$AH117+$AI117)/$AJ117*5,"-") -> 162.5251076 | N117: =IFERROR(($Z117+$AA117+$AB117+$AC117)/$AD117,"-") -> 94.87647059 | P117: =IFERROR(($AF117+$AG117+$AH117+$AI117+$AK117)/$AJ117*5,"-") -> 162.5251076 | S117: Tableau 9. | T117: Bétulaies blanches à résineux | U117: (FCTYF_BOPR) | V117: =VLOOKUP(V$115&$U117,GTYF!$C:$AQ,37,FALSE) -> 13.94 | W117: =VLOOKUP(W$115&$U117,GTYF!$C:$AQ,6,FALSE) -> 4568 | X117: =VLOOKUP(X$115&$U117,GTYF!$C:$AQ,37,FALSE) -> 577.15 | Y117: =VLOOKUP(Y$115&$U117,GTYF!$C:$AQ,37,FALSE) -> 5334.63 | Z117: =VLOOKUP(Z$115&$U117,GTYF!$C:$AQ,37,FALSE) -> 1322.578 | AA117: =VLOOKUP(AA$115&$U117,GTYF!$C:$AQ,37,FALSE) -> 0 | AB117: =VLOOKUP(AB$115&$U117,GTYF!$C:$AQ,37,FALSE) -> 0 | AC117: =VLOOKUP(AC$115&$U117,GTYF!$C:$AQ,37,FALSE) -> 0 | AD117: =VLOOKUP(AD$115&$U117,GTYF!$C:$AQ,37,FALSE) -> 13.94 | AE117: =VLOOKUP(AE$115&$U117,GTYF!$C:$AQ,37,FALSE) -> 0 | AF117: =VLOOKUP(AF$115&$U117,GTYF!$C:$AQ,37,FALSE) -> 453.12 | AG117: =VLOOKUP(AG$115&$U117,GTYF!$C:$AQ,37,FALSE) -> 0 | AH117: =VLOOKUP(AH$115&$U117,GTYF!$C:$AQ,37,FALSE) -> 0 | AI117: =VLOOKUP(AI$115&$U117,GTYF!$C:$AQ,37,FALSE) -> 0 | AJ117: =VLOOKUP(AJ$115&$U117,GTYF!$C:$AQ,37,FALSE) -> 13.94 | AK117: =VLOOKUP(AK$115&$U117,GTYF!$C:$AQ,37,FALSE) -> 0 | AM117: =VLOOKUP(AM$115&$U117,GTYF!$C:$AQ,37,FALSE) -> 0 | AN117: =VLOOKUP(AN$115&$U117,GTYF!$C:$AQ,37,FALSE) -> 0 | AO117: =VLOOKUP(AO$115&$U117,GTYF!$C:$AQ,37,FALSE) -> 0 | AP117: =VLOOKUP(AP$115&$U117,GTYF!$C:$AQ,37,FALSE) -> 0 | AQ117: =VLOOKUP(AQ$115&$U117,GTYF!$C:$AQ,37,FALSE) -> 0 | AR117: =VLOOKUP(AR$115&$U117,GTYF!$C:$AQ,37,FALSE) -> 0 | AS117: =VLOOKUP(AS$115&$U117,GTYF!$C:$AQ,37,FALSE) -> 0 | AT117: =VLOOKUP(AT$115&$U117,GTYF!$C:$AQ,37,FALSE) -> 0 | AU117: =VLOOKUP(AU$115&$U117,GTYF!$C:$AQ,37,FALSE) -> 0 | AV117: =VLOOKUP(AV$115&$U117,GTYF!$C:$AQ,37,FALSE) -> 0 | AW117: =VLOOKUP(AW$115&$U117,GTYF!$C:$AQ,37,FALSE) -> 0 | AX117: =VLOOKUP(AX$115&$U117,GTYF!$C:$AQ,37,FALSE) -> 0 | AY117: =VLOOKUP(AY$115&$U117,GTYF!$C:$AQ,37,FALSE) -> 0 | AZ117: =SUM(AM117:AY117) -> 0 | BA117: =VLOOKUP(BA$115&$U117,GTYF!$C:$AQ,37,FALSE) -> 0
B118: Cédrières | E118: - | F118: - | G118: - | H118: =IFERROR(($AF118+$AG118+$AH118+$AI118+$AK118)/$AJ118*5,"-") -> - | I118: - | J118: =(IFERROR(X118/Y118*1000,"-")) -> - | M118: - | N118: - | P118: =IFERROR(($AF118+$AG118+$AH118+$AI118+$AK118)/$AJ118*5,"-") -> - | S118: Tableau 9. | T118: Cédrières | U118: (FCTYF_THO) | V118: =VLOOKUP(V$115&$U118,GTYF!$C:$AQ,37,FALSE) -> 0 | W118: =VLOOKUP(W$115&$U118,GTYF!$C:$AQ,6,FALSE) -> 0 | X118: =VLOOKUP(X$115&$U118,GTYF!$C:$AQ,37,FALSE) -> 0 | Y118: =VLOOKUP(Y$115&$U118,GTYF!$C:$AQ,37,FALSE) -> 0 | Z118: =VLOOKUP(Z$115&$U118,GTYF!$C:$AQ,37,FALSE) -> 0 | AA118: =VLOOKUP(AA$115&$U118,GTYF!$C:$AQ,37,FALSE) -> 0 | AB118: =VLOOKUP(AB$115&$U118,GTYF!$C:$AQ,37,FALSE) -> 0 | AC118: =VLOOKUP(AC$115&$U118,GTYF!$C:$AQ,37,FALSE) -> 0 | AD118: =VLOOKUP(AD$115&$U118,GTYF!$C:$AQ,37,FALSE) -> 0 | AE118: =VLOOKUP(AE$115&$U118,GTYF!$C:$AQ,37,FALSE) -> 0 | AF118: =VLOOKUP(AF$115&$U118,GTYF!$C:$AQ,37,FALSE) -> 0 | AG118: =VLOOKUP(AG$115&$U118,GTYF!$C:$AQ,37,FALSE) -> 0 | AH118: =VLOOKUP(AH$115&$U118,GTYF!$C:$AQ,37,FALSE) -> 0 | AI118: =VLOOKUP(AI$115&$U118,GTYF!$C:$AQ,37,FALSE) -> 0 | AJ118: =VLOOKUP(AJ$115&$U118,GTYF!$C:$AQ,37,FALSE) -> 0 | AK118: =VLOOKUP(AK$115&$U118,GTYF!$C:$AQ,37,FALSE) -> 0 | AM118: =VLOOKUP(AM$115&$U118,GTYF!$C:$AQ,37,FALSE) -> 0 | AN118: =VLOOKUP(AN$115&$U118,GTYF!$C:$AQ,37,FALSE) -> 0 | AO118: =VLOOKUP(AO$115&$U118,GTYF!$C:$AQ,37,FALSE) -> 0 | AP118: =VLOOKUP(AP$115&$U118,GTYF!$C:$AQ,37,FALSE) -> 0 | AQ118: =VLOOKUP(AQ$115&$U118,GTYF!$C:$AQ,37,FALSE) -> 0 | AR118: =VLOOKUP(AR$115&$U118,GTYF!$C:$AQ,37,FALSE) -> 0 | AS118: =VLOOKUP(AS$115&$U118,GTYF!$C:$AQ,37,FALSE) -> 0 | AT118: =VLOOKUP(AT$115&$U118,GTYF!$C:$AQ,37,FALSE) -> 0 | AU118: =VLOOKUP(AU$115&$U118,GTYF!$C:$AQ,37,FALSE) -> 0 | AV118: =VLOOKUP(AV$115&$U118,GTYF!$C:$AQ,37,FALSE) -> 0 | AW118: =VLOOKUP(AW$115&$U118,GTYF!$C:$AQ,37,FALSE) -> 0 | AX118: =VLOOKUP(AX$115&$U118,GTYF!$C:$AQ,37,FALSE) -> 0 | AY118: =VLOOKUP(AY$115&$U118,GTYF!$C:$AQ,37,FALSE) -> 0 | AZ118: 0 | BA118: =VLOOKUP(BA$115&$U118,GTYF!$C:$AQ,37,FALSE) -> 0
B119: Érablières rouges | E119: - | F119: - | G119: - | H119: - | I119: - | J119: - | M119: - | N119: - | P119: - | S119: Tableau 9. | T119: Érablières rouges | U119: (FCTYF_ERO) | V119: =VLOOKUP(V$115&$U119,GTYF!$C:$AQ,37,FALSE) -> 0 | W119: =VLOOKUP(W$115&$U119,GTYF!$C:$AQ,6,FALSE) -> 0 | X119: =VLOOKUP(X$115&$U119,GTYF!$C:$AQ,37,FALSE) -> 0 | Y119: =VLOOKUP(Y$115&$U119,GTYF!$C:$AQ,37,FALSE) -> 0 | Z119: =VLOOKUP(Z$115&$U119,GTYF!$C:$AQ,37,FALSE) -> 0 | AA119: =VLOOKUP(AA$115&$U119,GTYF!$C:$AQ,37,FALSE) -> 0 | AB119: =VLOOKUP(AB$115&$U119,GTYF!$C:$AQ,37,FALSE) -> 0 | AC119: =VLOOKUP(AC$115&$U119,GTYF!$C:$AQ,37,FALSE) -> 0 | AD119: =VLOOKUP(AD$115&$U119,GTYF!$C:$AQ,37,FALSE) -> 0 | AE119: =VLOOKUP(AE$115&$U119,GTYF!$C:$AQ,37,FALSE) -> 0 | AF119: =VLOOKUP(AF$115&$U119,GTYF!$C:$AQ,37,FALSE) -> 0 | AG119: =VLOOKUP(AG$115&$U119,GTYF!$C:$AQ,37,FALSE) -> 0 | AH119: =VLOOKUP(AH$115&$U119,GTYF!$C:$AQ,37,FALSE) -> 0 | AI119: =VLOOKUP(AI$115&$U119,GTYF!$C:$AQ,37,FALSE) -> 0 | AJ119: =VLOOKUP(AJ$115&$U119,GTYF!$C:$AQ,37,FALSE) -> 0 | AK119: =VLOOKUP(AK$115&$U119,GTYF!$C:$AQ,37,FALSE) -> 0 | AM119: =VLOOKUP(AM$115&$U119,GTYF!$C:$AQ,37,FALSE) -> 0 | AN119: =VLOOKUP(AN$115&$U119,GTYF!$C:$AQ,37,FALSE) -> 0 | AO119: =VLOOKUP(AO$115&$U119,GTYF!$C:$AQ,37,FALSE) -> 0 | AP119: =VLOOKUP(AP$115&$U119,GTYF!$C:$AQ,37,FALSE) -> 0 | AQ119: =VLOOKUP(AQ$115&$U119,GTYF!$C:$AQ,37,FALSE) -> 0 | AR119: =VLOOKUP(AR$115&$U119,GTYF!$C:$AQ,37,FALSE) -> 0 | AS119: =VLOOKUP(AS$115&$U119,GTYF!$C:$AQ,37,FALSE) -> 0 | AT119: =VLOOKUP(AT$115&$U119,GTYF!$C:$AQ,37,FALSE) -> 0 | AU119: =VLOOKUP(AU$115&$U119,GTYF!$C:$AQ,37,FALSE) -> 0 | AV119: =VLOOKUP(AV$115&$U119,GTYF!$C:$AQ,37,FALSE) -> 0 | AW119: =VLOOKUP(AW$115&$U119,GTYF!$C:$AQ,37,FALSE) -> 0 | AX119: =VLOOKUP(AX$115&$U119,GTYF!$C:$AQ,37,FALSE) -> 0 | AY119: =VLOOKUP(AY$115&$U119,GTYF!$C:$AQ,37,FALSE) -> 0 | AZ119: 0 | BA119: =VLOOKUP(BA$115&$U119,GTYF!$C:$AQ,37,FALSE) -> 0
B120: Feuillus tolérants | E120: - | F120: - | G120: - | H120: - | I120: - | J120: - | M120: - | N120: - | P120: - | S120: Tableau 9. | T120: Feuillus tolérants | U120: (FCTYF_FT) | V120: =VLOOKUP(V$115&$U120,GTYF!$C:$AQ,37,FALSE) -> 0 | W120: =VLOOKUP(W$115&$U120,GTYF!$C:$AQ,6,FALSE) -> 0 | X120: =VLOOKUP(X$115&$U120,GTYF!$C:$AQ,37,FALSE) -> 0 | Y120: =VLOOKUP(Y$115&$U120,GTYF!$C:$AQ,37,FALSE) -> 0 | Z120: =VLOOKUP(Z$115&$U120,GTYF!$C:$AQ,37,FALSE) -> 0 | AA120: =VLOOKUP(AA$115&$U120,GTYF!$C:$AQ,37,FALSE) -> 0 | AB120: =VLOOKUP(AB$115&$U120,GTYF!$C:$AQ,37,FALSE) -> 0 | AC120: =VLOOKUP(AC$115&$U120,GTYF!$C:$AQ,37,FALSE) -> 0 | AD120: =VLOOKUP(AD$115&$U120,GTYF!$C:$AQ,37,FALSE) -> 0 | AE120: =VLOOKUP(AE$115&$U120,GTYF!$C:$AQ,37,FALSE) -> 0 | AF120: =VLOOKUP(AF$115&$U120,GTYF!$C:$AQ,37,FALSE) -> 0 | AG120: =VLOOKUP(AG$115&$U120,GTYF!$C:$AQ,37,FALSE) -> 0 | AH120: =VLOOKUP(AH$115&$U120,GTYF!$C:$AQ,37,FALSE) -> 0 | AI120: =VLOOKUP(AI$115&$U120,GTYF!$C:$AQ,37,FALSE) -> 0 | AJ120: =VLOOKUP(AJ$115&$U120,GTYF!$C:$AQ,37,FALSE) -> 0 | AK120: =VLOOKUP(AK$115&$U120,GTYF!$C:$AQ,37,FALSE) -> 0 | AM120: =VLOOKUP(AM$115&$U120,GTYF!$C:$AQ,37,FALSE) -> 0 | AN120: =VLOOKUP(AN$115&$U120,GTYF!$C:$AQ,37,FALSE) -> 0 | AO120: =VLOOKUP(AO$115&$U120,GTYF!$C:$AQ,37,FALSE) -> 0 | AP120: =VLOOKUP(AP$115&$U120,GTYF!$C:$AQ,37,FALSE) -> 0 | AQ120: =VLOOKUP(AQ$115&$U120,GTYF!$C:$AQ,37,FALSE) -> 0 | AR120: =VLOOKUP(AR$115&$U120,GTYF!$C:$AQ,37,FALSE) -> 0 | AS120: =VLOOKUP(AS$115&$U120,GTYF!$C:$AQ,37,FALSE) -> 0 | AT120: =VLOOKUP(AT$115&$U120,GTYF!$C:$AQ,37,FALSE) -> 0 | AU120: =VLOOKUP(AU$115&$U120,GTYF!$C:$AQ,37,FALSE) -> 0 | AV120: =VLOOKUP(AV$115&$U120,GTYF!$C:$AQ,37,FALSE) -> 0 | AW120: =VLOOKUP(AW$115&$U120,GTYF!$C:$AQ,37,FALSE) -> 0 | AX120: =VLOOKUP(AX$115&$U120,GTYF!$C:$AQ,37,FALSE) -> 0 | AY120: =VLOOKUP(AY$115&$U120,GTYF!$C:$AQ,37,FALSE) -> 0 | AZ120: 0 | BA120: =VLOOKUP(BA$115&$U120,GTYF!$C:$AQ,37,FALSE) -> 0
B121: Feuillus tolérants à résineux | E121: - | F121: =IFERROR($AZ121/$BA121,"-") -> - | G121: - | H121: - | I121: - | J121: - | M121: - | N121: - | P121: - | S121: Tableau 9. | T121: Feuillus tolérants à résineux | U121: (FCTYF_FTR) | V121: =VLOOKUP(V$115&$U121,GTYF!$C:$AQ,37,FALSE) -> 0 | W121: =VLOOKUP(W$115&$U121,GTYF!$C:$AQ,6,FALSE) -> 0 | X121: =VLOOKUP(X$115&$U121,GTYF!$C:$AQ,37,FALSE) -> 0 | Y121: =VLOOKUP(Y$115&$U121,GTYF!$C:$AQ,37,FALSE) -> 0 | Z121: =VLOOKUP(Z$115&$U121,GTYF!$C:$AQ,37,FALSE) -> 0 | AA121: =VLOOKUP(AA$115&$U121,GTYF!$C:$AQ,37,FALSE) -> 0 | AB121: =VLOOKUP(AB$115&$U121,GTYF!$C:$AQ,37,FALSE) -> 0 | AC121: =VLOOKUP(AC$115&$U121,GTYF!$C:$AQ,37,FALSE) -> 0 | AD121: =VLOOKUP(AD$115&$U121,GTYF!$C:$AQ,37,FALSE) -> 0 | AE121: =VLOOKUP(AE$115&$U121,GTYF!$C:$AQ,37,FALSE) -> 0 | AF121: =VLOOKUP(AF$115&$U121,GTYF!$C:$AQ,37,FALSE) -> 0 | AG121: =VLOOKUP(AG$115&$U121,GTYF!$C:$AQ,37,FALSE) -> 0 | AH121: =VLOOKUP(AH$115&$U121,GTYF!$C:$AQ,37,FALSE) -> 0 | AI121: =VLOOKUP(AI$115&$U121,GTYF!$C:$AQ,37,FALSE) -> 0 | AJ121: =VLOOKUP(AJ$115&$U121,GTYF!$C:$AQ,37,FALSE) -> 0 | AK121: =VLOOKUP(AK$115&$U121,GTYF!$C:$AQ,37,FALSE) -> 0 | AM121: =VLOOKUP(AM$115&$U121,GTYF!$C:$AQ,37,FALSE) -> 0 | AN121: =VLOOKUP(AN$115&$U121,GTYF!$C:$AQ,37,FALSE) -> 0 | AO121: =VLOOKUP(AO$115&$U121,GTYF!$C:$AQ,37,FALSE) -> 0 | AP121: =VLOOKUP(AP$115&$U121,GTYF!$C:$AQ,37,FALSE) -> 0 | AQ121: =VLOOKUP(AQ$115&$U121,GTYF!$C:$AQ,37,FALSE) -> 0 | AR121: =VLOOKUP(AR$115&$U121,GTYF!$C:$AQ,37,FALSE) -> 0 | AS121: =VLOOKUP(AS$115&$U121,GTYF!$C:$AQ,37,FALSE) -> 0 | AT121: =VLOOKUP(AT$115&$U121,GTYF!$C:$AQ,37,FALSE) -> 0 | AU121: =VLOOKUP(AU$115&$U121,GTYF!$C:$AQ,37,FALSE) -> 0 | AV121: =VLOOKUP(AV$115&$U121,GTYF!$C:$AQ,37,FALSE) -> 0 | AW121: =VLOOKUP(AW$115&$U121,GTYF!$C:$AQ,37,FALSE) -> 0 | AX121: =VLOOKUP(AX$115&$U121,GTYF!$C:$AQ,37,FALSE) -> 0 | AY121: =VLOOKUP(AY$115&$U121,GTYF!$C:$AQ,37,FALSE) -> 0 | AZ121: =SUM(AM121:AY121) -> 0 | BA121: =VLOOKUP(BA$115&$U121,GTYF!$C:$AQ,37,FALSE) -> 0
B122: Pessières | E122: 39 | F122: =IFERROR($AZ122/$BA122,"-") -> 45.91923683 | G122: 27 | H122: >120 | I122: 103.1008955 | J122: 94.28482784 | M122: 134.067509 | N122: 103.1008955 | P122: 134.067509 | S122: Tableau 9. | T122: Pessières | U122: (FCTYF_EPX) | V122: =VLOOKUP(V$115&$U122,GTYF!$C:$AQ,37,FALSE) -> 13808.07 | W122: =VLOOKUP(W$115&$U122,GTYF!$C:$AQ,6,FALSE) -> 250374.1 | X122: =VLOOKUP(X$115&$U122,GTYF!$C:$AQ,37,FALSE) -> 1176015.606 | Y122: =VLOOKUP(Y$115&$U122,GTYF!$C:$AQ,37,FALSE) -> 12473010.06 | Z122: =VLOOKUP(Z$115&$U122,GTYF!$C:$AQ,37,FALSE) -> 1101828.698 | AA122: =VLOOKUP(AA$115&$U122,GTYF!$C:$AQ,37,FALSE) -> 100671.07 | AB122: =VLOOKUP(AB$115&$U122,GTYF!$C:$AQ,37,FALSE) -> 0 | AC122: =VLOOKUP(AC$115&$U122,GTYF!$C:$AQ,37,FALSE) -> 0 | AD122: =VLOOKUP(AD$115&$U122,GTYF!$C:$AQ,37,FALSE) -> 11663.33 | AE122: =VLOOKUP(AE$115&$U122,GTYF!$C:$AQ,37,FALSE) -> 0 | AF122: =VLOOKUP(AF$115&$U122,GTYF!$C:$AQ,37,FALSE) -> 300872.776 | AG122: =VLOOKUP(AG$115&$U122,GTYF!$C:$AQ,37,FALSE) -> 11861.944 | AH122: =VLOOKUP(AH$115&$U122,GTYF!$C:$AQ,37,FALSE) -> 0 | AI122: =VLOOKUP(AI$115&$U122,GTYF!$C:$AQ,37,FALSE) -> 0 | AJ122: =VLOOKUP(AJ$115&$U122,GTYF!$C:$AQ,37,FALSE) -> 11663.33 | AK122: =VLOOKUP(AK$115&$U122,GTYF!$C:$AQ,37,FALSE) -> 0 | AM122: =VLOOKUP(AM$115&$U122,GTYF!$C:$AQ,37,FALSE) -> 34257.2 | AN122: =VLOOKUP(AN$115&$U122,GTYF!$C:$AQ,37,FALSE) -> 0 | AO122: =VLOOKUP(AO$115&$U122,GTYF!$C:$AQ,37,FALSE) -> 0 | AP122: =VLOOKUP(AP$115&$U122,GTYF!$C:$AQ,37,FALSE) -> 0 | AQ122: =VLOOKUP(AQ$115&$U122,GTYF!$C:$AQ,37,FALSE) -> 0 | AR122: =VLOOKUP(AR$115&$U122,GTYF!$C:$AQ,37,FALSE) -> 0 | AS122: =VLOOKUP(AS$115&$U122,GTYF!$C:$AQ,37,FALSE) -> 64227.624 | AT122: =VLOOKUP(AT$115&$U122,GTYF!$C:$AQ,37,FALSE) -> 0 | AU122: =VLOOKUP(AU$115&$U122,GTYF!$C:$AQ,37,FALSE) -> 0 | AV122: =VLOOKUP(AV$115&$U122,GTYF!$C:$AQ,37,FALSE) -> 0 | AW122: =VLOOKUP(AW$115&$U122,GTYF!$C:$AQ,37,FALSE) -> 0 | AX122: =VLOOKUP(AX$115&$U122,GTYF!$C:$AQ,37,FALSE) -> 0 | AY122: =VLOOKUP(AY$115&$U122,GTYF!$C:$AQ,37,FALSE) -> 0 | AZ122: =SUM(AM122:AY122) -> 98484.824 | BA122: =VLOOKUP(BA$115&$U122,GTYF!$C:$AQ,37,FALSE) -> 2144.74
B123: Peupleraies | E123: - | F123: - | G123: - | H123: 79.7725289 | I123: 173.9286917 | J123: 115.4955075 | M123: 79.7725289 | N123: 173.9286917 | P123: 79.7725289 | S123: Tableau 9. | T123: Peupleraies | U123: (FCTYF_PEU) | V123: =VLOOKUP(V$115&$U123,GTYF!$C:$AQ,37,FALSE) -> 2820.71 | W123: =VLOOKUP(W$115&$U123,GTYF!$C:$AQ,6,FALSE) -> 37837 | X123: =VLOOKUP(X$115&$U123,GTYF!$C:$AQ,37,FALSE) -> 66956.91 | Y123: =VLOOKUP(Y$115&$U123,GTYF!$C:$AQ,37,FALSE) -> 579736.056 | Z123: =VLOOKUP(Z$115&$U123,GTYF!$C:$AQ,37,FALSE) -> 490602.4 | AA123: =VLOOKUP(AA$115&$U123,GTYF!$C:$AQ,37,FALSE) -> 0 | AB123: =VLOOKUP(AB$115&$U123,GTYF!$C:$AQ,37,FALSE) -> 0 | AC123: =VLOOKUP(AC$115&$U123,GTYF!$C:$AQ,37,FALSE) -> 0 | AD123: =VLOOKUP(AD$115&$U123,GTYF!$C:$AQ,37,FALSE) -> 2820.71 | AE123: =VLOOKUP(AE$115&$U123,GTYF!$C:$AQ,37,FALSE) -> 0 | AF123: =VLOOKUP(AF$115&$U123,GTYF!$C:$AQ,37,FALSE) -> 45003.034 | AG123: =VLOOKUP(AG$115&$U123,GTYF!$C:$AQ,37,FALSE) -> 0 | AH123: =VLOOKUP(AH$115&$U123,GTYF!$C:$AQ,37,FALSE) -> 0 | AI123: =VLOOKUP(AI$115&$U123,GTYF!$C:$AQ,37,FALSE) -> 0 | AJ123: =VLOOKUP(AJ$115&$U123,GTYF!$C:$AQ,37,FALSE) -> 2820.71 | AK123: =VLOOKUP(AK$115&$U123,GTYF!$C:$AQ,37,FALSE) -> 0 | AM123: =VLOOKUP(AM$115&$U123,GTYF!$C:$AQ,37,FALSE) -> 0 | AN123: =VLOOKUP(AN$115&$U123,GTYF!$C:$AQ,37,FALSE) -> 0 | AO123: =VLOOKUP(AO$115&$U123,GTYF!$C:$AQ,37,FALSE) -> 0 | AP123: =VLOOKUP(AP$115&$U123,GTYF!$C:$AQ,37,FALSE) -> 0 | AQ123: =VLOOKUP(AQ$115&$U123,GTYF!$C:$AQ,37,FALSE) -> 0 | AR123: =VLOOKUP(AR$115&$U123,GTYF!$C:$AQ,37,FALSE) -> 0 | AS123: =VLOOKUP(AS$115&$U123,GTYF!$C:$AQ,37,FALSE) -> 0 | AT123: =VLOOKUP(AT$115&$U123,GTYF!$C:$AQ,37,FALSE) -> 0 | AU123: =VLOOKUP(AU$115&$U123,GTYF!$C:$AQ,37,FALSE) -> 0 | AV123: =VLOOKUP(AV$115&$U123,GTYF!$C:$AQ,37,FALSE) -> 0 | AW123: =VLOOKUP(AW$115&$U123,GTYF!$C:$AQ,37,FALSE) -> 0 | AX123: =VLOOKUP(AX$115&$U123,GTYF!$C:$AQ,37,FALSE) -> 0 | AY123: =VLOOKUP(AY$115&$U123,GTYF!$C:$AQ,37,FALSE) -> 0 | AZ123: 0 | BA123: =VLOOKUP(BA$115&$U123,GTYF!$C:$AQ,37,FALSE) -> 0
B124: Peupleraies à résineux | E124: - | F124: - | G124: - | H124: 73.96371413 | I124: 166.8115008 | J124: 124.4471538 | M124: 73.96371413 | N124: 166.8115008 | P124: 73.96371413 | S124: Tableau 9. | T124: Peupleraies à résineux | U124: (FCTYF_PEUR) | V124: =VLOOKUP(V$115&$U124,GTYF!$C:$AQ,37,FALSE) -> 1430.86 | W124: =VLOOKUP(W$115&$U124,GTYF!$C:$AQ,6,FALSE) -> 22548.6 | X124: =VLOOKUP(X$115&$U124,GTYF!$C:$AQ,37,FALSE) -> 101375.95 | Y124: =VLOOKUP(Y$115&$U124,GTYF!$C:$AQ,37,FALSE) -> 814610.434 | Z124: =VLOOKUP(Z$115&$U124,GTYF!$C:$AQ,37,FALSE) -> 238683.904 | AA124: =VLOOKUP(AA$115&$U124,GTYF!$C:$AQ,37,FALSE) -> 0 | AB124: =VLOOKUP(AB$115&$U124,GTYF!$C:$AQ,37,FALSE) -> 0 | AC124: =VLOOKUP(AC$115&$U124,GTYF!$C:$AQ,37,FALSE) -> 0 | AD124: =VLOOKUP(AD$115&$U124,GTYF!$C:$AQ,37,FALSE) -> 1430.86 | AE124: =VLOOKUP(AE$115&$U124,GTYF!$C:$AQ,37,FALSE) -> 0 | AF124: =VLOOKUP(AF$115&$U124,GTYF!$C:$AQ,37,FALSE) -> 21166.344 | AG124: =VLOOKUP(AG$115&$U124,GTYF!$C:$AQ,37,FALSE) -> 0 | AH124: =VLOOKUP(AH$115&$U124,GTYF!$C:$AQ,37,FALSE) -> 0 | AI124: =VLOOKUP(AI$115&$U124,GTYF!$C:$AQ,37,FALSE) -> 0 | AJ124: =VLOOKUP(AJ$115&$U124,GTYF!$C:$AQ,37,FALSE) -> 1430.86 | AK124: =VLOOKUP(AK$115&$U124,GTYF!$C:$AQ,37,FALSE) -> 0 | AM124: =VLOOKUP(AM$115&$U124,GTYF!$C:$AQ,37,FALSE) -> 0 | AN124: =VLOOKUP(AN$115&$U124,GTYF!$C:$AQ,37,FALSE) -> 0 | AO124: =VLOOKUP(AO$115&$U124,GTYF!$C:$AQ,37,FALSE) -> 0 | AP124: =VLOOKUP(AP$115&$U124,GTYF!$C:$AQ,37,FALSE) -> 0 | AQ124: =VLOOKUP(AQ$115&$U124,GTYF!$C:$AQ,37,FALSE) -> 0 | AR124: =VLOOKUP(AR$115&$U124,GTYF!$C:$AQ,37,FALSE) -> 0 | AS124: =VLOOKUP(AS$115&$U124,GTYF!$C:$AQ,37,FALSE) -> 0 | AT124: =VLOOKUP(AT$115&$U124,GTYF!$C:$AQ,37,FALSE) -> 0 | AU124: =VLOOKUP(AU$115&$U124,GTYF!$C:$AQ,37,FALSE) -> 0 | AV124: =VLOOKUP(AV$115&$U124,GTYF!$C:$AQ,37,FALSE) -> 0 | AW124: =VLOOKUP(AW$115&$U124,GTYF!$C:$AQ,37,FALSE) -> 0 | AX124: =VLOOKUP(AX$115&$U124,GTYF!$C:$AQ,37,FALSE) -> 0 | AY124: =VLOOKUP(AY$115&$U124,GTYF!$C:$AQ,37,FALSE) -> 0 | AZ124: 0 | BA124: =VLOOKUP(BA$115&$U124,GTYF!$C:$AQ,37,FALSE) -> 0
B125: Pinèdes blanches | E125: - | F125: - | G125: - | H125: - | I125: - | J125: - | M125: - | N125: - | P125: - | S125: Tableau 9. | T125: Pinèdes blanches | U125: (FCTYF_PIN) | V125: =VLOOKUP(V$115&$U125,GTYF!$C:$AQ,37,FALSE) -> 0 | W125: =VLOOKUP(W$115&$U125,GTYF!$C:$AQ,6,FALSE) -> 0 | X125: =VLOOKUP(X$115&$U125,GTYF!$C:$AQ,37,FALSE) -> 0 | Y125: =VLOOKUP(Y$115&$U125,GTYF!$C:$AQ,37,FALSE) -> 0 | Z125: =VLOOKUP(Z$115&$U125,GTYF!$C:$AQ,37,FALSE) -> 0 | AA125: =VLOOKUP(AA$115&$U125,GTYF!$C:$AQ,37,FALSE) -> 0 | AB125: =VLOOKUP(AB$115&$U125,GTYF!$C:$AQ,37,FALSE) -> 0 | AC125: =VLOOKUP(AC$115&$U125,GTYF!$C:$AQ,37,FALSE) -> 0 | AD125: =VLOOKUP(AD$115&$U125,GTYF!$C:$AQ,37,FALSE) -> 0 | AE125: =VLOOKUP(AE$115&$U125,GTYF!$C:$AQ,37,FALSE) -> 0 | AF125: =VLOOKUP(AF$115&$U125,GTYF!$C:$AQ,37,FALSE) -> 0 | AG125: =VLOOKUP(AG$115&$U125,GTYF!$C:$AQ,37,FALSE) -> 0 | AH125: =VLOOKUP(AH$115&$U125,GTYF!$C:$AQ,37,FALSE) -> 0 | AI125: =VLOOKUP(AI$115&$U125,GTYF!$C:$AQ,37,FALSE) -> 0 | AJ125: =VLOOKUP(AJ$115&$U125,GTYF!$C:$AQ,37,FALSE) -> 0 | AK125: =VLOOKUP(AK$115&$U125,GTYF!$C:$AQ,37,FALSE) -> 0 | AM125: =VLOOKUP(AM$115&$U125,GTYF!$C:$AQ,37,FALSE) -> 0 | AN125: =VLOOKUP(AN$115&$U125,GTYF!$C:$AQ,37,FALSE) -> 0 | AO125: =VLOOKUP(AO$115&$U125,GTYF!$C:$AQ,37,FALSE) -> 0 | AP125: =VLOOKUP(AP$115&$U125,GTYF!$C:$AQ,37,FALSE) -> 0 | AQ125: =VLOOKUP(AQ$115&$U125,GTYF!$C:$AQ,37,FALSE) -> 0 | AR125: =VLOOKUP(AR$115&$U125,GTYF!$C:$AQ,37,FALSE) -> 0 | AS125: =VLOOKUP(AS$115&$U125,GTYF!$C:$AQ,37,FALSE) -> 0 | AT125: =VLOOKUP(AT$115&$U125,GTYF!$C:$AQ,37,FALSE) -> 0 | AU125: =VLOOKUP(AU$115&$U125,GTYF!$C:$AQ,37,FALSE) -> 0 | AV125: =VLOOKUP(AV$115&$U125,GTYF!$C:$AQ,37,FALSE) -> 0 | AW125: =VLOOKUP(AW$115&$U125,GTYF!$C:$AQ,37,FALSE) -> 0 | AX125: =VLOOKUP(AX$115&$U125,GTYF!$C:$AQ,37,FALSE) -> 0 | AY125: =VLOOKUP(AY$115&$U125,GTYF!$C:$AQ,37,FALSE) -> 0 | AZ125: 0 | BA125: =VLOOKUP(BA$115&$U125,GTYF!$C:$AQ,37,FALSE) -> 0
B126: Pinèdes grises | E126: 36 | F126: 38.66937752 | G126: 29 | H126: 85.32929254 | I126: 140.4869298 | J126: 145.3188192 | M126: 85.32929254 | N126: 140.4869298 | P126: 85.32929254 | S126: Tableau 9. | T126: Pinèdes grises | U126: (FCTYF_PIG) | V126: =VLOOKUP(V$115&$U126,GTYF!$C:$AQ,37,FALSE) -> 5914.246 | W126: =VLOOKUP(W$115&$U126,GTYF!$C:$AQ,6,FALSE) -> 54212.3 | X126: =VLOOKUP(X$115&$U126,GTYF!$C:$AQ,37,FALSE) -> 658725.88 | Y126: =VLOOKUP(Y$115&$U126,GTYF!$C:$AQ,37,FALSE) -> 4532970.22 | Z126: =VLOOKUP(Z$115&$U126,GTYF!$C:$AQ,37,FALSE) -> 623180.95 | AA126: =VLOOKUP(AA$115&$U126,GTYF!$C:$AQ,37,FALSE) -> 62033.654 | AB126: =VLOOKUP(AB$115&$U126,GTYF!$C:$AQ,37,FALSE) -> 0 | AC126: =VLOOKUP(AC$115&$U126,GTYF!$C:$AQ,37,FALSE) -> 0 | AD126: =VLOOKUP(AD$115&$U126,GTYF!$C:$AQ,37,FALSE) -> 4877.426 | AE126: =VLOOKUP(AE$115&$U126,GTYF!$C:$AQ,37,FALSE) -> 0 | AF126: =VLOOKUP(AF$115&$U126,GTYF!$C:$AQ,37,FALSE) -> 77245.262 | AG126: =VLOOKUP(AG$115&$U126,GTYF!$C:$AQ,37,FALSE) -> 5992.2 | AH126: =VLOOKUP(AH$115&$U126,GTYF!$C:$AQ,37,FALSE) -> 0 | AI126: =VLOOKUP(AI$115&$U126,GTYF!$C:$AQ,37,FALSE) -> 0 | AJ126: =VLOOKUP(AJ$115&$U126,GTYF!$C:$AQ,37,FALSE) -> 4877.426 | AK126: =VLOOKUP(AK$115&$U126,GTYF!$C:$AQ,37,FALSE) -> 0 | AM126: =VLOOKUP(AM$115&$U126,GTYF!$C:$AQ,37,FALSE) -> 40093.184 | AN126: =VLOOKUP(AN$115&$U126,GTYF!$C:$AQ,37,FALSE) -> 0 | AO126: =VLOOKUP(AO$115&$U126,GTYF!$C:$AQ,37,FALSE) -> 0 | AP126: =VLOOKUP(AP$115&$U126,GTYF!$C:$AQ,37,FALSE) -> 0 | AQ126: =VLOOKUP(AQ$115&$U126,GTYF!$C:$AQ,37,FALSE) -> 0 | AR126: =VLOOKUP(AR$115&$U126,GTYF!$C:$AQ,37,FALSE) -> 0 | AS126: =VLOOKUP(AS$115&$U126,GTYF!$C:$AQ,37,FALSE) -> 0 | AT126: =VLOOKUP(AT$115&$U126,GTYF!$C:$AQ,37,FALSE) -> 0 | AU126: =VLOOKUP(AU$115&$U126,GTYF!$C:$AQ,37,FALSE) -> 0 | AV126: =VLOOKUP(AV$115&$U126,GTYF!$C:$AQ,37,FALSE) -> 0 | AW126: =VLOOKUP(AW$115&$U126,GTYF!$C:$AQ,37,FALSE) -> 0 | AX126: =VLOOKUP(AX$115&$U126,GTYF!$C:$AQ,37,FALSE) -> 0 | AY126: =VLOOKUP(AY$115&$U126,GTYF!$C:$AQ,37,FALSE) -> 0 | AZ126: 40093.184 | BA126: =VLOOKUP(BA$115&$U126,GTYF!$C:$AQ,37,FALSE) -> 1036.82
B127: Prucheraies | E127: - | F127: - | G127: - | H127: - | I127: - | J127: - | M127: - | N127: - | P127: - | S127: Tableau 9. | T127: Prucheraies | U127: (FCTYF_PRU) | V127: =VLOOKUP(V$115&$U127,GTYF!$C:$AQ,37,FALSE) -> 0 | W127: =VLOOKUP(W$115&$U127,GTYF!$C:$AQ,6,FALSE) -> 0 | X127: =VLOOKUP(X$115&$U127,GTYF!$C:$AQ,37,FALSE) -> 0 | Y127: =VLOOKUP(Y$115&$U127,GTYF!$C:$AQ,37,FALSE) -> 0 | Z127: =VLOOKUP(Z$115&$U127,GTYF!$C:$AQ,37,FALSE) -> 0 | AA127: =VLOOKUP(AA$115&$U127,GTYF!$C:$AQ,37,FALSE) -> 0 | AB127: =VLOOKUP(AB$115&$U127,GTYF!$C:$AQ,37,FALSE) -> 0 | AC127: =VLOOKUP(AC$115&$U127,GTYF!$C:$AQ,37,FALSE) -> 0 | AD127: =VLOOKUP(AD$115&$U127,GTYF!$C:$AQ,37,FALSE) -> 0 | AE127: =VLOOKUP(AE$115&$U127,GTYF!$C:$AQ,37,FALSE) -> 0 | AF127: =VLOOKUP(AF$115&$U127,GTYF!$C:$AQ,37,FALSE) -> 0 | AG127: =VLOOKUP(AG$115&$U127,GTYF!$C:$AQ,37,FALSE) -> 0 | AH127: =VLOOKUP(AH$115&$U127,GTYF!$C:$AQ,37,FALSE) -> 0 | AI127: =VLOOKUP(AI$115&$U127,GTYF!$C:$AQ,37,FALSE) -> 0 | AJ127: =VLOOKUP(AJ$115&$U127,GTYF!$C:$AQ,37,FALSE) -> 0 | AK127: =VLOOKUP(AK$115&$U127,GTYF!$C:$AQ,37,FALSE) -> 0 | AM127: =VLOOKUP(AM$115&$U127,GTYF!$C:$AQ,37,FALSE) -> 0 | AN127: =VLOOKUP(AN$115&$U127,GTYF!$C:$AQ,37,FALSE) -> 0 | AO127: =VLOOKUP(AO$115&$U127,GTYF!$C:$AQ,37,FALSE) -> 0 | AP127: =VLOOKUP(AP$115&$U127,GTYF!$C:$AQ,37,FALSE) -> 0 | AQ127: =VLOOKUP(AQ$115&$U127,GTYF!$C:$AQ,37,FALSE) -> 0 | AR127: =VLOOKUP(AR$115&$U127,GTYF!$C:$AQ,37,FALSE) -> 0 | AS127: =VLOOKUP(AS$115&$U127,GTYF!$C:$AQ,37,FALSE) -> 0 | AT127: =VLOOKUP(AT$115&$U127,GTYF!$C:$AQ,37,FALSE) -> 0 | AU127: =VLOOKUP(AU$115&$U127,GTYF!$C:$AQ,37,FALSE) -> 0 | AV127: =VLOOKUP(AV$115&$U127,GTYF!$C:$AQ,37,FALSE) -> 0 | AW127: =VLOOKUP(AW$115&$U127,GTYF!$C:$AQ,37,FALSE) -> 0 | AX127: =VLOOKUP(AX$115&$U127,GTYF!$C:$AQ,37,FALSE) -> 0 | AY127: =VLOOKUP(AY$115&$U127,GTYF!$C:$AQ,37,FALSE) -> 0 | AZ127: 0 | BA127: =VLOOKUP(BA$115&$U127,GTYF!$C:$AQ,37,FALSE) -> 0
B128: Résineux à feuillus | E128: - | F128: - | G128: - | H128: 80.57726167 | I128: 137.9006862 | J128: 134.9666742 | M128: 80.57726167 | N128: 137.9006862 | P128: 80.57726167 | S128: Tableau 9. | T128: Résineux à feuillus | U128: (FCTYF_RF) | V128: =VLOOKUP(V$115&$U128,GTYF!$C:$AQ,37,FALSE) -> 1695.938 | W128: =VLOOKUP(W$115&$U128,GTYF!$C:$AQ,6,FALSE) -> 34307.5 | X128: =VLOOKUP(X$115&$U128,GTYF!$C:$AQ,37,FALSE) -> 151418.316 | Y128: =VLOOKUP(Y$115&$U128,GTYF!$C:$AQ,37,FALSE) -> 1121894.104 | Z128: =VLOOKUP(Z$115&$U128,GTYF!$C:$AQ,37,FALSE) -> 85001.726 | AA128: =VLOOKUP(AA$115&$U128,GTYF!$C:$AQ,37,FALSE) -> 148869.288 | AB128: =VLOOKUP(AB$115&$U128,GTYF!$C:$AQ,37,FALSE) -> 0 | AC128: =VLOOKUP(AC$115&$U128,GTYF!$C:$AQ,37,FALSE) -> 0 | AD128: =VLOOKUP(AD$115&$U128,GTYF!$C:$AQ,37,FALSE) -> 1695.938 | AE128: =VLOOKUP(AE$115&$U128,GTYF!$C:$AQ,37,FALSE) -> 0 | AF128: =VLOOKUP(AF$115&$U128,GTYF!$C:$AQ,37,FALSE) -> 14121.758 | AG128: =VLOOKUP(AG$115&$U128,GTYF!$C:$AQ,37,FALSE) -> 13209.05 | AH128: =VLOOKUP(AH$115&$U128,GTYF!$C:$AQ,37,FALSE) -> 0 | AI128: =VLOOKUP(AI$115&$U128,GTYF!$C:$AQ,37,FALSE) -> 0 | AJ128: =VLOOKUP(AJ$115&$U128,GTYF!$C:$AQ,37,FALSE) -> 1695.938 | AK128: =VLOOKUP(AK$115&$U128,GTYF!$C:$AQ,37,FALSE) -> 0 | AM128: =VLOOKUP(AM$115&$U128,GTYF!$C:$AQ,37,FALSE) -> 0 | AN128: =VLOOKUP(AN$115&$U128,GTYF!$C:$AQ,37,FALSE) -> 0 | AO128: =VLOOKUP(AO$115&$U128,GTYF!$C:$AQ,37,FALSE) -> 0 | AP128: =VLOOKUP(AP$115&$U128,GTYF!$C:$AQ,37,FALSE) -> 0 | AQ128: =VLOOKUP(AQ$115&$U128,GTYF!$C:$AQ,37,FALSE) -> 0 | AR128: =VLOOKUP(AR$115&$U128,GTYF!$C:$AQ,37,FALSE) -> 0 | AS128: =VLOOKUP(AS$115&$U128,GTYF!$C:$AQ,37,FALSE) -> 0 | AT128: =VLOOKUP(AT$115&$U128,GTYF!$C:$AQ,37,FALSE) -> 0 | AU128: =VLOOKUP(AU$115&$U128,GTYF!$C:$AQ,37,FALSE) -> 0 | AV128: =VLOOKUP(AV$115&$U128,GTYF!$C:$AQ,37,FALSE) -> 0 | AW128: =VLOOKUP(AW$115&$U128,GTYF!$C:$AQ,37,FALSE) -> 0 | AX128: =VLOOKUP(AX$115&$U128,GTYF!$C:$AQ,37,FALSE) -> 0 | AY128: =VLOOKUP(AY$115&$U128,GTYF!$C:$AQ,37,FALSE) -> 0 | AZ128: 0 | BA128: =VLOOKUP(BA$115&$U128,GTYF!$C:$AQ,37,FALSE) -> 0
B129: Sapinières | E129: - | F129: - | G129: - | H129: 76.10311962 | I129: 138.1327362 | J129: 101.1885296 | M129: =IFERROR(($AF129+$AG129+$AH129+$AI129)/$AJ129*5,"-") -> 76.10311962 | N129: 138.1327362 | P129: 76.10311962 | S129: Tableau 9. | T129: Sapinières | U129: (FCTYF_SAB) | V129: =VLOOKUP(V$115&$U129,GTYF!$C:$AQ,37,FALSE) -> 453.26 | W129: =VLOOKUP(W$115&$U129,GTYF!$C:$AQ,6,FALSE) -> 4131.3 | X129: =VLOOKUP(X$115&$U129,GTYF!$C:$AQ,37,FALSE) -> 58360.854 | Y129: =VLOOKUP(Y$115&$U129,GTYF!$C:$AQ,37,FALSE) -> 576753.652 | Z129: =VLOOKUP(Z$115&$U129,GTYF!$C:$AQ,37,FALSE) -> 62610.044 | AA129: =VLOOKUP(AA$115&$U129,GTYF!$C:$AQ,37,FALSE) -> 0 | AB129: =VLOOKUP(AB$115&$U129,GTYF!$C:$AQ,37,FALSE) -> 0 | AC129: =VLOOKUP(AC$115&$U129,GTYF!$C:$AQ,37,FALSE) -> 0 | AD129: =VLOOKUP(AD$115&$U129,GTYF!$C:$AQ,37,FALSE) -> 453.26 | AE129: =VLOOKUP(AE$115&$U129,GTYF!$C:$AQ,37,FALSE) -> 0 | AF129: =VLOOKUP(AF$115&$U129,GTYF!$C:$AQ,37,FALSE) -> 6898.9 | AG129: =VLOOKUP(AG$115&$U129,GTYF!$C:$AQ,37,FALSE) -> 0 | AH129: =VLOOKUP(AH$115&$U129,GTYF!$C:$AQ,37,FALSE) -> 0 | AI129: =VLOOKUP(AI$115&$U129,GTYF!$C:$AQ,37,FALSE) -> 0 | AJ129: =VLOOKUP(AJ$115&$U129,GTYF!$C:$AQ,37,FALSE) -> 453.26 | AK129: =VLOOKUP(AK$115&$U129,GTYF!$C:$AQ,37,FALSE) -> 0 | AM129: =VLOOKUP(AM$115&$U129,GTYF!$C:$AQ,37,FALSE) -> 0 | AN129: =VLOOKUP(AN$115&$U129,GTYF!$C:$AQ,37,FALSE) -> 0 | AO129: =VLOOKUP(AO$115&$U129,GTYF!$C:$AQ,37,FALSE) -> 0 | AP129: =VLOOKUP(AP$115&$U129,GTYF!$C:$AQ,37,FALSE) -> 0 | AQ129: =VLOOKUP(AQ$115&$U129,GTYF!$C:$AQ,37,FALSE) -> 0 | AR129: =VLOOKUP(AR$115&$U129,GTYF!$C:$AQ,37,FALSE) -> 0 | AS129: =VLOOKUP(AS$115&$U129,GTYF!$C:$AQ,37,FALSE) -> 0 | AT129: =VLOOKUP(AT$115&$U129,GTYF!$C:$AQ,37,FALSE) -> 0 | AU129: =VLOOKUP(AU$115&$U129,GTYF!$C:$AQ,37,FALSE) -> 0 | AV129: =VLOOKUP(AV$115&$U129,GTYF!$C:$AQ,37,FALSE) -> 0 | AW129: =VLOOKUP(AW$115&$U129,GTYF!$C:$AQ,37,FALSE) -> 0 | AX129: =VLOOKUP(AX$115&$U129,GTYF!$C:$AQ,37,FALSE) -> 0 | AY129: =VLOOKUP(AY$115&$U129,GTYF!$C:$AQ,37,FALSE) -> 0 | AZ129: 0 | BA129: =VLOOKUP(BA$115&$U129,GTYF!$C:$AQ,37,FALSE) -> 0
S130: Tableau 9. | T130: Tous les GTYF | V130: =SUM(V116:V129) -> 26185.522 | W130: =SUM(W116:W129) -> 410728.4 | X130: 2214288.146 | Y130: 20114650.93 | Z130: 2608447.976 | AA130: 311574.012 | AB130: 0 | AC130: 0 | AD130: 23003.962 | AE130: 0 | AF130: 466608.444 | AG130: 31063.194 | AH130: 0 | AI130: 0 | AJ130: 23003.962 | AK130: 0
L131: Les statistiques portants sur les coupes partielles proviennent d'un Script R et sont disponibles ici:
L132: T:\Donnees\02_Courant\01_CPF\01_UA\0XXXX\70_Determination\72_Rapport\01_Cahier_DET\Tableau_9
B134: Tableau 10. Traitements non commerciaux supportant les possibilités forestières
B135: Traitements non commerciaux | F135: Superficie annuelle moyenne (ha/an) | G135: Superficie antérieure (ha/an) | H135: Écart (ha/an) | X135: Exemple U03772
K138: Le texte en rouge demande à l'analyste de valider la nature exacte du traitement et les superficies - variable selon la vague et l'UA - veuillez ensuite mettre en noir et supprimer la remarque si elle ne s'applique pas (si DEG_1 ne contient pas de regarni)
B139: Ligniculture (essences à croissance rapide) | F139: =ROUND(V139,-1) -> 0 | G139: =IFERROR(ROUND(VLOOKUP(O33,DataLocal!$A:$BH,47,FALSE),-1),0) -> 0 | H139: =F139-G139 -> 0 | S139: =LEFT(B$134,11) -> Tableau 10. | T139: Plantation ligniculture (pins, feuillus) | U139: OSUPPL_PPF | V139: =IFERROR(VLOOKUP(U139,Output!C:AQ,37,FALSE),0)/5 -> 0
B140: Plantation intensive (2 000 plants/ha) | F140: =ROUND(V140,-1) -> 540 | G140: =IFERROR(ROUND(VLOOKUP(O33,DataLocal!$A:$BH,48,FALSE),-1),0) -> 510 | H140: =F140-G140 -> 30 | S140: =LEFT(B$134,11) -> Tableau 10. | T140: Plantation intensive | U140: OSUPPL_SEPM_I | V140: =IFERROR(VLOOKUP(U140,Output!C:AQ,37,FALSE),0)/5 -> 538.4052
B141: Plantation de base (1 600 plants/ha) | F141: =ROUND(V141,-1) -> 810 | G141: =IFERROR(ROUND(VLOOKUP(O33,DataLocal!$A:$BH,49,FALSE),-1),0) -> 990 | H141: -180 | S141: Tableau 10. | T141: Plantation de base | U141: OSUPPL_SEPM_E | V141: =IFERROR(VLOOKUP(U141,Output!C:AQ,37,FALSE),0)/5 -> 811.3176
B142: Regarni | F142: =ROUND(V142,-1) -> 30 | G142: =IFERROR(ROUND(VLOOKUP(O33,DataLocal!$A:$BH,50,FALSE),-1),0) -> 0 | H142: 30 | S142: Tableau 10. | T142: Regarni | U142: OSUPREG | V142: =IFERROR(VLOOKUP(U142,Output!C:AQ,37,FALSE),0)/5 -> 28.6944
B143: % des plantations dans les coupes totales | F143: =IFERROR(SUM(F139:F141)/G92,0) -> 0.2934782609 | G143: =IFERROR(SUM(G139:G141)/H92,0) -> 0.2824858757 | H143: 0.01099238516 | S143: Tableau 10.
B144: Total des travaux de reboisement | F144: =ROUND(SUM(F139:F142),-1) -> 1380 | G144: =ROUND(SUM(G139:G142),-1) -> 1500 | H144: -120 | S144: Tableau 10.
B145: Nettoiement (régénération naturelle et plantation) | F145: =ROUND(V145,-1) -> 50 | G145: =IFERROR(ROUND(VLOOKUP(O33,DataLocal!$A:$BH,51,FALSE),-1),0) -> 20 | H145: 30 | S145: Tableau 10. | T145: Nettoiement | U145: OSUPREALNET | V145: =IFERROR(VLOOKUP(U145,Output!C:AQ,37,FALSE),0)/5 -> 45.2472
B146: Éclaircie précommerciale | F146: =ROUND(V146,-1) -> 0 | G146: =IFERROR(ROUND(VLOOKUP(O33,DataLocal!$A:$BH,52,FALSE),-1),0) -> 0 | H146: 0 | S146: Tableau 10. | T146: Éclaircie précommerciale de la régénération naturelle | U146: OSUPREALEPC | V146: =IFERROR(VLOOKUP(U146,Output!C:AQ,37,FALSE),0)/5 -> 0 | X146: Exemple U09751
B147: Dégagement de la régénération naturelle (et regarni) | F147: =ROUND(V147,-1) -> 30 | G147: =IFERROR(ROUND(VLOOKUP(O33,DataLocal!$A:$BH,53,FALSE),-1),0) -> 0 | H147: 30 | S147: Tableau 10. | T147: Dégagement de la régénération naturelle | U147: OSUPDEG_2 | V147: =IFERROR(VLOOKUP(U147,Output!C:AQ,37,FALSE),0)/5 -> 28.6944
B148: Dégagement des plantations | F148: =ROUND(V148,-1) -> 640 | G148: =IFERROR(ROUND(VLOOKUP(O33,DataLocal!$A:$BH,54,FALSE),-1),0) -> 800 | H148: -160 | S148: Tableau 10. | T148: Dégagement de plantation | U148: OSUPDEG_1 | V148: =IFERROR(VLOOKUP(U148,Output!C:AQ,37,FALSE),0)/5 -> 643.5472
B149: Élagage | F149: =ROUND(V149,-1) -> 0 | G149: =IFERROR(ROUND(VLOOKUP(O33,DataLocal!$A:$BN,66,FALSE),-1),0) -> 0 | H149: 0 | S149: Tableau 10. | T149: Élagage (plantation) | U149: OSUPELAG | V149: =IFERROR(VLOOKUP(U149,Output!C:AQ,37,FALSE),0)/5 -> 0
B150: Total des travaux d'éducation | F150: =SUM(F145:F149) -> 720 | G150: =SUM(G145:G149) -> 820 | H150: -100 | S150: Tableau 10. | U150: OSUPSCA_LIGN | V150: =IFERROR(VLOOKUP(U150,Output!C:AQ,37,FALSE),0)/5 -> 0
B151: Scarifiage partiel | F151: =ROUND(V152,-1) -> 60 | G151: =IFERROR(ROUND(VLOOKUP(O33,DataLocal!$A:$BH,58,FALSE),-1),0) -> 110 | H151: -50 | S151: Tableau 10. | U151: OSUPSCA_LRD | V151: =IFERROR(VLOOKUP(U151,Output!C:AQ,37,FALSE),0)/5 -> 0
B152: Scarifiage en plein | F152: =ROUND(V153+V150+V151,-1) -> 1350 | G152: =IFERROR(ROUND(VLOOKUP(O33,DataLocal!$A:$BH,59,FALSE),-1),0) -> 1500 | H152: -150 | S152: Tableau 10. | U152: OSUPSCA_PART | V152: =IFERROR(VLOOKUP(U152,Output!C:AQ,37,FALSE),0)/5 -> 57.1944
B153: Total de la préparation de terrain | F153: =IFERROR(SUM(F151:F152),0) -> 1410 | G153: =IFERROR(SUM(G151:G152),0) -> 1610 | H153: -200 | S153: Tableau 10. | U153: OSUPSCA_REG | V153: =IFERROR(VLOOKUP(U153,Output!C:AQ,37,FALSE),0)/5 -> 1349.7228
B154: Total des travaux sans récolte | F154: =F153+F150+F144 -> 3510 | G154: =G153+G150+G144 -> 3930 | H154: -420
B155: * Peut aussi comprendre du dégagement de regarni
B160: Tableau 13 : Variation du volume sur pied à court, moyen et long terme | L160: % du volume total | U160: colonne | V160: 37 | W160: 38 | X160: 39 | Y160: 40 | AF160: 37 | AG160: 38 | AH160: 39 | AI160: 40
B161: Essences | C161: Volume moyen sur pied (m3) | G161: Volume moyen sur pied (%) | V161: Volume moyen sur pied (m3) | Z161: Volume moyen sur pied (%) | AF161: Volume dans courbe SNAT
C162: 2023 à 2048 | D162: 2048 à 2073 | E162: 2073 à 2118 | F162: 2118 à 2168 | G162: =C162 -> 2023 à 2048 | H162: =D162 -> 2048 à 2073 | I162: 2073 à 2118 | J162: 2118 à 2168 | L162: 2023 à 2048 | T162: Légende | U162: Name | V162: p 2 à 6 | W162: p 7 à 11 | X162: p 12 à 20 | Y162: p 21 à 30 | Z162: p 2 à 6 | AA162: p 7 à 11 | AB162: p 12 à 20 | AC162: p 21 à 30 | AE162: Name | AF162: p 2 à 6 | AG162: p 7 à 11 | AH162: p 12 à 20 | AI162: p 21 à 30
B163: =T163 -> Sapin baumier | C163: =ROUND(V163-AF163,-2) -> 1040200 | D163: =ROUND(W163-AG163,-2) -> 906000 | E163: 939600 | F163: 804200 | G163: =C163/C$177 -> 0.03878318774 | H163: =D163/D$177 -> 0.03221413511 | I163: =E163/E$177 -> 0.03267117072 | J163: =F163/F$177 -> 0.02840832821 | L163: =C163/C$177 -> 0.03878318774 | S163: =LEFT(B$160,11) -> Tableau 13 | T163: Sapin baumier | U163: OVOLSABPIEDINC | V163: =VLOOKUP($U163,Output!$C:$AQ,V$160,FALSE) -> 1081290.02 | W163: =VLOOKUP($U163,Output!$C:$AQ,W$160,FALSE) -> 947246.686 | X163: =VLOOKUP($U163,Output!$C:$AQ,X$160,FALSE) -> 963158.2978 | Y163: =VLOOKUP($U163,Output!$C:$AQ,Y$160,FALSE) -> 848566.894 | Z163: =V163/V$178 -> 0.037982642 | AA163: =W163/W$178 -> 0.03162471566 | AB163: =X163/X$178 -> 0.03101518079 | AC163: =Y163/Y$178 -> 0.02732516108 | AE163: OVOLSABPIEDSNAT | AF163: =VLOOKUP($AE163,Output!$C:$AQ,AF$160,FALSE) -> 41045.44 | AG163: =VLOOKUP($AE163,Output!$C:$AQ,AG$160,FALSE) -> 41293.2 | AH163: =VLOOKUP($AE163,Output!$C:$AQ,AH$160,FALSE) -> 23534.45889 | AI163: =VLOOKUP($AE163,Output!$C:$AQ,AI$160,FALSE) -> 44389.014
B164: =T164 -> Épinettes | C164: =ROUND(V164-AF164,-2) -> 13130500 | D164: 14432500 | E164: 13156200 | F164: 12525000 | G164: 0.4895622444 | H164: 0.5131683277 | I164: 0.4574589785 | J164: 0.442445052 | L164: 0.4895622444 | S164: Tableau 13 | T164: Épinettes | U164: OVOLgEpxPIEDINC | V164: =VLOOKUP($U164,Output!$C:$AQ,V$160,FALSE) -> 14610804.71 | W164: =VLOOKUP($U164,Output!$C:$AQ,W$160,FALSE) -> 16079277.16 | X164: =VLOOKUP($U164,Output!$C:$AQ,X$160,FALSE) -> 15233867.42 | Y164: =VLOOKUP($U164,Output!$C:$AQ,Y$160,FALSE) -> 15013194.06 | Z164: 0.513236 | AA164: 0.5368216914 | AB164: 0.4905539966 | AC164: 0.4834479742 | AE164: OVOLgEpxPIEDSNAT | AF164: =VLOOKUP($AE164,Output!$C:$AQ,AF$160,FALSE) -> 1480323.364 | AG164: =VLOOKUP($AE164,Output!$C:$AQ,AG$160,FALSE) -> 1646823.104 | AH164: =VLOOKUP($AE164,Output!$C:$AQ,AH$160,FALSE) -> 2077636.988 | AI164: =VLOOKUP($AE164,Output!$C:$AQ,AI$160,FALSE) -> 2488156.485
B165: =T165 -> Pin gris | C165: 5383200 | D165: 5606700 | E165: 7692300 | F165: 8194700 | G165: 0.2007091485 | H165: 0.199354295 | I165: 0.2674717396 | J165: 0.2894774026 | L165: 0.2007091485 | S165: Tableau 13 | T165: Pin gris | U165: OVOLgPgPIEDINC | V165: =VLOOKUP($U165,Output!$C:$AQ,V$160,FALSE) -> 5479976.628 | W165: =VLOOKUP($U165,Output!$C:$AQ,W$160,FALSE) -> 5714927.498 | X165: =VLOOKUP($U165,Output!$C:$AQ,X$160,FALSE) -> 7843261.867 | Y165: =VLOOKUP($U165,Output!$C:$AQ,Y$160,FALSE) -> 8359869.179 | Z165: 0.1924959877 | AA165: 0.1907981942 | AB165: 0.2525651135 | AC165: 0.2692006647 | AE165: OVOLgPgPIEDSNAT | AF165: =VLOOKUP($AE165,Output!$C:$AQ,AF$160,FALSE) -> 96766.184 | AG165: =VLOOKUP($AE165,Output!$C:$AQ,AG$160,FALSE) -> 108231.468 | AH165: =VLOOKUP($AE165,Output!$C:$AQ,AH$160,FALSE) -> 150969.49 | AI165: =VLOOKUP($AE165,Output!$C:$AQ,AI$160,FALSE) -> 165180.418
B166: =T166 -> Mélèzes | C166: 225100 | D166: 263300 | E166: 240900 | F166: 121800 | G166: 0.008392708671 | H166: 0.009362010788 | I166: 0.008376420845 | J166: 0.004302579428 | L166: 0.008392708671 | S166: Tableau 13 | T166: Mélèzes | U166: OVOLgMlPIEDINC | V166: =VLOOKUP($U166,Output!$C:$AQ,V$160,FALSE) -> 251568.552 | W166: =VLOOKUP($U166,Output!$C:$AQ,W$160,FALSE) -> 292886.886 | X166: =VLOOKUP($U166,Output!$C:$AQ,X$160,FALSE) -> 282067.1733 | Y166: =VLOOKUP($U166,Output!$C:$AQ,Y$160,FALSE) -> 166703.174 | Z166: 0.008836887489 | AA166: 0.009778302344 | AB166: 0.009082997464 | AC166: 0.005368098984 | AE166: OVOLGMlPIEDSNAT | AF166: =VLOOKUP($AE166,Output!$C:$AQ,AF$160,FALSE) -> 26451.942 | AG166: =VLOOKUP($AE166,Output!$C:$AQ,AG$160,FALSE) -> 29581.29 | AH166: =VLOOKUP($AE166,Output!$C:$AQ,AH$160,FALSE) -> 41181.03333 | AI166: =VLOOKUP($AE166,Output!$C:$AQ,AI$160,FALSE) -> 44879.658
B167: Thuya | C167: =ROUND(V167-AF167,-2) -> 0 | D167: 0 | E167: 0 | F167: 0 | G167: 0 | H167: 0 | I167: 0 | J167: 0 | L167: 0 | S167: Tableau 13 | T167: Thuya | U167: OVOLTHOPIEDINC | V167: =VLOOKUP($U167,Output!$C:$AQ,V$160,FALSE) -> 0 | W167: =VLOOKUP($U167,Output!$C:$AQ,W$160,FALSE) -> 0 | X167: =VLOOKUP($U167,Output!$C:$AQ,X$160,FALSE) -> 0 | Y167: =VLOOKUP($U167,Output!$C:$AQ,Y$160,FALSE) -> 0 | Z167: 0 | AA167: 0 | AB167: 0 | AC167: 0 | AE167: OVOLTHOPIEDSNAT | AF167: =VLOOKUP($AE167,Output!$C:$AQ,AF$160,FALSE) -> 0 | AG167: =VLOOKUP($AE167,Output!$C:$AQ,AG$160,FALSE) -> 0 | AH167: =VLOOKUP($AE167,Output!$C:$AQ,AH$160,FALSE) -> 0 | AI167: =VLOOKUP($AE167,Output!$C:$AQ,AI$160,FALSE) -> 0
B168: Pruche | C168: 0 | D168: 0 | E168: 0 | F168: 0 | G168: 0 | H168: 0 | I168: 0 | J168: 0 | L168: 0 | S168: Tableau 13 | T168: Pruche | U168: OVOLPRUPIEDINC | V168: =VLOOKUP($U168,Output!$C:$AQ,V$160,FALSE) -> 0 | W168: =VLOOKUP($U168,Output!$C:$AQ,W$160,FALSE) -> 0 | X168: =VLOOKUP($U168,Output!$C:$AQ,X$160,FALSE) -> 0 | Y168: =VLOOKUP($U168,Output!$C:$AQ,Y$160,FALSE) -> 0 | Z168: 0 | AA168: 0 | AB168: 0 | AC168: 0 | AE168: OVOLPRUPIEDSNAT | AF168: =VLOOKUP($AE168,Output!$C:$AQ,AF$160,FALSE) -> 0 | AG168: =VLOOKUP($AE168,Output!$C:$AQ,AG$160,FALSE) -> 0 | AH168: =VLOOKUP($AE168,Output!$C:$AQ,AH$160,FALSE) -> 0 | AI168: =VLOOKUP($AE168,Output!$C:$AQ,AI$160,FALSE) -> 0
B169: Pins blanc et rouge | C169: 400 | D169: 200 | E169: 0 | F169: 0 | G169: 1.491374264e-05 | H169: 7.111288103e-06 | I169: 0 | J169: 0 | L169: 1.491374264e-05 | S169: Tableau 13 | T169: Pins blanc et rouge | U169: OVOLGPINSPIEDINC | V169: =VLOOKUP($U169,Output!$C:$AQ,V$160,FALSE) -> 392.646 | W169: =VLOOKUP($U169,Output!$C:$AQ,W$160,FALSE) -> 210.204 | X169: =VLOOKUP($U169,Output!$C:$AQ,X$160,FALSE) -> 3.177777778 | Y169: =VLOOKUP($U169,Output!$C:$AQ,Y$160,FALSE) -> 0 | Z169: 1.379253685e-05 | AA169: 7.017856941e-06 | AB169: 1.023293393e-07 | AC169: 0 | AE169: OVOLGPINSCPIEDSNAT | AF169: =VLOOKUP($AE169,Output!$C:$AQ,AF$160,FALSE) -> 0 | AG169: =VLOOKUP($AE169,Output!$C:$AQ,AG$160,FALSE) -> 0 | AH169: =VLOOKUP($AE169,Output!$C:$AQ,AH$160,FALSE) -> 0 | AI169: =VLOOKUP($AE169,Output!$C:$AQ,AI$160,FALSE) -> 0
B170: Peupliers | C170: 5848700 | D170: 5694900 | E170: 5907700 | F170: 5634700 | G170: 0.2180650165 | H170: 0.2024903731 | I170: 0.2054187689 | J170: 0.1990455197 | L170: 0.2180650165 | S170: Tableau 13 | T170: Peupliers | U170: OVOLGPEUPIEDINC | V170: =VLOOKUP($U170,Output!$C:$AQ,V$160,FALSE) -> 5849976.082 | W170: =VLOOKUP($U170,Output!$C:$AQ,W$160,FALSE) -> 5696169.612 | X170: =VLOOKUP($U170,Output!$C:$AQ,X$160,FALSE) -> 5908621.223 | Y170: =VLOOKUP($U170,Output!$C:$AQ,Y$160,FALSE) -> 5636284.917 | Z170: 0.2054930159 | AA170: 0.1901719446 | AB170: 0.1902667048 | AC170: 0.1814970562 | AE170: OVOLPEUPIEDSNAT | AF170: =VLOOKUP($AE170,Output!$C:$AQ,AF$160,FALSE) -> 1238.8 | AG170: =VLOOKUP($AE170,Output!$C:$AQ,AG$160,FALSE) -> 1238.8 | AH170: =VLOOKUP($AE170,Output!$C:$AQ,AH$160,FALSE) -> 897.3544444 | AI170: =VLOOKUP($AE170,Output!$C:$AQ,AI$160,FALSE) -> 1622.311
B171: Bouleau à papier | C171: 1186700 | D171: 1211700 | E171: 814100 | F171: 1021000 | G171: 0.04424534598 | H171: 0.04308373897 | I171: 0.02830736492 | J171: 0.03606677829 | L171: 0.04424534598 | S171: Tableau 13 | T171: Bouleau à papier | U171: OVOLgBpPIEDINC | V171: =VLOOKUP($U171,Output!$C:$AQ,V$160,FALSE) -> 1187943.602 | W171: =VLOOKUP($U171,Output!$C:$AQ,W$160,FALSE) -> 1212913.362 | X171: =VLOOKUP($U171,Output!$C:$AQ,X$160,FALSE) -> 814955.59 | Y171: =VLOOKUP($U171,Output!$C:$AQ,Y$160,FALSE) -> 1022664.295 | Z171: 0.04172907889 | AA171: 0.04049424586 | AB171: 0.02624282532 | AC171: 0.03293136556 | AE171: OVOLgBpPIEDSNAT | AF171: =VLOOKUP($AE171,Output!$C:$AQ,AF$160,FALSE) -> 1238.8 | AG171: =VLOOKUP($AE171,Output!$C:$AQ,AG$160,FALSE) -> 1238.8 | AH171: =VLOOKUP($AE171,Output!$C:$AQ,AH$160,FALSE) -> 897.3544444 | AI171: =VLOOKUP($AE171,Output!$C:$AQ,AI$160,FALSE) -> 1622.311
B172: Bouleau jaune | C172: 0 | D172: 0 | E172: 0 | F172: 0 | G172: 0 | H172: 0 | I172: 0 | J172: 0 | L172: 0 | S172: Tableau 13 | T172: Bouleau jaune | U172: OVOLBOJPIEDINC | V172: =VLOOKUP($U172,Output!$C:$AQ,V$160,FALSE) -> 0 | W172: =VLOOKUP($U172,Output!$C:$AQ,W$160,FALSE) -> 0 | X172: =VLOOKUP($U172,Output!$C:$AQ,X$160,FALSE) -> 0 | Y172: =VLOOKUP($U172,Output!$C:$AQ,Y$160,FALSE) -> 0 | Z172: 0 | AA172: 0 | AB172: 0 | AC172: 0 | AE172: OVOLBOJPIEDSNAT | AF172: =VLOOKUP($AE172,Output!$C:$AQ,AF$160,FALSE) -> 0 | AG172: =VLOOKUP($AE172,Output!$C:$AQ,AG$160,FALSE) -> 0 | AH172: =VLOOKUP($AE172,Output!$C:$AQ,AH$160,FALSE) -> 0 | AI172: =VLOOKUP($AE172,Output!$C:$AQ,AI$160,FALSE) -> 0
B173: Érable rouge | C173: 6100 | D173: 9100 | E173: 8500 | F173: 7100 | G173: 0.0002274345753 | H173: 0.0003235636087 | I173: 0.0002955565678 | J173: 0.0002508071752 | L173: 0.0002274345753 | S173: Tableau 13 | T173: Érable rouge | U173: OVOLgEroPIEDINC | V173: =VLOOKUP($U173,Output!$C:$AQ,V$160,FALSE) -> 6052.168 | W173: =VLOOKUP($U173,Output!$C:$AQ,W$160,FALSE) -> 9102.278 | X173: =VLOOKUP($U173,Output!$C:$AQ,X$160,FALSE) -> 8480.314444 | Y173: =VLOOKUP($U173,Output!$C:$AQ,Y$160,FALSE) -> 7132.558 | Z173: 0.0002125954427 | AA173: 0.0003038880556 | AB173: 0.0002730791878 | AC173: 0.0002296793543 | AE173: OVOLgEroPIEDSNAT | AF173: =VLOOKUP($AE173,Output!$C:$AQ,AF$160,FALSE) -> 0 | AG173: =VLOOKUP($AE173,Output!$C:$AQ,AG$160,FALSE) -> 0 | AH173: =VLOOKUP($AE173,Output!$C:$AQ,AH$160,FALSE) -> 0 | AI173: =VLOOKUP($AE173,Output!$C:$AQ,AI$160,FALSE) -> 0
B174: Érable à sucre | C174: 0 | D174: 0 | E174: 0 | F174: 0 | G174: 0 | H174: 0 | I174: 0 | J174: 0 | L174: 0 | S174: Tableau 13 | T174: Érable à sucre | U174: OVOLERSPIEDINC | V174: =VLOOKUP($U174,Output!$C:$AQ,V$160,FALSE) -> 0 | W174: =VLOOKUP($U174,Output!$C:$AQ,W$160,FALSE) -> 0 | X174: =VLOOKUP($U174,Output!$C:$AQ,X$160,FALSE) -> 0 | Y174: =VLOOKUP($U174,Output!$C:$AQ,Y$160,FALSE) -> 0 | Z174: 0 | AA174: 0 | AB174: 0 | AC174: 0 | AE174: OVOLERSPIEDSNAT | AF174: =VLOOKUP($AE174,Output!$C:$AQ,AF$160,FALSE) -> 0 | AG174: =VLOOKUP($AE174,Output!$C:$AQ,AG$160,FALSE) -> 0 | AH174: =VLOOKUP($AE174,Output!$C:$AQ,AH$160,FALSE) -> 0 | AI174: =VLOOKUP($AE174,Output!$C:$AQ,AI$160,FALSE) -> 0
B175: Autres feuillus durs | C175: =ROUND(V175-AF175,-2) -> 0 | D175: 0 | E175: 0 | F175: 0 | G175: 0 | H175: 0 | I175: 0 | J175: 0 | L175: 0 | S175: Tableau 13 | T175: Autres feuillus durs | V175: =V178-V176-V174-V173-V172-V171-V170-V169-V168-V167 -> 0.006000008151 | W175: =W178-W176-W174-W173-W172-W171-W170-W169-W168-W167 -> -0.001999996692 | X175: =X178-X176-X174-X173-X172-X171-X170-X169-X168-X167 -> -0.001111111956 | Y175: =Y178-Y176-Y174-Y173-Y172-Y171-Y170-Y169-Y168-Y167 -> -0.003999997862 | Z175: 2.107632156e-10 | AA175: -6.677175823e-11 | AB175: -3.577951647e-11 | AC175: -1.288060926e-10 | AE175: Autres feuillus durs | AF175: =AF178-AF176-AF174-AF173-AF172-AF171-AF170-AF169-AF168-AF167 -> -0.008000000054 | AG175: =AG178-AG176-AG174-AG173-AG172-AG171-AG170-AG169-AG168-AG167 -> -0.007999999821 | AH175: =AH178-AH176-AH174-AH173-AH172-AH171-AH170-AH169-AH168-AH167 -> 0.002222222212 | AI175: =AI178-AI176-AI174-AI173-AI172-AI171-AI170-AI169-AI168-AI167 -> -0.003000000517
B176: Autres essences | C176: =IF($L$163<0.0095,C163,0)+IF($L$164<0.0095,C164,0)+IF($L$165<0.0095,C165,0)+IF($L$166<0.0095,C166,0)+IF($L$167<0.0095,C167,0)+IF($L$168<0.0095,C168,0)+IF($L$169<0.0095,C169,0)+IF($L$170<0.0095,C170,0)+IF($L$171<0.0095,C171,0)+IF($L$172<0.0095,C172,0)+IF($L$173<0.0095,C173,0)+IF($L$174<0.0095,C174+0)+IF($L$175<0.0095,C175,0) -> 231600 | D176: =IF($L$163<0.0095,D163,0)+IF($L$164<0.0095,D164,0)+IF($L$165<0.0095,D165,0)+IF($L$166<0.0095,D166,0)+IF($L$167<0.0095,D167,0)+IF($L$168<0.0095,D168,0)+IF($L$169<0.0095,D169,0)+IF($L$170<0.0095,D170,0)+IF($L$171<0.0095,D171,0)+IF($L$172<0.0095,D172,0)+IF($L$173<0.0095,D173,0)+IF($L$174<0.0095,D174+0)+IF($L$175<0.0095,D175,0) -> 272600 | E176: =IF($L$163<0.0095,E163,0)+IF($L$164<0.0095,E164,0)+IF($L$165<0.0095,E165,0)+IF($L$166<0.0095,E166,0)+IF($L$167<0.0095,E167,0)+IF($L$168<0.0095,E168,0)+IF($L$169<0.0095,E169,0)+IF($L$170<0.0095,E170,0)+IF($L$171<0.0095,E171,0)+IF($L$172<0.0095,E172,0)+IF($L$173<0.0095,E173,0)+IF($L$174<0.0095,E174+0)+IF($L$175<0.0095,E175,0) -> 249400 | F176: =IF($L$163<0.0095,F163,0)+IF($L$164<0.0095,F164,0)+IF($L$165<0.0095,F165,0)+IF($L$166<0.0095,F166,0)+IF($L$167<0.0095,F167,0)+IF($L$168<0.0095,F168,0)+IF($L$169<0.0095,F169,0)+IF($L$170<0.0095,F170,0)+IF($L$171<0.0095,F171,0)+IF($L$172<0.0095,F172,0)+IF($L$173<0.0095,F173,0)+IF($L$174<0.0095,F174+0)+IF($L$175<0.0095,F175,0) -> 128900 | G176: 0.008635056989 | H176: 0.009692685685 | I176: 0.008671977413 | J176: 0.004553386603 | L176: 0.008635056989 | S176: Tableau 13 | T176: SEPM | U176: OVOLGSEPMPIEDINC | V176: =VLOOKUP($U176,Output!$C:$AQ,V$160,FALSE) -> 21423639.91 | W176: =VLOOKUP($U176,Output!$C:$AQ,W$160,FALSE) -> 23034338.23 | X176: =VLOOKUP($U176,Output!$C:$AQ,X$160,FALSE) -> 24322354.77 | Y176: =VLOOKUP($U176,Output!$C:$AQ,Y$160,FALSE) -> 24388333.3 | Z176: 0.752551517 | AA176: 0.7690229037 | AB176: 0.7832172885 | AC176: 0.785341899 | AE176: OVOLgSEPMPIEDSNAT | AF176: =VLOOKUP($AE176,Output!$C:$AQ,AF$160,FALSE) -> 1644586.93 | AG176: =VLOOKUP($AE176,Output!$C:$AQ,AG$160,FALSE) -> 1825929.06 | AH176: =VLOOKUP($AE176,Output!$C:$AQ,AH$160,FALSE) -> 2293321.97 | AI176: =VLOOKUP($AE176,Output!$C:$AQ,AI$160,FALSE) -> 2742605.576
B177: Total | C177: =ROUND(V178-AF178,-2) -> 26820900 | D177: =ROUND(W178-AG178,-2) -> 28124300 | E177: =ROUND(X178-AH178,-2) -> 28759300 | F177: =ROUND(Y178-AI178,-2) -> 28308600 | G177: 1 | H177: 1 | I177: 1 | J177: 1 | S177: Tableau 13 | T177: FN - ERS BOJ | U177: OVOLGFNPIEDINC | V177: =VLOOKUP($U177,Output!$C:$AQ,V$160,FALSE) -> 0 | W177: =VLOOKUP($U177,Output!$C:$AQ,W$160,FALSE) -> 0 | X177: =VLOOKUP($U177,Output!$C:$AQ,X$160,FALSE) -> 0 | Y177: =VLOOKUP($U177,Output!$C:$AQ,Y$160,FALSE) -> 0 | Z177: 0 | AA177: 0 | AB177: 0 | AC177: 0 | AE177: OVOLgFnPIEDSNAT | AF177: =VLOOKUP($AE177,Output!$C:$AQ,AF$160,FALSE) -> 0 | AG177: =VLOOKUP($AE177,Output!$C:$AQ,AG$160,FALSE) -> 0 | AH177: =VLOOKUP($AE177,Output!$C:$AQ,AH$160,FALSE) -> 0 | AI177: =VLOOKUP($AE177,Output!$C:$AQ,AI$160,FALSE) -> 0
L178: Masquer les essences du tableau qui sont en surbrillance (< 1%) | S178: Tableau 13 | T178: TOT sur pied | U178: OVOLTOTPIEDINC | V178: =VLOOKUP($U178,Output!$C:$AQ,V$160,FALSE) -> 28468004.41 | W178: =VLOOKUP($U178,Output!$C:$AQ,W$160,FALSE) -> 29952733.68 | X178: =VLOOKUP($U178,Output!$C:$AQ,X$160,FALSE) -> 31054415.07 | Y178: =VLOOKUP($U178,Output!$C:$AQ,Y$160,FALSE) -> 31054415.07 | Z178: 1 | AA178: 1 | AB178: 1 | AC178: 1 | AE178: OVOLTOTPIEDSNAT | AF178: =VLOOKUP($AE178,Output!$C:$AQ,AF$160,FALSE) -> 1647064.522 | AG178: =VLOOKUP($AE178,Output!$C:$AQ,AG$160,FALSE) -> 1828406.652 | AH178: =VLOOKUP($AE178,Output!$C:$AQ,AH$160,FALSE) -> 2295116.681 | AI178: =VLOOKUP($AE178,Output!$C:$AQ,AI$160,FALSE) -> 2745850.195
L179: Ces volumes sont comptabilisés dans "Autres essences" | S179: Tableau 13 | T179: Érables à sucre et rouge
D182: P2 | E182: P3 | F182: P4 | G182: P5 | H182: P6
B183: Tableau 15 Statistiques sur les compartiments d’organisation spatiale admissibles à la récolte par période
B184: Compartiments d'organisation spatiale | D184: 2023-2028 | E184: 2028-2033 | F184: 2033-2038 | G184: 2038-2043 | H184: 2043-2048
B185: Nombre total | D185: =Cedule_COS!G6 -> 107
B186: En pessière | D186: =COUNTIF(Cedule_COS!$A$10:$A$1009,"<S*") -> 107 | J186: Fait la sommation automatique des COS débutant par la lettre "P" ou par "C", valider et corriger si nécessaire
B187: En sapinière | D187: =COUNTIF(Cedule_COS!$A$10:$A$1009,"S*") -> 0 | J187: Fait la sommation automatique des COS débutant par la lettre "S", valider et corriger si nécessaire
B188: Admissibles à la récolte | D188: =Cedule_COS!C7 -> 24 | E188: =Cedule_COS!D7 -> 32 | F188: =Cedule_COS!E7 -> 20 | G188: =Cedule_COS!F7 -> 22 | H188: =Cedule_COS!G7 -> 23
B189: % de compartiments admissibles | D189: =Cedule_COS!C8 -> 0.2242990654 | E189: =Cedule_COS!D8 -> 0.2990654206 | F189: =Cedule_COS!E8 -> 0.1869158879 | G189: =Cedule_COS!F8 -> 0.2056074766 | H189: =Cedule_COS!G8 -> 0.214953271
B193: Tableau 17 Superficies considérées pour l'analyse de la mortalité d'ici la période 2023-2028 | S193: =LEFT(B$193,11) -> Tableau 17 | T193: Légende | V193: Output | W193: Valeur | X193: Période | Y193: Année
F194: ha | G194: % | S194: =LEFT(B$193,11) -> Tableau 17 | T194: Incluses aux activités de récolte | V194: OSUPINC | W194: =VLOOKUP($V194,Output!$C:$AQ,6,FALSE) -> 491415.5 | X194: P0 | Y194: 2018
B195: Épidémie sévère confirmée à la photo-interprétation | G195: =F195/W$194 -> 0 | J195: Faire une sélection sur le thème 8 = "INC" et seulement les années correspondant à l'épidémie actuelle | S195: =LEFT(B$193,11) -> Tableau 17 | T195: Épidémie sévère confirmée à la photo-interprétation | V195: Requete dans la table d'attribut
B196: Défoliation cumulative (cote ≥ 15) | F196: =ROUND(W196,-1) ->  | G196: =F196/W$194 ->  | J196: Des champs avaient été ajoutés par l'analyste à la fin de table d'attribut de la carte woodstock | S196: =LEFT(B$193,11) -> Tableau 17 | T196: Défoliation cumulative projetée 2023 ≥ 15 | V196: OSUPINC15+ | W196: =VLOOKUP($V196,Output!$C:$AQ,7,FALSE) ->  | X196: P1 | Y196: 2023
B197: Mortalité projetée | F197: =ROUND(SUM(W197:W198),-1) ->  | G197: =F197/W$194 ->  | J197: et c'est sur ces derniers que doivent se réaliser les requêtes | S197: =LEFT(B$193,11) -> Tableau 17 | T197: Mortalité projetée (sommation des 2 actions) | V197: osupaTBEmort | W197: =VLOOKUP($V197,Output!$C:$AQ,8,FALSE) -> 0 | X197: P2 | Y197: 2028
B198: Récupération prévue 2018-2023 | F198: =-ROUND(W199,-1) ->  | G198: =F198/W$194 ->  | V198: Osupactiontberetard | W198: =VLOOKUP($V198,Output!$C:$AQ,8,FALSE) ->  | X198: P2 | Y198: 2028
S199: =LEFT(B$193,11) -> Tableau 17 | T199: Récolte prévue à court terme (récupération) | V199: osuprealregapre_15+ | W199: =VLOOKUP($V199,Output!$C:$AQ,7,FALSE) ->  | X199: P1 | Y199: 2023

Sheet Figures
B2: Figure 2. Répartition du volume de bois marchand sur pied en début de calcul (m3). | N2: Volume sur pied en P0 | S2: Source: CahierDetermination_2018-2023 | V2: Volume sur pied en P0 - volume en SNAT | Z2: Volume dans courbe SNAT
L3: Conserver les GTYF même s'ils sont absents de l'UA | S3: Intrants | T3: Légende | U3: Name | V3: PERIOD0 | W3: % | X3: PERIOD0 | Z3: Name | AB3: PERIOD0
N4: Total | O4: =V19 -> 27571600 | S4: =LEFT(B$2,10) -> Figure 2. | T4: Autres feuillus durs | V4: =ROUND(V19-V17-V11-V12-V10-V8-V9-V6-V5-V7,-2) -> 0 | W4: =IFERROR(V4/$V$19,0) -> 0 | X4: =X19-X17-X11-X12-X10-X8-X9-X6-X5-X7 -> -3.725290298e-09 | Z4: Autres feuillus durs | AB4: =ROUND(AB19-AB17-AB11-AB12-AB10-AB8-AB9-AB6-AB5-AB7,-2) -> 0
N5: % R | O5: =(V17+V12+V11+V10)/V19 -> 0.7471637482 | S5: Figure 2. | T5: Érable à sucre | U5: OVOLERSPIEDINC | V5: =ROUND(X5-AB5,-2) -> 0 | W5: 0 | X5: =VLOOKUP(U5,Output!$C:$AQ,6,FALSE) -> 0 | Z5: OVOLERSPIEDSNAT | AB5: =VLOOKUP(Z5,Output!$C:$AQ,6,FALSE) -> 0
N6: %SEPM | O6: =V17/V19 -> 0.7471419867 | S6: Figure 2. | T6: Érable rouge | U6: OVOLgEroPIEDINC | V6: 4700 | W6: 0.0001704652614 | X6: =VLOOKUP(U6,Output!$C:$AQ,6,FALSE) -> 4704.5 | Z6: OVOLgEroPIEDSNAT | AB6: =VLOOKUP(Z6,Output!$C:$AQ,6,FALSE) -> 0
N7: % Fi | O7: =W21 -> 0.2528362518 | P7: =O7*O4 -> 6971100 | S7: Figure 2. | T7: Bouleau jaune | U7: OVOLBOJPIEDINC | V7: 0 | W7: 0 | X7: =VLOOKUP(U7,Output!$C:$AQ,6,FALSE) -> 0 | Z7: OVOLBOJPIEDSNAT | AB7: =VLOOKUP(Z7,Output!$C:$AQ,6,FALSE) -> 0
N8: % FT | O8: =W22 -> 0 | S8: Figure 2. | T8: Bouleau à papier | U8: OVOLgBpPIEDINC | V8: 1013600 | W8: 0.03676246573 | X8: =VLOOKUP(U8,Output!$C:$AQ,6,FALSE) -> 1014883.69 | Z8: OVOLgBpPIEDSNAT | AB8: =VLOOKUP(Z8,Output!$C:$AQ,6,FALSE) -> 1238.8
N9: %Sapin | O9: =V16/V17 -> 0.04934975413 | S9: Figure 2. | T9: Peupliers | U9: OVOLGPEUPIEDINC | V9: 5952800 | W9: 0.2159033208 | X9: =VLOOKUP(U9,Output!$C:$AQ,6,FALSE) -> 5954022.82 | Z9: OVOLPEUPIEDSNAT | AB9: =VLOOKUP(Z9,Output!$C:$AQ,6,FALSE) -> 1238.8
N10: %ERR | O10: =IFERROR(V6/(V5+V6),0) -> 1 | S10: Figure 2. | T10: Pins blanc et rouge | U10: OVOLGPINSPIEDINC | V10: 600 | W10: 2.176152273e-05 | X10: =VLOOKUP(U10,Output!$C:$AQ,6,FALSE) -> 588.45 | Z10: OVOLGPINSCPIEDSNAT | AB10: =VLOOKUP(Z10,Output!$C:$AQ,6,FALSE) -> 0
S11: Figure 2. | T11: Pruche | U11: OVOLPRUPIEDINC | V11: 0 | W11: 0 | X11: =VLOOKUP(U11,Output!$C:$AQ,6,FALSE) -> 0 | Z11: OVOLPRUPIEDSNAT | AB11: =VLOOKUP(Z11,Output!$C:$AQ,6,FALSE) -> 0
N12: Volume sur pied au calcul 2015-2018 | P12: UA | S12: Figure 2. | T12: Thuya | U12: OVOLTHOPIEDINC | V12: 0 | W12: 0 | X12: =VLOOKUP(U12,Output!$C:$AQ,6,FALSE) -> 0 | Z12: OVOLTHOPIEDSNAT | AB12: =VLOOKUP(Z12,Output!$C:$AQ,6,FALSE) -> 0
P13: =Tableaux!O33 -> 08551 | S13: Figure 2. | T13: Mélèzes | U13: OVOLgMlPIEDINC | V13: 226300 | W13: 0.008207720988 | X13: =VLOOKUP(U13,Output!$C:$AQ,6,FALSE) -> 248979.07 | Z13: OVOLGMlPIEDSNAT | AB13: =VLOOKUP(Z13,Output!$C:$AQ,6,FALSE) -> 22711.26
N14: Total | O14: =VLOOKUP(P13,DataLocal!$A:$BM,61,FALSE) -> 35539630 | S14: Figure 2. | T14: Pin gris | U14: OVOLgPgPIEDINC | V14: 5104900 | W14: 0.1851506623 | X14: =VLOOKUP(U14,Output!$C:$AQ,6,FALSE) -> 5188353.47 | Z14: OVOLgPgPIEDSNAT | AB14: =VLOOKUP(Z14,Output!$C:$AQ,6,FALSE) -> 83412.26
N15: % R | O15: =VLOOKUP(P13,DataLocal!$A:$BM,62,FALSE) -> 0.79 | S15: Figure 2. | T15: Épinettes | U15: OVOLgEpxPIEDINC | V15: 14252000 | W15: 0.5169087032 | X15: =VLOOKUP(U15,Output!$C:$AQ,6,FALSE) -> 15605433.36 | Z15: OVOLgEpxPIEDSNAT | AB15: =VLOOKUP(Z15,Output!$C:$AQ,6,FALSE) -> 1353387.88
N16: % SEPM | O16: =VLOOKUP(P13,DataLocal!$A:$BM,63,FALSE) -> 0.79 | S16: Figure 2. | T16: Sapin baumier | U16: OVOLSABPIEDINC | V16: =ROUND(X16-AB16,-2) -> 1016600 | W16: 0.03687127334 | X16: =VLOOKUP(U16,Output!$C:$AQ,6,FALSE) -> 1054220.36 | Z16: OVOLSABPIEDSNAT | AB16: =VLOOKUP(Z16,Output!$C:$AQ,6,FALSE) -> 37576.81
N17: % Fi | O17: =VLOOKUP(P13,DataLocal!$A:$BM,64,FALSE) -> 0.21 | S17: Figure 2. | T17: SEPM | U17: OVOLGSEPMPIEDINC | V17: =ROUND(X17-AB17,-2) -> 20599900 | W17: =IFERROR(V17/$V$19,0) -> 0.7471419867 | X17: =VLOOKUP(U17,Output!$C:$AQ,6,FALSE) -> 22096986.26 | Z17: OVOLgSEPMPIEDSNAT | AB17: =VLOOKUP(Z17,Output!$C:$AQ,6,FALSE) -> 1497088.22
N18: % Ft | O18: =VLOOKUP(P13,DataLocal!$A:$BM,65,FALSE) -> 0 | S18: Figure 2. | T18: FN - ERS BOJ | U18: OVOLGFNPIEDINC | V18: 0 | W18: 0 | X18: =VLOOKUP(U18,Output!$C:$AQ,6,FALSE) -> 0 | Z18: OVOLgFnPIEDSNAT | AB18: =VLOOKUP(Z18,Output!$C:$AQ,6,FALSE) -> 0
S19: Figure 2. | T19: TOT sur pied | U19: OVOLTOTPIEDINC | V19: =ROUND(X19-AB19,-2) -> 27571600 | W19: 1 | X19: =VLOOKUP(U19,Output!$C:$AQ,6,FALSE) -> 29071185.72 | Z19: OVOLTOTPIEDSNAT | AB19: =VLOOKUP(Z19,Output!$C:$AQ,6,FALSE) -> 1499565.81
N20: Vol R | O20: =ROUND(O15*$O$14,-2) -> 28076300 | T20: Érables à sucre et rouge | U20: Érables à sucre et rouge | V20: =V5+V6 -> 4700 | W20: 0.0001704652614 | X20: =X5+X6 -> 4704.5 | Z20: Érables à sucre et rouge | AB20: =AB5+AB6 -> 0
N21: Vol SEPM | O21: =ROUND(O16*$O$14,-2) -> 28076300 | P21: Traduits en m3 | T21: gFi | U21: OVOLgFiPIEDINC | V21: =ROUND(X21-AB21,-2) -> 6971100 | W21: 0.2528362518 | X21: =VLOOKUP(U21,Output!$C:$AQ,6,FALSE) -> 6973611.01 | Z21: OVOLgFiPIEDSNAT | AB21: =VLOOKUP(Z21,Output!$C:$AQ,6,FALSE) -> 2477.59
N22: Vol Fi | O22: =ROUND(O17*$O$14,-2) -> 7463300 | P22: approximativement | T22: gFt | U22: OVOLgFtPIEDINC | V22: 0 | W22: 0 | X22: =VLOOKUP(U22,Output!$C:$AQ,6,FALSE) -> 0 | Z22: OVOLgFtPIEDSNAT | AB22: =VLOOKUP(Z22,Output!$C:$AQ,6,FALSE) -> 0
N23: Vol Ft | O23: =ROUND(O18*$O$14,-2) -> 0
B27: Type de couvert : | C27: =#REF! -> 
B28: Figure 3. Répartition de la superficie par grand type de forêt en début de calcul (ha). | S28: Intrants | T28: Légende | V28: PERIOD0 | W28: % | X28: PERIOD0
S29: =LEFT(B$28,10) -> Figure 3. | T29: Sapinières | U29: (FCTYF_SAB) | V29: =ROUND(X29,-1) -> 4130 | W29: =V29/V$44 -> 0.008424664619 | X29: =VLOOKUP("OSUPINC"&$U29,GTYF!$C:$AP,6,FALSE) -> 4131.3
S30: Figure 3. | T30: Résineux à feuillus | U30: (FCTYF_RF) | V30: =ROUND(X30,-1) -> 34310 | W30: 0.06998795232 | X30: =VLOOKUP("OSUPINC"&$U30,GTYF!$C:$AP,6,FALSE) -> 34307.5
S31: Figure 3. | T31: Prucheraies | U31: (FCTYF_PRU) | V31: 0 | W31: 0 | X31: =VLOOKUP("OSUPINC"&$U31,GTYF!$C:$AP,6,FALSE) -> 0
S32: Figure 3. | T32: Pinèdes grises | U32: (FCTYF_PIG) | V32: 54210 | W32: 0.1105813726 | X32: =VLOOKUP("OSUPINC"&$U32,GTYF!$C:$AP,6,FALSE) -> 54212.3
L33: Conserver les GTYF même s'ils sont absents de l'UA | S33: Figure 3. | T33: Pinèdes blanches | U33: (FCTYF_PIN) | V33: 0 | W33: 0 | X33: =VLOOKUP("OSUPINC"&$U33,GTYF!$C:$AP,6,FALSE) -> 0
S34: Figure 3. | T34: Peupleraies à résineux | U34: (FCTYF_PEUR) | V34: 22550 | W34: 0.0459990768 | X34: =VLOOKUP("OSUPINC"&$U34,GTYF!$C:$AP,6,FALSE) -> 22548.6
S35: Figure 3. | T35: Peupleraies | U35: (FCTYF_PEU) | V35: 37840 | W35: 0.07718869472 | X35: =VLOOKUP("OSUPINC"&$U35,GTYF!$C:$AP,6,FALSE) -> 37837
S36: Figure 3. | T36: Pessières | U36: (FCTYF_EPX) | V36: 250370 | W36: 0.510722344 | X36: =VLOOKUP("OSUPINC"&$U36,GTYF!$C:$AP,6,FALSE) -> 250374.1
S37: Figure 3. | T37: Feuillus tolérants à résineux | U37: (FCTYF_FTR) | V37: 0 | W37: 0 | X37: =VLOOKUP("OSUPINC"&$U37,GTYF!$C:$AP,6,FALSE) -> 0
S38: Figure 3. | T38: Feuillus tolérants | U38: (FCTYF_FT) | V38: 0 | W38: 0 | X38: =VLOOKUP("OSUPINC"&$U38,GTYF!$C:$AP,6,FALSE) -> 0
S39: Figure 3. | T39: Érablières rouges | U39: (FCTYF_ERO) | V39: 0 | W39: 0 | X39: =VLOOKUP("OSUPINC"&$U39,GTYF!$C:$AP,6,FALSE) -> 0
S40: Figure 3. | T40: Cédrières | U40: (FCTYF_THO) | V40: 0 | W40: 0 | X40: =VLOOKUP("OSUPINC"&$U40,GTYF!$C:$AP,6,FALSE) -> 0
S41: Figure 3. | T41: Bétulaies blanches à résineux | U41: (FCTYF_BOPR) | V41: 4570 | W41: 0.009322207581 | X41: =VLOOKUP("OSUPINC"&$U41,GTYF!$C:$AP,6,FALSE) -> 4568
S42: Figure 3. | T42: Bétulaies blanches | U42: (FCTYF_BOP) | V42: 2750 | W42: 0.005609643512 | X42: =VLOOKUP("OSUPINC"&$U42,GTYF!$C:$AP,6,FALSE) -> 2749.6
U43: Somme: | V43: =SUM(V29:V42) -> 410730 | X43: =SUM(X29:X42) -> 410728.4
T44: OSUPINC | U44: Tous | V44: =VLOOKUP("OSUPINC",Output!$C:$AP,7,FALSE) -> 490227.23
V45: =V43-V44 -> -79497.23 | W45: Écart
V49: 2018
B50: Figure 4. Superficie destinée à l'aménagement forestier par classe d'âge en début de calcul (ha). | S50: Intrants | U50: Name | V50: PERIOD0 | X50: Classe d'âge | Y50: OUTPUT | Z50: Superficie (ha) | AA50: Pourcentage (%)
S51: =LEFT(B$50,10) -> Figure 4. | T51: 10 ans | U51: OSUP_INC_CLASSEAGEFCAGEAGE1 | V51: =VLOOKUP(U51,Output!$C:$AQ,6,FALSE) -> 16072 | X51: 10 | Z51: =ROUND(SUM(V51:V54),-1) -> 78060 | AA51: =IFERROR(Z51/$V$89,0) -> 0.1588472484
S52: Figure 4. | T52: 10 ans | U52: OSUP_INC_CLASSEAGEFCAGEAGE2 | V52: =VLOOKUP(U52,Output!$C:$AQ,6,FALSE) -> 5451 | X52: 30 | Z52: =ROUND(SUM(V55:V58),-1) -> 160300 | AA52: 0.326200537
S53: Figure 4. | T53: 10 ans | U53: OSUP_INC_CLASSEAGEFCAGEAGE3 | V53: =VLOOKUP(U53,Output!$C:$AQ,6,FALSE) -> 20969.4 | X53: 50 | Z53: =ROUND(SUM(V59:V62),-1) -> 42890 | AA53: 0.0872784843
S54: Figure 4. | T54: 10 ans | U54: OSUP_INC_CLASSEAGEFCAGEAGE4 | V54: =VLOOKUP(U54,Output!$C:$AQ,6,FALSE) -> 35569.7 | X54: 70 | Z54: =ROUND(SUM(V63:V66),-1) -> 27170 | AA54: 0.05528926133
S55: Figure 4. | T55: 30 ans | U55: OSUP_INC_CLASSEAGEFCAGEAGE5 | V55: =VLOOKUP(U55,Output!$C:$AQ,6,FALSE) -> 34085.9 | X55: 90 | Z55: =ROUND(SUM(V67:V70),-1) -> 68720 | AA55: 0.1398409289
S56: Figure 4. | T56: 30 ans | U56: OSUP_INC_CLASSEAGEFCAGEAGE6 | V56: =VLOOKUP(U56,Output!$C:$AQ,6,FALSE) -> 45642.9 | X56: 120 et plus | Z56: =ROUND(SUM(V71:V80),-1) -> 114280 | AA56: 0.2325526973
S57: Figure 4. | T57: 30 ans | U57: OSUP_INC_CLASSEAGEFCAGEAGE7 | V57: =VLOOKUP(U57,Output!$C:$AQ,6,FALSE) -> 19090.5
S58: Figure 4. | T58: 30 ans | U58: OSUP_INC_CLASSEAGEFCAGEAGE8 | V58: =VLOOKUP(U58,Output!$C:$AQ,6,FALSE) -> 61475.9
S59: Figure 4. | T59: 50 ans | U59: OSUP_INC_CLASSEAGEFCAGEAGE9 | V59: =VLOOKUP(U59,Output!$C:$AQ,6,FALSE) -> 11244.7
S60: Figure 4. | T60: 50 ans | U60: OSUP_INC_CLASSEAGEFCAGEAGE10 | V60: =VLOOKUP(U60,Output!$C:$AQ,6,FALSE) -> 9913.2
S61: Figure 4. | T61: 50 ans | U61: OSUP_INC_CLASSEAGEFCAGEAGE11 | V61: =VLOOKUP(U61,Output!$C:$AQ,6,FALSE) -> 12397.5
N62: Proportion de la superficie dont l'évolution est suivi en âge: | S62: Figure 4. | T62: 50 ans | U62: OSUP_INC_CLASSEAGEFCAGEAGE12 | V62: =VLOOKUP(U62,Output!$C:$AQ,6,FALSE) -> 9336.6
N63: =IF(AND($W$81>=99.5%,$W$81<100%),"> 99%",IF(AND($W$81>=0.1%,$W$81<0.5%),"< 1%",$W$81)) -> 1 | S63: Figure 4. | T63: 70 ans | U63: OSUP_INC_CLASSEAGEFCAGEAGE13 | V63: =VLOOKUP(U63,Output!$C:$AQ,6,FALSE) -> 6172.5
S64: Figure 4. | T64: 70 ans | U64: OSUP_INC_CLASSEAGEFCAGEAGE14 | V64: =VLOOKUP(U64,Output!$C:$AQ,6,FALSE) -> 7776.4
S65: Figure 4. | T65: 70 ans | U65: OSUP_INC_CLASSEAGEFCAGEAGE15 | V65: =VLOOKUP(U65,Output!$C:$AQ,6,FALSE) -> 9393.8
S66: Figure 4. | T66: 70 ans | U66: OSUP_INC_CLASSEAGEFCAGEAGE16 | V66: =VLOOKUP(U66,Output!$C:$AQ,6,FALSE) -> 3829
S67: Figure 4. | T67: 90 ans | U67: OSUP_INC_CLASSEAGEFCAGEAGE17 | V67: =VLOOKUP(U67,Output!$C:$AQ,6,FALSE) -> 21292.8
S68: Figure 4. | T68: 90 ans | U68: OSUP_INC_CLASSEAGEFCAGEAGE18 | V68: =VLOOKUP(U68,Output!$C:$AQ,6,FALSE) -> 16312.8
B69: Figure 5. Superficie destinée à l'aménagement forestier par classe de surface terrière en début de calcul (ha) | S69: Figure 4. | T69: 90 ans | U69: OSUP_INC_CLASSEAGEFCAGEAGE19 | V69: =VLOOKUP(U69,Output!$C:$AQ,6,FALSE) -> 22042.4
S70: Figure 4. | T70: 90 ans | U70: OSUP_INC_CLASSEAGEFCAGEAGE20 | V70: =VLOOKUP(U70,Output!$C:$AQ,6,FALSE) -> 9067.9
S71: Figure 4. | T71: 120 et plus | U71: OSUP_INC_CLASSEAGEFCAGEAGE21 | V71: =VLOOKUP(U71,Output!$C:$AQ,6,FALSE) -> 11466.7
S72: Figure 4. | T72: 120 et plus | U72: OSUP_INC_CLASSEAGEFCAGEAGE22 | V72: =VLOOKUP(U72,Output!$C:$AQ,6,FALSE) -> 2249.4
S73: Figure 4. | T73: 120 et plus | U73: OSUP_INC_CLASSEAGEFCAGEAGE23 | V73: =VLOOKUP(U73,Output!$C:$AQ,6,FALSE) -> 7573.2
S74: Figure 4. | T74: 120 et plus | U74: OSUP_INC_CLASSEAGEFCAGEAGE24 | V74: =VLOOKUP(U74,Output!$C:$AQ,6,FALSE) -> 1847.5
S75: Figure 4. | T75: 120 et plus | U75: OSUP_INC_CLASSEAGEFCAGEAGE25 | V75: =VLOOKUP(U75,Output!$C:$AQ,6,FALSE) -> 2202
N76: Proportion de la superficie dont l'évolution est suivi en surface terrière: | S76: Figure 4. | T76: 120 et plus | U76: OSUP_INC_CLASSEAGEFCAGEAGE26 | V76: =VLOOKUP(U76,Output!$C:$AQ,6,FALSE) -> 6579
N77: =IF(AND($W$88>=99.5%,$W$88<100%),"> 99%",IF(AND($W$88>=0.1%,$W$88<0.5%),"< 1%",$W$88)) -> 0 | S77: Figure 4. | T77: 120 et plus | U77: OSUP_INC_CLASSEAGEFCAGEAGE27 | V77: =VLOOKUP(U77,Output!$C:$AQ,6,FALSE) -> 972.2
S78: Figure 4. | T78: 120 et plus | U78: OSUP_INC_CLASSEAGEFCAGEAGE28 | V78: =VLOOKUP(U78,Output!$C:$AQ,6,FALSE) -> 11371.2
S79: Figure 4. | T79: 120 et plus | U79: OSUP_INC_CLASSEAGEFCAGEAGE29 | V79: =VLOOKUP(U79,Output!$C:$AQ,6,FALSE) -> 346.8
S80: Figure 4. | T80: 120 et plus | U80: OSUP_INC_CLASSEAGEFCAGEAGE30+ | V80: =VLOOKUP(U80,Output!$C:$AQ,6,FALSE) -> 69670.6
U81: Sous-total | V81: =SUM(V51:V80) -> 491415.5 | W81: =V81/V89 -> 1
S82: =LEFT(B$69,10) -> Figure 5. | T82: <16 | U82: OSUPINC_ST016(FCST) | V82: =VLOOKUP(U82,GTYF!$C:$AQ,6,FALSE) -> 0 | W82: =IFERROR(V82/$V$88,0) -> 0
S83: Figure 5. | T83: 16 à 18 | U83: OSUPINC_ST1619(FCST) | V83: =VLOOKUP(U83,GTYF!$C:$AQ,6,FALSE) -> 0 | W83: 0
S84: Figure 5. | T84: 19 à 21 | U84: OSUPINC_ST1922(FCST) | V84: =VLOOKUP(U84,GTYF!$C:$AQ,6,FALSE) -> 0 | W84: 0
S85: Figure 5. | T85: 22 à 24 | U85: OSUPINC_ST2225(FCST) | V85: =VLOOKUP(U85,GTYF!$C:$AQ,6,FALSE) -> 0 | W85: 0
S86: Figure 5. | T86: 25 à 28 | U86: OSUPINC_ST2528(FCST) | V86: =VLOOKUP(U86,GTYF!$C:$AQ,6,FALSE) -> 0 | W86: 0
S87: Figure 5. | T87: 29+ | U87: OSUPINC_ST29+(FCST) | V87: =VLOOKUP(U87,GTYF!$C:$AQ,6,FALSE) -> 0 | W87: 0
S88: Figure 5. | T88: Total 0-29+ | U88: Sous-total | V88: =SUM(V82:V87) -> 0 | W88: =V88/V89 -> 0
U89: OSUPINC | V89: =VLOOKUP(U89,Output!$C:$AQ,6,FALSE) -> 491415.5
A91: 80 | B91: Figure 6. Évolution des volumes et des possibilités forestières à rendement non-décroissant
U93: Période | V93: P0 | W93: P1 | X93: P2 | Y93: P3 | Z93: P4 | AA93: P5 | AB93: P6 | AC93: P7 | AD93: P8 | AE93: P9 | AF93: P10 | AG93: P11 | AH93: P12 | AI93: P13 | AJ93: P14 | AK93: P15 | AL93: P16 | AM93: P17 | AN93: P18 | AO93: P19 | AP93: P20 | AQ93: P21 | AR93: P22 | AS93: P23 | AT93: P24 | AU93: P25 | AV93: P26 | AW93: P27 | AX93: P28 | AY93: P29 | AZ93: P30
U94: Colonne | V94: 6 | W94: 7 | X94: 8 | Y94: 9 | Z94: 10 | AA94: 11 | AB94: 12 | AC94: 13 | AD94: 14 | AE94: 15 | AF94: 16 | AG94: 17 | AH94: 18 | AI94: 19 | AJ94: 20 | AK94: 21 | AL94: 22 | AM94: 23 | AN94: 24 | AO94: 25 | AP94: 26 | AQ94: 27 | AR94: 28 | AS94: 29 | AT94: 30 | AU94: 31 | AV94: 32 | AW94: 33 | AX94: 34 | AY94: 35 | AZ94: 36
S95: =LEFT(B$91,10) -> Figure 6. | T95: Légende | U95: Axe des "X" Début de période | W95: 2018 | X95: 2023 | Y95: 2028 | Z95: 2033 | AA95: 2038 | AB95: 2043 | AC95: 2048 | AD95: 2053 | AE95: 2058 | AF95: 2063 | AG95: 2068 | AH95: 2073 | AI95: 2078 | AJ95: 2083 | AK95: 2088 | AL95: 2093 | AM95: 2098 | AN95: 2103 | AO95: 2108 | AP95: 2113 | AQ95: 2118 | AR95: 2123 | AS95: 2128 | AT95: 2133 | AU95: 2138 | AV95: 2143 | AW95: 2148 | AX95: 2153 | AY95: 2158 | AZ95: 2163
S96: =LEFT(B$91,10) -> Figure 6. | T96: Possibilités forestières quinquennales | U96: OVOLTOTREC | V96: =VLOOKUP($U96,Output!$C:$AM,V$94,FALSE) -> 0 | W96: =VLOOKUP($U96,Output!$C:$AM,W$94,FALSE) -> 3046023.89 | X96: =VLOOKUP($U96,Output!$C:$AM,X$94,FALSE) -> 3058600 | Y96: =VLOOKUP($U96,Output!$C:$AM,Y$94,FALSE) -> 3058600 | Z96: =VLOOKUP($U96,Output!$C:$AM,Z$94,FALSE) -> 3058600 | AA96: =VLOOKUP($U96,Output!$C:$AM,AA$94,FALSE) -> 3058600 | AB96: =VLOOKUP($U96,Output!$C:$AM,AB$94,FALSE) -> 3058600 | AC96: =VLOOKUP($U96,Output!$C:$AM,AC$94,FALSE) -> 3068607.6 | AD96: =VLOOKUP($U96,Output!$C:$AM,AD$94,FALSE) -> 3068614.25 | AE96: =VLOOKUP($U96,Output!$C:$AM,AE$94,FALSE) -> 3068614.25 | AF96: =VLOOKUP($U96,Output!$C:$AM,AF$94,FALSE) -> 3068627.22 | AG96: =VLOOKUP($U96,Output!$C:$AM,AG$94,FALSE) -> 3068664.42 | AH96: =VLOOKUP($U96,Output!$C:$AM,AH$94,FALSE) -> 3499911.91 | AI96: =VLOOKUP($U96,Output!$C:$AM,AI$94,FALSE) -> 3499911.91 | AJ96: =VLOOKUP($U96,Output!$C:$AM,AJ$94,FALSE) -> 3499914.23 | AK96: =VLOOKUP($U96,Output!$C:$AM,AK$94,FALSE) -> 3499914.23 | AL96: =VLOOKUP($U96,Output!$C:$AM,AL$94,FALSE) -> 3499914.23 | AM96: =VLOOKUP($U96,Output!$C:$AM,AM$94,FALSE) -> 3499914.23 | AN96: =VLOOKUP($U96,Output!$C:$AM,AN$94,FALSE) -> 3499914.23 | AO96: =VLOOKUP($U96,Output!$C:$AM,AO$94,FALSE) -> 3499914.23 | AP96: =VLOOKUP($U96,Output!$C:$AM,AP$94,FALSE) -> 3499914.23 | AQ96: =VLOOKUP($U96,Output!$C:$AM,AQ$94,FALSE) -> 3499914.23 | AR96: =VLOOKUP($U96,Output!$C:$AM,AR$94,FALSE) -> 3519960.8 | AS96: =VLOOKUP($U96,Output!$C:$AM,AS$94,FALSE) -> 3580758.62 | AT96: =VLOOKUP($U96,Output!$C:$AM,AT$94,FALSE) -> 3580758.62 | AU96: =VLOOKUP($U96,Output!$C:$AM,AU$94,FALSE) -> 3580758.62 | AV96: =VLOOKUP($U96,Output!$C:$AM,AV$94,FALSE) -> 3580758.62 | AW96: =VLOOKUP($U96,Output!$C:$AM,AW$94,FALSE) -> 3580758.62 | AX96: =VLOOKUP($U96,Output!$C:$AM,AX$94,FALSE) -> 3580758.62 | AY96: =VLOOKUP($U96,Output!$C:$AM,AY$94,FALSE) -> 3593541.93 | AZ96: =VLOOKUP($U96,Output!$C:$AM,AZ$94,FALSE) -> 3608411.55
S97: =LEFT(B$91,10) -> Figure 6. | T97: Volume à maturité | U97: OVOLMATUREADM | V97: =VLOOKUP($U97,Output!$C:$AM,V$94,FALSE) -> 17675666.45 | W97: =VLOOKUP($U97,Output!$C:$AM,W$94,FALSE) -> 16050003.35 | X97: =VLOOKUP($U97,Output!$C:$AM,X$94,FALSE) -> 15754339.64 | Y97: =VLOOKUP($U97,Output!$C:$AM,Y$94,FALSE) -> 14454790.89 | Z97: =VLOOKUP($U97,Output!$C:$AM,Z$94,FALSE) -> 15735646.03 | AA97: =VLOOKUP($U97,Output!$C:$AM,AA$94,FALSE) -> 16325644.85 | AB97: =VLOOKUP($U97,Output!$C:$AM,AB$94,FALSE) -> 16652499.87 | AC97: =VLOOKUP($U97,Output!$C:$AM,AC$94,FALSE) -> 16920649.61 | AD97: =VLOOKUP($U97,Output!$C:$AM,AD$94,FALSE) -> 15615272.39 | AE97: =VLOOKUP($U97,Output!$C:$AM,AE$94,FALSE) -> 14821307.82 | AF97: =VLOOKUP($U97,Output!$C:$AM,AF$94,FALSE) -> 15881007.24 | AG97: =VLOOKUP($U97,Output!$C:$AM,AG$94,FALSE) -> 16576757.5 | AH97: =VLOOKUP($U97,Output!$C:$AM,AH$94,FALSE) -> 17422500.15 | AI97: =VLOOKUP($U97,Output!$C:$AM,AI$94,FALSE) -> 19276997.87 | AJ97: =VLOOKUP($U97,Output!$C:$AM,AJ$94,FALSE) -> 19410657.87 | AK97: =VLOOKUP($U97,Output!$C:$AM,AK$94,FALSE) -> 20050336.97 | AL97: =VLOOKUP($U97,Output!$C:$AM,AL$94,FALSE) -> 20386305.89 | AM97: =VLOOKUP($U97,Output!$C:$AM,AM$94,FALSE) -> 19902218.3 | AN97: =VLOOKUP($U97,Output!$C:$AM,AN$94,FALSE) -> 19538730.48 | AO97: =VLOOKUP($U97,Output!$C:$AM,AO$94,FALSE) -> 19191858.83 | AP97: =VLOOKUP($U97,Output!$C:$AM,AP$94,FALSE) -> 18700276.72 | AQ97: =VLOOKUP($U97,Output!$C:$AM,AQ$94,FALSE) -> 18728544.83 | AR97: =VLOOKUP($U97,Output!$C:$AM,AR$94,FALSE) -> 18826096.88 | AS97: =VLOOKUP($U97,Output!$C:$AM,AS$94,FALSE) -> 18223727.69 | AT97: =VLOOKUP($U97,Output!$C:$AM,AT$94,FALSE) -> 18521725.29 | AU97: =VLOOKUP($U97,Output!$C:$AM,AU$94,FALSE) -> 18153680.32 | AV97: =VLOOKUP($U97,Output!$C:$AM,AV$94,FALSE) -> 17993468.4 | AW97: =VLOOKUP($U97,Output!$C:$AM,AW$94,FALSE) -> 18480841.81 | AX97: =VLOOKUP($U97,Output!$C:$AM,AX$94,FALSE) -> 18598648.73 | AY97: =VLOOKUP($U97,Output!$C:$AM,AY$94,FALSE) -> 18916107.97 | AZ97: =VLOOKUP($U97,Output!$C:$AM,AZ$94,FALSE) -> 18757985.84
S98: =LEFT(B$91,10) -> Figure 6. | T98: Volume sur pied | U98: OVOLTOTPIEDINC | V98: =VLOOKUP($U98,Output!$C:$AM,V$94,FALSE) -> 29071185.72 | W98: =VLOOKUP($U98,Output!$C:$AM,W$94,FALSE) -> 28716505.16 | X98: =VLOOKUP($U98,Output!$C:$AM,X$94,FALSE) -> 28530065.76 | Y98: =VLOOKUP($U98,Output!$C:$AM,Y$94,FALSE) -> 28377774.74 | Z98: =VLOOKUP($U98,Output!$C:$AM,Z$94,FALSE) -> 28361635.45 | AA98: =VLOOKUP($U98,Output!$C:$AM,AA$94,FALSE) -> 28459371.67 | AB98: =VLOOKUP($U98,Output!$C:$AM,AB$94,FALSE) -> 28611174.43 | AC98: =VLOOKUP($U98,Output!$C:$AM,AC$94,FALSE) -> 28950767.83 | AD98: =VLOOKUP($U98,Output!$C:$AM,AD$94,FALSE) -> 29425512.81 | AE98: =VLOOKUP($U98,Output!$C:$AM,AE$94,FALSE) -> 29918153.11 | AF98: =VLOOKUP($U98,Output!$C:$AM,AF$94,FALSE) -> 30471210.68 | AG98: =VLOOKUP($U98,Output!$C:$AM,AG$94,FALSE) -> 30998023.99 | AH98: =VLOOKUP($U98,Output!$C:$AM,AH$94,FALSE) -> 31054415.07 | AI98: =VLOOKUP($U98,Output!$C:$AM,AI$94,FALSE) -> 31054415.07 | AJ98: =VLOOKUP($U98,Output!$C:$AM,AJ$94,FALSE) -> 31054415.07 | AK98: =VLOOKUP($U98,Output!$C:$AM,AK$94,FALSE) -> 31054415.07 | AL98: =VLOOKUP($U98,Output!$C:$AM,AL$94,FALSE) -> 31054415.07 | AM98: =VLOOKUP($U98,Output!$C:$AM,AM$94,FALSE) -> 31054415.07 | AN98: =VLOOKUP($U98,Output!$C:$AM,AN$94,FALSE) -> 31054415.07 | AO98: =VLOOKUP($U98,Output!$C:$AM,AO$94,FALSE) -> 31054415.07 | AP98: =VLOOKUP($U98,Output!$C:$AM,AP$94,FALSE) -> 31054415.07 | AQ98: =VLOOKUP($U98,Output!$C:$AM,AQ$94,FALSE) -> 31054415.07 | AR98: =VLOOKUP($U98,Output!$C:$AM,AR$94,FALSE) -> 31054415.07 | AS98: =VLOOKUP($U98,Output!$C:$AM,AS$94,FALSE) -> 31054415.07 | AT98: =VLOOKUP($U98,Output!$C:$AM,AT$94,FALSE) -> 31054415.07 | AU98: =VLOOKUP($U98,Output!$C:$AM,AU$94,FALSE) -> 31054415.07 | AV98: =VLOOKUP($U98,Output!$C:$AM,AV$94,FALSE) -> 31054415.07 | AW98: =VLOOKUP($U98,Output!$C:$AM,AW$94,FALSE) -> 31054415.07 | AX98: =VLOOKUP($U98,Output!$C:$AM,AX$94,FALSE) -> 31054415.07 | AY98: =VLOOKUP($U98,Output!$C:$AM,AY$94,FALSE) -> 31054415.07 | AZ98: =VLOOKUP($U98,Output!$C:$AM,AZ$94,FALSE) -> 31054415.07
S99: =LEFT(B$91,10) -> Figure 6. | T99: Volume récoltable | U99: OVOLTOTADMREGAPRE | V99: =VLOOKUP($U99,Output!$C:$AM,V$94,FALSE) -> 0 | W99: =VLOOKUP($U99,Output!$C:$AM,W$94,FALSE) -> 14165534.5 | X99: =VLOOKUP($U99,Output!$C:$AM,X$94,FALSE) -> 6774917.12 | Y99: =VLOOKUP($U99,Output!$C:$AM,Y$94,FALSE) -> 5293221.73 | Z99: =VLOOKUP($U99,Output!$C:$AM,Z$94,FALSE) -> 4624454.7 | AA99: =VLOOKUP($U99,Output!$C:$AM,AA$94,FALSE) -> 5724116.28 | AB99: =VLOOKUP($U99,Output!$C:$AM,AB$94,FALSE) -> 5871288.45 | AC99: =VLOOKUP($U99,Output!$C:$AM,AC$94,FALSE) -> 6251202.6 | AD99: =VLOOKUP($U99,Output!$C:$AM,AD$94,FALSE) -> 7347203.11 | AE99: =VLOOKUP($U99,Output!$C:$AM,AE$94,FALSE) -> 6490373 | AF99: =VLOOKUP($U99,Output!$C:$AM,AF$94,FALSE) -> 6530863.12 | AG99: =VLOOKUP($U99,Output!$C:$AM,AG$94,FALSE) -> 7179686.32 | AH99: =VLOOKUP($U99,Output!$C:$AM,AH$94,FALSE) -> 7542232.33 | AI99: =VLOOKUP($U99,Output!$C:$AM,AI$94,FALSE) -> 7739760.49 | AJ99: =VLOOKUP($U99,Output!$C:$AM,AJ$94,FALSE) -> 7682048.03 | AK99: =VLOOKUP($U99,Output!$C:$AM,AK$94,FALSE) -> 6638637.79 | AL99: =VLOOKUP($U99,Output!$C:$AM,AL$94,FALSE) -> 6769900.78 | AM99: =VLOOKUP($U99,Output!$C:$AM,AM$94,FALSE) -> 4817359.97 | AN99: =VLOOKUP($U99,Output!$C:$AM,AN$94,FALSE) -> 5818940.77 | AO99: =VLOOKUP($U99,Output!$C:$AM,AO$94,FALSE) -> 4887963.04 | AP99: =VLOOKUP($U99,Output!$C:$AM,AP$94,FALSE) -> 17028133.71 | AQ99: =VLOOKUP($U99,Output!$C:$AM,AQ$94,FALSE) -> 16399810.94 | AR99: =VLOOKUP($U99,Output!$C:$AM,AR$94,FALSE) -> 16312099.79 | AS99: =VLOOKUP($U99,Output!$C:$AM,AS$94,FALSE) -> 15755374.4 | AT99: =VLOOKUP($U99,Output!$C:$AM,AT$94,FALSE) -> 15037234.78 | AU99: =VLOOKUP($U99,Output!$C:$AM,AU$94,FALSE) -> 14957566.46 | AV99: =VLOOKUP($U99,Output!$C:$AM,AV$94,FALSE) -> 14567455.87 | AW99: =VLOOKUP($U99,Output!$C:$AM,AW$94,FALSE) -> 14524460.75 | AX99: =VLOOKUP($U99,Output!$C:$AM,AX$94,FALSE) -> 14962869.22 | AY99: =VLOOKUP($U99,Output!$C:$AM,AY$94,FALSE) -> 15153476.54 | AZ99: =VLOOKUP($U99,Output!$C:$AM,AZ$94,FALSE) -> 15566364.79
T116: * Source: Cahier_analyse, Tableau 13, onglet Budget | X116: Moyenne P2 à P6
B117: Figure 7. Répartition du budget annuel par familles de traitements prévus à la stratégie d’aménagement et coût moyen à l’hectare par famille de traitements
S118: =LEFT(B$117,10) -> Figure 7. | T118: Légende | U118: Output taux | V118: Output superficie | W118: $/ha | X118: ha | Y118: $
S119: =LEFT(B$117,10) -> Figure 7. | T119: Coupes avec protection de la régénération et des sols (CPRS) | U119: OTAUXCT_100 | V119: OSUPCT | W119: =IFERROR(VLOOKUP(U119,Output!$C:$AQ,37,FALSE),0) -> 0 | X119: =IFERROR(VLOOKUP(V119,Output!$C:$AQ,37,FALSE),"0000")/5 -> 4600.7928 | Y119: =W119*X119 -> 0
S120: =LEFT(B$117,10) -> Figure 7. | T120: Coupe avec protection des petites tiges marchandes (CPPTM) | V120: OSUPREALaCPPTM | W120: =IFERROR(VLOOKUP(U120,Output!$C:$AQ,8,FALSE),0) -> 0 | X120: =IFERROR(VLOOKUP(V120,Output!$C:$AQ,37,FALSE),"0000")/5 -> 0 | Y120: =W120*X120 -> 0
S121: =LEFT(B$117,10) -> Figure 7. | T121: Coupe avec réserve de semenciers (CRS) | V121: OSUPREALaCRS | W121: =IFERROR(VLOOKUP(U121,Output!$C:$AQ,8,FALSE),0) -> 0 | X121: =IFERROR(VLOOKUP(V121,Output!$C:$AQ,37,FALSE),"0000")/5 -> 0 | Y121: 0
T122: Coupe à rétention variable (CRV, CPPTM, CPPTM, CPHR, CDL)
S123: =LEFT(B$117,10) -> Figure 7. | T123: Coupes finales | W123: =(ROUND(Y123/X123,0))&"$/ha" -> 0$/ha | X123: =SUM(X119:X121) -> 4600.7928 | Y123: =SUM(Y119:Y121) -> 0
S124: Figure 7. | T124: Éclaircie commerciale (EC) | U124: OTAUXEC_SEPM_100 | V124: OSUPEC_SEPM | W124: =IFERROR(VLOOKUP(U124,Output!$C:$AQ,37,FALSE),0) -> 1370 | X124: =IFERROR(VLOOKUP(V124,Output!$C:$AQ,37,FALSE),"0000")/5 -> 446.312 | Y124: 611447.44
S125: Figure 7. | T125: Coupe progressive régulière initiale (CPROG) | U125: OTAUXCPROG_INI_100 | V125: OSUPCPROG_INI | W125: =IFERROR(VLOOKUP(U125,Output!$C:$AQ,37,FALSE),0) -> 400 | X125: =IFERROR(VLOOKUP(V125,Output!$C:$AQ,37,FALSE),"0000")/5 -> 0 | Y125: 0
S126: Figure 7. | T126: Coupe progressive régulière finale (CPROG) | U126: OTAUXCPROG_FIN_100 | V126: OSUPCPROG_FIN | W126: =IFERROR(VLOOKUP(U126,Output!$C:$AQ,37,FALSE),0) -> 0 | X126: =IFERROR(VLOOKUP(V126,Output!$C:$AQ,37,FALSE),"0000")/5 -> 0 | Y126: 0
S127: Figure 7. | T127: Coupe progessive irrégulière initiale (CPIRL) | U127: OTAUXCPIRL_INI_100 | V127: OSUPCPIRL_INI | W127: =IFERROR(VLOOKUP(U127,Output!$C:$AQ,37,FALSE),0) -> 530 | X127: =IFERROR(VLOOKUP(V127,Output!$C:$AQ,37,FALSE),"0000")/5 -> 190 | Y127: 100700
S128: Figure 7. | T128: Coupe progessive irrégulière finale (CPIRL) | U128: OTAUXCPIRL_FIN_100 | V128: OSUPCPIRL_FIN | W128: =IFERROR(VLOOKUP(U128,Output!$C:$AQ,37,FALSE),0) -> 0 | X128: =IFERROR(VLOOKUP(V128,Output!$C:$AQ,37,FALSE),"0000")/5 -> 0 | Y128: 0
S129: Figure 7. | T129: Coupe à couvert permanent (CPICP) | U129: OTAUXCPICP_100 | V129: OSUPCPICP | W129: =IFERROR(VLOOKUP(U129,Output!$C:$AQ,37,FALSE),0) -> 210 | X129: =IFERROR(VLOOKUP(V129,Output!$C:$AQ,37,FALSE),"0000")/5 -> 0 | Y129: 0
S130: Figure 7. | T130: Coupe de jardinage (CJ) | U130: OTAUXCJ_100 | V130: OSUPCJ | W130: =IFERROR(VLOOKUP(U130,Output!$C:$AQ,37,FALSE),0) -> 673.53 | X130: =IFERROR(VLOOKUP(V130,Output!$C:$AQ,37,FALSE),"0000")/5 -> 0 | Y130: 0
S131: Figure 7. | T131: Coupes partielles | W131: =(ROUND(Y131/X131,0))&"$/ha" -> 1119$/ha | X131: =SUM(X124:X130) -> 636.312 | Y131: =SUM(Y124:Y130) -> 712147.44
S132: Figure 7. | T132: Plantation ligniculture (pins, feuillus) | U132: OTAUXPL_PPF_100 | V132: OSUPPL_PPF | W132: =IFERROR(VLOOKUP(U132,Output!$C:$AQ,37,FALSE),0) -> 1640 | X132: =IFERROR(VLOOKUP(V132,Output!$C:$AQ,37,FALSE),"0000")/5 -> 0 | Y132: 0
S133: Figure 7. | T133: Plantation intensive | U133: OTAUXPL_SEPM_I_100 | V133: OSUPPL_SEPM_I | W133: =IFERROR(VLOOKUP(U133,Output!$C:$AQ,37,FALSE),0) -> 1300 | X133: =IFERROR(VLOOKUP(V133,Output!$C:$AQ,37,FALSE),"0000")/5 -> 538.4052 | Y133: 699926.76
S134: Figure 7. | T134: Plantation de base | U134: OTAUXPL_SEPM_E_100 | V134: OSUPPL_SEPM_E | W134: =IFERROR(VLOOKUP(U134,Output!$C:$AQ,37,FALSE),0) -> 1040 | X134: =IFERROR(VLOOKUP(V134,Output!$C:$AQ,37,FALSE),"0000")/5 -> 811.3176 | Y134: 843770.304
S135: Figure 7. | T135: Regarni | U135: OTAUXREG_100 | V135: OSUPREG | W135: =IFERROR(VLOOKUP(U135,Output!$C:$AQ,37,FALSE),0) -> 470 | X135: =IFERROR(VLOOKUP(V135,Output!$C:$AQ,37,FALSE),"0000")/5 -> 28.6944 | Y135: 13486.368
S136: Figure 7. | T136: Ensemencement (ENS) | U136: OTAUXENS_100 | V136: OSUPENS | W136: =IFERROR(VLOOKUP(U136,Output!$C:$AQ,37,FALSE),0) -> 130 | X136: =IFERROR(VLOOKUP(V136,Output!$C:$AQ,37,FALSE),"0000")/5 -> 0 | Y136: =W136*X136 -> 0
S137: Figure 7. | T137: Reboisement | W137: =(ROUND(Y137/X137,0))&"$/ha" -> 1130$/ha | X137: =SUM(X132:X136) -> 1378.4172 | Y137: =SUM(Y132:Y136) -> 1557183.432
S138: Figure 7. | T138: Dégagement de la régénération naturelle | U138: OTAUXDEG_2_100 | V138: OSUPDEG_2 | W138: =IFERROR(VLOOKUP(U138,Output!$C:$AQ,37,FALSE),0) -> 1290 | X138: =IFERROR(VLOOKUP(V138,Output!$C:$AQ,37,FALSE),"0000")/5 -> 28.6944 | Y138: 37015.776
S139: Figure 7. | T139: Dégagement de plantation | U139: OTAUXDEG_1_100 | V139: OSUPDEG_1 | W139: =IFERROR(VLOOKUP(U139,Output!$C:$AQ,37,FALSE),0) -> 1290 | X139: =IFERROR(VLOOKUP(V139,Output!$C:$AQ,37,FALSE),"0000")/5 -> 643.5472 | Y139: 830175.888
S140: Figure 7. | T140: Nettoiement de la régénération naturelle | U140: OTAUXNETT_100 | V140: OSUPREALNET | W140: =IFERROR(VLOOKUP(U140,Output!$C:$AQ,37,FALSE),0) -> 1140 | X140: =IFERROR(VLOOKUP(V140,Output!$C:$AQ,37,FALSE),"0000")/5-X141 -> 28.448 | Y140: 32430.72
C141: $ /m3 | E141: $ /ha | S141: Figure 7. | T141: Nettoiement de plantation | U141: OTAUXNETT_100 | V141: OSUPTCADNETT_T100% | W141: =IFERROR(VLOOKUP(U141,Output!$C:$AQ,37,FALSE),0) -> 1140 | X141: =IFERROR(VLOOKUP(V141,Output!$C:$AQ,37,FALSE),"0000")/5 -> 16.7992 | Y141: 19151.088
C142: =Y151/(Instructions!I5/5) -> 6.166833325 | E142: =Y151/Tableaux!F33 -> 9.18456232 | S142: Figure 7. | T142: Éclaircie précommerciale (EPC_1) | U142: OTAUXEPC_1_100 | V142: OSUPEPC_1 | W142: =IFERROR(VLOOKUP(U142,Output!$C:$AQ,37,FALSE),0) -> 1380 | X142: =IFERROR(VLOOKUP(V142,Output!$C:$AQ,37,FALSE),"0000")/5 -> 0 | Y142: 0
S143: Figure 7. | T143: Éclaircie précommerciale (EPC_2) | U143: OTAUXEPC_2_100 | V143: OSUPEPC_2 | W143: =IFERROR(VLOOKUP(U143,Output!$C:$AQ,37,FALSE),0) -> 1380 | X143: =IFERROR(VLOOKUP(V143,Output!$C:$AQ,37,FALSE),"0000")/5 -> 0 | Y143: 0
S144: Figure 7. | T144: Éclaircie précommerciale de la régénération naturelle | V144: OSUPREALEPC | W144: =IFERROR(VLOOKUP(U144,Output!$C:$AQ,37,FALSE),0) -> 0 | X144: =IFERROR(VLOOKUP(V144,Output!$C:$AQ,37,FALSE),"0000")/5 -> 0 | Y144: 0
S145: Figure 7. | T145: Élagage (plantation) | U145: OTAUXELAG_100 | V145: OSUPELAG | W145: =IFERROR(VLOOKUP(U145,Output!$C:$AQ,37,FALSE),0) -> 1630 | X145: =IFERROR(VLOOKUP(V145,Output!$C:$AQ,37,FALSE),"0000")/5 -> 0 | Y145: 0
S146: Figure 7. | T146: Travaux d'éducation | W146: =(ROUND(Y146/X146,0))&"$/ha" -> 1281$/ha | X146: =SUM(X138:X143)+X145 -> 717.4888 | Y146: =SUM(Y138:Y143)+Y145 -> 918773.472
S147: Figure 7. | T147: Préparation terrain lignicult. + ferti + élagage (SCA_LIGN) | U147: OTAUXSCA_LIGN_100 | V147: OSUPSCA_LIGN | W147: =IFERROR(VLOOKUP(U147,Output!$C:$AQ,37,FALSE),0) -> 1510 | X147: =IFERROR(VLOOKUP(V147,Output!$C:$AQ,37,FALSE),"0000")/5 -> 0 | Y147: 0
S148: Figure 7. | T148: Préparation de terrain partielle (SCA_PART) | U148: OTAUXSCA_PART_100 | V148: OSUPSCA_PART | W148: =IFERROR(VLOOKUP(U148,Output!$C:$AQ,37,FALSE),0) -> 540 | X148: =IFERROR(VLOOKUP(V148,Output!$C:$AQ,37,FALSE),"0000")/5 -> 57.1944 | Y148: 30884.976
S149: Figure 7. | T149: Préparation de terrain régulière, 1 passage (SCA_REG) | U149: OTAUXSCA_REG_100 | V149: OSUPSCA_REG | W149: =IFERROR(VLOOKUP(U149,Output!$C:$AQ,37,FALSE),0) -> 410 | X149: =IFERROR(VLOOKUP(V149,Output!$C:$AQ,37,FALSE),"0000")/5 -> 1349.7228 | Y149: 553386.348 | AA149: Valideur
B150: Figure 9b Évolution de la superficie des vieilles forêts selon leur degré d'altération | S150: Figure 7. | T150: Préparation de terrain | W150: =(ROUND(Y150/X150,0))&"$/ha" -> 415$/ha | X150: =SUM(X147:X149) -> 1406.9172 | Y150: =SUM(Y147:Y149) -> 584271.324 | Z150: =Y123+Y131+Y137+Y146+Y150 -> 3772375.668 | AA150: =Y151-Z150 -> -0.3863999997
S151: Figure 7. | T151: Investissement sylvicole annuel (O$INVESTISTS)* | V151: O$INVESTISTS | Y151: =IFERROR(VLOOKUP(V151,Output!$C:$AQ,37,FALSE),"0000")/5 -> 3772375.282
S155: =LEFT(B$117,10) -> Figure 7. | T155: =T123 -> Coupes finales | U155: =Y123 -> 0 | V155: =W123 -> 0$/ha
S156: =LEFT(B$117,10) -> Figure 7. | T156: =T131 -> Coupes partielles | U156: =Y131 -> 712147.44 | V156: =W131 -> 1119$/ha
S157: =LEFT(B$117,10) -> Figure 7. | T157: =T137 -> Reboisement | U157: =Y137 -> 1557183.432 | V157: =W137 -> 1130$/ha
S158: =LEFT(B$117,10) -> Figure 7. | T158: =T146 -> Travaux d'éducation | U158: =Y146 -> 918773.472 | V158: =W146 -> 1281$/ha
S159: =LEFT(B$117,10) -> Figure 7. | T159: =T150 -> Préparation de terrain | U159: =Y150 -> 584271.324 | V159: =W150 -> 415$/ha
U161: Période | V161: P0 | W161: P1 | X161: P2 | Y161: P3 | Z161: P4 | AA161: P5 | AB161: P6 | AC161: P7 | AD161: P8 | AE161: P9 | AF161: P10 | AG161: P11 | AH161: P12 | AI161: P13 | AJ161: P14 | AK161: P15 | AL161: P16 | AM161: P17 | AN161: P18 | AO161: P19 | AP161: P20 | AQ161: P21 | AR161: P22 | AS161: P23 | AT161: P24 | AU161: P25 | AV161: P26 | AW161: P27 | AX161: P28 | AY161: P29 | AZ161: P30
S162: =LEFT(B$150,10) -> Figure 9b | U162: Axe des "X" Fin de période | V162: 2018 | W162: 2023 | X162: 2028 | Y162: 2033 | Z162: 2038 | AA162: 2043 | AB162: 2048 | AC162: 2053 | AD162: 2058 | AE162: 2063 | AF162: 2068 | AG162: 2073 | AH162: 2078 | AI162: 2083 | AJ162: 2088 | AK162: 2093 | AL162: 2098 | AM162: 2103 | AN162: 2108 | AO162: 2113 | AP162: 2118 | AQ162: 2123 | AR162: 2128 | AS162: 2133 | AT162: 2138 | AU162: 2143 | AV162: 2148 | AW162: 2153 | AX162: 2158 | AY162: 2163 | AZ162: 2168
S163: Figure 9b | U163: Colonne | V163: 6 | W163: 7 | X163: 8 | Y163: 9 | Z163: 10 | AA163: 11 | AB163: 12 | AC163: 13 | AD163: 14 | AE163: 15 | AF163: 16 | AG163: 17 | AH163: 18 | AI163: 19 | AJ163: 20 | AK163: 21 | AL163: 22 | AM163: 23 | AN163: 24 | AO163: 25 | AP163: 26 | AQ163: 27 | AR163: 28 | AS163: 29 | AT163: 30 | AU163: 31 | AV163: 32 | AW163: 33 | AX163: 34 | AY163: 35 | AZ163: 36
S164: Figure 9b | U164: OSUPREGECO | V164: =VLOOKUP($U164,Output!$C:$AL,V$163,FALSE) -> 659107.8 | W164: =VLOOKUP($U164,Output!$C:$AL,W$163,FALSE) -> 657919.53 | X164: =VLOOKUP($U164,Output!$C:$AL,X$163,FALSE) -> 656841.56 | Y164: =VLOOKUP($U164,Output!$C:$AL,Y$163,FALSE) -> 655814.57 | Z164: =VLOOKUP($U164,Output!$C:$AL,Z$163,FALSE) -> 654885.01 | AA164: =VLOOKUP($U164,Output!$C:$AL,AA$163,FALSE) -> 654132.09 | AB164: =VLOOKUP($U164,Output!$C:$AL,AB$163,FALSE) -> 653414.28 | AC164: =VLOOKUP($U164,Output!$C:$AL,AC$163,FALSE) -> 652937.04 | AD164: =VLOOKUP($U164,Output!$C:$AL,AD$163,FALSE) -> 652287.34 | AE164: =VLOOKUP($U164,Output!$C:$AL,AE$163,FALSE) -> 652057.54 | AF164: =VLOOKUP($U164,Output!$C:$AL,AF$163,FALSE) -> 651651.71 | AG164: =VLOOKUP($U164,Output!$C:$AL,AG$163,FALSE) -> 651421.11 | AH164: =VLOOKUP($U164,Output!$C:$AL,AH$163,FALSE) -> 651127.86 | AI164: =VLOOKUP($U164,Output!$C:$AL,AI$163,FALSE) -> 650788.49 | AJ164: =VLOOKUP($U164,Output!$C:$AL,AJ$163,FALSE) -> 650535.71 | AK164: =VLOOKUP($U164,Output!$C:$AL,AK$163,FALSE) -> 650444.92 | AL164: =VLOOKUP($U164,Output!$C:$AL,AL$163,FALSE) -> 650298.21 | AM164: =VLOOKUP($U164,Output!$C:$AL,AM$163,FALSE) -> 650239.59 | AN164: =VLOOKUP($U164,Output!$C:$AL,AN$163,FALSE) -> 650140.72 | AO164: =VLOOKUP($U164,Output!$C:$AL,AO$163,FALSE) -> 650072.86 | AP164: =VLOOKUP($U164,Output!$C:$AL,AP$163,FALSE) -> 650047.86 | AQ164: =VLOOKUP($U164,Output!$C:$AL,AQ$163,FALSE) -> 649969.3 | AR164: =VLOOKUP($U164,Output!$C:$AL,AR$163,FALSE) -> 649947.07 | AS164: =VLOOKUP($U164,Output!$C:$AL,AS$163,FALSE) -> 649947.07 | AT164: =VLOOKUP($U164,Output!$C:$AL,AT$163,FALSE) -> 649725.68 | AU164: =VLOOKUP($U164,Output!$C:$AL,AU$163,FALSE) -> 649493.62 | AV164: =VLOOKUP($U164,Output!$C:$AL,AV$163,FALSE) -> 649385.14 | AW164: =VLOOKUP($U164,Output!$C:$AL,AW$163,FALSE) -> 649377.68 | AX164: =VLOOKUP($U164,Output!$C:$AL,AX$163,FALSE) -> 649377.68 | AY164: =VLOOKUP($U164,Output!$C:$AL,AY$163,FALSE) -> 649377.68 | AZ164: =VLOOKUP($U164,Output!$C:$AL,AZ$163,FALSE) -> 649377.68
S165: Figure 9b | T165: Élevé | U165: OSUPVIEUXALERTEREGECO | V165: =VLOOKUP($U165,Output!$C:$AL,V$163,FALSE) -> 97153.98 | W165: =VLOOKUP($U165,Output!$C:$AL,W$163,FALSE) -> 96979.3 | X165: =VLOOKUP($U165,Output!$C:$AL,X$163,FALSE) -> 96820.95 | Y165: =VLOOKUP($U165,Output!$C:$AL,Y$163,FALSE) -> 96669.99 | Z165: =VLOOKUP($U165,Output!$C:$AL,Z$163,FALSE) -> 96533.34 | AA165: =VLOOKUP($U165,Output!$C:$AL,AA$163,FALSE) -> 96422.66 | AB165: =VLOOKUP($U165,Output!$C:$AL,AB$163,FALSE) -> 96317.16 | AC165: =VLOOKUP($U165,Output!$C:$AL,AC$163,FALSE) -> 96247.01 | AD165: =VLOOKUP($U165,Output!$C:$AL,AD$163,FALSE) -> 96151.5 | AE165: =VLOOKUP($U165,Output!$C:$AL,AE$163,FALSE) -> 96117.72 | AF165: =VLOOKUP($U165,Output!$C:$AL,AF$163,FALSE) -> 96058.08 | AG165: =VLOOKUP($U165,Output!$C:$AL,AG$163,FALSE) -> 96024.18 | AH165: =VLOOKUP($U165,Output!$C:$AL,AH$163,FALSE) -> 95981.07 | AI165: =VLOOKUP($U165,Output!$C:$AL,AI$163,FALSE) -> 95931.18 | AJ165: =VLOOKUP($U165,Output!$C:$AL,AJ$163,FALSE) -> 95894.03 | AK165: =VLOOKUP($U165,Output!$C:$AL,AK$163,FALSE) -> 95880.68 | AL165: =VLOOKUP($U165,Output!$C:$AL,AL$163,FALSE) -> 95859.11 | AM165: =VLOOKUP($U165,Output!$C:$AL,AM$163,FALSE) -> 95850.5 | AN165: =VLOOKUP($U165,Output!$C:$AL,AN$163,FALSE) -> 95835.96 | AO165: =VLOOKUP($U165,Output!$C:$AL,AO$163,FALSE) -> 95825.99 | AP165: =VLOOKUP($U165,Output!$C:$AL,AP$163,FALSE) -> 95822.31 | AQ165: =VLOOKUP($U165,Output!$C:$AL,AQ$163,FALSE) -> 95810.76 | AR165: =VLOOKUP($U165,Output!$C:$AL,AR$163,FALSE) -> 95807.5 | AS165: =VLOOKUP($U165,Output!$C:$AL,AS$163,FALSE) -> 95807.5 | AT165: =VLOOKUP($U165,Output!$C:$AL,AT$163,FALSE) -> 95774.95 | AU165: =VLOOKUP($U165,Output!$C:$AL,AU$163,FALSE) -> 95740.84 | AV165: =VLOOKUP($U165,Output!$C:$AL,AV$163,FALSE) -> 95724.89 | AW165: =VLOOKUP($U165,Output!$C:$AL,AW$163,FALSE) -> 95723.8 | AX165: =VLOOKUP($U165,Output!$C:$AL,AX$163,FALSE) -> 95723.8 | AY165: =VLOOKUP($U165,Output!$C:$AL,AY$163,FALSE) -> 95723.8 | AZ165: =VLOOKUP($U165,Output!$C:$AL,AZ$163,FALSE) -> 95723.8
S166: Figure 9b | U166: OSUPVIEUXACCEPTREGECO | V166: =VLOOKUP($U166,Output!$C:$AL,V$163,FALSE) -> 161923.3 | W166: =VLOOKUP($U166,Output!$C:$AL,W$163,FALSE) -> 161632.17 | X166: =VLOOKUP($U166,Output!$C:$AL,X$163,FALSE) -> 161368.25 | Y166: =VLOOKUP($U166,Output!$C:$AL,Y$163,FALSE) -> 161116.64 | Z166: =VLOOKUP($U166,Output!$C:$AL,Z$163,FALSE) -> 160888.9 | AA166: =VLOOKUP($U166,Output!$C:$AL,AA$163,FALSE) -> 160704.44 | AB166: =VLOOKUP($U166,Output!$C:$AL,AB$163,FALSE) -> 160528.61 | AC166: =VLOOKUP($U166,Output!$C:$AL,AC$163,FALSE) -> 160411.68 | AD166: =VLOOKUP($U166,Output!$C:$AL,AD$163,FALSE) -> 160252.51 | AE166: =VLOOKUP($U166,Output!$C:$AL,AE$163,FALSE) -> 160196.21 | AF166: =VLOOKUP($U166,Output!$C:$AL,AF$163,FALSE) -> 160096.8 | AG166: =VLOOKUP($U166,Output!$C:$AL,AG$163,FALSE) -> 160040.3 | AH166: =VLOOKUP($U166,Output!$C:$AL,AH$163,FALSE) -> 159968.45 | AI166: =VLOOKUP($U166,Output!$C:$AL,AI$163,FALSE) -> 159885.31 | AJ166: =VLOOKUP($U166,Output!$C:$AL,AJ$163,FALSE) -> 159823.38 | AK166: =VLOOKUP($U166,Output!$C:$AL,AK$163,FALSE) -> 159801.13 | AL166: =VLOOKUP($U166,Output!$C:$AL,AL$163,FALSE) -> 159765.19 | AM166: =VLOOKUP($U166,Output!$C:$AL,AM$163,FALSE) -> 159750.83 | AN166: =VLOOKUP($U166,Output!$C:$AL,AN$163,FALSE) -> 159726.6 | AO166: =VLOOKUP($U166,Output!$C:$AL,AO$163,FALSE) -> 159709.98 | AP166: =VLOOKUP($U166,Output!$C:$AL,AP$163,FALSE) -> 159703.85 | AQ166: =VLOOKUP($U166,Output!$C:$AL,AQ$163,FALSE) -> 159684.6 | AR166: =VLOOKUP($U166,Output!$C:$AL,AR$163,FALSE) -> 159679.16 | AS166: =VLOOKUP($U166,Output!$C:$AL,AS$163,FALSE) -> 159679.16 | AT166: =VLOOKUP($U166,Output!$C:$AL,AT$163,FALSE) -> 159624.92 | AU166: =VLOOKUP($U166,Output!$C:$AL,AU$163,FALSE) -> 159568.06 | AV166: =VLOOKUP($U166,Output!$C:$AL,AV$163,FALSE) -> 159541.49 | AW166: =VLOOKUP($U166,Output!$C:$AL,AW$163,FALSE) -> 159539.66 | AX166: =VLOOKUP($U166,Output!$C:$AL,AX$163,FALSE) -> 159539.66 | AY166: =VLOOKUP($U166,Output!$C:$AL,AY$163,FALSE) -> 159539.66 | AZ166: =VLOOKUP($U166,Output!$C:$AL,AZ$163,FALSE) -> 159539.66
S167: Figure 9b | T167: Moyen | V167: =V166-V165 -> 64769.32 | W167: =W166-W165 -> 64652.87 | X167: 64547.3 | Y167: 64446.65 | Z167: 64355.56 | AA167: 64281.78 | AB167: 64211.45 | AC167: 64164.67 | AD167: 64101.01 | AE167: 64078.49 | AF167: 64038.72 | AG167: 64016.12 | AH167: 63987.38 | AI167: 63954.13 | AJ167: 63929.35 | AK167: 63920.45 | AL167: 63906.08 | AM167: 63900.33 | AN167: 63890.64 | AO167: 63883.99 | AP167: 63881.54 | AQ167: 63873.84 | AR167: 63871.66 | AS167: 63871.66 | AT167: 63849.97 | AU167: 63827.22 | AV167: 63816.6 | AW167: 63815.86 | AX167: 63815.86 | AY167: 63815.86 | AZ167: 63815.86
S168: Figure 9b | T168: Faible | V168: =$V$164-V165-V167 -> 497184.5 | W168: 497475.63 | X168: 497739.55 | Y168: 497991.16 | Z168: 498218.9 | AA168: 498403.36 | AB168: 498579.19 | AC168: 498696.12 | AD168: 498855.29 | AE168: 498911.59 | AF168: 499011 | AG168: 499067.5 | AH168: 499139.35 | AI168: 499222.49 | AJ168: 499284.42 | AK168: 499306.67 | AL168: 499342.61 | AM168: 499356.97 | AN168: 499381.2 | AO168: 499397.82 | AP168: 499403.95 | AQ168: 499423.2 | AR168: 499428.64 | AS168: 499428.64 | AT168: 499482.88 | AU168: 499539.74 | AV168: 499566.31 | AW168: 499568.14 | AX168: 499568.14 | AY168: 499568.14 | AZ168: 499568.14
S169: Figure 9b | T169: Niveau prédit | U169: OSUPVIEUXTOTREGECO | V169: =VLOOKUP($U169,Output!$C:$AL,V$163,FALSE) -> 216323.7 | W169: =VLOOKUP($U169,Output!$C:$AL,W$163,FALSE) -> 225694.95 | X169: =VLOOKUP($U169,Output!$C:$AL,X$163,FALSE) -> 223466.52 | Y169: =VLOOKUP($U169,Output!$C:$AL,Y$163,FALSE) -> 238609.4 | Z169: =VLOOKUP($U169,Output!$C:$AL,Z$163,FALSE) -> 230019.58 | AA169: =VLOOKUP($U169,Output!$C:$AL,AA$163,FALSE) -> 229676.22 | AB169: =VLOOKUP($U169,Output!$C:$AL,AB$163,FALSE) -> 227161.99 | AC169: =VLOOKUP($U169,Output!$C:$AL,AC$163,FALSE) -> 224434.43 | AD169: =VLOOKUP($U169,Output!$C:$AL,AD$163,FALSE) -> 216274.6 | AE169: =VLOOKUP($U169,Output!$C:$AL,AE$163,FALSE) -> 218685.68 | AF169: =VLOOKUP($U169,Output!$C:$AL,AF$163,FALSE) -> 217186.29 | AG169: =VLOOKUP($U169,Output!$C:$AL,AG$163,FALSE) -> 216051.18 | AH169: =VLOOKUP($U169,Output!$C:$AL,AH$163,FALSE) -> 259391.39 | AI169: =VLOOKUP($U169,Output!$C:$AL,AI$163,FALSE) -> 247589.08 | AJ169: =VLOOKUP($U169,Output!$C:$AL,AJ$163,FALSE) -> 267204.64 | AK169: =VLOOKUP($U169,Output!$C:$AL,AK$163,FALSE) -> 287659.44 | AL169: =VLOOKUP($U169,Output!$C:$AL,AL$163,FALSE) -> 290125.97 | AM169: =VLOOKUP($U169,Output!$C:$AL,AM$163,FALSE) -> 294122.57 | AN169: =VLOOKUP($U169,Output!$C:$AL,AN$163,FALSE) -> 287859.97 | AO169: =VLOOKUP($U169,Output!$C:$AL,AO$163,FALSE) -> 283106.52 | AP169: =VLOOKUP($U169,Output!$C:$AL,AP$163,FALSE) -> 290654.29 | AQ169: =VLOOKUP($U169,Output!$C:$AL,AQ$163,FALSE) -> 287190.47 | AR169: =VLOOKUP($U169,Output!$C:$AL,AR$163,FALSE) -> 291428.02 | AS169: =VLOOKUP($U169,Output!$C:$AL,AS$163,FALSE) -> 297796.61 | AT169: =VLOOKUP($U169,Output!$C:$AL,AT$163,FALSE) -> 301037.5 | AU169: =VLOOKUP($U169,Output!$C:$AL,AU$163,FALSE) -> 299605.51 | AV169: =VLOOKUP($U169,Output!$C:$AL,AV$163,FALSE) -> 303087.87 | AW169: =VLOOKUP($U169,Output!$C:$AL,AW$163,FALSE) -> 304950.54 | AX169: =VLOOKUP($U169,Output!$C:$AL,AX$163,FALSE) -> 296971.41 | AY169: =VLOOKUP($U169,Output!$C:$AL,AY$163,FALSE) -> 297158.48 | AZ169: =VLOOKUP($U169,Output!$C:$AL,AZ$163,FALSE) -> 297870.64
S170: Figure 9b | T170: Portrait préindustriel
B176: Figure 9c Évolution de la superficie des peuplements en régénération selon leur degré d'altération
U177: Période | V177: P0 | W177: P1 | X177: P2 | Y177: P3 | Z177: P4 | AA177: P5 | AB177: P6 | AC177: P7 | AD177: P8 | AE177: P9 | AF177: P10 | AG177: P11 | AH177: P12 | AI177: P13 | AJ177: P14 | AK177: P15 | AL177: P16 | AM177: P17 | AN177: P18 | AO177: P19 | AP177: P20 | AQ177: P21 | AR177: P22 | AS177: P23 | AT177: P24 | AU177: P25 | AV177: P26 | AW177: P27 | AX177: P28 | AY177: P29 | AZ177: P30
U178: Axe des "X" Fin de période | V178: 2018 | W178: 2023 | X178: 2028 | Y178: 2033 | Z178: 2038 | AA178: 2043 | AB178: 2048 | AC178: 2053 | AD178: 2058 | AE178: 2063 | AF178: 2068 | AG178: 2073 | AH178: 2078 | AI178: 2083 | AJ178: 2088 | AK178: 2093 | AL178: 2098 | AM178: 2103 | AN178: 2108 | AO178: 2113 | AP178: 2118 | AQ178: 2123 | AR178: 2128 | AS178: 2133 | AT178: 2138 | AU178: 2143 | AV178: 2148 | AW178: 2153 | AX178: 2158 | AY178: 2163 | AZ178: 2168
S179: =LEFT(B$176,10) -> Figure 9c | U179: Colonne | V179: 6 | W179: 7 | X179: 8 | Y179: 9 | Z179: 10 | AA179: 11 | AB179: 12 | AC179: 13 | AD179: 14 | AE179: 15 | AF179: 16 | AG179: 17 | AH179: 18 | AI179: 19 | AJ179: 20 | AK179: 21 | AL179: 22 | AM179: 23 | AN179: 24 | AO179: 25 | AP179: 26 | AQ179: 27 | AR179: 28 | AS179: 29 | AT179: 30 | AU179: 31 | AV179: 32 | AW179: 33 | AX179: 34 | AY179: 35 | AZ179: 36
S180: Figure 9c | T180: Niveau prédit | U180: OSUPJEUNEREGECO | V180: =VLOOKUP($U180,Output!$C:$AL,V$179,FALSE) -> 84821.4 | W180: =VLOOKUP($U180,Output!$C:$AL,W$179,FALSE) -> 68465.21 | X180: =VLOOKUP($U180,Output!$C:$AL,X$179,FALSE) -> 67863.02 | Y180: =VLOOKUP($U180,Output!$C:$AL,Y$179,FALSE) -> 84686.04 | Z180: =VLOOKUP($U180,Output!$C:$AL,Z$179,FALSE) -> 90173.27 | AA180: =VLOOKUP($U180,Output!$C:$AL,AA$179,FALSE) -> 88733.96 | AB180: =VLOOKUP($U180,Output!$C:$AL,AB$179,FALSE) -> 88617.44 | AC180: =VLOOKUP($U180,Output!$C:$AL,AC$179,FALSE) -> 85825.7 | AD180: =VLOOKUP($U180,Output!$C:$AL,AD$179,FALSE) -> 85063.15 | AE180: =VLOOKUP($U180,Output!$C:$AL,AE$179,FALSE) -> 79993.66 | AF180: =VLOOKUP($U180,Output!$C:$AL,AF$179,FALSE) -> 77553.21 | AG180: =VLOOKUP($U180,Output!$C:$AL,AG$179,FALSE) -> 77181.76 | AH180: =VLOOKUP($U180,Output!$C:$AL,AH$179,FALSE) -> 78650.07 | AI180: =VLOOKUP($U180,Output!$C:$AL,AI$179,FALSE) -> 86538.77 | AJ180: =VLOOKUP($U180,Output!$C:$AL,AJ$179,FALSE) -> 90247.89 | AK180: =VLOOKUP($U180,Output!$C:$AL,AK$179,FALSE) -> 91889.41 | AL180: =VLOOKUP($U180,Output!$C:$AL,AL$179,FALSE) -> 92629.72 | AM180: =VLOOKUP($U180,Output!$C:$AL,AM$179,FALSE) -> 89120.97 | AN180: =VLOOKUP($U180,Output!$C:$AL,AN$179,FALSE) -> 85865.71 | AO180: =VLOOKUP($U180,Output!$C:$AL,AO$179,FALSE) -> 85805.21 | AP180: =VLOOKUP($U180,Output!$C:$AL,AP$179,FALSE) -> 79558.47 | AQ180: =VLOOKUP($U180,Output!$C:$AL,AQ$179,FALSE) -> 80830.18 | AR180: =VLOOKUP($U180,Output!$C:$AL,AR$179,FALSE) -> 80867.56 | AS180: =VLOOKUP($U180,Output!$C:$AL,AS$179,FALSE) -> 80003.58 | AT180: =VLOOKUP($U180,Output!$C:$AL,AT$179,FALSE) -> 84868.11 | AU180: =VLOOKUP($U180,Output!$C:$AL,AU$179,FALSE) -> 84520.88 | AV180: =VLOOKUP($U180,Output!$C:$AL,AV$179,FALSE) -> 84594.38 | AW180: =VLOOKUP($U180,Output!$C:$AL,AW$179,FALSE) -> 84898.09 | AX180: =VLOOKUP($U180,Output!$C:$AL,AX$179,FALSE) -> 85854.99 | AY180: =VLOOKUP($U180,Output!$C:$AL,AY$179,FALSE) -> 86079.96 | AZ180: =VLOOKUP($U180,Output!$C:$AL,AZ$179,FALSE) -> 89359.39
S181: Figure 9c | U181: OSUPREGECO | V181: =VLOOKUP($U181,Output!$C:$AL,V$179,FALSE) -> 659107.8 | W181: =VLOOKUP($U181,Output!$C:$AL,W$179,FALSE) -> 657919.53 | X181: =VLOOKUP($U181,Output!$C:$AL,X$179,FALSE) -> 656841.56 | Y181: =VLOOKUP($U181,Output!$C:$AL,Y$179,FALSE) -> 655814.57 | Z181: =VLOOKUP($U181,Output!$C:$AL,Z$179,FALSE) -> 654885.01 | AA181: =VLOOKUP($U181,Output!$C:$AL,AA$179,FALSE) -> 654132.09 | AB181: =VLOOKUP($U181,Output!$C:$AL,AB$179,FALSE) -> 653414.28 | AC181: =VLOOKUP($U181,Output!$C:$AL,AC$179,FALSE) -> 652937.04 | AD181: =VLOOKUP($U181,Output!$C:$AL,AD$179,FALSE) -> 652287.34 | AE181: =VLOOKUP($U181,Output!$C:$AL,AE$179,FALSE) -> 652057.54 | AF181: =VLOOKUP($U181,Output!$C:$AL,AF$179,FALSE) -> 651651.71 | AG181: =VLOOKUP($U181,Output!$C:$AL,AG$179,FALSE) -> 651421.11 | AH181: =VLOOKUP($U181,Output!$C:$AL,AH$179,FALSE) -> 651127.86 | AI181: =VLOOKUP($U181,Output!$C:$AL,AI$179,FALSE) -> 650788.49 | AJ181: =VLOOKUP($U181,Output!$C:$AL,AJ$179,FALSE) -> 650535.71 | AK181: =VLOOKUP($U181,Output!$C:$AL,AK$179,FALSE) -> 650444.92 | AL181: =VLOOKUP($U181,Output!$C:$AL,AL$179,FALSE) -> 650298.21 | AM181: =VLOOKUP($U181,Output!$C:$AL,AM$179,FALSE) -> 650239.59 | AN181: =VLOOKUP($U181,Output!$C:$AL,AN$179,FALSE) -> 650140.72 | AO181: =VLOOKUP($U181,Output!$C:$AL,AO$179,FALSE) -> 650072.86 | AP181: =VLOOKUP($U181,Output!$C:$AL,AP$179,FALSE) -> 650047.86 | AQ181: =VLOOKUP($U181,Output!$C:$AL,AQ$179,FALSE) -> 649969.3 | AR181: =VLOOKUP($U181,Output!$C:$AL,AR$179,FALSE) -> 649947.07 | AS181: =VLOOKUP($U181,Output!$C:$AL,AS$179,FALSE) -> 649947.07 | AT181: =VLOOKUP($U181,Output!$C:$AL,AT$179,FALSE) -> 649725.68 | AU181: =VLOOKUP($U181,Output!$C:$AL,AU$179,FALSE) -> 649493.62 | AV181: =VLOOKUP($U181,Output!$C:$AL,AV$179,FALSE) -> 649385.14 | AW181: =VLOOKUP($U181,Output!$C:$AL,AW$179,FALSE) -> 649377.68 | AX181: =VLOOKUP($U181,Output!$C:$AL,AX$179,FALSE) -> 649377.68 | AY181: =VLOOKUP($U181,Output!$C:$AL,AY$179,FALSE) -> 649377.68 | AZ181: =VLOOKUP($U181,Output!$C:$AL,AZ$179,FALSE) -> 649377.68
S182: Figure 9c | V182: =IFERROR(V180/V181,"0000") -> 0.1286912399 | W182: 0.1040631975 | X182: 0.1033171835 | Y182: 0.1291310744 | Z182: 0.1376932876 | AA182: 0.1356514401 | AB182: 0.1356221355 | AC182: 0.1314455985 | AD182: 0.1304074827 | AE182: 0.122678836 | AF182: 0.1190102148 | AG182: 0.118482129 | AH182: 0.1207905157 | AI182: 0.1329752621 | AJ182: 0.1387285719 | AK182: 0.1412716237 | AL182: 0.1424419114 | AM182: 0.1370586648 | AN182: 0.1320724996 | AO182: 0.13199322 | AP182: 0.1223886346 | AQ182: 0.1243599967 | AR182: 0.1244217625 | AS182: 0.1230924543 | AT182: 0.1306214493 | AU182: 0.1301335031 | AV182: 0.1302684259 | AW182: 0.1307376164 | AX182: 0.132211181 | AY182: 0.1325576204 | AZ182: 0.1376077324
S183: Figure 9c
S184: Figure 9c | U184: OSUPJEUNEALERTEREGECO | V184: =VLOOKUP($U184,Output!$C:$AL,V$179,FALSE) -> 230370.25 | W184: =VLOOKUP($U184,Output!$C:$AL,W$179,FALSE) -> 229954.35 | X184: =VLOOKUP($U184,Output!$C:$AL,X$179,FALSE) -> 229577.32 | Y184: =VLOOKUP($U184,Output!$C:$AL,Y$179,FALSE) -> 229217.9 | Z184: =VLOOKUP($U184,Output!$C:$AL,Z$179,FALSE) -> 228892.55 | AA184: =VLOOKUP($U184,Output!$C:$AL,AA$179,FALSE) -> 228629.03 | AB184: =VLOOKUP($U184,Output!$C:$AL,AB$179,FALSE) -> 228377.84 | AC184: =VLOOKUP($U184,Output!$C:$AL,AC$179,FALSE) -> 228210.81 | AD184: =VLOOKUP($U184,Output!$C:$AL,AD$179,FALSE) -> 227983.41 | AE184: =VLOOKUP($U184,Output!$C:$AL,AE$179,FALSE) -> 227902.99 | AF184: =VLOOKUP($U184,Output!$C:$AL,AF$179,FALSE) -> 227760.97 | AG184: =VLOOKUP($U184,Output!$C:$AL,AG$179,FALSE) -> 227680.26 | AH184: =VLOOKUP($U184,Output!$C:$AL,AH$179,FALSE) -> 227577.62 | AI184: =VLOOKUP($U184,Output!$C:$AL,AI$179,FALSE) -> 227458.84 | AJ184: =VLOOKUP($U184,Output!$C:$AL,AJ$179,FALSE) -> 227370.37 | AK184: =VLOOKUP($U184,Output!$C:$AL,AK$179,FALSE) -> 227338.59 | AL184: =VLOOKUP($U184,Output!$C:$AL,AL$179,FALSE) -> 227287.25 | AM184: =VLOOKUP($U184,Output!$C:$AL,AM$179,FALSE) -> 227266.73 | AN184: =VLOOKUP($U184,Output!$C:$AL,AN$179,FALSE) -> 227232.13 | AO184: =VLOOKUP($U184,Output!$C:$AL,AO$179,FALSE) -> 227208.37 | AP184: =VLOOKUP($U184,Output!$C:$AL,AP$179,FALSE) -> 227199.62 | AQ184: =VLOOKUP($U184,Output!$C:$AL,AQ$179,FALSE) -> 227172.13 | AR184: =VLOOKUP($U184,Output!$C:$AL,AR$179,FALSE) -> 227164.35 | AS184: =VLOOKUP($U184,Output!$C:$AL,AS$179,FALSE) -> 227164.35 | AT184: =VLOOKUP($U184,Output!$C:$AL,AT$179,FALSE) -> 227086.86 | AU184: =VLOOKUP($U184,Output!$C:$AL,AU$179,FALSE) -> 227005.64 | AV184: =VLOOKUP($U184,Output!$C:$AL,AV$179,FALSE) -> 226967.67 | AW184: =VLOOKUP($U184,Output!$C:$AL,AW$179,FALSE) -> 226965.06 | AX184: =VLOOKUP($U184,Output!$C:$AL,AX$179,FALSE) -> 226965.06 | AY184: =VLOOKUP($U184,Output!$C:$AL,AY$179,FALSE) -> 226965.06 | AZ184: =VLOOKUP($U184,Output!$C:$AL,AZ$179,FALSE) -> 226965.06
S185: Figure 9c | T185: Faible | U185: OSUPJEUNEACCEPTREGECO | V185: =VLOOKUP($U185,Output!$C:$AL,V$179,FALSE) -> 164550.18 | W185: =VLOOKUP($U185,Output!$C:$AL,W$179,FALSE) -> 164253.11 | X185: =VLOOKUP($U185,Output!$C:$AL,X$179,FALSE) -> 163983.8 | Y185: =VLOOKUP($U185,Output!$C:$AL,Y$179,FALSE) -> 163727.07 | Z185: =VLOOKUP($U185,Output!$C:$AL,Z$179,FALSE) -> 163494.68 | AA185: =VLOOKUP($U185,Output!$C:$AL,AA$179,FALSE) -> 163306.45 | AB185: =VLOOKUP($U185,Output!$C:$AL,AB$179,FALSE) -> 163127.03 | AC185: =VLOOKUP($U185,Output!$C:$AL,AC$179,FALSE) -> 163007.72 | AD185: =VLOOKUP($U185,Output!$C:$AL,AD$179,FALSE) -> 162845.3 | AE185: =VLOOKUP($U185,Output!$C:$AL,AE$179,FALSE) -> 162787.85 | AF185: =VLOOKUP($U185,Output!$C:$AL,AF$179,FALSE) -> 162686.41 | AG185: =VLOOKUP($U185,Output!$C:$AL,AG$179,FALSE) -> 162628.76 | AH185: =VLOOKUP($U185,Output!$C:$AL,AH$179,FALSE) -> 162555.44 | AI185: =VLOOKUP($U185,Output!$C:$AL,AI$179,FALSE) -> 162470.6 | AJ185: =VLOOKUP($U185,Output!$C:$AL,AJ$179,FALSE) -> 162407.41 | AK185: =VLOOKUP($U185,Output!$C:$AL,AK$179,FALSE) -> 162384.71 | AL185: =VLOOKUP($U185,Output!$C:$AL,AL$179,FALSE) -> 162348.03 | AM185: =VLOOKUP($U185,Output!$C:$AL,AM$179,FALSE) -> 162333.38 | AN185: =VLOOKUP($U185,Output!$C:$AL,AN$179,FALSE) -> 162308.66 | AO185: =VLOOKUP($U185,Output!$C:$AL,AO$179,FALSE) -> 162291.69 | AP185: =VLOOKUP($U185,Output!$C:$AL,AP$179,FALSE) -> 162285.44 | AQ185: =VLOOKUP($U185,Output!$C:$AL,AQ$179,FALSE) -> 162265.8 | AR185: =VLOOKUP($U185,Output!$C:$AL,AR$179,FALSE) -> 162260.25 | AS185: =VLOOKUP($U185,Output!$C:$AL,AS$179,FALSE) -> 162260.25 | AT185: =VLOOKUP($U185,Output!$C:$AL,AT$179,FALSE) -> 162204.9 | AU185: =VLOOKUP($U185,Output!$C:$AL,AU$179,FALSE) -> 162146.88 | AV185: =VLOOKUP($U185,Output!$C:$AL,AV$179,FALSE) -> 162119.77 | AW185: =VLOOKUP($U185,Output!$C:$AL,AW$179,FALSE) -> 162117.9 | AX185: =VLOOKUP($U185,Output!$C:$AL,AX$179,FALSE) -> 162117.9 | AY185: =VLOOKUP($U185,Output!$C:$AL,AY$179,FALSE) -> 162117.9 | AZ185: =VLOOKUP($U185,Output!$C:$AL,AZ$179,FALSE) -> 162117.9
S186: Figure 9c | T186: Moyen | V186: =V184-V185 -> 65820.07 | W186: 65701.24 | X186: 65593.52 | Y186: 65490.83 | Z186: 65397.87 | AA186: 65322.58 | AB186: 65250.81 | AC186: 65203.09 | AD186: 65138.11 | AE186: 65115.14 | AF186: 65074.56 | AG186: 65051.5 | AH186: 65022.18 | AI186: 64988.24 | AJ186: 64962.96 | AK186: 64953.88 | AL186: 64939.22 | AM186: 64933.35 | AN186: 64923.47 | AO186: 64916.68 | AP186: 64914.18 | AQ186: 64906.33 | AR186: 64904.1 | AS186: 64904.1 | AT186: 64881.96 | AU186: 64858.76 | AV186: 64847.9 | AW186: 64847.16 | AX186: 64847.16 | AY186: 64847.16 | AZ186: 64847.16
S187: Figure 9c | T187: Élevé | V187: =$V$181-V184 -> 428737.55 | W187: 429153.45 | X187: 429530.48 | Y187: 429889.9 | Z187: 430215.25 | AA187: 430478.77 | AB187: 430729.96 | AC187: 430896.99 | AD187: 431124.39 | AE187: 431204.81 | AF187: 431346.83 | AG187: 431427.54 | AH187: 431530.18 | AI187: 431648.96 | AJ187: 431737.43 | AK187: 431769.21 | AL187: 431820.55 | AM187: 431841.07 | AN187: 431875.67 | AO187: 431899.43 | AP187: 431908.18 | AQ187: 431935.67 | AR187: 431943.45 | AS187: 431943.45 | AT187: 432020.94 | AU187: 432102.16 | AV187: 432140.13 | AW187: 432142.74 | AX187: 432142.74 | AY187: 432142.74 | AZ187: 432142.74
U199: Période | V199: P0 | W199: P1 | X199: P2 | Y199: P3 | Z199: P4 | AA199: P5 | AB199: P6 | AC199: P7 | AD199: P8 | AE199: P9 | AF199: P10 | AG199: P11 | AH199: P12 | AI199: P13 | AJ199: P14 | AK199: P15 | AL199: P16 | AM199: P17 | AN199: P18 | AO199: P19 | AP199: P20 | AQ199: P21 | AR199: P22 | AS199: P23 | AT199: P24 | AU199: P25 | AV199: P26 | AW199: P27 | AX199: P28 | AY199: P29 | AZ199: P30
U200: Axe des "X" Fin de période | V200: 2018 | W200: 2023 | X200: 2028 | Y200: 2033 | Z200: 2038 | AA200: 2043 | AB200: 2048 | AC200: 2053 | AD200: 2058 | AE200: 2063 | AF200: 2068 | AG200: 2073 | AH200: 2078 | AI200: 2083 | AJ200: 2088 | AK200: 2093 | AL200: 2098 | AM200: 2103 | AN200: 2108 | AO200: 2113 | AP200: 2118 | AQ200: 2123 | AR200: 2128 | AS200: 2133 | AT200: 2138 | AU200: 2143 | AV200: 2148 | AW200: 2153 | AX200: 2158 | AY200: 2163 | AZ200: 2168
U201: Colonne | V201: 6 | W201: 7 | X201: 8 | Y201: 9 | Z201: 10 | AA201: 11 | AB201: 12 | AC201: 13 | AD201: 14 | AE201: 15 | AF201: 16 | AG201: 17 | AH201: 18 | AI201: 19 | AJ201: 20 | AK201: 21 | AL201: 22 | AM201: 23 | AN201: 24 | AO201: 25 | AP201: 26 | AQ201: 27 | AR201: 28 | AS201: 29 | AT201: 30 | AU201: 31 | AV201: 32 | AW201: 33 | AX201: 34 | AY201: 35 | AZ201: 36
B202: Figure 10a Évolution de la superficie selon le type de couvert | S202: =LEFT(B$202,10) -> Figure 10a | U202: OSUPINC
S203: Figure 10a | U203: Résineux | V203: =SUM(V214,V220,V221,V222,V224,V225) -> 308717.7 | W203: =SUM(W214,W220,W221,W222,W224,W225) -> 306029.41 | X203: 302844.77 | Y203: 300472.56 | Z203: 298922.78 | AA203: 297553.09 | AB203: 296242.94 | AC203: 294759.63 | AD203: 293753.44 | AE203: 292409.17 | AF203: 291031.63 | AG203: 290833.86 | AH203: 289817.48 | AI203: 290168.56 | AJ203: 289442.2 | AK203: 287971.42 | AL203: 286533.47 | AM203: 285527.18 | AN203: 285026.91 | AO203: 285759.14 | AP203: 285734.13 | AQ203: 285404.86 | AR203: 286136.43 | AS203: 286601.4 | AT203: 286370.94 | AU203: 285773.34 | AV203: 285905.73 | AW203: 286521.4 | AX203: 285105.3 | AY203: 284013.7 | AZ203: 285053.82
S204: Figure 10a | U204: Mixtes résineux | V204: =V223 -> 34307.5 | W204: =W223 -> 36009.88 | X204: 38331.92 | Y204: 39864.05 | Z204: 40659.13 | AA204: 41353.87 | AB204: 42035.51 | AC204: 43099.45 | AD204: 43516.72 | AE204: 44639.63 | AF204: 45629.27 | AG204: 45655.9 | AH204: 46417.52 | AI204: 45815.45 | AJ204: 46309.41 | AK204: 47704.79 | AL204: 49046.47 | AM204: 50035.02 | AN204: 50437.2 | AO204: 49649.13 | AP204: 49649.13 | AQ204: 49906.33 | AR204: 49154.19 | AS204: 48689.22 | AT204: 48698.3 | AU204: 49063.83 | AV204: 48822.97 | AW204: 48199.91 | AX204: 49616 | AY204: 50707.61 | AZ204: 49667.49
S205: Figure 10a | U205: Mixtes feuillus intolérants | V205: =V213+V219 -> 27116.6 | W205: =W213+W219 -> 27051.76 | X205: =X213+X219 -> 26955.8 | Y205: =Y213+Y219 -> 26888.89 | Z205: 26839.14 | AA205: 26814.64 | AB205: 26800.7 | AC205: 26786.78 | AD205: 26771.59 | AE205: 26770.08 | AF205: 26767.42 | AG205: 26745.66 | AH205: 26715.79 | AI205: 26661.53 | AJ205: 26647.91 | AK205: 26636.63 | AL205: 26598.46 | AM205: 26594.07 | AN205: 26594.07 | AO205: 26594.07 | AP205: 26594.07 | AQ205: 26594.07 | AR205: 26594.07 | AS205: 26594.07 | AT205: 26594.07 | AU205: 26594.07 | AV205: 26594.07 | AW205: 26594.07 | AX205: 26594.07 | AY205: 26594.07 | AZ205: 26594.07
S206: Figure 10a | U206: Mixtes feuillus tolérants | V206: =V217 -> 0 | W206: =W217 -> 0 | X206: 0 | Y206: 0 | Z206: 0 | AA206: 0 | AB206: 0 | AC206: 0 | AD206: 0 | AE206: 0 | AF206: 0 | AG206: 0 | AH206: 0 | AI206: 0 | AJ206: 0 | AK206: 0 | AL206: 0 | AM206: 0 | AN206: 0 | AO206: 0 | AP206: 0 | AQ206: 0 | AR206: 0 | AS206: 0 | AT206: 0 | AU206: 0 | AV206: 0 | AW206: 0 | AX206: 0 | AY206: 0 | AZ206: 0
S207: Figure 10a | U207: Feuillus intolérants | V207: =V212+V215+V218 -> 40586.6 | W207: =W212+W215+W218 -> 40449.07 | X207: =X212+X215+X218 -> 40329.67 | Y207: 40209.68 | Z207: 40084.55 | AA207: 40031.1 | AB207: 39955.72 | AC207: 39911.78 | AD207: 39866.19 | AE207: 39859.27 | AF207: 39843.98 | AG207: 39806.3 | AH207: 39797.66 | AI207: 39763.55 | AJ207: 39756.78 | AK207: 39752.68 | AL207: 39740.41 | AM207: 39703.93 | AN207: 39703.16 | AO207: 39691.13 | AP207: 39691.13 | AQ207: 39684.64 | AR207: 39682.98 | AS207: 39682.98 | AT207: 39682.98 | AU207: 39682.98 | AV207: 39682.98 | AW207: 39682.91 | AX207: 39682.91 | AY207: 39682.91 | AZ207: 39682.91
S208: Figure 10a | U208: Feuillus tolérants | V208: =V216 -> 0 | W208: =W216 -> 0 | X208: 0 | Y208: 0 | Z208: 0 | AA208: 0 | AB208: 0 | AC208: 0 | AD208: 0 | AE208: 0 | AF208: 0 | AG208: 0 | AH208: 0 | AI208: 0 | AJ208: 0 | AK208: 0 | AL208: 0 | AM208: 0 | AN208: 0 | AO208: 0 | AP208: 0 | AQ208: 0 | AR208: 0 | AS208: 0 | AT208: 0 | AU208: 0 | AV208: 0 | AW208: 0 | AX208: 0 | AY208: 0 | AZ208: 0
S209: Figure 10a | U209: Total | V209: =SUM(V203:V208) -> 410728.4 | W209: =SUM(W203:W208) -> 409540.12 | X209: =SUM(X203:X208) -> 408462.16 | Y209: 407435.18 | Z209: 406505.6 | AA209: 405752.7 | AB209: 405034.87 | AC209: 404557.64 | AD209: 403907.94 | AE209: 403678.15 | AF209: 403272.3 | AG209: 403041.72 | AH209: 402748.45 | AI209: 402409.09 | AJ209: 402156.3 | AK209: 402065.52 | AL209: 401918.81 | AM209: 401860.2 | AN209: 401761.34 | AO209: 401693.47 | AP209: 401668.46 | AQ209: 401589.9 | AR209: 401567.67 | AS209: 401567.67 | AT209: 401346.29 | AU209: 401114.22 | AV209: 401005.75 | AW209: 400998.29 | AX209: 400998.28 | AY209: 400998.29 | AZ209: 400998.29
S210: Figure 10a
S211: Figure 10a
S212: Figure 10a | T212: Bétulaies blanches | U212: (FCTYF_BOP) | V212: =VLOOKUP($U$202&$U212,GTYF!$C:$AP,V$201,FALSE) -> 2749.6 | W212: =VLOOKUP($U$202&$U212,GTYF!$C:$AP,W$201,FALSE) -> 2749.6 | X212: =VLOOKUP($U$202&$U212,GTYF!$C:$AP,X$201,FALSE) -> 2749.6 | Y212: =VLOOKUP($U$202&$U212,GTYF!$C:$AP,Y$201,FALSE) -> 2749.6 | Z212: =VLOOKUP($U$202&$U212,GTYF!$C:$AP,Z$201,FALSE) -> 2749.6 | AA212: =VLOOKUP($U$202&$U212,GTYF!$C:$AP,AA$201,FALSE) -> 2749.6 | AB212: =VLOOKUP($U$202&$U212,GTYF!$C:$AP,AB$201,FALSE) -> 2749.6 | AC212: =VLOOKUP($U$202&$U212,GTYF!$C:$AP,AC$201,FALSE) -> 2749.6 | AD212: =VLOOKUP($U$202&$U212,GTYF!$C:$AP,AD$201,FALSE) -> 2749.6 | AE212: =VLOOKUP($U$202&$U212,GTYF!$C:$AP,AE$201,FALSE) -> 2749.6 | AF212: =VLOOKUP($U$202&$U212,GTYF!$C:$AP,AF$201,FALSE) -> 2749.6 | AG212: =VLOOKUP($U$202&$U212,GTYF!$C:$AP,AG$201,FALSE) -> 2749.6 | AH212: =VLOOKUP($U$202&$U212,GTYF!$C:$AP,AH$201,FALSE) -> 2749.6 | AI212: =VLOOKUP($U$202&$U212,GTYF!$C:$AP,AI$201,FALSE) -> 2749.6 | AJ212: =VLOOKUP($U$202&$U212,GTYF!$C:$AP,AJ$201,FALSE) -> 2749.6 | AK212: =VLOOKUP($U$202&$U212,GTYF!$C:$AP,AK$201,FALSE) -> 2749.6 | AL212: =VLOOKUP($U$202&$U212,GTYF!$C:$AP,AL$201,FALSE) -> 2749.6 | AM212: =VLOOKUP($U$202&$U212,GTYF!$C:$AP,AM$201,FALSE) -> 2749.6 | AN212: =VLOOKUP($U$202&$U212,GTYF!$C:$AP,AN$201,FALSE) -> 2749.6 | AO212: =VLOOKUP($U$202&$U212,GTYF!$C:$AP,AO$201,FALSE) -> 2749.6 | AP212: =VLOOKUP($U$202&$U212,GTYF!$C:$AP,AP$201,FALSE) -> 2749.6 | AQ212: =VLOOKUP($U$202&$U212,GTYF!$C:$AP,AQ$201,FALSE) -> 2749.6 | AR212: =VLOOKUP($U$202&$U212,GTYF!$C:$AP,AR$201,FALSE) -> 2749.6 | AS212: =VLOOKUP($U$202&$U212,GTYF!$C:$AP,AS$201,FALSE) -> 2749.6 | AT212: =VLOOKUP($U$202&$U212,GTYF!$C:$AP,AT$201,FALSE) -> 2749.6 | AU212: =VLOOKUP($U$202&$U212,GTYF!$C:$AP,AU$201,FALSE) -> 2749.6 | AV212: =VLOOKUP($U$202&$U212,GTYF!$C:$AP,AV$201,FALSE) -> 2749.6 | AW212: =VLOOKUP($U$202&$U212,GTYF!$C:$AP,AW$201,FALSE) -> 2749.6 | AX212: =VLOOKUP($U$202&$U212,GTYF!$C:$AP,AX$201,FALSE) -> 2749.6 | AY212: =VLOOKUP($U$202&$U212,GTYF!$C:$AP,AY$201,FALSE) -> 2749.6 | AZ212: =VLOOKUP($U$202&$U212,GTYF!$C:$AP,AZ$201,FALSE) -> 2749.6
S213: Figure 10a | T213: Bétulaies blanches à résineux | U213: (FCTYF_BOPR) | V213: =VLOOKUP($U$202&$U213,GTYF!$C:$AP,V$201,FALSE) -> 4568 | W213: =VLOOKUP($U$202&$U213,GTYF!$C:$AP,W$201,FALSE) -> 4568 | X213: =VLOOKUP($U$202&$U213,GTYF!$C:$AP,X$201,FALSE) -> 4568 | Y213: =VLOOKUP($U$202&$U213,GTYF!$C:$AP,Y$201,FALSE) -> 4568 | Z213: =VLOOKUP($U$202&$U213,GTYF!$C:$AP,Z$201,FALSE) -> 4568 | AA213: =VLOOKUP($U$202&$U213,GTYF!$C:$AP,AA$201,FALSE) -> 4568 | AB213: =VLOOKUP($U$202&$U213,GTYF!$C:$AP,AB$201,FALSE) -> 4568 | AC213: =VLOOKUP($U$202&$U213,GTYF!$C:$AP,AC$201,FALSE) -> 4568 | AD213: =VLOOKUP($U$202&$U213,GTYF!$C:$AP,AD$201,FALSE) -> 4568 | AE213: =VLOOKUP($U$202&$U213,GTYF!$C:$AP,AE$201,FALSE) -> 4568 | AF213: =VLOOKUP($U$202&$U213,GTYF!$C:$AP,AF$201,FALSE) -> 4566.83 | AG213: =VLOOKUP($U$202&$U213,GTYF!$C:$AP,AG$201,FALSE) -> 4553.71 | AH213: =VLOOKUP($U$202&$U213,GTYF!$C:$AP,AH$201,FALSE) -> 4525.52 | AI213: =VLOOKUP($U$202&$U213,GTYF!$C:$AP,AI$201,FALSE) -> 4481.91 | AJ213: =VLOOKUP($U$202&$U213,GTYF!$C:$AP,AJ$201,FALSE) -> 4468.89 | AK213: =VLOOKUP($U$202&$U213,GTYF!$C:$AP,AK$201,FALSE) -> 4457.61 | AL213: =VLOOKUP($U$202&$U213,GTYF!$C:$AP,AL$201,FALSE) -> 4430.84 | AM213: =VLOOKUP($U$202&$U213,GTYF!$C:$AP,AM$201,FALSE) -> 4430.34 | AN213: =VLOOKUP($U$202&$U213,GTYF!$C:$AP,AN$201,FALSE) -> 4430.34 | AO213: =VLOOKUP($U$202&$U213,GTYF!$C:$AP,AO$201,FALSE) -> 4430.34 | AP213: =VLOOKUP($U$202&$U213,GTYF!$C:$AP,AP$201,FALSE) -> 4430.34 | AQ213: =VLOOKUP($U$202&$U213,GTYF!$C:$AP,AQ$201,FALSE) -> 4430.34 | AR213: =VLOOKUP($U$202&$U213,GTYF!$C:$AP,AR$201,FALSE) -> 4430.34 | AS213: =VLOOKUP($U$202&$U213,GTYF!$C:$AP,AS$201,FALSE) -> 4430.34 | AT213: =VLOOKUP($U$202&$U213,GTYF!$C:$AP,AT$201,FALSE) -> 4430.34 | AU213: =VLOOKUP($U$202&$U213,GTYF!$C:$AP,AU$201,FALSE) -> 4430.34 | AV213: =VLOOKUP($U$202&$U213,GTYF!$C:$AP,AV$201,FALSE) -> 4430.34 | AW213: =VLOOKUP($U$202&$U213,GTYF!$C:$AP,AW$201,FALSE) -> 4430.34 | AX213: =VLOOKUP($U$202&$U213,GTYF!$C:$AP,AX$201,FALSE) -> 4430.34 | AY213: =VLOOKUP($U$202&$U213,GTYF!$C:$AP,AY$201,FALSE) -> 4430.34 | AZ213: =VLOOKUP($U$202&$U213,GTYF!$C:$AP,AZ$201,FALSE) -> 4430.34
S214: Figure 10a | T214: Pessières | U214: (FCTYF_EPX) | V214: =VLOOKUP($U$202&$U214,GTYF!$C:$AP,V$201,FALSE) -> 250374.1 | W214: =VLOOKUP($U$202&$U214,GTYF!$C:$AP,W$201,FALSE) -> 250144.68 | X214: =VLOOKUP($U$202&$U214,GTYF!$C:$AP,X$201,FALSE) -> 248014.72 | Y214: =VLOOKUP($U$202&$U214,GTYF!$C:$AP,Y$201,FALSE) -> 247734.85 | Z214: =VLOOKUP($U$202&$U214,GTYF!$C:$AP,Z$201,FALSE) -> 250190.79 | AA214: =VLOOKUP($U$202&$U214,GTYF!$C:$AP,AA$201,FALSE) -> 249035.68 | AB214: =VLOOKUP($U$202&$U214,GTYF!$C:$AP,AB$201,FALSE) -> 247813.86 | AC214: =VLOOKUP($U$202&$U214,GTYF!$C:$AP,AC$201,FALSE) -> 246369.66 | AD214: =VLOOKUP($U$202&$U214,GTYF!$C:$AP,AD$201,FALSE) -> 245465.52 | AE214: =VLOOKUP($U$202&$U214,GTYF!$C:$AP,AE$201,FALSE) -> 244395.32 | AF214: =VLOOKUP($U$202&$U214,GTYF!$C:$AP,AF$201,FALSE) -> 243058.74 | AG214: =VLOOKUP($U$202&$U214,GTYF!$C:$AP,AG$201,FALSE) -> 242881.25 | AH214: =VLOOKUP($U$202&$U214,GTYF!$C:$AP,AH$201,FALSE) -> 241897.46 | AI214: =VLOOKUP($U$202&$U214,GTYF!$C:$AP,AI$201,FALSE) -> 242263.6 | AJ214: =VLOOKUP($U$202&$U214,GTYF!$C:$AP,AJ$201,FALSE) -> 241548.68 | AK214: =VLOOKUP($U$202&$U214,GTYF!$C:$AP,AK$201,FALSE) -> 240083.05 | AL214: =VLOOKUP($U$202&$U214,GTYF!$C:$AP,AL$201,FALSE) -> 238650.31 | AM214: =VLOOKUP($U$202&$U214,GTYF!$C:$AP,AM$201,FALSE) -> 237785.5 | AN214: =VLOOKUP($U$202&$U214,GTYF!$C:$AP,AN$201,FALSE) -> 237285.39 | AO214: =VLOOKUP($U$202&$U214,GTYF!$C:$AP,AO$201,FALSE) -> 238024.12 | AP214: =VLOOKUP($U$202&$U214,GTYF!$C:$AP,AP$201,FALSE) -> 237721.61 | AQ214: =VLOOKUP($U$202&$U214,GTYF!$C:$AP,AQ$201,FALSE) -> 236012.07 | AR214: =VLOOKUP($U$202&$U214,GTYF!$C:$AP,AR$201,FALSE) -> 236205.43 | AS214: =VLOOKUP($U$202&$U214,GTYF!$C:$AP,AS$201,FALSE) -> 236802.2 | AT214: =VLOOKUP($U$202&$U214,GTYF!$C:$AP,AT$201,FALSE) -> 236571.74 | AU214: =VLOOKUP($U$202&$U214,GTYF!$C:$AP,AU$201,FALSE) -> 236078.92 | AV214: =VLOOKUP($U$202&$U214,GTYF!$C:$AP,AV$201,FALSE) -> 236232.43 | AW214: =VLOOKUP($U$202&$U214,GTYF!$C:$AP,AW$201,FALSE) -> 236612.37 | AX214: =VLOOKUP($U$202&$U214,GTYF!$C:$AP,AX$201,FALSE) -> 235196.27 | AY214: =VLOOKUP($U$202&$U214,GTYF!$C:$AP,AY$201,FALSE) -> 234982.53 | AZ214: =VLOOKUP($U$202&$U214,GTYF!$C:$AP,AZ$201,FALSE) -> 237065.84
S215: Figure 10a | T215: Érablières rouges | U215: (FCTYF_ERO) | V215: =VLOOKUP($U$202&$U215,GTYF!$C:$AP,V$201,FALSE) -> 0 | W215: =VLOOKUP($U$202&$U215,GTYF!$C:$AP,W$201,FALSE) -> 0 | X215: =VLOOKUP($U$202&$U215,GTYF!$C:$AP,X$201,FALSE) -> 0 | Y215: =VLOOKUP($U$202&$U215,GTYF!$C:$AP,Y$201,FALSE) -> 0 | Z215: =VLOOKUP($U$202&$U215,GTYF!$C:$AP,Z$201,FALSE) -> 0 | AA215: =VLOOKUP($U$202&$U215,GTYF!$C:$AP,AA$201,FALSE) -> 0 | AB215: =VLOOKUP($U$202&$U215,GTYF!$C:$AP,AB$201,FALSE) -> 0 | AC215: =VLOOKUP($U$202&$U215,GTYF!$C:$AP,AC$201,FALSE) -> 0 | AD215: =VLOOKUP($U$202&$U215,GTYF!$C:$AP,AD$201,FALSE) -> 0 | AE215: =VLOOKUP($U$202&$U215,GTYF!$C:$AP,AE$201,FALSE) -> 0 | AF215: =VLOOKUP($U$202&$U215,GTYF!$C:$AP,AF$201,FALSE) -> 0 | AG215: =VLOOKUP($U$202&$U215,GTYF!$C:$AP,AG$201,FALSE) -> 0 | AH215: =VLOOKUP($U$202&$U215,GTYF!$C:$AP,AH$201,FALSE) -> 0 | AI215: =VLOOKUP($U$202&$U215,GTYF!$C:$AP,AI$201,FALSE) -> 0 | AJ215: =VLOOKUP($U$202&$U215,GTYF!$C:$AP,AJ$201,FALSE) -> 0 | AK215: =VLOOKUP($U$202&$U215,GTYF!$C:$AP,AK$201,FALSE) -> 0 | AL215: =VLOOKUP($U$202&$U215,GTYF!$C:$AP,AL$201,FALSE) -> 0 | AM215: =VLOOKUP($U$202&$U215,GTYF!$C:$AP,AM$201,FALSE) -> 0 | AN215: =VLOOKUP($U$202&$U215,GTYF!$C:$AP,AN$201,FALSE) -> 0 | AO215: =VLOOKUP($U$202&$U215,GTYF!$C:$AP,AO$201,FALSE) -> 0 | AP215: =VLOOKUP($U$202&$U215,GTYF!$C:$AP,AP$201,FALSE) -> 0 | AQ215: =VLOOKUP($U$202&$U215,GTYF!$C:$AP,AQ$201,FALSE) -> 0 | AR215: =VLOOKUP($U$202&$U215,GTYF!$C:$AP,AR$201,FALSE) -> 0 | AS215: =VLOOKUP($U$202&$U215,GTYF!$C:$AP,AS$201,FALSE) -> 0 | AT215: =VLOOKUP($U$202&$U215,GTYF!$C:$AP,AT$201,FALSE) -> 0 | AU215: =VLOOKUP($U$202&$U215,GTYF!$C:$AP,AU$201,FALSE) -> 0 | AV215: =VLOOKUP($U$202&$U215,GTYF!$C:$AP,AV$201,FALSE) -> 0 | AW215: =VLOOKUP($U$202&$U215,GTYF!$C:$AP,AW$201,FALSE) -> 0 | AX215: =VLOOKUP($U$202&$U215,GTYF!$C:$AP,AX$201,FALSE) -> 0 | AY215: =VLOOKUP($U$202&$U215,GTYF!$C:$AP,AY$201,FALSE) -> 0 | AZ215: =VLOOKUP($U$202&$U215,GTYF!$C:$AP,AZ$201,FALSE) -> 0
S216: Figure 10a | T216: Feuillus tolérants | U216: (FCTYF_FT) | V216: =VLOOKUP($U$202&$U216,GTYF!$C:$AP,V$201,FALSE) -> 0 | W216: =VLOOKUP($U$202&$U216,GTYF!$C:$AP,W$201,FALSE) -> 0 | X216: =VLOOKUP($U$202&$U216,GTYF!$C:$AP,X$201,FALSE) -> 0 | Y216: =VLOOKUP($U$202&$U216,GTYF!$C:$AP,Y$201,FALSE) -> 0 | Z216: =VLOOKUP($U$202&$U216,GTYF!$C:$AP,Z$201,FALSE) -> 0 | AA216: =VLOOKUP($U$202&$U216,GTYF!$C:$AP,AA$201,FALSE) -> 0 | AB216: =VLOOKUP($U$202&$U216,GTYF!$C:$AP,AB$201,FALSE) -> 0 | AC216: =VLOOKUP($U$202&$U216,GTYF!$C:$AP,AC$201,FALSE) -> 0 | AD216: =VLOOKUP($U$202&$U216,GTYF!$C:$AP,AD$201,FALSE) -> 0 | AE216: =VLOOKUP($U$202&$U216,GTYF!$C:$AP,AE$201,FALSE) -> 0 | AF216: =VLOOKUP($U$202&$U216,GTYF!$C:$AP,AF$201,FALSE) -> 0 | AG216: =VLOOKUP($U$202&$U216,GTYF!$C:$AP,AG$201,FALSE) -> 0 | AH216: =VLOOKUP($U$202&$U216,GTYF!$C:$AP,AH$201,FALSE) -> 0 | AI216: =VLOOKUP($U$202&$U216,GTYF!$C:$AP,AI$201,FALSE) -> 0 | AJ216: =VLOOKUP($U$202&$U216,GTYF!$C:$AP,AJ$201,FALSE) -> 0 | AK216: =VLOOKUP($U$202&$U216,GTYF!$C:$AP,AK$201,FALSE) -> 0 | AL216: =VLOOKUP($U$202&$U216,GTYF!$C:$AP,AL$201,FALSE) -> 0 | AM216: =VLOOKUP($U$202&$U216,GTYF!$C:$AP,AM$201,FALSE) -> 0 | AN216: =VLOOKUP($U$202&$U216,GTYF!$C:$AP,AN$201,FALSE) -> 0 | AO216: =VLOOKUP($U$202&$U216,GTYF!$C:$AP,AO$201,FALSE) -> 0 | AP216: =VLOOKUP($U$202&$U216,GTYF!$C:$AP,AP$201,FALSE) -> 0 | AQ216: =VLOOKUP($U$202&$U216,GTYF!$C:$AP,AQ$201,FALSE) -> 0 | AR216: =VLOOKUP($U$202&$U216,GTYF!$C:$AP,AR$201,FALSE) -> 0 | AS216: =VLOOKUP($U$202&$U216,GTYF!$C:$AP,AS$201,FALSE) -> 0 | AT216: =VLOOKUP($U$202&$U216,GTYF!$C:$AP,AT$201,FALSE) -> 0 | AU216: =VLOOKUP($U$202&$U216,GTYF!$C:$AP,AU$201,FALSE) -> 0 | AV216: =VLOOKUP($U$202&$U216,GTYF!$C:$AP,AV$201,FALSE) -> 0 | AW216: =VLOOKUP($U$202&$U216,GTYF!$C:$AP,AW$201,FALSE) -> 0 | AX216: =VLOOKUP($U$202&$U216,GTYF!$C:$AP,AX$201,FALSE) -> 0 | AY216: =VLOOKUP($U$202&$U216,GTYF!$C:$AP,AY$201,FALSE) -> 0 | AZ216: =VLOOKUP($U$202&$U216,GTYF!$C:$AP,AZ$201,FALSE) -> 0
S217: Figure 10a | T217: Feuillus tolérants à résineux | U217: (FCTYF_FTR) | V217: =VLOOKUP($U$202&$U217,GTYF!$C:$AP,V$201,FALSE) -> 0 | W217: =VLOOKUP($U$202&$U217,GTYF!$C:$AP,W$201,FALSE) -> 0 | X217: =VLOOKUP($U$202&$U217,GTYF!$C:$AP,X$201,FALSE) -> 0 | Y217: =VLOOKUP($U$202&$U217,GTYF!$C:$AP,Y$201,FALSE) -> 0 | Z217: =VLOOKUP($U$202&$U217,GTYF!$C:$AP,Z$201,FALSE) -> 0 | AA217: =VLOOKUP($U$202&$U217,GTYF!$C:$AP,AA$201,FALSE) -> 0 | AB217: =VLOOKUP($U$202&$U217,GTYF!$C:$AP,AB$201,FALSE) -> 0 | AC217: =VLOOKUP($U$202&$U217,GTYF!$C:$AP,AC$201,FALSE) -> 0 | AD217: =VLOOKUP($U$202&$U217,GTYF!$C:$AP,AD$201,FALSE) -> 0 | AE217: =VLOOKUP($U$202&$U217,GTYF!$C:$AP,AE$201,FALSE) -> 0 | AF217: =VLOOKUP($U$202&$U217,GTYF!$C:$AP,AF$201,FALSE) -> 0 | AG217: =VLOOKUP($U$202&$U217,GTYF!$C:$AP,AG$201,FALSE) -> 0 | AH217: =VLOOKUP($U$202&$U217,GTYF!$C:$AP,AH$201,FALSE) -> 0 | AI217: =VLOOKUP($U$202&$U217,GTYF!$C:$AP,AI$201,FALSE) -> 0 | AJ217: =VLOOKUP($U$202&$U217,GTYF!$C:$AP,AJ$201,FALSE) -> 0 | AK217: =VLOOKUP($U$202&$U217,GTYF!$C:$AP,AK$201,FALSE) -> 0 | AL217: =VLOOKUP($U$202&$U217,GTYF!$C:$AP,AL$201,FALSE) -> 0 | AM217: =VLOOKUP($U$202&$U217,GTYF!$C:$AP,AM$201,FALSE) -> 0 | AN217: =VLOOKUP($U$202&$U217,GTYF!$C:$AP,AN$201,FALSE) -> 0 | AO217: =VLOOKUP($U$202&$U217,GTYF!$C:$AP,AO$201,FALSE) -> 0 | AP217: =VLOOKUP($U$202&$U217,GTYF!$C:$AP,AP$201,FALSE) -> 0 | AQ217: =VLOOKUP($U$202&$U217,GTYF!$C:$AP,AQ$201,FALSE) -> 0 | AR217: =VLOOKUP($U$202&$U217,GTYF!$C:$AP,AR$201,FALSE) -> 0 | AS217: =VLOOKUP($U$202&$U217,GTYF!$C:$AP,AS$201,FALSE) -> 0 | AT217: =VLOOKUP($U$202&$U217,GTYF!$C:$AP,AT$201,FALSE) -> 0 | AU217: =VLOOKUP($U$202&$U217,GTYF!$C:$AP,AU$201,FALSE) -> 0 | AV217: =VLOOKUP($U$202&$U217,GTYF!$C:$AP,AV$201,FALSE) -> 0 | AW217: =VLOOKUP($U$202&$U217,GTYF!$C:$AP,AW$201,FALSE) -> 0 | AX217: =VLOOKUP($U$202&$U217,GTYF!$C:$AP,AX$201,FALSE) -> 0 | AY217: =VLOOKUP($U$202&$U217,GTYF!$C:$AP,AY$201,FALSE) -> 0 | AZ217: =VLOOKUP($U$202&$U217,GTYF!$C:$AP,AZ$201,FALSE) -> 0
S218: Figure 10a | T218: Peupleraies | U218: (FCTYF_PEU) | V218: =VLOOKUP($U$202&$U218,GTYF!$C:$AP,V$201,FALSE) -> 37837 | W218: =VLOOKUP($U$202&$U218,GTYF!$C:$AP,W$201,FALSE) -> 37699.47 | X218: =VLOOKUP($U$202&$U218,GTYF!$C:$AP,X$201,FALSE) -> 37580.07 | Y218: =VLOOKUP($U$202&$U218,GTYF!$C:$AP,Y$201,FALSE) -> 37460.08 | Z218: =VLOOKUP($U$202&$U218,GTYF!$C:$AP,Z$201,FALSE) -> 37334.95 | AA218: =VLOOKUP($U$202&$U218,GTYF!$C:$AP,AA$201,FALSE) -> 37281.5 | AB218: =VLOOKUP($U$202&$U218,GTYF!$C:$AP,AB$201,FALSE) -> 37206.12 | AC218: =VLOOKUP($U$202&$U218,GTYF!$C:$AP,AC$201,FALSE) -> 37162.18 | AD218: =VLOOKUP($U$202&$U218,GTYF!$C:$AP,AD$201,FALSE) -> 37116.59 | AE218: =VLOOKUP($U$202&$U218,GTYF!$C:$AP,AE$201,FALSE) -> 37109.67 | AF218: =VLOOKUP($U$202&$U218,GTYF!$C:$AP,AF$201,FALSE) -> 37094.38 | AG218: =VLOOKUP($U$202&$U218,GTYF!$C:$AP,AG$201,FALSE) -> 37056.7 | AH218: =VLOOKUP($U$202&$U218,GTYF!$C:$AP,AH$201,FALSE) -> 37048.06 | AI218: =VLOOKUP($U$202&$U218,GTYF!$C:$AP,AI$201,FALSE) -> 37013.95 | AJ218: =VLOOKUP($U$202&$U218,GTYF!$C:$AP,AJ$201,FALSE) -> 37007.18 | AK218: =VLOOKUP($U$202&$U218,GTYF!$C:$AP,AK$201,FALSE) -> 37003.08 | AL218: =VLOOKUP($U$202&$U218,GTYF!$C:$AP,AL$201,FALSE) -> 36990.81 | AM218: =VLOOKUP($U$202&$U218,GTYF!$C:$AP,AM$201,FALSE) -> 36954.33 | AN218: =VLOOKUP($U$202&$U218,GTYF!$C:$AP,AN$201,FALSE) -> 36953.56 | AO218: =VLOOKUP($U$202&$U218,GTYF!$C:$AP,AO$201,FALSE) -> 36941.53 | AP218: =VLOOKUP($U$202&$U218,GTYF!$C:$AP,AP$201,FALSE) -> 36941.53 | AQ218: =VLOOKUP($U$202&$U218,GTYF!$C:$AP,AQ$201,FALSE) -> 36935.04 | AR218: =VLOOKUP($U$202&$U218,GTYF!$C:$AP,AR$201,FALSE) -> 36933.38 | AS218: =VLOOKUP($U$202&$U218,GTYF!$C:$AP,AS$201,FALSE) -> 36933.38 | AT218: =VLOOKUP($U$202&$U218,GTYF!$C:$AP,AT$201,FALSE) -> 36933.38 | AU218: =VLOOKUP($U$202&$U218,GTYF!$C:$AP,AU$201,FALSE) -> 36933.38 | AV218: =VLOOKUP($U$202&$U218,GTYF!$C:$AP,AV$201,FALSE) -> 36933.38 | AW218: =VLOOKUP($U$202&$U218,GTYF!$C:$AP,AW$201,FALSE) -> 36933.31 | AX218: =VLOOKUP($U$202&$U218,GTYF!$C:$AP,AX$201,FALSE) -> 36933.31 | AY218: =VLOOKUP($U$202&$U218,GTYF!$C:$AP,AY$201,FALSE) -> 36933.31 | AZ218: =VLOOKUP($U$202&$U218,GTYF!$C:$AP,AZ$201,FALSE) -> 36933.31
S219: Figure 10a | T219: Peupleraies à résineux | U219: (FCTYF_PEUR) | V219: =VLOOKUP($U$202&$U219,GTYF!$C:$AP,V$201,FALSE) -> 22548.6 | W219: =VLOOKUP($U$202&$U219,GTYF!$C:$AP,W$201,FALSE) -> 22483.76 | X219: =VLOOKUP($U$202&$U219,GTYF!$C:$AP,X$201,FALSE) -> 22387.8 | Y219: =VLOOKUP($U$202&$U219,GTYF!$C:$AP,Y$201,FALSE) -> 22320.89 | Z219: =VLOOKUP($U$202&$U219,GTYF!$C:$AP,Z$201,FALSE) -> 22271.14 | AA219: =VLOOKUP($U$202&$U219,GTYF!$C:$AP,AA$201,FALSE) -> 22246.64 | AB219: =VLOOKUP($U$202&$U219,GTYF!$C:$AP,AB$201,FALSE) -> 22232.7 | AC219: =VLOOKUP($U$202&$U219,GTYF!$C:$AP,AC$201,FALSE) -> 22218.78 | AD219: =VLOOKUP($U$202&$U219,GTYF!$C:$AP,AD$201,FALSE) -> 22203.59 | AE219: =VLOOKUP($U$202&$U219,GTYF!$C:$AP,AE$201,FALSE) -> 22202.08 | AF219: =VLOOKUP($U$202&$U219,GTYF!$C:$AP,AF$201,FALSE) -> 22200.59 | AG219: =VLOOKUP($U$202&$U219,GTYF!$C:$AP,AG$201,FALSE) -> 22191.95 | AH219: =VLOOKUP($U$202&$U219,GTYF!$C:$AP,AH$201,FALSE) -> 22190.27 | AI219: =VLOOKUP($U$202&$U219,GTYF!$C:$AP,AI$201,FALSE) -> 22179.62 | AJ219: =VLOOKUP($U$202&$U219,GTYF!$C:$AP,AJ$201,FALSE) -> 22179.02 | AK219: =VLOOKUP($U$202&$U219,GTYF!$C:$AP,AK$201,FALSE) -> 22179.02 | AL219: =VLOOKUP($U$202&$U219,GTYF!$C:$AP,AL$201,FALSE) -> 22167.62 | AM219: =VLOOKUP($U$202&$U219,GTYF!$C:$AP,AM$201,FALSE) -> 22163.73 | AN219: =VLOOKUP($U$202&$U219,GTYF!$C:$AP,AN$201,FALSE) -> 22163.73 | AO219: =VLOOKUP($U$202&$U219,GTYF!$C:$AP,AO$201,FALSE) -> 22163.73 | AP219: =VLOOKUP($U$202&$U219,GTYF!$C:$AP,AP$201,FALSE) -> 22163.73 | AQ219: =VLOOKUP($U$202&$U219,GTYF!$C:$AP,AQ$201,FALSE) -> 22163.73 | AR219: =VLOOKUP($U$202&$U219,GTYF!$C:$AP,AR$201,FALSE) -> 22163.73 | AS219: =VLOOKUP($U$202&$U219,GTYF!$C:$AP,AS$201,FALSE) -> 22163.73 | AT219: =VLOOKUP($U$202&$U219,GTYF!$C:$AP,AT$201,FALSE) -> 22163.73 | AU219: =VLOOKUP($U$202&$U219,GTYF!$C:$AP,AU$201,FALSE) -> 22163.73 | AV219: =VLOOKUP($U$202&$U219,GTYF!$C:$AP,AV$201,FALSE) -> 22163.73 | AW219: =VLOOKUP($U$202&$U219,GTYF!$C:$AP,AW$201,FALSE) -> 22163.73 | AX219: =VLOOKUP($U$202&$U219,GTYF!$C:$AP,AX$201,FALSE) -> 22163.73 | AY219: =VLOOKUP($U$202&$U219,GTYF!$C:$AP,AY$201,FALSE) -> 22163.73 | AZ219: =VLOOKUP($U$202&$U219,GTYF!$C:$AP,AZ$201,FALSE) -> 22163.73
S220: Figure 10a | T220: Pinèdes grises | U220: (FCTYF_PIG) | V220: =VLOOKUP($U$202&$U220,GTYF!$C:$AP,V$201,FALSE) -> 54212.3 | W220: =VLOOKUP($U$202&$U220,GTYF!$C:$AP,W$201,FALSE) -> 51756.25 | X220: =VLOOKUP($U$202&$U220,GTYF!$C:$AP,X$201,FALSE) -> 50707.73 | Y220: =VLOOKUP($U$202&$U220,GTYF!$C:$AP,Y$201,FALSE) -> 48639.17 | Z220: =VLOOKUP($U$202&$U220,GTYF!$C:$AP,Z$201,FALSE) -> 44666.03 | AA220: =VLOOKUP($U$202&$U220,GTYF!$C:$AP,AA$201,FALSE) -> 44493.44 | AB220: =VLOOKUP($U$202&$U220,GTYF!$C:$AP,AB$201,FALSE) -> 44433.34 | AC220: =VLOOKUP($U$202&$U220,GTYF!$C:$AP,AC$201,FALSE) -> 44404.11 | AD220: =VLOOKUP($U$202&$U220,GTYF!$C:$AP,AD$201,FALSE) -> 44328.31 | AE220: =VLOOKUP($U$202&$U220,GTYF!$C:$AP,AE$201,FALSE) -> 44060.94 | AF220: =VLOOKUP($U$202&$U220,GTYF!$C:$AP,AF$201,FALSE) -> 44029.47 | AG220: =VLOOKUP($U$202&$U220,GTYF!$C:$AP,AG$201,FALSE) -> 44011.35 | AH220: =VLOOKUP($U$202&$U220,GTYF!$C:$AP,AH$201,FALSE) -> 43979.22 | AI220: =VLOOKUP($U$202&$U220,GTYF!$C:$AP,AI$201,FALSE) -> 43967.17 | AJ220: =VLOOKUP($U$202&$U220,GTYF!$C:$AP,AJ$201,FALSE) -> 43958.58 | AK220: =VLOOKUP($U$202&$U220,GTYF!$C:$AP,AK$201,FALSE) -> 43953.71 | AL220: =VLOOKUP($U$202&$U220,GTYF!$C:$AP,AL$201,FALSE) -> 43937.49 | AM220: =VLOOKUP($U$202&$U220,GTYF!$C:$AP,AM$201,FALSE) -> 43791 | AN220: =VLOOKUP($U$202&$U220,GTYF!$C:$AP,AN$201,FALSE) -> 43791 | AO220: =VLOOKUP($U$202&$U220,GTYF!$C:$AP,AO$201,FALSE) -> 43791 | AP220: =VLOOKUP($U$202&$U220,GTYF!$C:$AP,AP$201,FALSE) -> 44068.5 | AQ220: =VLOOKUP($U$202&$U220,GTYF!$C:$AP,AQ$201,FALSE) -> 45448.77 | AR220: =VLOOKUP($U$202&$U220,GTYF!$C:$AP,AR$201,FALSE) -> 46022.38 | AS220: =VLOOKUP($U$202&$U220,GTYF!$C:$AP,AS$201,FALSE) -> 46102.38 | AT220: =VLOOKUP($U$202&$U220,GTYF!$C:$AP,AT$201,FALSE) -> 46102.38 | AU220: =VLOOKUP($U$202&$U220,GTYF!$C:$AP,AU$201,FALSE) -> 46102.38 | AV220: =VLOOKUP($U$202&$U220,GTYF!$C:$AP,AV$201,FALSE) -> 46102.38 | AW220: =VLOOKUP($U$202&$U220,GTYF!$C:$AP,AW$201,FALSE) -> 46338.11 | AX220: =VLOOKUP($U$202&$U220,GTYF!$C:$AP,AX$201,FALSE) -> 46338.11 | AY220: =VLOOKUP($U$202&$U220,GTYF!$C:$AP,AY$201,FALSE) -> 45460.25 | AZ220: =VLOOKUP($U$202&$U220,GTYF!$C:$AP,AZ$201,FALSE) -> 44414.56
S221: Figure 10a | T221: Pinèdes blanches | U221: (FCTYF_PIN) | V221: =VLOOKUP($U$202&$U221,GTYF!$C:$AP,V$201,FALSE) -> 0 | W221: =VLOOKUP($U$202&$U221,GTYF!$C:$AP,W$201,FALSE) -> 0 | X221: =VLOOKUP($U$202&$U221,GTYF!$C:$AP,X$201,FALSE) -> 0 | Y221: =VLOOKUP($U$202&$U221,GTYF!$C:$AP,Y$201,FALSE) -> 0 | Z221: =VLOOKUP($U$202&$U221,GTYF!$C:$AP,Z$201,FALSE) -> 0 | AA221: =VLOOKUP($U$202&$U221,GTYF!$C:$AP,AA$201,FALSE) -> 0 | AB221: =VLOOKUP($U$202&$U221,GTYF!$C:$AP,AB$201,FALSE) -> 0 | AC221: =VLOOKUP($U$202&$U221,GTYF!$C:$AP,AC$201,FALSE) -> 0 | AD221: =VLOOKUP($U$202&$U221,GTYF!$C:$AP,AD$201,FALSE) -> 0 | AE221: =VLOOKUP($U$202&$U221,GTYF!$C:$AP,AE$201,FALSE) -> 0 | AF221: =VLOOKUP($U$202&$U221,GTYF!$C:$AP,AF$201,FALSE) -> 0 | AG221: =VLOOKUP($U$202&$U221,GTYF!$C:$AP,AG$201,FALSE) -> 0 | AH221: =VLOOKUP($U$202&$U221,GTYF!$C:$AP,AH$201,FALSE) -> 0 | AI221: =VLOOKUP($U$202&$U221,GTYF!$C:$AP,AI$201,FALSE) -> 0 | AJ221: =VLOOKUP($U$202&$U221,GTYF!$C:$AP,AJ$201,FALSE) -> 0 | AK221: =VLOOKUP($U$202&$U221,GTYF!$C:$AP,AK$201,FALSE) -> 0 | AL221: =VLOOKUP($U$202&$U221,GTYF!$C:$AP,AL$201,FALSE) -> 0 | AM221: =VLOOKUP($U$202&$U221,GTYF!$C:$AP,AM$201,FALSE) -> 0 | AN221: =VLOOKUP($U$202&$U221,GTYF!$C:$AP,AN$201,FALSE) -> 0 | AO221: =VLOOKUP($U$202&$U221,GTYF!$C:$AP,AO$201,FALSE) -> 0 | AP221: =VLOOKUP($U$202&$U221,GTYF!$C:$AP,AP$201,FALSE) -> 0 | AQ221: =VLOOKUP($U$202&$U221,GTYF!$C:$AP,AQ$201,FALSE) -> 0 | AR221: =VLOOKUP($U$202&$U221,GTYF!$C:$AP,AR$201,FALSE) -> 0 | AS221: =VLOOKUP($U$202&$U221,GTYF!$C:$AP,AS$201,FALSE) -> 0 | AT221: =VLOOKUP($U$202&$U221,GTYF!$C:$AP,AT$201,FALSE) -> 0 | AU221: =VLOOKUP($U$202&$U221,GTYF!$C:$AP,AU$201,FALSE) -> 0 | AV221: =VLOOKUP($U$202&$U221,GTYF!$C:$AP,AV$201,FALSE) -> 0 | AW221: =VLOOKUP($U$202&$U221,GTYF!$C:$AP,AW$201,FALSE) -> 0 | AX221: =VLOOKUP($U$202&$U221,GTYF!$C:$AP,AX$201,FALSE) -> 0 | AY221: =VLOOKUP($U$202&$U221,GTYF!$C:$AP,AY$201,FALSE) -> 0 | AZ221: =VLOOKUP($U$202&$U221,GTYF!$C:$AP,AZ$201,FALSE) -> 0
S222: Figure 10a | T222: Prucheraies | U222: (FCTYF_PRU) | V222: =VLOOKUP($U$202&$U222,GTYF!$C:$AP,V$201,FALSE) -> 0 | W222: =VLOOKUP($U$202&$U222,GTYF!$C:$AP,W$201,FALSE) -> 0 | X222: =VLOOKUP($U$202&$U222,GTYF!$C:$AP,X$201,FALSE) -> 0 | Y222: =VLOOKUP($U$202&$U222,GTYF!$C:$AP,Y$201,FALSE) -> 0 | Z222: =VLOOKUP($U$202&$U222,GTYF!$C:$AP,Z$201,FALSE) -> 0 | AA222: =VLOOKUP($U$202&$U222,GTYF!$C:$AP,AA$201,FALSE) -> 0 | AB222: =VLOOKUP($U$202&$U222,GTYF!$C:$AP,AB$201,FALSE) -> 0 | AC222: =VLOOKUP($U$202&$U222,GTYF!$C:$AP,AC$201,FALSE) -> 0 | AD222: =VLOOKUP($U$202&$U222,GTYF!$C:$AP,AD$201,FALSE) -> 0 | AE222: =VLOOKUP($U$202&$U222,GTYF!$C:$AP,AE$201,FALSE) -> 0 | AF222: =VLOOKUP($U$202&$U222,GTYF!$C:$AP,AF$201,FALSE) -> 0 | AG222: =VLOOKUP($U$202&$U222,GTYF!$C:$AP,AG$201,FALSE) -> 0 | AH222: =VLOOKUP($U$202&$U222,GTYF!$C:$AP,AH$201,FALSE) -> 0 | AI222: =VLOOKUP($U$202&$U222,GTYF!$C:$AP,AI$201,FALSE) -> 0 | AJ222: =VLOOKUP($U$202&$U222,GTYF!$C:$AP,AJ$201,FALSE) -> 0 | AK222: =VLOOKUP($U$202&$U222,GTYF!$C:$AP,AK$201,FALSE) -> 0 | AL222: =VLOOKUP($U$202&$U222,GTYF!$C:$AP,AL$201,FALSE) -> 0 | AM222: =VLOOKUP($U$202&$U222,GTYF!$C:$AP,AM$201,FALSE) -> 0 | AN222: =VLOOKUP($U$202&$U222,GTYF!$C:$AP,AN$201,FALSE) -> 0 | AO222: =VLOOKUP($U$202&$U222,GTYF!$C:$AP,AO$201,FALSE) -> 0 | AP222: =VLOOKUP($U$202&$U222,GTYF!$C:$AP,AP$201,FALSE) -> 0 | AQ222: =VLOOKUP($U$202&$U222,GTYF!$C:$AP,AQ$201,FALSE) -> 0 | AR222: =VLOOKUP($U$202&$U222,GTYF!$C:$AP,AR$201,FALSE) -> 0 | AS222: =VLOOKUP($U$202&$U222,GTYF!$C:$AP,AS$201,FALSE) -> 0 | AT222: =VLOOKUP($U$202&$U222,GTYF!$C:$AP,AT$201,FALSE) -> 0 | AU222: =VLOOKUP($U$202&$U222,GTYF!$C:$AP,AU$201,FALSE) -> 0 | AV222: =VLOOKUP($U$202&$U222,GTYF!$C:$AP,AV$201,FALSE) -> 0 | AW222: =VLOOKUP($U$202&$U222,GTYF!$C:$AP,AW$201,FALSE) -> 0 | AX222: =VLOOKUP($U$202&$U222,GTYF!$C:$AP,AX$201,FALSE) -> 0 | AY222: =VLOOKUP($U$202&$U222,GTYF!$C:$AP,AY$201,FALSE) -> 0 | AZ222: =VLOOKUP($U$202&$U222,GTYF!$C:$AP,AZ$201,FALSE) -> 0
S223: Figure 10a | T223: Résineux à feuillus | U223: (FCTYF_RF) | V223: =VLOOKUP($U$202&$U223,GTYF!$C:$AP,V$201,FALSE) -> 34307.5 | W223: =VLOOKUP($U$202&$U223,GTYF!$C:$AP,W$201,FALSE) -> 36009.88 | X223: =VLOOKUP($U$202&$U223,GTYF!$C:$AP,X$201,FALSE) -> 38331.92 | Y223: =VLOOKUP($U$202&$U223,GTYF!$C:$AP,Y$201,FALSE) -> 39864.05 | Z223: =VLOOKUP($U$202&$U223,GTYF!$C:$AP,Z$201,FALSE) -> 40659.13 | AA223: =VLOOKUP($U$202&$U223,GTYF!$C:$AP,AA$201,FALSE) -> 41353.87 | AB223: =VLOOKUP($U$202&$U223,GTYF!$C:$AP,AB$201,FALSE) -> 42035.51 | AC223: =VLOOKUP($U$202&$U223,GTYF!$C:$AP,AC$201,FALSE) -> 43099.45 | AD223: =VLOOKUP($U$202&$U223,GTYF!$C:$AP,AD$201,FALSE) -> 43516.72 | AE223: =VLOOKUP($U$202&$U223,GTYF!$C:$AP,AE$201,FALSE) -> 44639.63 | AF223: =VLOOKUP($U$202&$U223,GTYF!$C:$AP,AF$201,FALSE) -> 45629.27 | AG223: =VLOOKUP($U$202&$U223,GTYF!$C:$AP,AG$201,FALSE) -> 45655.9 | AH223: =VLOOKUP($U$202&$U223,GTYF!$C:$AP,AH$201,FALSE) -> 46417.52 | AI223: =VLOOKUP($U$202&$U223,GTYF!$C:$AP,AI$201,FALSE) -> 45815.45 | AJ223: =VLOOKUP($U$202&$U223,GTYF!$C:$AP,AJ$201,FALSE) -> 46309.41 | AK223: =VLOOKUP($U$202&$U223,GTYF!$C:$AP,AK$201,FALSE) -> 47704.79 | AL223: =VLOOKUP($U$202&$U223,GTYF!$C:$AP,AL$201,FALSE) -> 49046.47 | AM223: =VLOOKUP($U$202&$U223,GTYF!$C:$AP,AM$201,FALSE) -> 50035.02 | AN223: =VLOOKUP($U$202&$U223,GTYF!$C:$AP,AN$201,FALSE) -> 50437.2 | AO223: =VLOOKUP($U$202&$U223,GTYF!$C:$AP,AO$201,FALSE) -> 49649.13 | AP223: =VLOOKUP($U$202&$U223,GTYF!$C:$AP,AP$201,FALSE) -> 49649.13 | AQ223: =VLOOKUP($U$202&$U223,GTYF!$C:$AP,AQ$201,FALSE) -> 49906.33 | AR223: =VLOOKUP($U$202&$U223,GTYF!$C:$AP,AR$201,FALSE) -> 49154.19 | AS223: =VLOOKUP($U$202&$U223,GTYF!$C:$AP,AS$201,FALSE) -> 48689.22 | AT223: =VLOOKUP($U$202&$U223,GTYF!$C:$AP,AT$201,FALSE) -> 48698.3 | AU223: =VLOOKUP($U$202&$U223,GTYF!$C:$AP,AU$201,FALSE) -> 49063.83 | AV223: =VLOOKUP($U$202&$U223,GTYF!$C:$AP,AV$201,FALSE) -> 48822.97 | AW223: =VLOOKUP($U$202&$U223,GTYF!$C:$AP,AW$201,FALSE) -> 48199.91 | AX223: =VLOOKUP($U$202&$U223,GTYF!$C:$AP,AX$201,FALSE) -> 49616 | AY223: =VLOOKUP($U$202&$U223,GTYF!$C:$AP,AY$201,FALSE) -> 50707.61 | AZ223: =VLOOKUP($U$202&$U223,GTYF!$C:$AP,AZ$201,FALSE) -> 49667.49
S224: Figure 10a | T224: Sapinières | U224: (FCTYF_SAB) | V224: =VLOOKUP($U$202&$U224,GTYF!$C:$AP,V$201,FALSE) -> 4131.3 | W224: =VLOOKUP($U$202&$U224,GTYF!$C:$AP,W$201,FALSE) -> 4128.48 | X224: =VLOOKUP($U$202&$U224,GTYF!$C:$AP,X$201,FALSE) -> 4122.32 | Y224: =VLOOKUP($U$202&$U224,GTYF!$C:$AP,Y$201,FALSE) -> 4098.54 | Z224: =VLOOKUP($U$202&$U224,GTYF!$C:$AP,Z$201,FALSE) -> 4065.96 | AA224: =VLOOKUP($U$202&$U224,GTYF!$C:$AP,AA$201,FALSE) -> 4023.97 | AB224: =VLOOKUP($U$202&$U224,GTYF!$C:$AP,AB$201,FALSE) -> 3995.74 | AC224: =VLOOKUP($U$202&$U224,GTYF!$C:$AP,AC$201,FALSE) -> 3985.86 | AD224: =VLOOKUP($U$202&$U224,GTYF!$C:$AP,AD$201,FALSE) -> 3959.61 | AE224: =VLOOKUP($U$202&$U224,GTYF!$C:$AP,AE$201,FALSE) -> 3952.91 | AF224: =VLOOKUP($U$202&$U224,GTYF!$C:$AP,AF$201,FALSE) -> 3943.42 | AG224: =VLOOKUP($U$202&$U224,GTYF!$C:$AP,AG$201,FALSE) -> 3941.26 | AH224: =VLOOKUP($U$202&$U224,GTYF!$C:$AP,AH$201,FALSE) -> 3940.8 | AI224: =VLOOKUP($U$202&$U224,GTYF!$C:$AP,AI$201,FALSE) -> 3937.79 | AJ224: =VLOOKUP($U$202&$U224,GTYF!$C:$AP,AJ$201,FALSE) -> 3934.94 | AK224: =VLOOKUP($U$202&$U224,GTYF!$C:$AP,AK$201,FALSE) -> 3934.66 | AL224: =VLOOKUP($U$202&$U224,GTYF!$C:$AP,AL$201,FALSE) -> 3945.67 | AM224: =VLOOKUP($U$202&$U224,GTYF!$C:$AP,AM$201,FALSE) -> 3950.68 | AN224: =VLOOKUP($U$202&$U224,GTYF!$C:$AP,AN$201,FALSE) -> 3950.52 | AO224: =VLOOKUP($U$202&$U224,GTYF!$C:$AP,AO$201,FALSE) -> 3944.02 | AP224: =VLOOKUP($U$202&$U224,GTYF!$C:$AP,AP$201,FALSE) -> 3944.02 | AQ224: =VLOOKUP($U$202&$U224,GTYF!$C:$AP,AQ$201,FALSE) -> 3944.02 | AR224: =VLOOKUP($U$202&$U224,GTYF!$C:$AP,AR$201,FALSE) -> 3908.62 | AS224: =VLOOKUP($U$202&$U224,GTYF!$C:$AP,AS$201,FALSE) -> 3696.82 | AT224: =VLOOKUP($U$202&$U224,GTYF!$C:$AP,AT$201,FALSE) -> 3696.82 | AU224: =VLOOKUP($U$202&$U224,GTYF!$C:$AP,AU$201,FALSE) -> 3592.04 | AV224: =VLOOKUP($U$202&$U224,GTYF!$C:$AP,AV$201,FALSE) -> 3570.92 | AW224: =VLOOKUP($U$202&$U224,GTYF!$C:$AP,AW$201,FALSE) -> 3570.92 | AX224: =VLOOKUP($U$202&$U224,GTYF!$C:$AP,AX$201,FALSE) -> 3570.92 | AY224: =VLOOKUP($U$202&$U224,GTYF!$C:$AP,AY$201,FALSE) -> 3570.92 | AZ224: =VLOOKUP($U$202&$U224,GTYF!$C:$AP,AZ$201,FALSE) -> 3573.42
B225: * Attention, étant donné que le graphique fait appel aux GTYF, certains TYF ne paraissent pas dans les bons types de couvert (ex: EoRx, PbFx, PuFx, ToFx) | S225: Figure 10a | T225: Cédrières | U225: (FCTYF_THO) | V225: =VLOOKUP($U$202&$U225,GTYF!$C:$AP,V$201,FALSE) -> 0 | W225: =VLOOKUP($U$202&$U225,GTYF!$C:$AP,W$201,FALSE) -> 0 | X225: =VLOOKUP($U$202&$U225,GTYF!$C:$AP,X$201,FALSE) -> 0 | Y225: =VLOOKUP($U$202&$U225,GTYF!$C:$AP,Y$201,FALSE) -> 0 | Z225: =VLOOKUP($U$202&$U225,GTYF!$C:$AP,Z$201,FALSE) -> 0 | AA225: =VLOOKUP($U$202&$U225,GTYF!$C:$AP,AA$201,FALSE) -> 0 | AB225: =VLOOKUP($U$202&$U225,GTYF!$C:$AP,AB$201,FALSE) -> 0 | AC225: =VLOOKUP($U$202&$U225,GTYF!$C:$AP,AC$201,FALSE) -> 0 | AD225: =VLOOKUP($U$202&$U225,GTYF!$C:$AP,AD$201,FALSE) -> 0 | AE225: =VLOOKUP($U$202&$U225,GTYF!$C:$AP,AE$201,FALSE) -> 0 | AF225: =VLOOKUP($U$202&$U225,GTYF!$C:$AP,AF$201,FALSE) -> 0 | AG225: =VLOOKUP($U$202&$U225,GTYF!$C:$AP,AG$201,FALSE) -> 0 | AH225: =VLOOKUP($U$202&$U225,GTYF!$C:$AP,AH$201,FALSE) -> 0 | AI225: =VLOOKUP($U$202&$U225,GTYF!$C:$AP,AI$201,FALSE) -> 0 | AJ225: =VLOOKUP($U$202&$U225,GTYF!$C:$AP,AJ$201,FALSE) -> 0 | AK225: =VLOOKUP($U$202&$U225,GTYF!$C:$AP,AK$201,FALSE) -> 0 | AL225: =VLOOKUP($U$202&$U225,GTYF!$C:$AP,AL$201,FALSE) -> 0 | AM225: =VLOOKUP($U$202&$U225,GTYF!$C:$AP,AM$201,FALSE) -> 0 | AN225: =VLOOKUP($U$202&$U225,GTYF!$C:$AP,AN$201,FALSE) -> 0 | AO225: =VLOOKUP($U$202&$U225,GTYF!$C:$AP,AO$201,FALSE) -> 0 | AP225: =VLOOKUP($U$202&$U225,GTYF!$C:$AP,AP$201,FALSE) -> 0 | AQ225: =VLOOKUP($U$202&$U225,GTYF!$C:$AP,AQ$201,FALSE) -> 0 | AR225: =VLOOKUP($U$202&$U225,GTYF!$C:$AP,AR$201,FALSE) -> 0 | AS225: =VLOOKUP($U$202&$U225,GTYF!$C:$AP,AS$201,FALSE) -> 0 | AT225: =VLOOKUP($U$202&$U225,GTYF!$C:$AP,AT$201,FALSE) -> 0 | AU225: =VLOOKUP($U$202&$U225,GTYF!$C:$AP,AU$201,FALSE) -> 0 | AV225: =VLOOKUP($U$202&$U225,GTYF!$C:$AP,AV$201,FALSE) -> 0 | AW225: =VLOOKUP($U$202&$U225,GTYF!$C:$AP,AW$201,FALSE) -> 0 | AX225: =VLOOKUP($U$202&$U225,GTYF!$C:$AP,AX$201,FALSE) -> 0 | AY225: =VLOOKUP($U$202&$U225,GTYF!$C:$AP,AY$201,FALSE) -> 0 | AZ225: =VLOOKUP($U$202&$U225,GTYF!$C:$AP,AZ$201,FALSE) -> 0
U228: Colonne | V228: 6 | W228: 7 | X228: 8 | Y228: 9 | Z228: 10 | AA228: 11 | AB228: 12 | AC228: 13 | AD228: 14 | AE228: 15 | AF228: 16 | AG228: 17 | AH228: 18 | AI228: 19 | AJ228: 20 | AK228: 21 | AL228: 22 | AM228: 23 | AN228: 24 | AO228: 25 | AP228: 26 | AQ228: 27 | AR228: 28 | AS228: 29 | AT228: 30 | AU228: 31 | AV228: 32 | AW228: 33 | AX228: 34 | AY228: 35 | AZ228: 36
B229: Figure 10c Évolution des superficies de hêtraie et d'érablière à hêtre | U229: Période | V229: P0 | W229: P1 | X229: P2 | Y229: P3 | Z229: P4 | AA229: P5 | AB229: P6 | AC229: P7 | AD229: P8 | AE229: P9 | AF229: P10 | AG229: P11 | AH229: P12 | AI229: P13 | AJ229: P14 | AK229: P15 | AL229: P16 | AM229: P17 | AN229: P18 | AO229: P19 | AP229: P20 | AQ229: P21 | AR229: P22 | AS229: P23 | AT229: P24 | AU229: P25 | AV229: P26 | AW229: P27 | AX229: P28 | AY229: P29 | AZ229: P30
U230: Axe des "X" Fin de période | V230: 2018 | W230: 2023 | X230: 2028 | Y230: 2033 | Z230: 2038 | AA230: 2043 | AB230: 2048 | AC230: 2053 | AD230: 2058 | AE230: 2063 | AF230: 2068 | AG230: 2073 | AH230: 2078 | AI230: 2083 | AJ230: 2088 | AK230: 2093 | AL230: 2098 | AM230: 2103 | AN230: 2108 | AO230: 2113 | AP230: 2118 | AQ230: 2123 | AR230: 2128 | AS230: 2133 | AT230: 2138 | AU230: 2143 | AV230: 2148 | AW230: 2153 | AX230: 2158 | AY230: 2163 | AZ230: 2168
S231: =LEFT(B$229,10) -> Figure 10c | T231: Hêtraie | U231: OSUPESHG_FX | V231: =VLOOKUP($U231,Output!$C:$AQ,V$228,FALSE) ->  | W231: =VLOOKUP($U231,Output!$C:$AQ,W$228,FALSE) ->  | X231: =VLOOKUP($U231,Output!$C:$AQ,X$228,FALSE) ->  | Y231: =VLOOKUP($U231,Output!$C:$AQ,Y$228,FALSE) ->  | Z231: =VLOOKUP($U231,Output!$C:$AQ,Z$228,FALSE) ->  | AA231: =VLOOKUP($U231,Output!$C:$AQ,AA$228,FALSE) ->  | AB231: =VLOOKUP($U231,Output!$C:$AQ,AB$228,FALSE) ->  | AC231: =VLOOKUP($U231,Output!$C:$AQ,AC$228,FALSE) ->  | AD231: =VLOOKUP($U231,Output!$C:$AQ,AD$228,FALSE) ->  | AE231: =VLOOKUP($U231,Output!$C:$AQ,AE$228,FALSE) ->  | AF231: =VLOOKUP($U231,Output!$C:$AQ,AF$228,FALSE) ->  | AG231: =VLOOKUP($U231,Output!$C:$AQ,AG$228,FALSE) ->  | AH231: =VLOOKUP($U231,Output!$C:$AQ,AH$228,FALSE) ->  | AI231: =VLOOKUP($U231,Output!$C:$AQ,AI$228,FALSE) ->  | AJ231: =VLOOKUP($U231,Output!$C:$AQ,AJ$228,FALSE) ->  | AK231: =VLOOKUP($U231,Output!$C:$AQ,AK$228,FALSE) ->  | AL231: =VLOOKUP($U231,Output!$C:$AQ,AL$228,FALSE) ->  | AM231: =VLOOKUP($U231,Output!$C:$AQ,AM$228,FALSE) ->  | AN231: =VLOOKUP($U231,Output!$C:$AQ,AN$228,FALSE) ->  | AO231: =VLOOKUP($U231,Output!$C:$AQ,AO$228,FALSE) ->  | AP231: =VLOOKUP($U231,Output!$C:$AQ,AP$228,FALSE) ->  | AQ231: =VLOOKUP($U231,Output!$C:$AQ,AQ$228,FALSE) ->  | AR231: =VLOOKUP($U231,Output!$C:$AQ,AR$228,FALSE) ->  | AS231: =VLOOKUP($U231,Output!$C:$AQ,AS$228,FALSE) ->  | AT231: =VLOOKUP($U231,Output!$C:$AQ,AT$228,FALSE) ->  | AU231: =VLOOKUP($U231,Output!$C:$AQ,AU$228,FALSE) ->  | AV231: =VLOOKUP($U231,Output!$C:$AQ,AV$228,FALSE) ->  | AW231: =VLOOKUP($U231,Output!$C:$AQ,AW$228,FALSE) ->  | AX231: =VLOOKUP($U231,Output!$C:$AQ,AX$228,FALSE) ->  | AY231: =VLOOKUP($U231,Output!$C:$AQ,AY$228,FALSE) ->  | AZ231: =VLOOKUP($U231,Output!$C:$AQ,AZ$228,FALSE) -> 
S232: =LEFT(B$229,10) -> Figure 10c | T232: Érablière à hêtre | U232: OSUPESHG | V232: =VLOOKUP($U232,Output!$C:$AQ,V$228,FALSE) ->  | W232: =VLOOKUP($U232,Output!$C:$AQ,W$228,FALSE) ->  | X232: =VLOOKUP($U232,Output!$C:$AQ,X$228,FALSE) ->  | Y232: =VLOOKUP($U232,Output!$C:$AQ,Y$228,FALSE) ->  | Z232: =VLOOKUP($U232,Output!$C:$AQ,Z$228,FALSE) ->  | AA232: =VLOOKUP($U232,Output!$C:$AQ,AA$228,FALSE) ->  | AB232: =VLOOKUP($U232,Output!$C:$AQ,AB$228,FALSE) ->  | AC232: =VLOOKUP($U232,Output!$C:$AQ,AC$228,FALSE) ->  | AD232: =VLOOKUP($U232,Output!$C:$AQ,AD$228,FALSE) ->  | AE232: =VLOOKUP($U232,Output!$C:$AQ,AE$228,FALSE) ->  | AF232: =VLOOKUP($U232,Output!$C:$AQ,AF$228,FALSE) ->  | AG232: =VLOOKUP($U232,Output!$C:$AQ,AG$228,FALSE) ->  | AH232: =VLOOKUP($U232,Output!$C:$AQ,AH$228,FALSE) ->  | AI232: =VLOOKUP($U232,Output!$C:$AQ,AI$228,FALSE) ->  | AJ232: =VLOOKUP($U232,Output!$C:$AQ,AJ$228,FALSE) ->  | AK232: =VLOOKUP($U232,Output!$C:$AQ,AK$228,FALSE) ->  | AL232: =VLOOKUP($U232,Output!$C:$AQ,AL$228,FALSE) ->  | AM232: =VLOOKUP($U232,Output!$C:$AQ,AM$228,FALSE) ->  | AN232: =VLOOKUP($U232,Output!$C:$AQ,AN$228,FALSE) ->  | AO232: =VLOOKUP($U232,Output!$C:$AQ,AO$228,FALSE) ->  | AP232: =VLOOKUP($U232,Output!$C:$AQ,AP$228,FALSE) ->  | AQ232: =VLOOKUP($U232,Output!$C:$AQ,AQ$228,FALSE) ->  | AR232: =VLOOKUP($U232,Output!$C:$AQ,AR$228,FALSE) ->  | AS232: =VLOOKUP($U232,Output!$C:$AQ,AS$228,FALSE) ->  | AT232: =VLOOKUP($U232,Output!$C:$AQ,AT$228,FALSE) ->  | AU232: =VLOOKUP($U232,Output!$C:$AQ,AU$228,FALSE) ->  | AV232: =VLOOKUP($U232,Output!$C:$AQ,AV$228,FALSE) ->  | AW232: =VLOOKUP($U232,Output!$C:$AQ,AW$228,FALSE) ->  | AX232: =VLOOKUP($U232,Output!$C:$AQ,AX$228,FALSE) ->  | AY232: =VLOOKUP($U232,Output!$C:$AQ,AY$228,FALSE) ->  | AZ232: =VLOOKUP($U232,Output!$C:$AQ,AZ$228,FALSE) -> 
S233: =LEFT(B$229,10) -> Figure 10c | T233: Total | U233: Total | V233: =SUM(V231:V232) ->  | W233: =SUM(W231:W232) -> 
B255: Figure 11b Évolution du volume de sapin et d'épinettes sur pied dans la composante SEPM
U262: Colonne | V262: 6 | W262: 7 | X262: 8 | Y262: 9 | Z262: 10 | AA262: 11 | AB262: 12 | AC262: 13 | AD262: 14 | AE262: 15 | AF262: 16 | AG262: 17 | AH262: 18 | AI262: 19 | AJ262: 20 | AK262: 21 | AL262: 22 | AM262: 23 | AN262: 24 | AO262: 25 | AP262: 26 | AQ262: 27 | AR262: 28 | AS262: 29 | AT262: 30 | AU262: 31 | AV262: 32 | AW262: 33 | AX262: 34 | AY262: 35 | AZ262: 36
U263: Axe des "X" Fin de période | V263: 2018 | W263: 2023 | X263: 2028 | Y263: 2033 | Z263: 2038 | AA263: 2043 | AB263: 2048 | AC263: 2053 | AD263: 2058 | AE263: 2063 | AF263: 2068 | AG263: 2073 | AH263: 2078 | AI263: 2083 | AJ263: 2088 | AK263: 2093 | AL263: 2098 | AM263: 2103 | AN263: 2108 | AO263: 2113 | AP263: 2118 | AQ263: 2123 | AR263: 2128 | AS263: 2133 | AT263: 2138 | AU263: 2143 | AV263: 2148 | AW263: 2153 | AX263: 2158 | AY263: 2163 | AZ263: 2168
S264: =LEFT(B$255,10) -> Figure 11b | U264: Période | V264: P0 | W264: P1 | X264: P2 | Y264: P3 | Z264: P4 | AA264: P5 | AB264: P6 | AC264: P7 | AD264: P8 | AE264: P9 | AF264: P10 | AG264: P11 | AH264: P12 | AI264: P13 | AJ264: P14 | AK264: P15 | AL264: P16 | AM264: P17 | AN264: P18 | AO264: P19 | AP264: P20 | AQ264: P21 | AR264: P22 | AS264: P23 | AT264: P24 | AU264: P25 | AV264: P26 | AW264: P27 | AX264: P28 | AY264: P29 | AZ264: P30
S265: Figure 11b | T265: Légende | Y265: PERIOD3 | Z265: PERIOD4 | AA265: PERIOD5 | AB265: PERIOD6 | AC265: PERIOD7 | AD265: PERIOD8 | AE265: PERIOD9 | AF265: PERIOD10 | AG265: PERIOD11 | AH265: PERIOD12 | AI265: PERIOD13 | AJ265: PERIOD14 | AK265: PERIOD15 | AL265: PERIOD16 | AM265: PERIOD17 | AN265: PERIOD18 | AO265: PERIOD19 | AP265: PERIOD20 | AQ265: PERIOD21 | AR265: PERIOD22 | AS265: PERIOD23 | AT265: PERIOD24 | AU265: PERIOD25 | AV265: PERIOD26 | AW265: PERIOD27 | AX265: PERIOD28 | AY265: PERIOD29 | AZ265: PERIOD30
S266: Figure 11b | T266: Volume Sapin | U266: OVOLSABPIEDINC(FCTYF_SEPM) | V266: =VLOOKUP($U266,GTYF!$C:$AL,Figures!V$262,FALSE) -> 669589.18 | W266: =VLOOKUP($U266,GTYF!$C:$AL,Figures!W$262,FALSE) -> 694086.02 | X266: =VLOOKUP($U266,GTYF!$C:$AL,Figures!X$262,FALSE) -> 712380.41 | Y266: =VLOOKUP($U266,GTYF!$C:$AL,Figures!Y$262,FALSE) -> 695944.72 | Z266: =VLOOKUP($U266,GTYF!$C:$AL,Figures!Z$262,FALSE) -> 681699.76 | AA266: =VLOOKUP($U266,GTYF!$C:$AL,Figures!AA$262,FALSE) -> 652302.76 | AB266: =VLOOKUP($U266,GTYF!$C:$AL,Figures!AB$262,FALSE) -> 592843.6 | AC266: =VLOOKUP($U266,GTYF!$C:$AL,Figures!AC$262,FALSE) -> 571736.1 | AD266: =VLOOKUP($U266,GTYF!$C:$AL,Figures!AD$262,FALSE) -> 503126.58 | AE266: =VLOOKUP($U266,GTYF!$C:$AL,Figures!AE$262,FALSE) -> 472822.03 | AF266: =VLOOKUP($U266,GTYF!$C:$AL,Figures!AF$262,FALSE) -> 484865.41 | AG266: =VLOOKUP($U266,GTYF!$C:$AL,Figures!AG$262,FALSE) -> 519546.59 | AH266: =VLOOKUP($U266,GTYF!$C:$AL,Figures!AH$262,FALSE) -> 534754.04 | AI266: =VLOOKUP($U266,GTYF!$C:$AL,Figures!AI$262,FALSE) -> 551682.23 | AJ266: =VLOOKUP($U266,GTYF!$C:$AL,Figures!AJ$262,FALSE) -> 566996.33 | AK266: =VLOOKUP($U266,GTYF!$C:$AL,Figures!AK$262,FALSE) -> 571969.93 | AL266: =VLOOKUP($U266,GTYF!$C:$AL,Figures!AL$262,FALSE) -> 570600.05 | AM266: =VLOOKUP($U266,GTYF!$C:$AL,Figures!AM$262,FALSE) -> 578216.48 | AN266: =VLOOKUP($U266,GTYF!$C:$AL,Figures!AN$262,FALSE) -> 575790.78 | AO266: =VLOOKUP($U266,GTYF!$C:$AL,Figures!AO$262,FALSE) -> 540547.58 | AP266: =VLOOKUP($U266,GTYF!$C:$AL,Figures!AP$262,FALSE) -> 430778.96 | AQ266: =VLOOKUP($U266,GTYF!$C:$AL,Figures!AQ$262,FALSE) -> 392503.35 | AR266: =VLOOKUP($U266,GTYF!$C:$AL,Figures!AR$262,FALSE) -> 382430.16 | AS266: =VLOOKUP($U266,GTYF!$C:$AL,Figures!AS$262,FALSE) -> 411591.21 | AT266: =VLOOKUP($U266,GTYF!$C:$AL,Figures!AT$262,FALSE) -> 448786.09 | AU266: =VLOOKUP($U266,GTYF!$C:$AL,Figures!AU$262,FALSE) -> 467316.94 | AV266: =VLOOKUP($U266,GTYF!$C:$AL,Figures!AV$262,FALSE) -> 502009.39 | AW266: =VLOOKUP($U266,GTYF!$C:$AL,Figures!AW$262,FALSE) -> 513100.63 | AX266: =VLOOKUP($U266,GTYF!$C:$AL,Figures!AX$262,FALSE) -> 508679.52 | AY266: =VLOOKUP($U266,GTYF!$C:$AL,Figures!AY$262,FALSE) -> 492181.02 | AZ266: =VLOOKUP($U266,GTYF!$C:$AL,Figures!AZ$262,FALSE) -> 504248.27
S267: Figure 11b | T267: Volume Épinettes | U267: OVOLGEPXPIEDINC(FCTYF_SEPM) | V267: =VLOOKUP($U267,GTYF!$C:$AL,Figures!V$262,FALSE) -> 12127023.73 | W267: =VLOOKUP($U267,GTYF!$C:$AL,Figures!W$262,FALSE) -> 11533763.49 | X267: =VLOOKUP($U267,GTYF!$C:$AL,Figures!X$262,FALSE) -> 11054165.13 | Y267: =VLOOKUP($U267,GTYF!$C:$AL,Figures!Y$262,FALSE) -> 10710508 | Z267: =VLOOKUP($U267,GTYF!$C:$AL,Figures!Z$262,FALSE) -> 10584539.98 | AA267: =VLOOKUP($U267,GTYF!$C:$AL,Figures!AA$262,FALSE) -> 10571985.27 | AB267: =VLOOKUP($U267,GTYF!$C:$AL,Figures!AB$262,FALSE) -> 10679298.72 | AC267: =VLOOKUP($U267,GTYF!$C:$AL,Figures!AC$262,FALSE) -> 11084552.48 | AD267: =VLOOKUP($U267,GTYF!$C:$AL,Figures!AD$262,FALSE) -> 11375522.38 | AE267: =VLOOKUP($U267,GTYF!$C:$AL,Figures!AE$262,FALSE) -> 11965782.59 | AF267: =VLOOKUP($U267,GTYF!$C:$AL,Figures!AF$262,FALSE) -> 12238693.02 | AG267: =VLOOKUP($U267,GTYF!$C:$AL,Figures!AG$262,FALSE) -> 12350714.97 | AH267: =VLOOKUP($U267,GTYF!$C:$AL,Figures!AH$262,FALSE) -> 12087944.41 | AI267: =VLOOKUP($U267,GTYF!$C:$AL,Figures!AI$262,FALSE) -> 11658466.91 | AJ267: =VLOOKUP($U267,GTYF!$C:$AL,Figures!AJ$262,FALSE) -> 11429834.29 | AK267: =VLOOKUP($U267,GTYF!$C:$AL,Figures!AK$262,FALSE) -> 10910465.19 | AL267: =VLOOKUP($U267,GTYF!$C:$AL,Figures!AL$262,FALSE) -> 10322203.1 | AM267: =VLOOKUP($U267,GTYF!$C:$AL,Figures!AM$262,FALSE) -> 10028825.34 | AN267: =VLOOKUP($U267,GTYF!$C:$AL,Figures!AN$262,FALSE) -> 9874802.14 | AO267: =VLOOKUP($U267,GTYF!$C:$AL,Figures!AO$262,FALSE) -> 9555129.75 | AP267: =VLOOKUP($U267,GTYF!$C:$AL,Figures!AP$262,FALSE) -> 9981294.04 | AQ267: =VLOOKUP($U267,GTYF!$C:$AL,Figures!AQ$262,FALSE) -> 9696860.69 | AR267: =VLOOKUP($U267,GTYF!$C:$AL,Figures!AR$262,FALSE) -> 9851122.69 | AS267: =VLOOKUP($U267,GTYF!$C:$AL,Figures!AS$262,FALSE) -> 10071970.03 | AT267: =VLOOKUP($U267,GTYF!$C:$AL,Figures!AT$262,FALSE) -> 10408699.18 | AU267: =VLOOKUP($U267,GTYF!$C:$AL,Figures!AU$262,FALSE) -> 10530170.11 | AV267: =VLOOKUP($U267,GTYF!$C:$AL,Figures!AV$262,FALSE) -> 10771038.62 | AW267: =VLOOKUP($U267,GTYF!$C:$AL,Figures!AW$262,FALSE) -> 10723429.81 | AX267: =VLOOKUP($U267,GTYF!$C:$AL,Figures!AX$262,FALSE) -> 10300593.45 | AY267: =VLOOKUP($U267,GTYF!$C:$AL,Figures!AY$262,FALSE) -> 9868402.92 | AZ267: =VLOOKUP($U267,GTYF!$C:$AL,Figures!AZ$262,FALSE) -> 9744118.09
S268: Figure 11b
S269: Figure 11b | T269: SEPM sur pied | U269: OVOLGSEPMPIEDINC(FCTYF_SEPM) | V269: =VLOOKUP($U269,GTYF!$C:$AL,Figures!V$262,FALSE) -> 17776546.9 | W269: =VLOOKUP($U269,GTYF!$C:$AL,Figures!W$262,FALSE) -> 17260833.88 | X269: =VLOOKUP($U269,GTYF!$C:$AL,Figures!X$262,FALSE) -> 16958032.97 | Y269: =VLOOKUP($U269,GTYF!$C:$AL,Figures!Y$262,FALSE) -> 16639957.43 | Z269: =VLOOKUP($U269,GTYF!$C:$AL,Figures!Z$262,FALSE) -> 16441289.27 | AA269: =VLOOKUP($U269,GTYF!$C:$AL,Figures!AA$262,FALSE) -> 16471970.62 | AB269: =VLOOKUP($U269,GTYF!$C:$AL,Figures!AB$262,FALSE) -> 16486922.65 | AC269: =VLOOKUP($U269,GTYF!$C:$AL,Figures!AC$262,FALSE) -> 16855411.25 | AD269: =VLOOKUP($U269,GTYF!$C:$AL,Figures!AD$262,FALSE) -> 17412612.16 | AE269: =VLOOKUP($U269,GTYF!$C:$AL,Figures!AE$262,FALSE) -> 17840805.95 | AF269: =VLOOKUP($U269,GTYF!$C:$AL,Figures!AF$262,FALSE) -> 18304929.25 | AG269: =VLOOKUP($U269,GTYF!$C:$AL,Figures!AG$262,FALSE) -> 18628027.23 | AH269: =VLOOKUP($U269,GTYF!$C:$AL,Figures!AH$262,FALSE) -> 18653298.48 | AI269: =VLOOKUP($U269,GTYF!$C:$AL,Figures!AI$262,FALSE) -> 18831349.19 | AJ269: =VLOOKUP($U269,GTYF!$C:$AL,Figures!AJ$262,FALSE) -> 18981161.89 | AK269: =VLOOKUP($U269,GTYF!$C:$AL,Figures!AK$262,FALSE) -> 18835493.03 | AL269: =VLOOKUP($U269,GTYF!$C:$AL,Figures!AL$262,FALSE) -> 18860640.5 | AM269: =VLOOKUP($U269,GTYF!$C:$AL,Figures!AM$262,FALSE) -> 18784154.76 | AN269: =VLOOKUP($U269,GTYF!$C:$AL,Figures!AN$262,FALSE) -> 18756573.83 | AO269: =VLOOKUP($U269,GTYF!$C:$AL,Figures!AO$262,FALSE) -> 18627504.78 | AP269: =VLOOKUP($U269,GTYF!$C:$AL,Figures!AP$262,FALSE) -> 18664142.63 | AQ269: =VLOOKUP($U269,GTYF!$C:$AL,Figures!AQ$262,FALSE) -> 18550104.14 | AR269: =VLOOKUP($U269,GTYF!$C:$AL,Figures!AR$262,FALSE) -> 18630344.67 | AS269: =VLOOKUP($U269,GTYF!$C:$AL,Figures!AS$262,FALSE) -> 18610365.2 | AT269: =VLOOKUP($U269,GTYF!$C:$AL,Figures!AT$262,FALSE) -> 18754054.86 | AU269: =VLOOKUP($U269,GTYF!$C:$AL,Figures!AU$262,FALSE) -> 18841229.48 | AV269: =VLOOKUP($U269,GTYF!$C:$AL,Figures!AV$262,FALSE) -> 19002371.96 | AW269: =VLOOKUP($U269,GTYF!$C:$AL,Figures!AW$262,FALSE) -> 18861535.17 | AX269: =VLOOKUP($U269,GTYF!$C:$AL,Figures!AX$262,FALSE) -> 18492744.65 | AY269: =VLOOKUP($U269,GTYF!$C:$AL,Figures!AY$262,FALSE) -> 18259073.29 | AZ269: =VLOOKUP($U269,GTYF!$C:$AL,Figures!AZ$262,FALSE) -> 18368766.5
S270: Figure 11b
S271: Figure 11b | T271: % Sapin | V271: =IF(ISERROR(V266),0,V266/V269) -> 0.03766699932 | W271: 0.04021161578 | X271: 0.04200843407 | Y271: 0.04182370796 | Z271: 0.04146267052 | AA271: 0.03960077243 | AB271: 0.03595841459 | AC271: 0.03392003265 | AD271: 0.02889437698 | AE271: 0.02650227974 | AF271: 0.02648824278 | AG271: 0.02789058571 | AH271: 0.02866806858 | AI271: 0.02929594818 | AJ271: 0.02987152911 | AK271: 0.03036660251 | AL271: 0.03025348211 | AM271: 0.03078213991 | AN271: 0.03069807872 | AO271: 0.02901878627 | AP271: 0.02308056515 | AQ271: 0.02115909146 | AR271: 0.0205272724 | AS271: 0.02211623499 | AT271: 0.02393008303 | AU271: 0.02480288988 | AV271: 0.02641824879 | AW271: 0.02720354549 | AX271: 0.02750697799 | AY271: 0.02695542168 | AZ271: 0.02745139528
S272: Figure 11b | T272: % Épinettes | V272: =IF(ISERROR(V267),0,V267/V269) -> 0.6821923177 | W272: =IF(ISERROR(W267),0,W267/W269) -> 0.668204304 | X272: 0.6518542068 | Y272: 0.6436619832 | Z272: 0.6437779791 | AA272: 0.6418166663 | AB272: 0.6477436054 | AC272: 0.6576257509 | AD272: 0.6532921239 | AE272: 0.6706974238 | AF272: 0.6686009464 | AG272: 0.6630178718 | AH272: 0.6480325409 | AI272: 0.619098865 | AJ272: 0.6021672623 | AK272: 0.5792503107 | AL272: 0.5472880468 | AM272: 0.5338981428 | AN272: 0.526471531 | AO272: 0.5129581156 | AP272: 0.5347844923 | AQ272: 0.5227388815 | AR272: 0.5287676028 | AS272: 0.54120217 | AT272: 0.5550105968 | AU272: 0.558889754 | AV272: 0.5668260069 | AW272: 0.5685343061 | AX272: 0.5570072829 | AY272: 0.5404657051 | AZ272: 0.5304720973
S273: Figure 11b | T273: % Volume autre | V273: =1-(V272+V271) -> 0.280140683 | W273: 0.2915840802 | X273: 0.3061373592 | Y273: 0.3145143088 | Z273: 0.3147593504 | AA273: 0.3185825613 | AB273: 0.31629798 | AC273: 0.3084542164 | AD273: 0.3178134992 | AE273: 0.3028002964 | AF273: 0.3049108108 | AG273: 0.3090915425 | AH273: 0.3232993905 | AI273: 0.3516051868 | AJ273: 0.3679612086 | AK273: 0.3903830868 | AL273: 0.4224584711 | AM273: 0.4353197173 | AN273: 0.4428303903 | AO273: 0.4580230981 | AP273: 0.4421349426 | AQ273: 0.456102027 | AR273: 0.4507051248 | AS273: 0.4366815951 | AT273: 0.4210593202 | AU273: 0.4163073561 | AV273: 0.4067557443 | AW273: 0.4042621484 | AX273: 0.4154857392 | AY273: 0.4325788732 | AZ273: 0.4420765074
B278: Figure 14 Indicateur de productivité
... 143 more rows

Sheet UTA
M1: Jeune forêt | R1: Niveau d'altération des vieilles forêts | W1: Niveau d'altération combiné | AA1: Info à récupérer par le SSP Niveau d'altération des vieilles forêts
A2: Inscrire la liste des numéros d'UTA de l'UA: | B2: VieuxAlerte (%) | C2: VieuxAccept (%) | D2: RegeAlerte (%) | E2: RegeAccept (%) | G2: VieuxAlerte (ha) | H2: VieuxAccept (ha) | I2: RegeAlerte (ha) | J2: RegeAccept (ha) | K2: SupUTA | M2: OSUPJEUNEREGECO PERIOD1 (%) | N2: État Jeune 2023 | O2: OSUPJEUNEREGECO PERIOD6 (%) | P2: État Jeune 2048 | R2: OSUPVIEUXTOTREGECO PERIOD1 (%) | S2: État Vielle 2023 | T2: OSUPVIEUXTOTREGECO PERIOD6 (%) | U2: État Vielle 2048 | W2: UTA | X2: 2023 | Y2: 2048 | AA2: UA | AB2: UTA | AC2: 2023 | AD2: 2048 | AE2: Mode de répartition spatiale | AP2: Mode de répartition spatiale
A3: UTA1 | B3: =ROUND(G3/$K3,3) -> 0.147 | C3: =ROUND(H3/$K3,3) -> 0.245 | D3: =ROUND(I3/$K3,3) -> 0.35 | E3: =ROUND(J3/$K3,3) -> 0.25 | G3: =VLOOKUP(CONCATENATE("OSUPVIEUXALERTEREGECO_"&A3),Output!$C:$AQ,6,FALSE) -> 14450.61 | H3: =VLOOKUP(CONCATENATE("OSUPVIEUXACCEPTREGECO_"&A3),Output!$C:$AQ,6,FALSE) -> 24084.36 | I3: =VLOOKUP(CONCATENATE("OSUPJEUNEALERTEREGECO_"&A3),Output!$C:$AQ,6,FALSE) -> 34406.22 | J3: =VLOOKUP(CONCATENATE("OSUPJEUNEACCEPTREGECO_"&A3),Output!$C:$AQ,6,FALSE) -> 24575.88 | K3: =VLOOKUP(CONCATENATE("OSUPREGECO_"&A3),Output!$C:$AQ,6,FALSE) -> 98303.5 | M3: =ROUND(VLOOKUP("OSUPJEUNEREGECO_"&A3,Output!$C:$AQ,7,FALSE)/VLOOKUP("OSUPREGECO_"&A3,Output!$C:$AQ,6,FALSE),3) -> 0.041 | N3: =IF(M3<=$E3,"Faible",IF(M3<$D3,"Modéré","Supérieur")) -> Faible | O3: =ROUND(VLOOKUP("OSUPJEUNEREGECO_"&$A3,Output!$C:$AQ,12,FALSE)/VLOOKUP("OSUPREGECO_"&A3,Output!$C:$AQ,6,FALSE),3) -> 0.042 | P3: =IF(O3<=$E3,"Faible",IF(O3<$D3,"Modéré","Supérieur")) -> Faible | R3: =ROUND(VLOOKUP("OSUPVIEUXTOTREGECO_"&$A3,Output!$C:$AQ,7,FALSE)/VLOOKUP("OSUPREGECO_"&A3,Output!$C:$AQ,6,FALSE),3) -> 0.408 | S3: =IF(R3<$B3,"Supérieur",IF(R3<$C3,"Modéré","Faible")) -> Faible | T3: =ROUND(VLOOKUP("OSUPVIEUXTOTREGECO_"&$A3,Output!$C:$AQ,12,FALSE)/VLOOKUP("OSUPREGECO_"&A3,Output!$C:$AQ,6,FALSE),3) -> 0.454 | U3: =IF(T3<$B3,"Supérieur",IF(T3<$C3,"Modéré","Faible")) -> Faible | W3: =A3 -> UTA1 | X3: =IF(S3>N3,S3,N3) -> Faible | Y3: =IF(U3>P3,U3,P3) -> Faible | AA3: =Tableaux!$O$33 -> 08551 | AB3: =W3 -> UTA1 | AC3: =S3 -> Faible | AD3: =U3 -> Faible | AE3: COS pessière | AG3: Note: "Élevé" a été renommé "Supérieur" pour le bon fonctionnement des formules. | AP3: COS sapinière
A4: UTA2 | B4: =ROUND(G4/$K4,3) -> 0.147 | C4: 0.245 | D4: 0.35 | E4: 0.25 | G4: =VLOOKUP(CONCATENATE("OSUPVIEUXALERTEREGECO_"&A4),Output!$C:$AQ,6,FALSE) -> 12484.87 | H4: =VLOOKUP(CONCATENATE("OSUPVIEUXACCEPTREGECO_"&A4),Output!$C:$AQ,6,FALSE) -> 20808.12 | I4: =VLOOKUP(CONCATENATE("OSUPJEUNEALERTEREGECO_"&A4),Output!$C:$AQ,6,FALSE) -> 29725.89 | J4: =VLOOKUP(CONCATENATE("OSUPJEUNEACCEPTREGECO_"&A4),Output!$C:$AQ,6,FALSE) -> 21232.77 | K4: =VLOOKUP(CONCATENATE("OSUPREGECO_"&A4),Output!$C:$AQ,6,FALSE) -> 84931.1 | M4: =ROUND(VLOOKUP("OSUPJEUNEREGECO_"&A4,Output!$C:$AQ,7,FALSE)/VLOOKUP("OSUPREGECO_"&A4,Output!$C:$AQ,6,FALSE),3) -> 0.099 | N4: =IF(M4<=$E4,"Faible",IF(M4<$D4,"Modéré","Supérieur")) -> Faible | O4: =ROUND(VLOOKUP("OSUPJEUNEREGECO_"&$A4,Output!$C:$AQ,12,FALSE)/VLOOKUP("OSUPREGECO_"&A4,Output!$C:$AQ,6,FALSE),3) -> 0.132 | P4: =IF(O4<=$E4,"Faible",IF(O4<$D4,"Modéré","Supérieur")) -> Faible | R4: =ROUND(VLOOKUP("OSUPVIEUXTOTREGECO_"&$A4,Output!$C:$AQ,7,FALSE)/VLOOKUP("OSUPREGECO_"&A4,Output!$C:$AQ,6,FALSE),3) -> 0.561 | S4: =IF(R4<$B4,"Supérieur",IF(R4<$C4,"Modéré","Faible")) -> Faible | T4: =ROUND(VLOOKUP("OSUPVIEUXTOTREGECO_"&$A4,Output!$C:$AQ,12,FALSE)/VLOOKUP("OSUPREGECO_"&A4,Output!$C:$AQ,6,FALSE),3) -> 0.488 | U4: =IF(T4<$B4,"Supérieur",IF(T4<$C4,"Modéré","Faible")) -> Faible | W4: =A4 -> UTA2 | X4: =IF(S4>N4,S4,N4) -> Faible | Y4: =IF(U4>P4,U4,P4) -> Faible | AA4: =Tableaux!$O$33 -> 08551 | AB4: =W4 -> UTA2 | AC4: =S4 -> Faible | AD4: =U4 -> Faible | AE4: COS pessière | AP4: COS pessière
A5: UTA3 | B5: 0.147 | C5: 0.245 | D5: 0.35 | E5: 0.25 | G5: =VLOOKUP(CONCATENATE("OSUPVIEUXALERTEREGECO_"&A5),Output!$C:$AQ,6,FALSE) -> 16066.92 | H5: =VLOOKUP(CONCATENATE("OSUPVIEUXACCEPTREGECO_"&A5),Output!$C:$AQ,6,FALSE) -> 26778.21 | I5: =VLOOKUP(CONCATENATE("OSUPJEUNEALERTEREGECO_"&A5),Output!$C:$AQ,6,FALSE) -> 38254.58 | J5: =VLOOKUP(CONCATENATE("OSUPJEUNEACCEPTREGECO_"&A5),Output!$C:$AQ,6,FALSE) -> 27324.7 | K5: =VLOOKUP(CONCATENATE("OSUPREGECO_"&A5),Output!$C:$AQ,6,FALSE) -> 109298.8 | M5: =ROUND(VLOOKUP("OSUPJEUNEREGECO_"&A5,Output!$C:$AQ,7,FALSE)/VLOOKUP("OSUPREGECO_"&A5,Output!$C:$AQ,6,FALSE),3) -> 0.145 | N5: Faible | O5: =ROUND(VLOOKUP("OSUPJEUNEREGECO_"&$A5,Output!$C:$AQ,12,FALSE)/VLOOKUP("OSUPREGECO_"&A5,Output!$C:$AQ,6,FALSE),3) -> 0.156 | P5: Faible | R5: =ROUND(VLOOKUP("OSUPVIEUXTOTREGECO_"&$A5,Output!$C:$AQ,7,FALSE)/VLOOKUP("OSUPREGECO_"&A5,Output!$C:$AQ,6,FALSE),3) -> 0.252 | S5: Faible | T5: =ROUND(VLOOKUP("OSUPVIEUXTOTREGECO_"&$A5,Output!$C:$AQ,12,FALSE)/VLOOKUP("OSUPREGECO_"&A5,Output!$C:$AQ,6,FALSE),3) -> 0.259 | U5: Faible | W5: UTA3 | X5: Faible | Y5: Faible | AA5: =Tableaux!$O$33 -> 08551 | AB5: =W5 -> UTA3 | AC5: =S5 -> Faible | AD5: =U5 -> Faible | AE5: COS pessière | AP5: CMO
A6: UTA4 | B6: 0.147 | C6: 0.245 | D6: 0.35 | E6: 0.25 | G6: =VLOOKUP(CONCATENATE("OSUPVIEUXALERTEREGECO_"&A6),Output!$C:$AQ,6,FALSE) -> 21448.95 | H6: =VLOOKUP(CONCATENATE("OSUPVIEUXACCEPTREGECO_"&A6),Output!$C:$AQ,6,FALSE) -> 35748.24 | I6: =VLOOKUP(CONCATENATE("OSUPJEUNEALERTEREGECO_"&A6),Output!$C:$AQ,6,FALSE) -> 51068.92 | J6: =VLOOKUP(CONCATENATE("OSUPJEUNEACCEPTREGECO_"&A6),Output!$C:$AQ,6,FALSE) -> 36477.8 | K6: =VLOOKUP(CONCATENATE("OSUPREGECO_"&A6),Output!$C:$AQ,6,FALSE) -> 145911.2 | M6: =ROUND(VLOOKUP("OSUPJEUNEREGECO_"&A6,Output!$C:$AQ,7,FALSE)/VLOOKUP("OSUPREGECO_"&A6,Output!$C:$AQ,6,FALSE),3) -> 0.071 | N6: Faible | O6: =ROUND(VLOOKUP("OSUPJEUNEREGECO_"&$A6,Output!$C:$AQ,12,FALSE)/VLOOKUP("OSUPREGECO_"&A6,Output!$C:$AQ,6,FALSE),3) -> 0.24 | P6: Faible | R6: =ROUND(VLOOKUP("OSUPVIEUXTOTREGECO_"&$A6,Output!$C:$AQ,7,FALSE)/VLOOKUP("OSUPREGECO_"&A6,Output!$C:$AQ,6,FALSE),3) -> 0.184 | S6: Modéré | T6: =ROUND(VLOOKUP("OSUPVIEUXTOTREGECO_"&$A6,Output!$C:$AQ,12,FALSE)/VLOOKUP("OSUPREGECO_"&A6,Output!$C:$AQ,6,FALSE),3) -> 0.149 | U6: Modéré | W6: UTA4 | X6: Modéré | Y6: Modéré | AA6: =Tableaux!$O$33 -> 08551 | AB6: UTA4 | AC6: Modéré | AD6: =U6 -> Modéré | AE6: COS pessière | AP6: CMO entente Cris
A7: UTA5 | B7: 0.147 | C7: 0.245 | D7: 0.35 | E7: 0.25 | G7: =VLOOKUP(CONCATENATE("OSUPVIEUXALERTEREGECO_"&A7),Output!$C:$AQ,6,FALSE) -> 19045.97 | H7: =VLOOKUP(CONCATENATE("OSUPVIEUXACCEPTREGECO_"&A7),Output!$C:$AQ,6,FALSE) -> 31743.28 | I7: =VLOOKUP(CONCATENATE("OSUPJEUNEALERTEREGECO_"&A7),Output!$C:$AQ,6,FALSE) -> 45347.54 | J7: =VLOOKUP(CONCATENATE("OSUPJEUNEACCEPTREGECO_"&A7),Output!$C:$AQ,6,FALSE) -> 32391.1 | K7: =VLOOKUP(CONCATENATE("OSUPREGECO_"&A7),Output!$C:$AQ,6,FALSE) -> 129564.4 | M7: =ROUND(VLOOKUP("OSUPJEUNEREGECO_"&A7,Output!$C:$AQ,7,FALSE)/VLOOKUP("OSUPREGECO_"&A7,Output!$C:$AQ,6,FALSE),3) -> 0.171 | N7: Faible | O7: =ROUND(VLOOKUP("OSUPJEUNEREGECO_"&$A7,Output!$C:$AQ,12,FALSE)/VLOOKUP("OSUPREGECO_"&A7,Output!$C:$AQ,6,FALSE),3) -> 0.135 | P7: Faible | R7: =ROUND(VLOOKUP("OSUPVIEUXTOTREGECO_"&$A7,Output!$C:$AQ,7,FALSE)/VLOOKUP("OSUPREGECO_"&A7,Output!$C:$AQ,6,FALSE),3) -> 0.262 | S7: Faible | T7: =ROUND(VLOOKUP("OSUPVIEUXTOTREGECO_"&$A7,Output!$C:$AQ,12,FALSE)/VLOOKUP("OSUPREGECO_"&A7,Output!$C:$AQ,6,FALSE),3) -> 0.279 | U7: Faible | W7: UTA5 | X7: Faible | Y7: Faible | AA7: =Tableaux!$O$33 -> 08551 | AB7: UTA5 | AC7: =S7 -> Faible | AD7: =U7 -> Faible | AE7: COS pessière | AG7: Voir à renommer "Élevé" dans la légende des figures | AP7: CMO entente BM
A8: UTA6 | B8: 0.147 | C8: 0.245 | D8: 0.35 | E8: 0.25 | G8: =VLOOKUP(CONCATENATE("OSUPVIEUXALERTEREGECO_"&A8),Output!$C:$AQ,6,FALSE) -> 12700.31 | H8: =VLOOKUP(CONCATENATE("OSUPVIEUXACCEPTREGECO_"&A8),Output!$C:$AQ,6,FALSE) -> 21167.19 | I8: =VLOOKUP(CONCATENATE("OSUPJEUNEALERTEREGECO_"&A8),Output!$C:$AQ,6,FALSE) -> 30238.84 | J8: =VLOOKUP(CONCATENATE("OSUPJEUNEACCEPTREGECO_"&A8),Output!$C:$AQ,6,FALSE) -> 21599.17 | K8: =VLOOKUP(CONCATENATE("OSUPREGECO_"&A8),Output!$C:$AQ,6,FALSE) -> 86396.7 | M8: =ROUND(VLOOKUP("OSUPJEUNEREGECO_"&A8,Output!$C:$AQ,7,FALSE)/VLOOKUP("OSUPREGECO_"&A8,Output!$C:$AQ,6,FALSE),3) -> 0.088 | N8: Faible | O8: =ROUND(VLOOKUP("OSUPJEUNEREGECO_"&$A8,Output!$C:$AQ,12,FALSE)/VLOOKUP("OSUPREGECO_"&A8,Output!$C:$AQ,6,FALSE),3) -> 0.042 | P8: Faible | R8: =ROUND(VLOOKUP("OSUPVIEUXTOTREGECO_"&$A8,Output!$C:$AQ,7,FALSE)/VLOOKUP("OSUPREGECO_"&A8,Output!$C:$AQ,6,FALSE),3) -> 0.555 | S8: Faible | T8: =ROUND(VLOOKUP("OSUPVIEUXTOTREGECO_"&$A8,Output!$C:$AQ,12,FALSE)/VLOOKUP("OSUPREGECO_"&A8,Output!$C:$AQ,6,FALSE),3) -> 0.606 | U8: Faible | W8: UTA6 | X8: Faible | Y8: Faible | AA8: =Tableaux!$O$33 -> 08551 | AB8: UTA6 | AC8: Faible | AD8: Faible | AE8: COS pessière
G9: =VLOOKUP(CONCATENATE("OSUPVIEUXALERTEREGECO_"&A9),Output!$C:$AQ,6,FALSE) ->  | H9: =VLOOKUP(CONCATENATE("OSUPVIEUXACCEPTREGECO_"&A9),Output!$C:$AQ,6,FALSE) ->  | I9: =VLOOKUP(CONCATENATE("OSUPJEUNEALERTEREGECO_"&A9),Output!$C:$AQ,6,FALSE) ->  | J9: =VLOOKUP(CONCATENATE("OSUPJEUNEACCEPTREGECO_"&A9),Output!$C:$AQ,6,FALSE) ->  | K9: =VLOOKUP(CONCATENATE("OSUPREGECO_"&A9),Output!$C:$AQ,6,FALSE) ->  | M9: =ROUND(VLOOKUP("OSUPJEUNEREGECO_"&A9,Output!$C:$AQ,7,FALSE)/VLOOKUP("OSUPREGECO_"&A9,Output!$C:$AQ,6,FALSE),3) ->  | O9: =ROUND(VLOOKUP("OSUPJEUNEREGECO_"&$A9,Output!$C:$AQ,12,FALSE)/VLOOKUP("OSUPREGECO_"&A9,Output!$C:$AQ,6,FALSE),3) ->  | R9: =ROUND(VLOOKUP("OSUPVIEUXTOTREGECO_"&$A9,Output!$C:$AQ,7,FALSE)/VLOOKUP("OSUPREGECO_"&A9,Output!$C:$AQ,6,FALSE),3) ->  | T9: =ROUND(VLOOKUP("OSUPVIEUXTOTREGECO_"&$A9,Output!$C:$AQ,12,FALSE)/VLOOKUP("OSUPREGECO_"&A9,Output!$C:$AQ,6,FALSE),3) ->  | W9: 0 | AA9: =Tableaux!$O$33 -> 08551 | AB9: 0
G10: =VLOOKUP(CONCATENATE("OSUPVIEUXALERTEREGECO_"&A10),Output!$C:$AQ,6,FALSE) ->  | H10: =VLOOKUP(CONCATENATE("OSUPVIEUXACCEPTREGECO_"&A10),Output!$C:$AQ,6,FALSE) ->  | I10: =VLOOKUP(CONCATENATE("OSUPJEUNEALERTEREGECO_"&A10),Output!$C:$AQ,6,FALSE) ->  | J10: =VLOOKUP(CONCATENATE("OSUPJEUNEACCEPTREGECO_"&A10),Output!$C:$AQ,6,FALSE) ->  | K10: =VLOOKUP(CONCATENATE("OSUPREGECO_"&A10),Output!$C:$AQ,6,FALSE) ->  | M10: =ROUND(VLOOKUP("OSUPJEUNEREGECO_"&A10,Output!$C:$AQ,7,FALSE)/VLOOKUP("OSUPREGECO_"&A10,Output!$C:$AQ,6,FALSE),3) ->  | O10: =ROUND(VLOOKUP("OSUPJEUNEREGECO_"&$A10,Output!$C:$AQ,12,FALSE)/VLOOKUP("OSUPREGECO_"&A10,Output!$C:$AQ,6,FALSE),3) ->  | R10: =ROUND(VLOOKUP("OSUPVIEUXTOTREGECO_"&$A10,Output!$C:$AQ,7,FALSE)/VLOOKUP("OSUPREGECO_"&A10,Output!$C:$AQ,6,FALSE),3) ->  | T10: =ROUND(VLOOKUP("OSUPVIEUXTOTREGECO_"&$A10,Output!$C:$AQ,12,FALSE)/VLOOKUP("OSUPREGECO_"&A10,Output!$C:$AQ,6,FALSE),3) ->  | W10: 0 | AA10: =Tableaux!$O$33 -> 08551 | AB10: 0
E11: =ROUND(J11/$K11,3) ->  | G11: =VLOOKUP(CONCATENATE("OSUPVIEUXALERTEREGECO_"&A11),Output!$C:$AQ,6,FALSE) ->  | H11: =VLOOKUP(CONCATENATE("OSUPVIEUXACCEPTREGECO_"&A11),Output!$C:$AQ,6,FALSE) ->  | I11: =VLOOKUP(CONCATENATE("OSUPJEUNEALERTEREGECO_"&A11),Output!$C:$AQ,6,FALSE) ->  | J11: =VLOOKUP(CONCATENATE("OSUPJEUNEACCEPTREGECO_"&A11),Output!$C:$AQ,6,FALSE) ->  | K11: =VLOOKUP(CONCATENATE("OSUPREGECO_"&A11),Output!$C:$AQ,6,FALSE) ->  | M11: =ROUND(VLOOKUP("OSUPJEUNEREGECO_"&A11,Output!$C:$AQ,7,FALSE)/VLOOKUP("OSUPREGECO_"&A11,Output!$C:$AQ,6,FALSE),3) ->  | O11: =ROUND(VLOOKUP("OSUPJEUNEREGECO_"&$A11,Output!$C:$AQ,12,FALSE)/VLOOKUP("OSUPREGECO_"&A11,Output!$C:$AQ,6,FALSE),3) ->  | R11: =ROUND(VLOOKUP("OSUPVIEUXTOTREGECO_"&$A11,Output!$C:$AQ,7,FALSE)/VLOOKUP("OSUPREGECO_"&A11,Output!$C:$AQ,6,FALSE),3) ->  | T11: =ROUND(VLOOKUP("OSUPVIEUXTOTREGECO_"&$A11,Output!$C:$AQ,12,FALSE)/VLOOKUP("OSUPREGECO_"&A11,Output!$C:$AQ,6,FALSE),3) ->  | W11: 0 | AA11: =Tableaux!$O$33 -> 08551 | AB11: 0
G12: =VLOOKUP(CONCATENATE("OSUPVIEUXALERTEREGECO_"&A12),Output!$C:$AQ,6,FALSE) ->  | H12: =VLOOKUP(CONCATENATE("OSUPVIEUXACCEPTREGECO_"&A12),Output!$C:$AQ,6,FALSE) ->  | I12: =VLOOKUP(CONCATENATE("OSUPJEUNEALERTEREGECO_"&A12),Output!$C:$AQ,6,FALSE) ->  | J12: =VLOOKUP(CONCATENATE("OSUPJEUNEACCEPTREGECO_"&A12),Output!$C:$AQ,6,FALSE) ->  | K12: =VLOOKUP(CONCATENATE("OSUPREGECO_"&A12),Output!$C:$AQ,6,FALSE) ->  | M12: =ROUND(VLOOKUP("OSUPJEUNEREGECO_"&A12,Output!$C:$AQ,7,FALSE)/VLOOKUP("OSUPREGECO_"&A12,Output!$C:$AQ,6,FALSE),3) ->  | O12: =ROUND(VLOOKUP("OSUPJEUNEREGECO_"&$A12,Output!$C:$AQ,12,FALSE)/VLOOKUP("OSUPREGECO_"&A12,Output!$C:$AQ,6,FALSE),3) ->  | R12: =ROUND(VLOOKUP("OSUPVIEUXTOTREGECO_"&$A12,Output!$C:$AQ,7,FALSE)/VLOOKUP("OSUPREGECO_"&A12,Output!$C:$AQ,6,FALSE),3) ->  | T12: =ROUND(VLOOKUP("OSUPVIEUXTOTREGECO_"&$A12,Output!$C:$AQ,12,FALSE)/VLOOKUP("OSUPREGECO_"&A12,Output!$C:$AQ,6,FALSE),3) ->  | W12: 0 | AA12: =Tableaux!$O$33 -> 08551 | AB12: 0 | AG12: Compléter cellules en jaune
G13: =VLOOKUP(CONCATENATE("OSUPVIEUXALERTEREGECO_"&A13),Output!$C:$AQ,6,FALSE) ->  | H13: =VLOOKUP(CONCATENATE("OSUPVIEUXACCEPTREGECO_"&A13),Output!$C:$AQ,6,FALSE) ->  | I13: =VLOOKUP(CONCATENATE("OSUPJEUNEALERTEREGECO_"&A13),Output!$C:$AQ,6,FALSE) ->  | J13: =VLOOKUP(CONCATENATE("OSUPJEUNEACCEPTREGECO_"&A13),Output!$C:$AQ,6,FALSE) ->  | K13: =VLOOKUP(CONCATENATE("OSUPREGECO_"&A13),Output!$C:$AQ,6,FALSE) ->  | M13: =ROUND(VLOOKUP("OSUPJEUNEREGECO_"&A13,Output!$C:$AQ,7,FALSE)/VLOOKUP("OSUPREGECO_"&A13,Output!$C:$AQ,6,FALSE),3) ->  | O13: =ROUND(VLOOKUP("OSUPJEUNEREGECO_"&$A13,Output!$C:$AQ,12,FALSE)/VLOOKUP("OSUPREGECO_"&A13,Output!$C:$AQ,6,FALSE),3) ->  | R13: =ROUND(VLOOKUP("OSUPVIEUXTOTREGECO_"&$A13,Output!$C:$AQ,7,FALSE)/VLOOKUP("OSUPREGECO_"&A13,Output!$C:$AQ,6,FALSE),3) ->  | T13: =ROUND(VLOOKUP("OSUPVIEUXTOTREGECO_"&$A13,Output!$C:$AQ,12,FALSE)/VLOOKUP("OSUPREGECO_"&A13,Output!$C:$AQ,6,FALSE),3) ->  | W13: 0 | AA13: =Tableaux!$O$33 -> 08551 | AB13: 0
G14: =VLOOKUP(CONCATENATE("OSUPVIEUXALERTEREGECO_"&A14),Output!$C:$AQ,6,FALSE) ->  | H14: =VLOOKUP(CONCATENATE("OSUPVIEUXACCEPTREGECO_"&A14),Output!$C:$AQ,6,FALSE) ->  | I14: =VLOOKUP(CONCATENATE("OSUPJEUNEALERTEREGECO_"&A14),Output!$C:$AQ,6,FALSE) ->  | J14: =VLOOKUP(CONCATENATE("OSUPJEUNEACCEPTREGECO_"&A14),Output!$C:$AQ,6,FALSE) ->  | K14: =VLOOKUP(CONCATENATE("OSUPREGECO_"&A14),Output!$C:$AQ,6,FALSE) ->  | M14: =ROUND(VLOOKUP("OSUPJEUNEREGECO_"&A14,Output!$C:$AQ,7,FALSE)/VLOOKUP("OSUPREGECO_"&A14,Output!$C:$AQ,6,FALSE),3) ->  | O14: =ROUND(VLOOKUP("OSUPJEUNEREGECO_"&$A14,Output!$C:$AQ,12,FALSE)/VLOOKUP("OSUPREGECO_"&A14,Output!$C:$AQ,6,FALSE),3) ->  | R14: =ROUND(VLOOKUP("OSUPVIEUXTOTREGECO_"&$A14,Output!$C:$AQ,7,FALSE)/VLOOKUP("OSUPREGECO_"&A14,Output!$C:$AQ,6,FALSE),3) ->  | T14: =ROUND(VLOOKUP("OSUPVIEUXTOTREGECO_"&$A14,Output!$C:$AQ,12,FALSE)/VLOOKUP("OSUPREGECO_"&A14,Output!$C:$AQ,6,FALSE),3) ->  | W14: 0 | AA14: =Tableaux!$O$33 -> 08551 | AB14: 0
G15: =VLOOKUP(CONCATENATE("OSUPVIEUXALERTEREGECO_"&A15),Output!$C:$AQ,6,FALSE) ->  | H15: =VLOOKUP(CONCATENATE("OSUPVIEUXACCEPTREGECO_"&A15),Output!$C:$AQ,6,FALSE) ->  | I15: =VLOOKUP(CONCATENATE("OSUPJEUNEALERTEREGECO_"&A15),Output!$C:$AQ,6,FALSE) ->  | J15: =VLOOKUP(CONCATENATE("OSUPJEUNEACCEPTREGECO_"&A15),Output!$C:$AQ,6,FALSE) ->  | K15: =VLOOKUP(CONCATENATE("OSUPREGECO_"&A15),Output!$C:$AQ,6,FALSE) ->  | M15: =ROUND(VLOOKUP("OSUPJEUNEREGECO_"&A15,Output!$C:$AQ,7,FALSE)/VLOOKUP("OSUPREGECO_"&A15,Output!$C:$AQ,6,FALSE),3) ->  | O15: =ROUND(VLOOKUP("OSUPJEUNEREGECO_"&$A15,Output!$C:$AQ,12,FALSE)/VLOOKUP("OSUPREGECO_"&A15,Output!$C:$AQ,6,FALSE),3) ->  | R15: =ROUND(VLOOKUP("OSUPVIEUXTOTREGECO_"&$A15,Output!$C:$AQ,7,FALSE)/VLOOKUP("OSUPREGECO_"&A15,Output!$C:$AQ,6,FALSE),3) ->  | T15: =ROUND(VLOOKUP("OSUPVIEUXTOTREGECO_"&$A15,Output!$C:$AQ,12,FALSE)/VLOOKUP("OSUPREGECO_"&A15,Output!$C:$AQ,6,FALSE),3) ->  | W15: 0 | AA15: =Tableaux!$O$33 -> 08551 | AB15: 0
G16: =VLOOKUP(CONCATENATE("OSUPVIEUXALERTEREGECO_"&A16),Output!$C:$AQ,6,FALSE) ->  | H16: =VLOOKUP(CONCATENATE("OSUPVIEUXACCEPTREGECO_"&A16),Output!$C:$AQ,6,FALSE) ->  | I16: =VLOOKUP(CONCATENATE("OSUPJEUNEALERTEREGECO_"&A16),Output!$C:$AQ,6,FALSE) ->  | J16: =VLOOKUP(CONCATENATE("OSUPJEUNEACCEPTREGECO_"&A16),Output!$C:$AQ,6,FALSE) ->  | K16: =VLOOKUP(CONCATENATE("OSUPREGECO_"&A16),Output!$C:$AQ,6,FALSE) ->  | M16: =ROUND(VLOOKUP("OSUPJEUNEREGECO_"&A16,Output!$C:$AQ,7,FALSE)/VLOOKUP("OSUPREGECO_"&A16,Output!$C:$AQ,6,FALSE),3) ->  | O16: =ROUND(VLOOKUP("OSUPJEUNEREGECO_"&$A16,Output!$C:$AQ,12,FALSE)/VLOOKUP("OSUPREGECO_"&A16,Output!$C:$AQ,6,FALSE),3) ->  | R16: =ROUND(VLOOKUP("OSUPVIEUXTOTREGECO_"&$A16,Output!$C:$AQ,7,FALSE)/VLOOKUP("OSUPREGECO_"&A16,Output!$C:$AQ,6,FALSE),3) ->  | T16: =ROUND(VLOOKUP("OSUPVIEUXTOTREGECO_"&$A16,Output!$C:$AQ,12,FALSE)/VLOOKUP("OSUPREGECO_"&A16,Output!$C:$AQ,6,FALSE),3) ->  | W16: 0 | AA16: =Tableaux!$O$33 -> 08551 | AB16: 0
G17: =VLOOKUP(CONCATENATE("OSUPVIEUXALERTEREGECO_"&A17),Output!$C:$AQ,6,FALSE) ->  | H17: =VLOOKUP(CONCATENATE("OSUPVIEUXACCEPTREGECO_"&A17),Output!$C:$AQ,6,FALSE) ->  | I17: =VLOOKUP(CONCATENATE("OSUPJEUNEALERTEREGECO_"&A17),Output!$C:$AQ,6,FALSE) ->  | J17: =VLOOKUP(CONCATENATE("OSUPJEUNEACCEPTREGECO_"&A17),Output!$C:$AQ,6,FALSE) ->  | K17: =VLOOKUP(CONCATENATE("OSUPREGECO_"&A17),Output!$C:$AQ,6,FALSE) ->  | M17: =ROUND(VLOOKUP("OSUPJEUNEREGECO_"&A17,Output!$C:$AQ,7,FALSE)/VLOOKUP("OSUPREGECO_"&A17,Output!$C:$AQ,6,FALSE),3) ->  | O17: =ROUND(VLOOKUP("OSUPJEUNEREGECO_"&$A17,Output!$C:$AQ,12,FALSE)/VLOOKUP("OSUPREGECO_"&A17,Output!$C:$AQ,6,FALSE),3) ->  | R17: =ROUND(VLOOKUP("OSUPVIEUXTOTREGECO_"&$A17,Output!$C:$AQ,7,FALSE)/VLOOKUP("OSUPREGECO_"&A17,Output!$C:$AQ,6,FALSE),3) ->  | T17: =ROUND(VLOOKUP("OSUPVIEUXTOTREGECO_"&$A17,Output!$C:$AQ,12,FALSE)/VLOOKUP("OSUPREGECO_"&A17,Output!$C:$AQ,6,FALSE),3) ->  | W17: 0 | AA17: =Tableaux!$O$33 -> 08551 | AB17: 0
G18: =VLOOKUP(CONCATENATE("OSUPVIEUXALERTEREGECO_"&A18),Output!$C:$AQ,6,FALSE) ->  | H18: =VLOOKUP(CONCATENATE("OSUPVIEUXACCEPTREGECO_"&A18),Output!$C:$AQ,6,FALSE) ->  | I18: =VLOOKUP(CONCATENATE("OSUPJEUNEALERTEREGECO_"&A18),Output!$C:$AQ,6,FALSE) ->  | J18: =VLOOKUP(CONCATENATE("OSUPJEUNEACCEPTREGECO_"&A18),Output!$C:$AQ,6,FALSE) ->  | K18: =VLOOKUP(CONCATENATE("OSUPREGECO_"&A18),Output!$C:$AQ,6,FALSE) ->  | M18: =ROUND(VLOOKUP("OSUPJEUNEREGECO_"&A18,Output!$C:$AQ,7,FALSE)/VLOOKUP("OSUPREGECO_"&A18,Output!$C:$AQ,6,FALSE),3) ->  | O18: =ROUND(VLOOKUP("OSUPJEUNEREGECO_"&$A18,Output!$C:$AQ,12,FALSE)/VLOOKUP("OSUPREGECO_"&A18,Output!$C:$AQ,6,FALSE),3) ->  | R18: =ROUND(VLOOKUP("OSUPVIEUXTOTREGECO_"&$A18,Output!$C:$AQ,7,FALSE)/VLOOKUP("OSUPREGECO_"&A18,Output!$C:$AQ,6,FALSE),3) ->  | T18: =ROUND(VLOOKUP("OSUPVIEUXTOTREGECO_"&$A18,Output!$C:$AQ,12,FALSE)/VLOOKUP("OSUPREGECO_"&A18,Output!$C:$AQ,6,FALSE),3) ->  | W18: 0 | AA18: =Tableaux!$O$33 -> 08551 | AB18: 0
G19: =VLOOKUP(CONCATENATE("OSUPVIEUXALERTEREGECO_"&A19),Output!$C:$AQ,6,FALSE) ->  | H19: =VLOOKUP(CONCATENATE("OSUPVIEUXACCEPTREGECO_"&A19),Output!$C:$AQ,6,FALSE) ->  | I19: =VLOOKUP(CONCATENATE("OSUPJEUNEALERTEREGECO_"&A19),Output!$C:$AQ,6,FALSE) ->  | J19: =VLOOKUP(CONCATENATE("OSUPJEUNEACCEPTREGECO_"&A19),Output!$C:$AQ,6,FALSE) ->  | K19: =VLOOKUP(CONCATENATE("OSUPREGECO_"&A19),Output!$C:$AQ,6,FALSE) ->  | M19: =ROUND(VLOOKUP("OSUPJEUNEREGECO_"&A19,Output!$C:$AQ,7,FALSE)/VLOOKUP("OSUPREGECO_"&A19,Output!$C:$AQ,6,FALSE),3) ->  | O19: =ROUND(VLOOKUP("OSUPJEUNEREGECO_"&$A19,Output!$C:$AQ,12,FALSE)/VLOOKUP("OSUPREGECO_"&A19,Output!$C:$AQ,6,FALSE),3) ->  | R19: =ROUND(VLOOKUP("OSUPVIEUXTOTREGECO_"&$A19,Output!$C:$AQ,7,FALSE)/VLOOKUP("OSUPREGECO_"&A19,Output!$C:$AQ,6,FALSE),3) ->  | T19: =ROUND(VLOOKUP("OSUPVIEUXTOTREGECO_"&$A19,Output!$C:$AQ,12,FALSE)/VLOOKUP("OSUPREGECO_"&A19,Output!$C:$AQ,6,FALSE),3) ->  | W19: 0 | AA19: =Tableaux!$O$33 -> 08551 | AB19: 0
G20: =VLOOKUP(CONCATENATE("OSUPVIEUXALERTEREGECO_"&A20),Output!$C:$AQ,6,FALSE) ->  | H20: =VLOOKUP(CONCATENATE("OSUPVIEUXACCEPTREGECO_"&A20),Output!$C:$AQ,6,FALSE) ->  | I20: =VLOOKUP(CONCATENATE("OSUPJEUNEALERTEREGECO_"&A20),Output!$C:$AQ,6,FALSE) ->  | J20: =VLOOKUP(CONCATENATE("OSUPJEUNEACCEPTREGECO_"&A20),Output!$C:$AQ,6,FALSE) ->  | K20: =VLOOKUP(CONCATENATE("OSUPREGECO_"&A20),Output!$C:$AQ,6,FALSE) ->  | M20: =ROUND(VLOOKUP("OSUPJEUNEREGECO_"&A20,Output!$C:$AQ,7,FALSE)/VLOOKUP("OSUPREGECO_"&A20,Output!$C:$AQ,6,FALSE),3) ->  | O20: =ROUND(VLOOKUP("OSUPJEUNEREGECO_"&$A20,Output!$C:$AQ,12,FALSE)/VLOOKUP("OSUPREGECO_"&A20,Output!$C:$AQ,6,FALSE),3) ->  | R20: =ROUND(VLOOKUP("OSUPVIEUXTOTREGECO_"&$A20,Output!$C:$AQ,7,FALSE)/VLOOKUP("OSUPREGECO_"&A20,Output!$C:$AQ,6,FALSE),3) ->  | T20: =ROUND(VLOOKUP("OSUPVIEUXTOTREGECO_"&$A20,Output!$C:$AQ,12,FALSE)/VLOOKUP("OSUPREGECO_"&A20,Output!$C:$AQ,6,FALSE),3) ->  | W20: 0 | AA20: =Tableaux!$O$33 -> 08551 | AB20: 0
B21: =ROUND(G21/$K21,2) ->  | C21: =H21/$K21 ->  | D21: =ROUND(I21/$K21,3) ->  | G21: =VLOOKUP(CONCATENATE("OSUPVIEUXALERTEREGECO_"&A21),Output!$C:$AQ,6,FALSE) ->  | H21: =VLOOKUP(CONCATENATE("OSUPVIEUXACCEPTREGECO_"&A21),Output!$C:$AQ,6,FALSE) ->  | I21: =VLOOKUP(CONCATENATE("OSUPJEUNEALERTEREGECO_"&A21),Output!$C:$AQ,6,FALSE) ->  | J21: =VLOOKUP(CONCATENATE("OSUPJEUNEACCEPTREGECO_"&A21),Output!$C:$AQ,6,FALSE) ->  | K21: =VLOOKUP(CONCATENATE("OSUPREGECO_"&A21),Output!$C:$AQ,6,FALSE) ->  | M21: =ROUND(VLOOKUP("OSUPJEUNEREGECO_"&A21,Output!$C:$AQ,7,FALSE)/VLOOKUP("OSUPREGECO_"&A21,Output!$C:$AQ,6,FALSE),3) ->  | O21: =ROUND(VLOOKUP("OSUPJEUNEREGECO_"&$A21,Output!$C:$AQ,12,FALSE)/VLOOKUP("OSUPREGECO_"&A21,Output!$C:$AQ,6,FALSE),3) ->  | R21: =ROUND(VLOOKUP("OSUPVIEUXTOTREGECO_"&$A21,Output!$C:$AQ,7,FALSE)/VLOOKUP("OSUPREGECO_"&A21,Output!$C:$AQ,6,FALSE),3) ->  | T21: =ROUND(VLOOKUP("OSUPVIEUXTOTREGECO_"&$A21,Output!$C:$AQ,12,FALSE)/VLOOKUP("OSUPREGECO_"&A21,Output!$C:$AQ,6,FALSE),3) ->  | W21: 0 | AA21: =Tableaux!$O$33 -> 08551 | AB21: 0
G22: =VLOOKUP(CONCATENATE("OSUPVIEUXALERTEREGECO_"&A22),Output!$C:$AQ,6,FALSE) ->  | H22: =VLOOKUP(CONCATENATE("OSUPVIEUXACCEPTREGECO_"&A22),Output!$C:$AQ,6,FALSE) ->  | I22: =VLOOKUP(CONCATENATE("OSUPJEUNEALERTEREGECO_"&A22),Output!$C:$AQ,6,FALSE) ->  | J22: =VLOOKUP(CONCATENATE("OSUPJEUNEACCEPTREGECO_"&A22),Output!$C:$AQ,6,FALSE) ->  | K22: =VLOOKUP(CONCATENATE("OSUPREGECO_"&A22),Output!$C:$AQ,6,FALSE) ->  | M22: =ROUND(VLOOKUP("OSUPJEUNEREGECO_"&A22,Output!$C:$AQ,7,FALSE)/VLOOKUP("OSUPREGECO_"&A22,Output!$C:$AQ,6,FALSE),3) ->  | O22: =ROUND(VLOOKUP("OSUPJEUNEREGECO_"&$A22,Output!$C:$AQ,12,FALSE)/VLOOKUP("OSUPREGECO_"&A22,Output!$C:$AQ,6,FALSE),3) ->  | R22: =ROUND(VLOOKUP("OSUPVIEUXTOTREGECO_"&$A22,Output!$C:$AQ,7,FALSE)/VLOOKUP("OSUPREGECO_"&A22,Output!$C:$AQ,6,FALSE),3) ->  | T22: =ROUND(VLOOKUP("OSUPVIEUXTOTREGECO_"&$A22,Output!$C:$AQ,12,FALSE)/VLOOKUP("OSUPREGECO_"&A22,Output!$C:$AQ,6,FALSE),3) ->  | W22: 0 | AA22: =Tableaux!$O$33 -> 08551 | AB22: 0
G23: =VLOOKUP(CONCATENATE("OSUPVIEUXALERTEREGECO_"&A23),Output!$C:$AQ,6,FALSE) ->  | H23: =VLOOKUP(CONCATENATE("OSUPVIEUXACCEPTREGECO_"&A23),Output!$C:$AQ,6,FALSE) ->  | I23: =VLOOKUP(CONCATENATE("OSUPJEUNEALERTEREGECO_"&A23),Output!$C:$AQ,6,FALSE) ->  | J23: =VLOOKUP(CONCATENATE("OSUPJEUNEACCEPTREGECO_"&A23),Output!$C:$AQ,6,FALSE) ->  | K23: =VLOOKUP(CONCATENATE("OSUPREGECO_"&A23),Output!$C:$AQ,6,FALSE) ->  | M23: =ROUND(VLOOKUP("OSUPJEUNEREGECO_"&A23,Output!$C:$AQ,7,FALSE)/VLOOKUP("OSUPREGECO_"&A23,Output!$C:$AQ,6,FALSE),3) ->  | O23: =ROUND(VLOOKUP("OSUPJEUNEREGECO_"&$A23,Output!$C:$AQ,12,FALSE)/VLOOKUP("OSUPREGECO_"&A23,Output!$C:$AQ,6,FALSE),3) ->  | R23: =ROUND(VLOOKUP("OSUPVIEUXTOTREGECO_"&$A23,Output!$C:$AQ,7,FALSE)/VLOOKUP("OSUPREGECO_"&A23,Output!$C:$AQ,6,FALSE),3) ->  | T23: =ROUND(VLOOKUP("OSUPVIEUXTOTREGECO_"&$A23,Output!$C:$AQ,12,FALSE)/VLOOKUP("OSUPREGECO_"&A23,Output!$C:$AQ,6,FALSE),3) ->  | W23: 0 | AA23: =Tableaux!$O$33 -> 08551 | AB23: 0
G24: =VLOOKUP(CONCATENATE("OSUPVIEUXALERTEREGECO_"&A24),Output!$C:$AQ,6,FALSE) ->  | H24: =VLOOKUP(CONCATENATE("OSUPVIEUXACCEPTREGECO_"&A24),Output!$C:$AQ,6,FALSE) ->  | I24: =VLOOKUP(CONCATENATE("OSUPJEUNEALERTEREGECO_"&A24),Output!$C:$AQ,6,FALSE) ->  | J24: =VLOOKUP(CONCATENATE("OSUPJEUNEACCEPTREGECO_"&A24),Output!$C:$AQ,6,FALSE) ->  | K24: =VLOOKUP(CONCATENATE("OSUPREGECO_"&A24),Output!$C:$AQ,6,FALSE) ->  | M24: =ROUND(VLOOKUP("OSUPJEUNEREGECO_"&A24,Output!$C:$AQ,7,FALSE)/VLOOKUP("OSUPREGECO_"&A24,Output!$C:$AQ,6,FALSE),3) ->  | O24: =ROUND(VLOOKUP("OSUPJEUNEREGECO_"&$A24,Output!$C:$AQ,12,FALSE)/VLOOKUP("OSUPREGECO_"&A24,Output!$C:$AQ,6,FALSE),3) ->  | R24: =ROUND(VLOOKUP("OSUPVIEUXTOTREGECO_"&$A24,Output!$C:$AQ,7,FALSE)/VLOOKUP("OSUPREGECO_"&A24,Output!$C:$AQ,6,FALSE),3) ->  | T24: =ROUND(VLOOKUP("OSUPVIEUXTOTREGECO_"&$A24,Output!$C:$AQ,12,FALSE)/VLOOKUP("OSUPREGECO_"&A24,Output!$C:$AQ,6,FALSE),3) ->  | W24: 0 | AA24: =Tableaux!$O$33 -> 08551 | AB24: 0
G25: =VLOOKUP(CONCATENATE("OSUPVIEUXALERTEREGECO_"&A25),Output!$C:$AQ,6,FALSE) ->  | H25: =VLOOKUP(CONCATENATE("OSUPVIEUXACCEPTREGECO_"&A25),Output!$C:$AQ,6,FALSE) ->  | I25: =VLOOKUP(CONCATENATE("OSUPJEUNEALERTEREGECO_"&A25),Output!$C:$AQ,6,FALSE) ->  | J25: =VLOOKUP(CONCATENATE("OSUPJEUNEACCEPTREGECO_"&A25),Output!$C:$AQ,6,FALSE) ->  | K25: =VLOOKUP(CONCATENATE("OSUPREGECO_"&A25),Output!$C:$AQ,6,FALSE) ->  | M25: =ROUND(VLOOKUP("OSUPJEUNEREGECO_"&A25,Output!$C:$AQ,7,FALSE)/VLOOKUP("OSUPREGECO_"&A25,Output!$C:$AQ,6,FALSE),3) ->  | O25: =ROUND(VLOOKUP("OSUPJEUNEREGECO_"&$A25,Output!$C:$AQ,12,FALSE)/VLOOKUP("OSUPREGECO_"&A25,Output!$C:$AQ,6,FALSE),3) ->  | R25: =ROUND(VLOOKUP("OSUPVIEUXTOTREGECO_"&$A25,Output!$C:$AQ,7,FALSE)/VLOOKUP("OSUPREGECO_"&A25,Output!$C:$AQ,6,FALSE),3) ->  | T25: =ROUND(VLOOKUP("OSUPVIEUXTOTREGECO_"&$A25,Output!$C:$AQ,12,FALSE)/VLOOKUP("OSUPREGECO_"&A25,Output!$C:$AQ,6,FALSE),3) ->  | W25: 0 | AA25: =Tableaux!$O$33 -> 08551 | AB25: 0
G26: =VLOOKUP(CONCATENATE("OSUPVIEUXALERTEREGECO_"&A26),Output!$C:$AQ,6,FALSE) ->  | H26: =VLOOKUP(CONCATENATE("OSUPVIEUXACCEPTREGECO_"&A26),Output!$C:$AQ,6,FALSE) ->  | I26: =VLOOKUP(CONCATENATE("OSUPJEUNEALERTEREGECO_"&A26),Output!$C:$AQ,6,FALSE) ->  | J26: =VLOOKUP(CONCATENATE("OSUPJEUNEACCEPTREGECO_"&A26),Output!$C:$AQ,6,FALSE) ->  | K26: =VLOOKUP(CONCATENATE("OSUPREGECO_"&A26),Output!$C:$AQ,6,FALSE) ->  | M26: =ROUND(VLOOKUP("OSUPJEUNEREGECO_"&A26,Output!$C:$AQ,7,FALSE)/VLOOKUP("OSUPREGECO_"&A26,Output!$C:$AQ,6,FALSE),3) ->  | O26: =ROUND(VLOOKUP("OSUPJEUNEREGECO_"&$A26,Output!$C:$AQ,12,FALSE)/VLOOKUP("OSUPREGECO_"&A26,Output!$C:$AQ,6,FALSE),3) ->  | R26: =ROUND(VLOOKUP("OSUPVIEUXTOTREGECO_"&$A26,Output!$C:$AQ,7,FALSE)/VLOOKUP("OSUPREGECO_"&A26,Output!$C:$AQ,6,FALSE),3) ->  | T26: =ROUND(VLOOKUP("OSUPVIEUXTOTREGECO_"&$A26,Output!$C:$AQ,12,FALSE)/VLOOKUP("OSUPREGECO_"&A26,Output!$C:$AQ,6,FALSE),3) ->  | W26: 0 | AA26: =Tableaux!$O$33 -> 08551 | AB26: 0
C27: =ROUND(H27/$K27,3) ->  | G27: =VLOOKUP(CONCATENATE("OSUPVIEUXALERTEREGECO_"&A27),Output!$C:$AQ,6,FALSE) ->  | H27: =VLOOKUP(CONCATENATE("OSUPVIEUXACCEPTREGECO_"&A27),Output!$C:$AQ,6,FALSE) ->  | I27: =VLOOKUP(CONCATENATE("OSUPJEUNEALERTEREGECO_"&A27),Output!$C:$AQ,6,FALSE) ->  | J27: =VLOOKUP(CONCATENATE("OSUPJEUNEACCEPTREGECO_"&A27),Output!$C:$AQ,6,FALSE) ->  | K27: =VLOOKUP(CONCATENATE("OSUPREGECO_"&A27),Output!$C:$AQ,6,FALSE) ->  | M27: =ROUND(VLOOKUP("OSUPJEUNEREGECO_"&A27,Output!$C:$AQ,7,FALSE)/VLOOKUP("OSUPREGECO_"&A27,Output!$C:$AQ,6,FALSE),3) ->  | O27: =ROUND(VLOOKUP("OSUPJEUNEREGECO_"&$A27,Output!$C:$AQ,12,FALSE)/VLOOKUP("OSUPREGECO_"&A27,Output!$C:$AQ,6,FALSE),3) ->  | R27: =ROUND(VLOOKUP("OSUPVIEUXTOTREGECO_"&$A27,Output!$C:$AQ,7,FALSE)/VLOOKUP("OSUPREGECO_"&A27,Output!$C:$AQ,6,FALSE),3) ->  | T27: =ROUND(VLOOKUP("OSUPVIEUXTOTREGECO_"&$A27,Output!$C:$AQ,12,FALSE)/VLOOKUP("OSUPREGECO_"&A27,Output!$C:$AQ,6,FALSE),3) ->  | W27: 0 | AA27: =Tableaux!$O$33 -> 08551 | AB27: 0
G28: =VLOOKUP(CONCATENATE("OSUPVIEUXALERTEREGECO_"&A28),Output!$C:$AQ,6,FALSE) ->  | H28: =VLOOKUP(CONCATENATE("OSUPVIEUXACCEPTREGECO_"&A28),Output!$C:$AQ,6,FALSE) ->  | I28: =VLOOKUP(CONCATENATE("OSUPJEUNEALERTEREGECO_"&A28),Output!$C:$AQ,6,FALSE) ->  | J28: =VLOOKUP(CONCATENATE("OSUPJEUNEACCEPTREGECO_"&A28),Output!$C:$AQ,6,FALSE) ->  | K28: =VLOOKUP(CONCATENATE("OSUPREGECO_"&A28),Output!$C:$AQ,6,FALSE) ->  | M28: =ROUND(VLOOKUP("OSUPJEUNEREGECO_"&A28,Output!$C:$AQ,7,FALSE)/VLOOKUP("OSUPREGECO_"&A28,Output!$C:$AQ,6,FALSE),3) ->  | O28: =ROUND(VLOOKUP("OSUPJEUNEREGECO_"&$A28,Output!$C:$AQ,12,FALSE)/VLOOKUP("OSUPREGECO_"&A28,Output!$C:$AQ,6,FALSE),3) ->  | R28: =ROUND(VLOOKUP("OSUPVIEUXTOTREGECO_"&$A28,Output!$C:$AQ,7,FALSE)/VLOOKUP("OSUPREGECO_"&A28,Output!$C:$AQ,6,FALSE),3) ->  | T28: =ROUND(VLOOKUP("OSUPVIEUXTOTREGECO_"&$A28,Output!$C:$AQ,12,FALSE)/VLOOKUP("OSUPREGECO_"&A28,Output!$C:$AQ,6,FALSE),3) ->  | W28: 0 | AA28: =Tableaux!$O$33 -> 08551 | AB28: 0
G29: =VLOOKUP(CONCATENATE("OSUPVIEUXALERTEREGECO_"&A29),Output!$C:$AQ,6,FALSE) ->  | H29: =VLOOKUP(CONCATENATE("OSUPVIEUXACCEPTREGECO_"&A29),Output!$C:$AQ,6,FALSE) ->  | I29: =VLOOKUP(CONCATENATE("OSUPJEUNEALERTEREGECO_"&A29),Output!$C:$AQ,6,FALSE) ->  | J29: =VLOOKUP(CONCATENATE("OSUPJEUNEACCEPTREGECO_"&A29),Output!$C:$AQ,6,FALSE) ->  | K29: =VLOOKUP(CONCATENATE("OSUPREGECO_"&A29),Output!$C:$AQ,6,FALSE) ->  | M29: =ROUND(VLOOKUP("OSUPJEUNEREGECO_"&A29,Output!$C:$AQ,7,FALSE)/VLOOKUP("OSUPREGECO_"&A29,Output!$C:$AQ,6,FALSE),3) ->  | O29: =ROUND(VLOOKUP("OSUPJEUNEREGECO_"&$A29,Output!$C:$AQ,12,FALSE)/VLOOKUP("OSUPREGECO_"&A29,Output!$C:$AQ,6,FALSE),3) ->  | R29: =ROUND(VLOOKUP("OSUPVIEUXTOTREGECO_"&$A29,Output!$C:$AQ,7,FALSE)/VLOOKUP("OSUPREGECO_"&A29,Output!$C:$AQ,6,FALSE),3) ->  | T29: =ROUND(VLOOKUP("OSUPVIEUXTOTREGECO_"&$A29,Output!$C:$AQ,12,FALSE)/VLOOKUP("OSUPREGECO_"&A29,Output!$C:$AQ,6,FALSE),3) ->  | W29: 0 | AA29: =Tableaux!$O$33 -> 08551 | AB29: 0
G30: =VLOOKUP(CONCATENATE("OSUPVIEUXALERTEREGECO_"&A30),Output!$C:$AQ,6,FALSE) ->  | H30: =VLOOKUP(CONCATENATE("OSUPVIEUXACCEPTREGECO_"&A30),Output!$C:$AQ,6,FALSE) ->  | I30: =VLOOKUP(CONCATENATE("OSUPJEUNEALERTEREGECO_"&A30),Output!$C:$AQ,6,FALSE) ->  | J30: =VLOOKUP(CONCATENATE("OSUPJEUNEACCEPTREGECO_"&A30),Output!$C:$AQ,6,FALSE) ->  | K30: =VLOOKUP(CONCATENATE("OSUPREGECO_"&A30),Output!$C:$AQ,6,FALSE) ->  | M30: =ROUND(VLOOKUP("OSUPJEUNEREGECO_"&A30,Output!$C:$AQ,7,FALSE)/VLOOKUP("OSUPREGECO_"&A30,Output!$C:$AQ,6,FALSE),3) ->  | O30: =ROUND(VLOOKUP("OSUPJEUNEREGECO_"&$A30,Output!$C:$AQ,12,FALSE)/VLOOKUP("OSUPREGECO_"&A30,Output!$C:$AQ,6,FALSE),3) ->  | R30: =ROUND(VLOOKUP("OSUPVIEUXTOTREGECO_"&$A30,Output!$C:$AQ,7,FALSE)/VLOOKUP("OSUPREGECO_"&A30,Output!$C:$AQ,6,FALSE),3) ->  | T30: =ROUND(VLOOKUP("OSUPVIEUXTOTREGECO_"&$A30,Output!$C:$AQ,12,FALSE)/VLOOKUP("OSUPREGECO_"&A30,Output!$C:$AQ,6,FALSE),3) ->  | W30: 0 | AA30: =Tableaux!$O$33 -> 08551 | AB30: 0
G31: =VLOOKUP(CONCATENATE("OSUPVIEUXALERTEREGECO_"&A31),Output!$C:$AQ,6,FALSE) ->  | H31: =VLOOKUP(CONCATENATE("OSUPVIEUXACCEPTREGECO_"&A31),Output!$C:$AQ,6,FALSE) ->  | I31: =VLOOKUP(CONCATENATE("OSUPJEUNEALERTEREGECO_"&A31),Output!$C:$AQ,6,FALSE) ->  | J31: =VLOOKUP(CONCATENATE("OSUPJEUNEACCEPTREGECO_"&A31),Output!$C:$AQ,6,FALSE) ->  | K31: =VLOOKUP(CONCATENATE("OSUPREGECO_"&A31),Output!$C:$AQ,6,FALSE) ->  | M31: =ROUND(VLOOKUP("OSUPJEUNEREGECO_"&A31,Output!$C:$AQ,7,FALSE)/VLOOKUP("OSUPREGECO_"&A31,Output!$C:$AQ,6,FALSE),3) ->  | O31: =ROUND(VLOOKUP("OSUPJEUNEREGECO_"&$A31,Output!$C:$AQ,12,FALSE)/VLOOKUP("OSUPREGECO_"&A31,Output!$C:$AQ,6,FALSE),3) ->  | R31: =ROUND(VLOOKUP("OSUPVIEUXTOTREGECO_"&$A31,Output!$C:$AQ,7,FALSE)/VLOOKUP("OSUPREGECO_"&A31,Output!$C:$AQ,6,FALSE),3) ->  | T31: =ROUND(VLOOKUP("OSUPVIEUXTOTREGECO_"&$A31,Output!$C:$AQ,12,FALSE)/VLOOKUP("OSUPREGECO_"&A31,Output!$C:$AQ,6,FALSE),3) ->  | W31: 0 | AA31: =Tableaux!$O$33 -> 08551 | AB31: 0
G32: =VLOOKUP(CONCATENATE("OSUPVIEUXALERTEREGECO_"&A32),Output!$C:$AQ,6,FALSE) ->  | H32: =VLOOKUP(CONCATENATE("OSUPVIEUXACCEPTREGECO_"&A32),Output!$C:$AQ,6,FALSE) ->  | I32: =VLOOKUP(CONCATENATE("OSUPJEUNEALERTEREGECO_"&A32),Output!$C:$AQ,6,FALSE) ->  | J32: =VLOOKUP(CONCATENATE("OSUPJEUNEACCEPTREGECO_"&A32),Output!$C:$AQ,6,FALSE) ->  | K32: =VLOOKUP(CONCATENATE("OSUPREGECO_"&A32),Output!$C:$AQ,6,FALSE) ->  | M32: =ROUND(VLOOKUP("OSUPJEUNEREGECO_"&A32,Output!$C:$AQ,7,FALSE)/VLOOKUP("OSUPREGECO_"&A32,Output!$C:$AQ,6,FALSE),3) ->  | O32: =ROUND(VLOOKUP("OSUPJEUNEREGECO_"&$A32,Output!$C:$AQ,12,FALSE)/VLOOKUP("OSUPREGECO_"&A32,Output!$C:$AQ,6,FALSE),3) ->  | R32: =ROUND(VLOOKUP("OSUPVIEUXTOTREGECO_"&$A32,Output!$C:$AQ,7,FALSE)/VLOOKUP("OSUPREGECO_"&A32,Output!$C:$AQ,6,FALSE),3) ->  | T32: =ROUND(VLOOKUP("OSUPVIEUXTOTREGECO_"&$A32,Output!$C:$AQ,12,FALSE)/VLOOKUP("OSUPREGECO_"&A32,Output!$C:$AQ,6,FALSE),3) ->  | W32: 0 | AA32: =Tableaux!$O$33 -> 08551 | AB32: 0
G33: =VLOOKUP(CONCATENATE("OSUPVIEUXALERTEREGECO_"&A33),Output!$C:$AQ,6,FALSE) ->  | H33: =VLOOKUP(CONCATENATE("OSUPVIEUXACCEPTREGECO_"&A33),Output!$C:$AQ,6,FALSE) ->  | I33: =VLOOKUP(CONCATENATE("OSUPJEUNEALERTEREGECO_"&A33),Output!$C:$AQ,6,FALSE) ->  | J33: =VLOOKUP(CONCATENATE("OSUPJEUNEACCEPTREGECO_"&A33),Output!$C:$AQ,6,FALSE) ->  | K33: =VLOOKUP(CONCATENATE("OSUPREGECO_"&A33),Output!$C:$AQ,6,FALSE) ->  | M33: =ROUND(VLOOKUP("OSUPJEUNEREGECO_"&A33,Output!$C:$AQ,7,FALSE)/VLOOKUP("OSUPREGECO_"&A33,Output!$C:$AQ,6,FALSE),3) ->  | O33: =ROUND(VLOOKUP("OSUPJEUNEREGECO_"&$A33,Output!$C:$AQ,12,FALSE)/VLOOKUP("OSUPREGECO_"&A33,Output!$C:$AQ,6,FALSE),3) ->  | R33: =ROUND(VLOOKUP("OSUPVIEUXTOTREGECO_"&$A33,Output!$C:$AQ,7,FALSE)/VLOOKUP("OSUPREGECO_"&A33,Output!$C:$AQ,6,FALSE),3) ->  | T33: =ROUND(VLOOKUP("OSUPVIEUXTOTREGECO_"&$A33,Output!$C:$AQ,12,FALSE)/VLOOKUP("OSUPREGECO_"&A33,Output!$C:$AQ,6,FALSE),3) ->  | W33: 0 | AA33: =Tableaux!$O$33 -> 08551 | AB33: =W33 -> 0
G34: =VLOOKUP(CONCATENATE("OSUPVIEUXALERTEREGECO_"&A34),Output!$C:$AQ,6,FALSE) ->  | H34: =VLOOKUP(CONCATENATE("OSUPVIEUXACCEPTREGECO_"&A34),Output!$C:$AQ,6,FALSE) ->  | I34: =VLOOKUP(CONCATENATE("OSUPJEUNEALERTEREGECO_"&A34),Output!$C:$AQ,6,FALSE) ->  | J34: =VLOOKUP(CONCATENATE("OSUPJEUNEACCEPTREGECO_"&A34),Output!$C:$AQ,6,FALSE) ->  | K34: =VLOOKUP(CONCATENATE("OSUPREGECO_"&A34),Output!$C:$AQ,6,FALSE) ->  | M34: =ROUND(VLOOKUP("OSUPJEUNEREGECO_"&A34,Output!$C:$AQ,7,FALSE)/VLOOKUP("OSUPREGECO_"&A34,Output!$C:$AQ,6,FALSE),3) ->  | O34: =ROUND(VLOOKUP("OSUPJEUNEREGECO_"&$A34,Output!$C:$AQ,12,FALSE)/VLOOKUP("OSUPREGECO_"&A34,Output!$C:$AQ,6,FALSE),3) ->  | R34: =ROUND(VLOOKUP("OSUPVIEUXTOTREGECO_"&$A34,Output!$C:$AQ,7,FALSE)/VLOOKUP("OSUPREGECO_"&A34,Output!$C:$AQ,6,FALSE),3) ->  | T34: =ROUND(VLOOKUP("OSUPVIEUXTOTREGECO_"&$A34,Output!$C:$AQ,12,FALSE)/VLOOKUP("OSUPREGECO_"&A34,Output!$C:$AQ,6,FALSE),3) ->  | W34: 0 | AA34: =Tableaux!$O$33 -> 08551 | AB34: 0
G35: =VLOOKUP(CONCATENATE("OSUPVIEUXALERTEREGECO_"&A35),Output!$C:$AQ,6,FALSE) ->  | H35: =VLOOKUP(CONCATENATE("OSUPVIEUXACCEPTREGECO_"&A35),Output!$C:$AQ,6,FALSE) ->  | I35: =VLOOKUP(CONCATENATE("OSUPJEUNEALERTEREGECO_"&A35),Output!$C:$AQ,6,FALSE) ->  | J35: =VLOOKUP(CONCATENATE("OSUPJEUNEACCEPTREGECO_"&A35),Output!$C:$AQ,6,FALSE) ->  | K35: =VLOOKUP(CONCATENATE("OSUPREGECO_"&A35),Output!$C:$AQ,6,FALSE) ->  | M35: =ROUND(VLOOKUP("OSUPJEUNEREGECO_"&A35,Output!$C:$AQ,7,FALSE)/VLOOKUP("OSUPREGECO_"&A35,Output!$C:$AQ,6,FALSE),3) ->  | O35: =ROUND(VLOOKUP("OSUPJEUNEREGECO_"&$A35,Output!$C:$AQ,12,FALSE)/VLOOKUP("OSUPREGECO_"&A35,Output!$C:$AQ,6,FALSE),3) ->  | R35: =ROUND(VLOOKUP("OSUPVIEUXTOTREGECO_"&$A35,Output!$C:$AQ,7,FALSE)/VLOOKUP("OSUPREGECO_"&A35,Output!$C:$AQ,6,FALSE),3) ->  | T35: =ROUND(VLOOKUP("OSUPVIEUXTOTREGECO_"&$A35,Output!$C:$AQ,12,FALSE)/VLOOKUP("OSUPREGECO_"&A35,Output!$C:$AQ,6,FALSE),3) ->  | W35: 0 | AA35: =Tableaux!$O$33 -> 08551 | AB35: 0
G36: =VLOOKUP(CONCATENATE("OSUPVIEUXALERTEREGECO_"&A36),Output!$C:$AQ,6,FALSE) ->  | H36: =VLOOKUP(CONCATENATE("OSUPVIEUXACCEPTREGECO_"&A36),Output!$C:$AQ,6,FALSE) ->  | I36: =VLOOKUP(CONCATENATE("OSUPJEUNEALERTEREGECO_"&A36),Output!$C:$AQ,6,FALSE) ->  | J36: =VLOOKUP(CONCATENATE("OSUPJEUNEACCEPTREGECO_"&A36),Output!$C:$AQ,6,FALSE) ->  | K36: =VLOOKUP(CONCATENATE("OSUPREGECO_"&A36),Output!$C:$AQ,6,FALSE) ->  | M36: =ROUND(VLOOKUP("OSUPJEUNEREGECO_"&A36,Output!$C:$AQ,7,FALSE)/VLOOKUP("OSUPREGECO_"&A36,Output!$C:$AQ,6,FALSE),3) ->  | O36: =ROUND(VLOOKUP("OSUPJEUNEREGECO_"&$A36,Output!$C:$AQ,12,FALSE)/VLOOKUP("OSUPREGECO_"&A36,Output!$C:$AQ,6,FALSE),3) ->  | R36: =ROUND(VLOOKUP("OSUPVIEUXTOTREGECO_"&$A36,Output!$C:$AQ,7,FALSE)/VLOOKUP("OSUPREGECO_"&A36,Output!$C:$AQ,6,FALSE),3) ->  | T36: =ROUND(VLOOKUP("OSUPVIEUXTOTREGECO_"&$A36,Output!$C:$AQ,12,FALSE)/VLOOKUP("OSUPREGECO_"&A36,Output!$C:$AQ,6,FALSE),3) ->  | W36: 0 | AA36: =Tableaux!$O$33 -> 08551 | AB36: 0
G37: =VLOOKUP(CONCATENATE("OSUPVIEUXALERTEREGECO_"&A37),Output!$C:$AQ,6,FALSE) ->  | H37: =VLOOKUP(CONCATENATE("OSUPVIEUXACCEPTREGECO_"&A37),Output!$C:$AQ,6,FALSE) ->  | I37: =VLOOKUP(CONCATENATE("OSUPJEUNEALERTEREGECO_"&A37),Output!$C:$AQ,6,FALSE) ->  | J37: =VLOOKUP(CONCATENATE("OSUPJEUNEACCEPTREGECO_"&A37),Output!$C:$AQ,6,FALSE) ->  | K37: =VLOOKUP(CONCATENATE("OSUPREGECO_"&A37),Output!$C:$AQ,6,FALSE) ->  | M37: =ROUND(VLOOKUP("OSUPJEUNEREGECO_"&A37,Output!$C:$AQ,7,FALSE)/VLOOKUP("OSUPREGECO_"&A37,Output!$C:$AQ,6,FALSE),3) ->  | O37: =ROUND(VLOOKUP("OSUPJEUNEREGECO_"&$A37,Output!$C:$AQ,12,FALSE)/VLOOKUP("OSUPREGECO_"&A37,Output!$C:$AQ,6,FALSE),3) ->  | R37: =ROUND(VLOOKUP("OSUPVIEUXTOTREGECO_"&$A37,Output!$C:$AQ,7,FALSE)/VLOOKUP("OSUPREGECO_"&A37,Output!$C:$AQ,6,FALSE),3) ->  | T37: =ROUND(VLOOKUP("OSUPVIEUXTOTREGECO_"&$A37,Output!$C:$AQ,12,FALSE)/VLOOKUP("OSUPREGECO_"&A37,Output!$C:$AQ,6,FALSE),3) ->  | W37: 0 | AA37: =Tableaux!$O$33 -> 08551 | AB37: 0
G38: =VLOOKUP(CONCATENATE("OSUPVIEUXALERTEREGECO_"&A38),Output!$C:$AQ,6,FALSE) ->  | H38: =VLOOKUP(CONCATENATE("OSUPVIEUXACCEPTREGECO_"&A38),Output!$C:$AQ,6,FALSE) ->  | I38: =VLOOKUP(CONCATENATE("OSUPJEUNEALERTEREGECO_"&A38),Output!$C:$AQ,6,FALSE) ->  | J38: =VLOOKUP(CONCATENATE("OSUPJEUNEACCEPTREGECO_"&A38),Output!$C:$AQ,6,FALSE) ->  | K38: =VLOOKUP(CONCATENATE("OSUPREGECO_"&A38),Output!$C:$AQ,6,FALSE) ->  | M38: =ROUND(VLOOKUP("OSUPJEUNEREGECO_"&A38,Output!$C:$AQ,7,FALSE)/VLOOKUP("OSUPREGECO_"&A38,Output!$C:$AQ,6,FALSE),3) ->  | O38: =ROUND(VLOOKUP("OSUPJEUNEREGECO_"&$A38,Output!$C:$AQ,12,FALSE)/VLOOKUP("OSUPREGECO_"&A38,Output!$C:$AQ,6,FALSE),3) ->  | R38: =ROUND(VLOOKUP("OSUPVIEUXTOTREGECO_"&$A38,Output!$C:$AQ,7,FALSE)/VLOOKUP("OSUPREGECO_"&A38,Output!$C:$AQ,6,FALSE),3) ->  | T38: =ROUND(VLOOKUP("OSUPVIEUXTOTREGECO_"&$A38,Output!$C:$AQ,12,FALSE)/VLOOKUP("OSUPREGECO_"&A38,Output!$C:$AQ,6,FALSE),3) ->  | W38: 0 | AA38: =Tableaux!$O$33 -> 08551 | AB38: 0
G39: =VLOOKUP(CONCATENATE("OSUPVIEUXALERTEREGECO_"&A39),Output!$C:$AQ,6,FALSE) ->  | H39: =VLOOKUP(CONCATENATE("OSUPVIEUXACCEPTREGECO_"&A39),Output!$C:$AQ,6,FALSE) ->  | I39: =VLOOKUP(CONCATENATE("OSUPJEUNEALERTEREGECO_"&A39),Output!$C:$AQ,6,FALSE) ->  | J39: =VLOOKUP(CONCATENATE("OSUPJEUNEACCEPTREGECO_"&A39),Output!$C:$AQ,6,FALSE) ->  | K39: =VLOOKUP(CONCATENATE("OSUPREGECO_"&A39),Output!$C:$AQ,6,FALSE) ->  | M39: =ROUND(VLOOKUP("OSUPJEUNEREGECO_"&A39,Output!$C:$AQ,7,FALSE)/VLOOKUP("OSUPREGECO_"&A39,Output!$C:$AQ,6,FALSE),3) ->  | O39: =ROUND(VLOOKUP("OSUPJEUNEREGECO_"&$A39,Output!$C:$AQ,12,FALSE)/VLOOKUP("OSUPREGECO_"&A39,Output!$C:$AQ,6,FALSE),3) ->  | R39: =ROUND(VLOOKUP("OSUPVIEUXTOTREGECO_"&$A39,Output!$C:$AQ,7,FALSE)/VLOOKUP("OSUPREGECO_"&A39,Output!$C:$AQ,6,FALSE),3) ->  | T39: =ROUND(VLOOKUP("OSUPVIEUXTOTREGECO_"&$A39,Output!$C:$AQ,12,FALSE)/VLOOKUP("OSUPREGECO_"&A39,Output!$C:$AQ,6,FALSE),3) ->  | W39: 0 | AA39: =Tableaux!$O$33 -> 08551 | AB39: 0
G40: =VLOOKUP(CONCATENATE("OSUPVIEUXALERTEREGECO_"&A40),Output!$C:$AQ,6,FALSE) ->  | H40: =VLOOKUP(CONCATENATE("OSUPVIEUXACCEPTREGECO_"&A40),Output!$C:$AQ,6,FALSE) ->  | I40: =VLOOKUP(CONCATENATE("OSUPJEUNEALERTEREGECO_"&A40),Output!$C:$AQ,6,FALSE) ->  | J40: =VLOOKUP(CONCATENATE("OSUPJEUNEACCEPTREGECO_"&A40),Output!$C:$AQ,6,FALSE) ->  | K40: =VLOOKUP(CONCATENATE("OSUPREGECO_"&A40),Output!$C:$AQ,6,FALSE) ->  | M40: =ROUND(VLOOKUP("OSUPJEUNEREGECO_"&A40,Output!$C:$AQ,7,FALSE)/VLOOKUP("OSUPREGECO_"&A40,Output!$C:$AQ,6,FALSE),3) ->  | O40: =ROUND(VLOOKUP("OSUPJEUNEREGECO_"&$A40,Output!$C:$AQ,12,FALSE)/VLOOKUP("OSUPREGECO_"&A40,Output!$C:$AQ,6,FALSE),3) ->  | R40: =ROUND(VLOOKUP("OSUPVIEUXTOTREGECO_"&$A40,Output!$C:$AQ,7,FALSE)/VLOOKUP("OSUPREGECO_"&A40,Output!$C:$AQ,6,FALSE),3) ->  | T40: =ROUND(VLOOKUP("OSUPVIEUXTOTREGECO_"&$A40,Output!$C:$AQ,12,FALSE)/VLOOKUP("OSUPREGECO_"&A40,Output!$C:$AQ,6,FALSE),3) ->  | W40: 0 | AA40: =Tableaux!$O$33 -> 08551 | AB40: 0
G41: =VLOOKUP(CONCATENATE("OSUPVIEUXALERTEREGECO_"&A41),Output!$C:$AQ,6,FALSE) ->  | H41: =VLOOKUP(CONCATENATE("OSUPVIEUXACCEPTREGECO_"&A41),Output!$C:$AQ,6,FALSE) ->  | I41: =VLOOKUP(CONCATENATE("OSUPJEUNEALERTEREGECO_"&A41),Output!$C:$AQ,6,FALSE) ->  | J41: =VLOOKUP(CONCATENATE("OSUPJEUNEACCEPTREGECO_"&A41),Output!$C:$AQ,6,FALSE) ->  | K41: =VLOOKUP(CONCATENATE("OSUPREGECO_"&A41),Output!$C:$AQ,6,FALSE) ->  | M41: =ROUND(VLOOKUP("OSUPJEUNEREGECO_"&A41,Output!$C:$AQ,7,FALSE)/VLOOKUP("OSUPREGECO_"&A41,Output!$C:$AQ,6,FALSE),3) ->  | O41: =ROUND(VLOOKUP("OSUPJEUNEREGECO_"&$A41,Output!$C:$AQ,12,FALSE)/VLOOKUP("OSUPREGECO_"&A41,Output!$C:$AQ,6,FALSE),3) ->  | R41: =ROUND(VLOOKUP("OSUPVIEUXTOTREGECO_"&$A41,Output!$C:$AQ,7,FALSE)/VLOOKUP("OSUPREGECO_"&A41,Output!$C:$AQ,6,FALSE),3) ->  | T41: =ROUND(VLOOKUP("OSUPVIEUXTOTREGECO_"&$A41,Output!$C:$AQ,12,FALSE)/VLOOKUP("OSUPREGECO_"&A41,Output!$C:$AQ,6,FALSE),3) ->  | W41: 0 | AA41: =Tableaux!$O$33 -> 08551 | AB41: 0
G42: =VLOOKUP(CONCATENATE("OSUPVIEUXALERTEREGECO_"&A42),Output!$C:$AQ,6,FALSE) ->  | H42: =VLOOKUP(CONCATENATE("OSUPVIEUXACCEPTREGECO_"&A42),Output!$C:$AQ,6,FALSE) ->  | I42: =VLOOKUP(CONCATENATE("OSUPJEUNEALERTEREGECO_"&A42),Output!$C:$AQ,6,FALSE) ->  | J42: =VLOOKUP(CONCATENATE("OSUPJEUNEACCEPTREGECO_"&A42),Output!$C:$AQ,6,FALSE) ->  | K42: =VLOOKUP(CONCATENATE("OSUPREGECO_"&A42),Output!$C:$AQ,6,FALSE) ->  | M42: =ROUND(VLOOKUP("OSUPJEUNEREGECO_"&A42,Output!$C:$AQ,7,FALSE)/VLOOKUP("OSUPREGECO_"&A42,Output!$C:$AQ,6,FALSE),3) ->  | O42: =ROUND(VLOOKUP("OSUPJEUNEREGECO_"&$A42,Output!$C:$AQ,12,FALSE)/VLOOKUP("OSUPREGECO_"&A42,Output!$C:$AQ,6,FALSE),3) ->  | R42: =ROUND(VLOOKUP("OSUPVIEUXTOTREGECO_"&$A42,Output!$C:$AQ,7,FALSE)/VLOOKUP("OSUPREGECO_"&A42,Output!$C:$AQ,6,FALSE),3) ->  | T42: =ROUND(VLOOKUP("OSUPVIEUXTOTREGECO_"&$A42,Output!$C:$AQ,12,FALSE)/VLOOKUP("OSUPREGECO_"&A42,Output!$C:$AQ,6,FALSE),3) ->  | W42: 0 | AA42: =Tableaux!$O$33 -> 08551 | AB42: 0

Sheet Output
C1: 1 | D1: 2 | E1: 3 | F1: 4 | G1: 5 | H1: 6 | I1: 7 | J1: 8 | K1: 9 | L1: 10 | M1: 11 | N1: 12 | O1: 13 | P1: 14 | Q1: 15 | R1: 16 | S1: 17 | T1: 18 | U1: 19 | V1: 20 | W1: 21 | X1: 22 | Y1: 23 | Z1: 24 | AA1: 25 | AB1: 26 | AC1: 27 | AD1: 28 | AE1: 29 | AF1: 30 | AG1: 31 | AH1: 32 | AI1: 33 | AJ1: 34 | AK1: 35 | AL1: 36 | AM1: 37 | AN1: 38 | AO1: 39 | AP1: 40 | AQ1: 41
A2: Record | B2: GROUP | C2: NAME | D2: DESCRIPTIO | E2: ATTRIBUTE | F2: MINIMUM | G2: MAXIMUM | H2: PERIOD0 | I2: PERIOD1 | J2: PERIOD2 | K2: PERIOD3 | L2: PERIOD4 | M2: PERIOD5 | N2: PERIOD6 | O2: PERIOD7 | P2: PERIOD8 | Q2: PERIOD9 | R2: PERIOD10 | S2: PERIOD11 | T2: PERIOD12 | U2: PERIOD13 | V2: PERIOD14 | W2: PERIOD15 | X2: PERIOD16 | Y2: PERIOD17 | Z2: PERIOD18 | AA2: PERIOD19 | AB2: PERIOD20 | AC2: PERIOD21 | AD2: PERIOD22 | AE2: PERIOD23 | AF2: PERIOD24 | AG2: PERIOD25 | AH2: PERIOD26 | AI2: PERIOD27 | AJ2: PERIOD28 | AK2: PERIOD29 | AL2: PERIOD30 | AM2: Moyemme P2 à P6 | AN2: Moyenne P7 à P11 | AO2: Moyenne P12 à P20 | AP2: Moyenne P21 à P30 | AQ2: Moyenne P2 à P30
B3: <Not in Output group> | C3: OSUPTOT | D3: Superficie Totale | F3: 1039993.2 | G3: 1039993.2 | H3: 1039993.2 | I3: 1039993.2 | J3: 1039993.2 | K3: 1039993.2 | L3: 1039993.2 | M3: 1039993.2 | N3: 1039993.2 | O3: 1039993.2 | P3: 1039993.2 | Q3: 1039993.2 | R3: 1039993.2 | S3: 1039993.2 | T3: 1039993.2 | U3: 1039993.2 | V3: 1039993.2 | W3: 1039993.2 | X3: 1039993.2 | Y3: 1039993.2 | Z3: 1039993.2 | AA3: 1039993.2 | AB3: 1039993.2 | AC3: 1039993.2 | AD3: 1039993.2 | AE3: 1039993.2 | AF3: 1039993.2 | AG3: 1039993.2 | AH3: 1039993.2 | AI3: 1039993.2 | AJ3: 1039993.2 | AK3: 1039993.2 | AL3: 1039993.2 | AM3: =AVERAGE(J3:N3) -> 1039993.2 | AN3: =AVERAGE(O3:S3) -> 1039993.2 | AO3: =AVERAGE(T3:AB3) -> 1039993.2 | AP3: =AVERAGE(AC3:AL3) -> 1039993.2 | AQ3: =AVERAGE(J3:AL3) -> 1039993.2
B4: <Not in Output group> | C4: OSUPINC | D4: Superficie InclusActions par courbe | F4: 481685.38 | G4: 491415.5 | H4: 491415.5 | I4: 490227.23 | J4: 489149.26 | K4: 488122.27 | L4: 487192.71 | M4: 486439.79 | N4: 485721.98 | O4: 485244.74 | P4: 484595.04 | Q4: 484365.24 | R4: 483959.41 | S4: 483728.81 | T4: 483435.56 | U4: 483096.19 | V4: 482843.41 | W4: 482752.62 | X4: 482605.91 | Y4: 482547.29 | Z4: 482448.42 | AA4: 482380.56 | AB4: 482355.56 | AC4: 482277 | AD4: 482254.77 | AE4: 482254.77 | AF4: 482033.38 | AG4: 481801.32 | AH4: 481692.84 | AI4: 481685.38 | AJ4: 481685.38 | AK4: 481685.38 | AL4: 481685.38 | AM4: =AVERAGE(J4:N4) -> 487325.202 | AN4: =AVERAGE(O4:S4) -> 484378.648 | AO4: =AVERAGE(T4:AB4) -> 482718.3911 | AP4: =AVERAGE(AC4:AL4) -> 481905.56 | AQ4: =AVERAGE(J4:AL4) -> 483518.6334
B5: <Not in Output group> | C5: OSUPregECO | D5: Superficie Disponible aux RÚsultats ╔cologiques | F5: 649377.68 | G5: 659107.8 | H5: 659107.8 | I5: 657919.53 | J5: 656841.56 | K5: 655814.57 | L5: 654885.01 | M5: 654132.09 | N5: 653414.28 | O5: 652937.04 | P5: 652287.34 | Q5: 652057.54 | R5: 651651.71 | S5: 651421.11 | T5: 651127.86 | U5: 650788.49 | V5: 650535.71 | W5: 650444.92 | X5: 650298.21 | Y5: 650239.59 | Z5: 650140.72 | AA5: 650072.86 | AB5: 650047.86 | AC5: 649969.3 | AD5: 649947.07 | AE5: 649947.07 | AF5: 649725.68 | AG5: 649493.62 | AH5: 649385.14 | AI5: 649377.68 | AJ5: 649377.68 | AK5: 649377.68 | AL5: 649377.68 | AM5: 655017.502 | AN5: 652070.948 | AO5: 650410.6911 | AP5: 649597.86 | AQ5: 651210.9334
B6: <Not in Output group> | C6: OSUPEXIN | D6: Superficie ExcluActionsInclus | F6: 167692.3 | G6: 167692.3 | H6: 167692.3 | I6: 167692.3 | J6: 167692.3 | K6: 167692.3 | L6: 167692.3 | M6: 167692.3 | N6: 167692.3 | O6: 167692.3 | P6: 167692.3 | Q6: 167692.3 | R6: 167692.3 | S6: 167692.3 | T6: 167692.3 | U6: 167692.3 | V6: 167692.3 | W6: 167692.3 | X6: 167692.3 | Y6: 167692.3 | Z6: 167692.3 | AA6: 167692.3 | AB6: 167692.3 | AC6: 167692.3 | AD6: 167692.3 | AE6: 167692.3 | AF6: 167692.3 | AG6: 167692.3 | AH6: 167692.3 | AI6: 167692.3 | AJ6: 167692.3 | AK6: 167692.3 | AL6: 167692.3 | AM6: 167692.3 | AN6: 167692.3 | AO6: 167692.3 | AP6: 167692.3 | AQ6: 167692.3
B7: <Not in Output group> | C7: OSUPEXTI | D7: Superficie Improductive | F7: 335957.7 | G7: 335957.7 | H7: 335957.7 | I7: 335957.7 | J7: 335957.7 | K7: 335957.7 | L7: 335957.7 | M7: 335957.7 | N7: 335957.7 | O7: 335957.7 | P7: 335957.7 | Q7: 335957.7 | R7: 335957.7 | S7: 335957.7 | T7: 335957.7 | U7: 335957.7 | V7: 335957.7 | W7: 335957.7 | X7: 335957.7 | Y7: 335957.7 | Z7: 335957.7 | AA7: 335957.7 | AB7: 335957.7 | AC7: 335957.7 | AD7: 335957.7 | AE7: 335957.7 | AF7: 335957.7 | AG7: 335957.7 | AH7: 335957.7 | AI7: 335957.7 | AJ7: 335957.7 | AK7: 335957.7 | AL7: 335957.7 | AM7: 335957.7 | AN7: 335957.7 | AO7: 335957.7 | AP7: 335957.7 | AQ7: 335957.7
B8: <Not in Output group> | C8: OSUPLOCK | D8: Superficie Sous Verrous | F8: 9169.34 | G8: 97114.15 | H8: 95309.2 | I8: 97114.15 | J8: 81128.8 | K8: 83596.35 | L8: 87207.5 | M8: 48292.48 | N8: 48401.92 | O8: 49447.93 | P8: 48877.09 | Q8: 14638.4 | R8: 13620.16 | S8: 12817.81 | T8: 11910.53 | U8: 10988.2 | V8: 10061.08 | W8: 10010.33 | X8: 9710.76 | Y8: 9169.34 | Z8: 9566.08 | AA8: 10216.08 | AB8: 11166.08 | AC8: 12116.08 | AD8: 13066.08 | AE8: 14006.72 | AF8: 15056.72 | AG8: 15161.67 | AH8: 14956.99 | AI8: 14620.87 | AJ8: 14699.76 | AK8: 14799.76 | AL8: 13997.34 | AM8: 69725.41 | AN8: 27880.278 | AO8: 10310.94222 | AP8: 14248.199 | AQ8: 24941.68655
B9: Economique | C9: oSupTcsdDEG_1_T100% | D9: oSupTcsdDEG_1_T100% | F9: 0 | G9: 3675 | H9: 0 | I9: 2040.37 | J9: 1915.64 | K9: 3657.5 | L9: 3183.34 | M9: 3657.2 | N9: 3675 | O9: 2616.74 | P9: 3113.18 | Q9: 2909.69 | R9: 2971.91 | S9: 3325 | T9: 3325 | U9: 2571.35 | V9: 2933.9 | W9: 2582.92 | X9: 1590.8 | Y9: 3334.72 | Z9: 2766.23 | AA9: 2696.35 | AB9: 2779.97 | AC9: 2370.1 | AD9: 2770.06 | AE9: 2782.52 | AF9: 2291.25 | AG9: 2169.86 | AH9: 1516.47 | AI9: 950.89 | AJ9: 1570.1 | AK9: 1119.59 | AL9: 2748.17 | AM9: 3217.736 | AN9: 2987.304 | AO9: 2731.248889 | AP9: 2028.901 | AQ9: 2617.084483
B10: Economique | C10: oSupTcsdDEG_2_T100% | D10: oSupTcsdDEG_2_T100% | F10: 0 | G10: 2706.61 | H10: 0 | I10: 0 | J10: 698.16 | K10: 0 | L10: 19.2 | M10: 0 | N10: 0 | O10: 314.26 | P10: 0 | Q10: 0 | R10: 0 | S10: 0 | T10: 0 | U10: 0 | V10: 0 | W10: 0 | X10: 0 | Y10: 0 | Z10: 22.91 | AA10: 426.82 | AB10: 545.03 | AC10: 0 | AD10: 531.04 | AE10: 538.78 | AF10: 0 | AG10: 0 | AH10: 1808.53 | AI10: 2706.61 | AJ10: 0 | AK10: 157.31 | AL10: 111.44 | AM10: 143.472 | AN10: 62.852 | AO10: 110.5288889 | AP10: 585.371 | AQ10: 271.7272414
B11: Economique | C11: oSupDEG_1_T100% | D11: oSupDEG_1_T100% | F11: 0 | G11: 3675 | H11: 0 | I11: 2040.37 | J11: 1915.64 | K11: 3657.5 | L11: 3183.34 | M11: 3657.2 | N11: 3675 | O11: 2616.74 | P11: 3113.18 | Q11: 2909.69 | R11: 2971.91 | S11: 3325 | T11: 3325 | U11: 2571.35 | V11: 2933.9 | W11: 2582.92 | X11: 1590.8 | Y11: 3334.72 | Z11: 2766.23 | AA11: 2696.35 | AB11: 2779.97 | AC11: 2370.1 | AD11: 2770.06 | AE11: 2782.52 | AF11: 2291.25 | AG11: 2169.86 | AH11: 1516.47 | AI11: 950.89 | AJ11: 1570.1 | AK11: 1119.59 | AL11: 2748.17 | AM11: 3217.736 | AN11: 2987.304 | AO11: 2731.248889 | AP11: 2028.901 | AQ11: 2617.084483
B12: Economique | C12: oSupDEG_2_T100% | D12: oSupDEG_2_T100% | F12: 0 | G12: 2706.61 | H12: 0 | I12: 0 | J12: 698.16 | K12: 0 | L12: 19.2 | M12: 0 | N12: 0 | O12: 314.26 | P12: 0 | Q12: 0 | R12: 0 | S12: 0 | T12: 0 | U12: 0 | V12: 0 | W12: 0 | X12: 0 | Y12: 0 | Z12: 22.91 | AA12: 426.82 | AB12: 545.03 | AC12: 0 | AD12: 531.04 | AE12: 538.78 | AF12: 0 | AG12: 0 | AH12: 1808.53 | AI12: 2706.61 | AJ12: 0 | AK12: 157.31 | AL12: 111.44 | AM12: 143.472 | AN12: 62.852 | AO12: 110.5288889 | AP12: 585.371 | AQ12: 271.7272414
B13: Economique | C13: oSupDEG_1 | D13: oSupDEG_1 | F13: 0 | G13: 3675 | H13: 0 | I13: 2040.37 | J13: 1915.64 | K13: 3657.5 | L13: 3183.34 | M13: 3657.2 | N13: 3675 | O13: 2616.74 | P13: 3113.18 | Q13: 2909.69 | R13: 2971.91 | S13: 3325 | T13: 3325 | U13: 2571.35 | V13: 2933.9 | W13: 2582.92 | X13: 1590.8 | Y13: 3334.72 | Z13: 2766.23 | AA13: 2696.35 | AB13: 2779.97 | AC13: 2370.1 | AD13: 2770.06 | AE13: 2782.52 | AF13: 2291.25 | AG13: 2169.86 | AH13: 1516.47 | AI13: 950.89 | AJ13: 1570.1 | AK13: 1119.59 | AL13: 2748.17 | AM13: 3217.736 | AN13: 2987.304 | AO13: 2731.248889 | AP13: 2028.901 | AQ13: 2617.084483
B14: Economique | C14: oSupDEG_2 | D14: oSupDEG_2 | F14: 0 | G14: 2706.61 | H14: 0 | I14: 0 | J14: 698.16 | K14: 0 | L14: 19.2 | M14: 0 | N14: 0 | O14: 314.26 | P14: 0 | Q14: 0 | R14: 0 | S14: 0 | T14: 0 | U14: 0 | V14: 0 | W14: 0 | X14: 0 | Y14: 0 | Z14: 22.91 | AA14: 426.82 | AB14: 545.03 | AC14: 0 | AD14: 531.04 | AE14: 538.78 | AF14: 0 | AG14: 0 | AH14: 1808.53 | AI14: 2706.61 | AJ14: 0 | AK14: 157.31 | AL14: 111.44 | AM14: 143.472 | AN14: 62.852 | AO14: 110.5288889 | AP14: 585.371 | AQ14: 271.7272414
B15: Economique | C15: oSupTcsdSCA_LIGN_T100% | D15: oSupTcsdSCA_LIGN_T100% | F15: 0 | G15: 0 | H15: 0 | I15: 0 | J15: 0 | K15: 0 | L15: 0 | M15: 0 | N15: 0 | O15: 0 | P15: 0 | Q15: 0 | R15: 0 | S15: 0 | T15: 0 | U15: 0 | V15: 0 | W15: 0 | X15: 0 | Y15: 0 | Z15: 0 | AA15: 0 | AB15: 0 | AC15: 0 | AD15: 0 | AE15: 0 | AF15: 0 | AG15: 0 | AH15: 0 | AI15: 0 | AJ15: 0 | AK15: 0 | AL15: 0 | AM15: 0 | AN15: 0 | AO15: 0 | AP15: 0 | AQ15: 0
B16: Economique | C16: oSupTcsdSCA_LRD_T100% | D16: oSupTcsdSCA_LRD_T100% | F16: 0 | G16: 0 | H16: 0 | I16: 0 | J16: 0 | K16: 0 | L16: 0 | M16: 0 | N16: 0 | O16: 0 | P16: 0 | Q16: 0 | R16: 0 | S16: 0 | T16: 0 | U16: 0 | V16: 0 | W16: 0 | X16: 0 | Y16: 0 | Z16: 0 | AA16: 0 | AB16: 0 | AC16: 0 | AD16: 0 | AE16: 0 | AF16: 0 | AG16: 0 | AH16: 0 | AI16: 0 | AJ16: 0 | AK16: 0 | AL16: 0 | AM16: 0 | AN16: 0 | AO16: 0 | AP16: 0 | AQ16: 0
B17: Economique | C17: oSupTcsdSCA_PART_T100% | D17: oSupTcsdSCA_PART_T100% | F17: 0 | G17: 2798.69 | H17: 0 | I17: 283.5 | J17: 840.66 | K17: 142.5 | L17: 161.7 | M17: 142.5 | N17: 142.5 | O17: 456.76 | P17: 40.16 | Q17: 90.64 | R17: 84.38 | S17: 15.74 | T17: 0 | U17: 0 | V17: 0 | W17: 0 | X17: 0.7 | Y17: 0 | Z17: 129.62 | AA17: 569.32 | AB17: 687.53 | AC17: 142.5 | AD17: 673.54 | AE17: 680.58 | AF17: 157.5 | AG17: 122.45 | AH17: 1920.33 | AI17: 2798.69 | AJ17: 154.33 | AK17: 314.81 | AL17: 132.87 | AM17: 285.972 | AN17: 137.536 | AO17: 154.13 | AP17: 709.76 | AQ17: 365.5968966
B18: Economique | C18: oSupTcsdSCA_REG_T100% | D18: oSupTcsdSCA_REG_T100% | F18: 0 | G18: 7350 | H18: 0 | I18: 6470 | J18: 5951.84 | K18: 6732.47 | L18: 6630.8 | M18: 7077.96 | N18: 7350 | O18: 6335.74 | P18: 6650 | Q18: 6650 | R18: 6650 | S18: 6742.99 | T18: 6787.19 | U18: 7000.29 | V18: 6897.78 | W18: 6798.83 | X18: 6992.13 | Y18: 6650 | Z18: 6627.09 | AA18: 6223.18 | AB18: 6104.97 | AC18: 6650 | AD18: 6118.96 | AE18: 6111.22 | AF18: 7047.89 | AG18: 7158.9 | AH18: 5541.47 | AI18: 4642.77 | AJ18: 6650 | AK18: 6506.97 | AL18: 6662.94 | AM18: 6748.614 | AN18: 6605.746 | AO18: 6675.717778 | AP18: 6309.112 | AQ18: 6549.806207
B19: Economique | C19: oSupSCA_LIGN_T100% | D19: oSupSCA_LIGN_T100% | F19: 0 | G19: 0 | H19: 0 | I19: 0 | J19: 0 | K19: 0 | L19: 0 | M19: 0 | N19: 0 | O19: 0 | P19: 0 | Q19: 0 | R19: 0 | S19: 0 | T19: 0 | U19: 0 | V19: 0 | W19: 0 | X19: 0 | Y19: 0 | Z19: 0 | AA19: 0 | AB19: 0 | AC19: 0 | AD19: 0 | AE19: 0 | AF19: 0 | AG19: 0 | AH19: 0 | AI19: 0 | AJ19: 0 | AK19: 0 | AL19: 0 | AM19: 0 | AN19: 0 | AO19: 0 | AP19: 0 | AQ19: 0
B20: Economique | C20: oSupSCA_LRD_T100% | D20: oSupSCA_LRD_T100% | F20: 0 | G20: 0 | H20: 0 | I20: 0 | J20: 0 | K20: 0 | L20: 0 | M20: 0 | N20: 0 | O20: 0 | P20: 0 | Q20: 0 | R20: 0 | S20: 0 | T20: 0 | U20: 0 | V20: 0 | W20: 0 | X20: 0 | Y20: 0 | Z20: 0 | AA20: 0 | AB20: 0 | AC20: 0 | AD20: 0 | AE20: 0 | AF20: 0 | AG20: 0 | AH20: 0 | AI20: 0 | AJ20: 0 | AK20: 0 | AL20: 0 | AM20: 0 | AN20: 0 | AO20: 0 | AP20: 0 | AQ20: 0
B21: Economique | C21: oSupSCA_PART_T100% | D21: oSupSCA_PART_T100% | F21: 0 | G21: 2798.69 | H21: 0 | I21: 283.5 | J21: 840.66 | K21: 142.5 | L21: 161.7 | M21: 142.5 | N21: 142.5 | O21: 456.76 | P21: 40.16 | Q21: 90.64 | R21: 84.38 | S21: 15.74 | T21: 0 | U21: 0 | V21: 0 | W21: 0 | X21: 0.7 | Y21: 0 | Z21: 129.62 | AA21: 569.32 | AB21: 687.53 | AC21: 142.5 | AD21: 673.54 | AE21: 680.58 | AF21: 157.5 | AG21: 122.45 | AH21: 1920.33 | AI21: 2798.69 | AJ21: 154.33 | AK21: 314.81 | AL21: 132.87 | AM21: 285.972 | AN21: 137.536 | AO21: 154.13 | AP21: 709.76 | AQ21: 365.5968966
B22: Economique | C22: oSupSCA_REG_T100% | D22: oSupSCA_REG_T100% | F22: 0 | G22: 7350 | H22: 0 | I22: 6470 | J22: 5951.84 | K22: 6732.47 | L22: 6630.8 | M22: 7077.96 | N22: 7350 | O22: 6335.74 | P22: 6650 | Q22: 6650 | R22: 6650 | S22: 6742.99 | T22: 6787.19 | U22: 7000.29 | V22: 6897.78 | W22: 6798.83 | X22: 6992.13 | Y22: 6650 | Z22: 6627.09 | AA22: 6223.18 | AB22: 6104.97 | AC22: 6650 | AD22: 6118.96 | AE22: 6111.22 | AF22: 7047.89 | AG22: 7158.9 | AH22: 5541.47 | AI22: 4642.77 | AJ22: 6650 | AK22: 6506.97 | AL22: 6662.94 | AM22: 6748.614 | AN22: 6605.746 | AO22: 6675.717778 | AP22: 6309.112 | AQ22: 6549.806207
B23: Economique | C23: oSupSCA_LIGN | D23: oSupSCA_LIGN | F23: 0 | G23: 0 | H23: 0 | I23: 0 | J23: 0 | K23: 0 | L23: 0 | M23: 0 | N23: 0 | O23: 0 | P23: 0 | Q23: 0 | R23: 0 | S23: 0 | T23: 0 | U23: 0 | V23: 0 | W23: 0 | X23: 0 | Y23: 0 | Z23: 0 | AA23: 0 | AB23: 0 | AC23: 0 | AD23: 0 | AE23: 0 | AF23: 0 | AG23: 0 | AH23: 0 | AI23: 0 | AJ23: 0 | AK23: 0 | AL23: 0 | AM23: 0 | AN23: 0 | AO23: 0 | AP23: 0 | AQ23: 0
B24: Economique | C24: oSupSCA_LRD | D24: oSupSCA_LRD | F24: 0 | G24: 0 | H24: 0 | I24: 0 | J24: 0 | K24: 0 | L24: 0 | M24: 0 | N24: 0 | O24: 0 | P24: 0 | Q24: 0 | R24: 0 | S24: 0 | T24: 0 | U24: 0 | V24: 0 | W24: 0 | X24: 0 | Y24: 0 | Z24: 0 | AA24: 0 | AB24: 0 | AC24: 0 | AD24: 0 | AE24: 0 | AF24: 0 | AG24: 0 | AH24: 0 | AI24: 0 | AJ24: 0 | AK24: 0 | AL24: 0 | AM24: 0 | AN24: 0 | AO24: 0 | AP24: 0 | AQ24: 0
B25: Economique | C25: oSupSCA_PART | D25: oSupSCA_PART | F25: 0 | G25: 2798.69 | H25: 0 | I25: 283.5 | J25: 840.66 | K25: 142.5 | L25: 161.7 | M25: 142.5 | N25: 142.5 | O25: 456.76 | P25: 40.16 | Q25: 90.64 | R25: 84.38 | S25: 15.74 | T25: 0 | U25: 0 | V25: 0 | W25: 0 | X25: 0.7 | Y25: 0 | Z25: 129.62 | AA25: 569.32 | AB25: 687.53 | AC25: 142.5 | AD25: 673.54 | AE25: 680.58 | AF25: 157.5 | AG25: 122.45 | AH25: 1920.33 | AI25: 2798.69 | AJ25: 154.33 | AK25: 314.81 | AL25: 132.87 | AM25: 285.972 | AN25: 137.536 | AO25: 154.13 | AP25: 709.76 | AQ25: 365.5968966
B26: Economique | C26: oSupSCA_REG | D26: oSupSCA_REG | F26: 0 | G26: 7350 | H26: 0 | I26: 6470 | J26: 5951.84 | K26: 6732.47 | L26: 6630.8 | M26: 7077.96 | N26: 7350 | O26: 6335.74 | P26: 6650 | Q26: 6650 | R26: 6650 | S26: 6742.99 | T26: 6787.19 | U26: 7000.29 | V26: 6897.78 | W26: 6798.83 | X26: 6992.13 | Y26: 6650 | Z26: 6627.09 | AA26: 6223.18 | AB26: 6104.97 | AC26: 6650 | AD26: 6118.96 | AE26: 6111.22 | AF26: 7047.89 | AG26: 7158.9 | AH26: 5541.47 | AI26: 4642.77 | AJ26: 6650 | AK26: 6506.97 | AL26: 6662.94 | AM26: 6748.614 | AN26: 6605.746 | AO26: 6675.717778 | AP26: 6309.112 | AQ26: 6549.806207
B27: Economique | C27: oSupActREG_T100% | D27: oSupActREG_T100% | F27: 0 | G27: 2706.61 | H27: 0 | I27: 0 | J27: 698.16 | K27: 0 | L27: 19.2 | M27: 0 | N27: 0 | O27: 314.26 | P27: 0 | Q27: 0 | R27: 0 | S27: 0 | T27: 0 | U27: 0 | V27: 0 | W27: 0 | X27: 0 | Y27: 0 | Z27: 22.91 | AA27: 426.82 | AB27: 545.03 | AC27: 0 | AD27: 531.04 | AE27: 538.78 | AF27: 0 | AG27: 0 | AH27: 1808.53 | AI27: 2706.61 | AJ27: 0 | AK27: 157.31 | AL27: 111.44 | AM27: 143.472 | AN27: 62.852 | AO27: 110.5288889 | AP27: 585.371 | AQ27: 271.7272414
B28: Economique | C28: oSupREG_T100% | D28: oSupREG_T100% | F28: 0 | G28: 2706.61 | H28: 0 | I28: 0 | J28: 698.16 | K28: 0 | L28: 19.2 | M28: 0 | N28: 0 | O28: 314.26 | P28: 0 | Q28: 0 | R28: 0 | S28: 0 | T28: 0 | U28: 0 | V28: 0 | W28: 0 | X28: 0 | Y28: 0 | Z28: 22.91 | AA28: 426.82 | AB28: 545.03 | AC28: 0 | AD28: 531.04 | AE28: 538.78 | AF28: 0 | AG28: 0 | AH28: 1808.53 | AI28: 2706.61 | AJ28: 0 | AK28: 157.31 | AL28: 111.44 | AM28: 143.472 | AN28: 62.852 | AO28: 110.5288889 | AP28: 585.371 | AQ28: 271.7272414
B29: Economique | C29: oSupREG | D29: oSupREG | F29: 0 | G29: 2706.61 | H29: 0 | I29: 0 | J29: 698.16 | K29: 0 | L29: 19.2 | M29: 0 | N29: 0 | O29: 314.26 | P29: 0 | Q29: 0 | R29: 0 | S29: 0 | T29: 0 | U29: 0 | V29: 0 | W29: 0 | X29: 0 | Y29: 0 | Z29: 22.91 | AA29: 426.82 | AB29: 545.03 | AC29: 0 | AD29: 531.04 | AE29: 538.78 | AF29: 0 | AG29: 0 | AH29: 1808.53 | AI29: 2706.61 | AJ29: 0 | AK29: 157.31 | AL29: 111.44 | AM29: 143.472 | AN29: 62.852 | AO29: 110.5288889 | AP29: 585.371 | AQ29: 271.7272414
B30: Economique | C30: oSupActCPIRL_FIN_T100% | D30: oSupActCPIRL_FIN_T100% | F30: 0 | G30: 1050 | H30: 0 | I30: 0 | J30: 0 | K30: 0 | L30: 0 | M30: 0 | N30: 0 | O30: 0 | P30: 782.26 | Q30: 445.74 | R30: 487.49 | S30: 845.1 | T30: 950 | U30: 1050 | V30: 1050 | W30: 1050 | X30: 945.32 | Y30: 950 | Z30: 238.6 | AA30: 0 | AB30: 0 | AC30: 0 | AD30: 0 | AE30: 4.68 | AF30: 0 | AG30: 233.65 | AH30: 304.68 | AI30: 436.12 | AJ30: 21.11 | AK30: 0 | AL30: 907.1 | AM30: 0 | AN30: 512.118 | AO30: 692.6577778 | AP30: 190.734 | AQ30: 369.0293103
B31: Economique | C31: oSupActCPIRL_INI_T100% | D31: oSupActCPIRL_INI_T100% | F31: 0 | G31: 1890 | H31: 0 | I31: 1890 | J31: 950 | K31: 950 | L31: 950 | M31: 950 | N31: 950 | O31: 950 | P31: 267.74 | Q31: 604.26 | R31: 562.51 | S31: 104.9 | T31: 0 | U31: 0 | V31: 0 | W31: 0 | X31: 4.68 | Y31: 0 | Z31: 711.4 | AA31: 950 | AB31: 950 | AC31: 950 | AD31: 950 | AE31: 945.32 | AF31: 1050 | AG31: 816.35 | AH31: 745.32 | AI31: 613.88 | AJ31: 1028.89 | AK31: 1050 | AL31: 142.9 | AM31: 950 | AN31: 497.882 | AO31: 290.6755556 | AP31: 829.266 | AQ31: 625.7982759
B32: Economique | C32: oSupCPIRL_FIN_T100% | D32: oSupCPIRL_FIN_T100% | F32: 0 | G32: 1050 | H32: 0 | I32: 0 | J32: 0 | K32: 0 | L32: 0 | M32: 0 | N32: 0 | O32: 0 | P32: 782.26 | Q32: 445.74 | R32: 487.49 | S32: 845.1 | T32: 950 | U32: 1050 | V32: 1050 | W32: 1050 | X32: 945.32 | Y32: 950 | Z32: 238.6 | AA32: 0 | AB32: 0 | AC32: 0 | AD32: 0 | AE32: 4.68 | AF32: 0 | AG32: 233.65 | AH32: 304.68 | AI32: 436.12 | AJ32: 21.11 | AK32: 0 | AL32: 907.1 | AM32: 0 | AN32: 512.118 | AO32: 692.6577778 | AP32: 190.734 | AQ32: 369.0293103
B33: Economique | C33: oSupCPIRL_INI_T100% | D33: oSupCPIRL_INI_T100% | F33: 0 | G33: 1890 | H33: 0 | I33: 1890 | J33: 950 | K33: 950 | L33: 950 | M33: 950 | N33: 950 | O33: 950 | P33: 267.74 | Q33: 604.26 | R33: 562.51 | S33: 104.9 | T33: 0 | U33: 0 | V33: 0 | W33: 0 | X33: 4.68 | Y33: 0 | Z33: 711.4 | AA33: 950 | AB33: 950 | AC33: 950 | AD33: 950 | AE33: 945.32 | AF33: 1050 | AG33: 816.35 | AH33: 745.32 | AI33: 613.88 | AJ33: 1028.89 | AK33: 1050 | AL33: 142.9 | AM33: 950 | AN33: 497.882 | AO33: 290.6755556 | AP33: 829.266 | AQ33: 625.7982759
B34: Economique | C34: oSupCPIRL_FIN | D34: oSupCPIRL_FIN | F34: 0 | G34: 1050 | H34: 0 | I34: 0 | J34: 0 | K34: 0 | L34: 0 | M34: 0 | N34: 0 | O34: 0 | P34: 782.26 | Q34: 445.74 | R34: 487.49 | S34: 845.1 | T34: 950 | U34: 1050 | V34: 1050 | W34: 1050 | X34: 945.32 | Y34: 950 | Z34: 238.6 | AA34: 0 | AB34: 0 | AC34: 0 | AD34: 0 | AE34: 4.68 | AF34: 0 | AG34: 233.65 | AH34: 304.68 | AI34: 436.12 | AJ34: 21.11 | AK34: 0 | AL34: 907.1 | AM34: 0 | AN34: 512.118 | AO34: 692.6577778 | AP34: 190.734 | AQ34: 369.0293103
B35: Economique | C35: oSupCPIRL_INI | D35: oSupCPIRL_INI | F35: 0 | G35: 1890 | H35: 0 | I35: 1890 | J35: 950 | K35: 950 | L35: 950 | M35: 950 | N35: 950 | O35: 950 | P35: 267.74 | Q35: 604.26 | R35: 562.51 | S35: 104.9 | T35: 0 | U35: 0 | V35: 0 | W35: 0 | X35: 4.68 | Y35: 0 | Z35: 711.4 | AA35: 950 | AB35: 950 | AC35: 950 | AD35: 950 | AE35: 945.32 | AF35: 1050 | AG35: 816.35 | AH35: 745.32 | AI35: 613.88 | AJ35: 1028.89 | AK35: 1050 | AL35: 142.9 | AM35: 950 | AN35: 497.882 | AO35: 290.6755556 | AP35: 829.266 | AQ35: 625.7982759
B36: Economique | C36: oSupActCT_T100% | D36: oSupActCT_T100% | F36: 0 | G36: 25505.87 | H36: 0 | I36: 24889.83 | J36: 23126.19 | K36: 23327.4 | L36: 22856.44 | M36: 23057.49 | N36: 22652.3 | O36: 20005.24 | P36: 21849.54 | Q36: 17507.6 | R36: 19908.8 | S36: 19413.44 | T36: 22968.64 | U36: 25505.87 | V36: 23480.04 | W36: 20912.15 | X36: 23564.5 | Y36: 21716.38 | Z36: 20077.94 | AA36: 20827.62 | AB36: 17195.8 | AC36: 23009.75 | AD36: 20032.31 | AE36: 19895.78 | AF36: 22263.66 | AG36: 22814.3 | AH36: 20191.35 | AI36: 20206.96 | AJ36: 22990.38 | AK36: 22808.45 | AL36: 23365.03 | AM36: 23003.964 | AN36: 19736.924 | AO36: 21805.43778 | AP36: 21757.797 | AQ36: 21639.01207
B37: Economique | C37: oSupCT_T100% | D37: oSupCT_T100% | F37: 0 | G37: 25505.87 | H37: 0 | I37: 24889.83 | J37: 23126.19 | K37: 23327.4 | L37: 22856.44 | M37: 23057.49 | N37: 22652.3 | O37: 20005.24 | P37: 21849.54 | Q37: 17507.6 | R37: 19908.8 | S37: 19413.44 | T37: 22968.64 | U37: 25505.87 | V37: 23480.04 | W37: 20912.15 | X37: 23564.5 | Y37: 21716.38 | Z37: 20077.94 | AA37: 20827.62 | AB37: 17195.8 | AC37: 23009.75 | AD37: 20032.31 | AE37: 19895.78 | AF37: 22263.66 | AG37: 22814.3 | AH37: 20191.35 | AI37: 20206.96 | AJ37: 22990.38 | AK37: 22808.45 | AL37: 23365.03 | AM37: 23003.964 | AN37: 19736.924 | AO37: 21805.43778 | AP37: 21757.797 | AQ37: 21639.01207
B38: Economique | C38: oSupCT | D38: oSupCT | F38: 0 | G38: 25505.87 | H38: 0 | I38: 24889.83 | J38: 23126.19 | K38: 23327.4 | L38: 22856.44 | M38: 23057.49 | N38: 22652.3 | O38: 20005.24 | P38: 21849.54 | Q38: 17507.6 | R38: 19908.8 | S38: 19413.44 | T38: 22968.64 | U38: 25505.87 | V38: 23480.04 | W38: 20912.15 | X38: 23564.5 | Y38: 21716.38 | Z38: 20077.94 | AA38: 20827.62 | AB38: 17195.8 | AC38: 23009.75 | AD38: 20032.31 | AE38: 19895.78 | AF38: 22263.66 | AG38: 22814.3 | AH38: 20191.35 | AI38: 20206.96 | AJ38: 22990.38 | AK38: 22808.45 | AL38: 23365.03 | AM38: 23003.964 | AN38: 19736.924 | AO38: 21805.43778 | AP38: 21757.797 | AQ38: 21639.01207
B39: Economique | C39: oSupActPL_PPF_T100% | D39: oSupActPL_PPF_T100% | F39: 0 | G39: 0 | H39: 0 | I39: 0 | J39: 0 | K39: 0 | L39: 0 | M39: 0 | N39: 0 | O39: 0 | P39: 0 | Q39: 0 | R39: 0 | S39: 0 | T39: 0 | U39: 0 | V39: 0 | W39: 0 | X39: 0 | Y39: 0 | Z39: 0 | AA39: 0 | AB39: 0 | AC39: 0 | AD39: 0 | AE39: 0 | AF39: 0 | AG39: 0 | AH39: 0 | AI39: 0 | AJ39: 0 | AK39: 0 | AL39: 0 | AM39: 0 | AN39: 0 | AO39: 0 | AP39: 0 | AQ39: 0
B40: Economique | C40: oSupActPL_SEPM_E_T100% | D40: oSupActPL_SEPM_E_T100% | F40: 0 | G40: 7158.9 | H40: 0 | I40: 4494.6 | J40: 4083.2 | K40: 3083.17 | L40: 5238.38 | M40: 4203.19 | N40: 3675 | O40: 3719 | P40: 3536.82 | Q40: 3740.31 | R40: 3678.09 | S40: 3417.99 | T40: 3462.19 | U40: 4428.94 | V40: 3963.88 | W40: 4215.91 | X40: 5401.33 | Y40: 3315.28 | Z40: 3860.86 | AA40: 3526.84 | AB40: 3325 | AC40: 4279.9 | AD40: 3348.9 | AE40: 3328.7 | AF40: 7047.89 | AG40: 7158.9 | AH40: 4046.13 | AI40: 3691.88 | AJ40: 5079.9 | AK40: 5579.01 | AL40: 5357.3 | AM40: 4056.588 | AN40: 3618.442 | AO40: 3944.47 | AP40: 4891.851 | AQ40: 4234.272069
B41: Economique | C41: oSupActPL_SEPM_I_T100% | D41: oSupActPL_SEPM_I_T100% | F41: 0 | G41: 3675 | H41: 0 | I41: 1975.4 | J41: 1868.64 | K41: 3649.3 | L41: 1392.43 | M41: 2874.76 | N41: 3675 | O41: 2616.74 | P41: 3113.18 | Q41: 2909.69 | R41: 2971.91 | S41: 3325 | T41: 3325 | U41: 2571.35 | V41: 2933.9 | W41: 2582.92 | X41: 1590.8 | Y41: 3334.72 | Z41: 2766.23 | AA41: 2696.35 | AB41: 2779.97 | AC41: 2370.1 | AD41: 2770.06 | AE41: 2782.52 | AF41: 0 | AG41: 0 | AH41: 1495.34 | AI41: 950.89 | AJ41: 1570.1 | AK41: 927.96 | AL41: 1305.64 | AM41: 2692.026 | AN41: 2987.304 | AO41: 2731.248889 | AP41: 1417.261 | AQ41: 2315.534483
B42: Economique | C42: oSupPL_PPF_T100% | D42: oSupPL_PPF_T100% | F42: 0 | G42: 0 | H42: 0 | I42: 0 | J42: 0 | K42: 0 | L42: 0 | M42: 0 | N42: 0 | O42: 0 | P42: 0 | Q42: 0 | R42: 0 | S42: 0 | T42: 0 | U42: 0 | V42: 0 | W42: 0 | X42: 0 | Y42: 0 | Z42: 0 | AA42: 0 | AB42: 0 | AC42: 0 | AD42: 0 | AE42: 0 | AF42: 0 | AG42: 0 | AH42: 0 | AI42: 0 | AJ42: 0 | AK42: 0 | AL42: 0 | AM42: 0 | AN42: 0 | AO42: 0 | AP42: 0 | AQ42: 0
B43: Economique | C43: oSupPL_SEPM_E_T100% | D43: oSupPL_SEPM_E_T100% | F43: 0 | G43: 7158.9 | H43: 0 | I43: 4494.6 | J43: 4083.2 | K43: 3083.17 | L43: 5238.38 | M43: 4203.19 | N43: 3675 | O43: 3719 | P43: 3536.82 | Q43: 3740.31 | R43: 3678.09 | S43: 3417.99 | T43: 3462.19 | U43: 4428.94 | V43: 3963.88 | W43: 4215.91 | X43: 5401.33 | Y43: 3315.28 | Z43: 3860.86 | AA43: 3526.84 | AB43: 3325 | AC43: 4279.9 | AD43: 3348.9 | AE43: 3328.7 | AF43: 7047.89 | AG43: 7158.9 | AH43: 4046.13 | AI43: 3691.88 | AJ43: 5079.9 | AK43: 5579.01 | AL43: 5357.3 | AM43: 4056.588 | AN43: 3618.442 | AO43: 3944.47 | AP43: 4891.851 | AQ43: 4234.272069
B44: Economique | C44: oSupPL_SEPM_I_T100% | D44: oSupPL_SEPM_I_T100% | F44: 0 | G44: 3675 | H44: 0 | I44: 1975.4 | J44: 1868.64 | K44: 3649.3 | L44: 1392.43 | M44: 2874.76 | N44: 3675 | O44: 2616.74 | P44: 3113.18 | Q44: 2909.69 | R44: 2971.91 | S44: 3325 | T44: 3325 | U44: 2571.35 | V44: 2933.9 | W44: 2582.92 | X44: 1590.8 | Y44: 3334.72 | Z44: 2766.23 | AA44: 2696.35 | AB44: 2779.97 | AC44: 2370.1 | AD44: 2770.06 | AE44: 2782.52 | AF44: 0 | AG44: 0 | AH44: 1495.34 | AI44: 950.89 | AJ44: 1570.1 | AK44: 927.96 | AL44: 1305.64 | AM44: 2692.026 | AN44: 2987.304 | AO44: 2731.248889 | AP44: 1417.261 | AQ44: 2315.534483
B45: Economique | C45: oSupPL_PPF | D45: oSupPL_PPF | F45: 0 | G45: 0 | H45: 0 | I45: 0 | J45: 0 | K45: 0 | L45: 0 | M45: 0 | N45: 0 | O45: 0 | P45: 0 | Q45: 0 | R45: 0 | S45: 0 | T45: 0 | U45: 0 | V45: 0 | W45: 0 | X45: 0 | Y45: 0 | Z45: 0 | AA45: 0 | AB45: 0 | AC45: 0 | AD45: 0 | AE45: 0 | AF45: 0 | AG45: 0 | AH45: 0 | AI45: 0 | AJ45: 0 | AK45: 0 | AL45: 0 | AM45: 0 | AN45: 0 | AO45: 0 | AP45: 0 | AQ45: 0
B46: Economique | C46: oSupPL_SEPM_E | D46: oSupPL_SEPM_E | F46: 0 | G46: 7158.9 | H46: 0 | I46: 4494.6 | J46: 4083.2 | K46: 3083.17 | L46: 5238.38 | M46: 4203.19 | N46: 3675 | O46: 3719 | P46: 3536.82 | Q46: 3740.31 | R46: 3678.09 | S46: 3417.99 | T46: 3462.19 | U46: 4428.94 | V46: 3963.88 | W46: 4215.91 | X46: 5401.33 | Y46: 3315.28 | Z46: 3860.86 | AA46: 3526.84 | AB46: 3325 | AC46: 4279.9 | AD46: 3348.9 | AE46: 3328.7 | AF46: 7047.89 | AG46: 7158.9 | AH46: 4046.13 | AI46: 3691.88 | AJ46: 5079.9 | AK46: 5579.01 | AL46: 5357.3 | AM46: 4056.588 | AN46: 3618.442 | AO46: 3944.47 | AP46: 4891.851 | AQ46: 4234.272069
B47: Economique | C47: oSupPL_SEPM_I | D47: oSupPL_SEPM_I | F47: 0 | G47: 3675 | H47: 0 | I47: 1975.4 | J47: 1868.64 | K47: 3649.3 | L47: 1392.43 | M47: 2874.76 | N47: 3675 | O47: 2616.74 | P47: 3113.18 | Q47: 2909.69 | R47: 2971.91 | S47: 3325 | T47: 3325 | U47: 2571.35 | V47: 2933.9 | W47: 2582.92 | X47: 1590.8 | Y47: 3334.72 | Z47: 2766.23 | AA47: 2696.35 | AB47: 2779.97 | AC47: 2370.1 | AD47: 2770.06 | AE47: 2782.52 | AF47: 0 | AG47: 0 | AH47: 1495.34 | AI47: 950.89 | AJ47: 1570.1 | AK47: 927.96 | AL47: 1305.64 | AM47: 2692.026 | AN47: 2987.304 | AO47: 2731.248889 | AP47: 1417.261 | AQ47: 2315.534483
B48: Economique | C48: oSupActEPC_1_T100% | D48: oSupActEPC_1_T100% | F48: 0 | G48: 0 | H48: 0 | I48: 0 | J48: 0 | K48: 0 | L48: 0 | M48: 0 | N48: 0 | O48: 0 | P48: 0 | Q48: 0 | R48: 0 | S48: 0 | T48: 0 | U48: 0 | V48: 0 | W48: 0 | X48: 0 | Y48: 0 | Z48: 0 | AA48: 0 | AB48: 0 | AC48: 0 | AD48: 0 | AE48: 0 | AF48: 0 | AG48: 0 | AH48: 0 | AI48: 0 | AJ48: 0 | AK48: 0 | AL48: 0 | AM48: 0 | AN48: 0 | AO48: 0 | AP48: 0 | AQ48: 0
B49: Economique | C49: oSupEPC_1_T100% | D49: oSupEPC_1_T100% | F49: 0 | G49: 0 | H49: 0 | I49: 0 | J49: 0 | K49: 0 | L49: 0 | M49: 0 | N49: 0 | O49: 0 | P49: 0 | Q49: 0 | R49: 0 | S49: 0 | T49: 0 | U49: 0 | V49: 0 | W49: 0 | X49: 0 | Y49: 0 | Z49: 0 | AA49: 0 | AB49: 0 | AC49: 0 | AD49: 0 | AE49: 0 | AF49: 0 | AG49: 0 | AH49: 0 | AI49: 0 | AJ49: 0 | AK49: 0 | AL49: 0 | AM49: 0 | AN49: 0 | AO49: 0 | AP49: 0 | AQ49: 0
B50: Economique | C50: oSupEPC_1 | D50: oSupEPC_1 | F50: 0 | G50: 0 | H50: 0 | I50: 0 | J50: 0 | K50: 0 | L50: 0 | M50: 0 | N50: 0 | O50: 0 | P50: 0 | Q50: 0 | R50: 0 | S50: 0 | T50: 0 | U50: 0 | V50: 0 | W50: 0 | X50: 0 | Y50: 0 | Z50: 0 | AA50: 0 | AB50: 0 | AC50: 0 | AD50: 0 | AE50: 0 | AF50: 0 | AG50: 0 | AH50: 0 | AI50: 0 | AJ50: 0 | AK50: 0 | AL50: 0 | AM50: 0 | AN50: 0 | AO50: 0 | AP50: 0 | AQ50: 0
B51: Economique | C51: oSupActEC_SEPM_T100% | D51: oSupActEC_SEPM_T100% | F51: 0 | G51: 3150 | H51: 0 | I51: 0 | J51: 3150 | K51: 2109.6 | L51: 2725.1 | M51: 1876.4 | N51: 1296.7 | O51: 2850 | P51: 2850 | Q51: 2850 | R51: 2850 | S51: 2850 | T51: 2850 | U51: 2850 | V51: 2850 | W51: 3059.76 | X51: 3150 | Y51: 2850 | Z51: 2850 | AA51: 2850 | AB51: 2850 | AC51: 2850 | AD51: 2850 | AE51: 2850 | AF51: 2850 | AG51: 2850 | AH51: 2850 | AI51: 2850 | AJ51: 2850 | AK51: 2850 | AL51: 2850 | AM51: 2231.56 | AN51: 2850 | AO51: 2906.64 | AP51: 2850 | AQ51: 2760.950345
B52: Economique | C52: oSupEC_SEPM_T100% | D52: oSupEC_SEPM_T100% | F52: 0 | G52: 3150 | H52: 0 | I52: 0 | J52: 3150 | K52: 2109.6 | L52: 2725.1 | M52: 1876.4 | N52: 1296.7 | O52: 2850 | P52: 2850 | Q52: 2850 | R52: 2850 | S52: 2850 | T52: 2850 | U52: 2850 | V52: 2850 | W52: 3059.76 | X52: 3150 | Y52: 2850 | Z52: 2850 | AA52: 2850 | AB52: 2850 | AC52: 2850 | AD52: 2850 | AE52: 2850 | AF52: 2850 | AG52: 2850 | AH52: 2850 | AI52: 2850 | AJ52: 2850 | AK52: 2850 | AL52: 2850 | AM52: 2231.56 | AN52: 2850 | AO52: 2906.64 | AP52: 2850 | AQ52: 2760.950345
B53: Economique | C53: oSupEC_SEPM | D53: oSupEC_SEPM | F53: 0 | G53: 3150 | H53: 0 | I53: 0 | J53: 3150 | K53: 2109.6 | L53: 2725.1 | M53: 1876.4 | N53: 1296.7 | O53: 2850 | P53: 2850 | Q53: 2850 | R53: 2850 | S53: 2850 | T53: 2850 | U53: 2850 | V53: 2850 | W53: 3059.76 | X53: 3150 | Y53: 2850 | Z53: 2850 | AA53: 2850 | AB53: 2850 | AC53: 2850 | AD53: 2850 | AE53: 2850 | AF53: 2850 | AG53: 2850 | AH53: 2850 | AI53: 2850 | AJ53: 2850 | AK53: 2850 | AL53: 2850 | AM53: 2231.56 | AN53: 2850 | AO53: 2906.64 | AP53: 2850 | AQ53: 2760.950345
B54: Economique | C54: oSupActNETT_T100% | D54: oSupActNETT_T100% | F54: 0 | G54: 1889.63 | H54: 0 | I54: 1889.63 | J54: 711.2 | K54: 0 | L54: 0 | M54: 0 | N54: 0 | O54: 0 | P54: 0 | Q54: 0 | R54: 0 | S54: 0 | T54: 0 | U54: 0 | V54: 0 | W54: 0 | X54: 0 | Y54: 0 | Z54: 0 | AA54: 0 | AB54: 0 | AC54: 0 | AD54: 0 | AE54: 0 | AF54: 0 | AG54: 0 | AH54: 0 | AI54: 0 | AJ54: 0 | AK54: 0 | AL54: 0 | AM54: 142.24 | AN54: 0 | AO54: 0 | AP54: 0 | AQ54: 24.52413793
B55: Economique | C55: oSupTcadNETT_T100% | D55: oSupTcadNETT_T100% | F55: 0 | G55: 2352.78 | H55: 0 | I55: 0 | J55: 0 | K55: 0 | L55: 402.18 | M55: 17.8 | N55: 0 | O55: 394 | P55: 319 | Q55: 415.31 | R55: 353.09 | S55: 0 | T55: 0 | U55: 753.65 | V55: 391.1 | W55: 742.08 | X55: 1734.2 | Y55: 161.28 | Z55: 535.86 | AA55: 201.84 | AB55: 0 | AC55: 963.67 | AD55: 23.9 | AE55: 3.7 | AF55: 1033.75 | AG55: 1155.14 | AH55: 0 | AI55: 0 | AJ55: 2009.1 | AK55: 2352.78 | AL55: 804.12 | AM55: 83.996 | AN55: 296.28 | AO55: 502.2233333 | AP55: 834.616 | AQ55: 509.2258621
B56: Economique | C56: oSupNETT_T100% | D56: oSupNETT_T100% | F56: 0 | G56: 2352.78 | H56: 0 | I56: 1889.63 | J56: 711.2 | K56: 0 | L56: 402.18 | M56: 17.8 | N56: 0 | O56: 394 | P56: 319 | Q56: 415.31 | R56: 353.09 | S56: 0 | T56: 0 | U56: 753.65 | V56: 391.1 | W56: 742.08 | X56: 1734.2 | Y56: 161.28 | Z56: 535.86 | AA56: 201.84 | AB56: 0 | AC56: 963.67 | AD56: 23.9 | AE56: 3.7 | AF56: 1033.75 | AG56: 1155.14 | AH56: 0 | AI56: 0 | AJ56: 2009.1 | AK56: 2352.78 | AL56: 804.12 | AM56: 226.236 | AN56: 296.28 | AO56: 502.2233333 | AP56: 834.616 | AQ56: 533.75
B57: Economique | C57: oSupNETT | D57: oSupNETT | F57: 0 | G57: 2352.78 | H57: 0 | I57: 1889.63 | J57: 711.2 | K57: 0 | L57: 402.18 | M57: 17.8 | N57: 0 | O57: 394 | P57: 319 | Q57: 415.31 | R57: 353.09 | S57: 0 | T57: 0 | U57: 753.65 | V57: 391.1 | W57: 742.08 | X57: 1734.2 | Y57: 161.28 | Z57: 535.86 | AA57: 201.84 | AB57: 0 | AC57: 963.67 | AD57: 23.9 | AE57: 3.7 | AF57: 1033.75 | AG57: 1155.14 | AH57: 0 | AI57: 0 | AJ57: 2009.1 | AK57: 2352.78 | AL57: 804.12 | AM57: 226.236 | AN57: 296.28 | AO57: 502.2233333 | AP57: 834.616 | AQ57: 533.75
B58: Economique | C58: oTauxDEG | D58: oTauxDEG | F58: 0 | G58: 4740750 | H58: 0 | I58: 2632077.8 | J58: 3371802 | K58: 4718175 | L58: 4131266.22 | M58: 4717788 | N58: 4740750 | O58: 3780991.35 | P58: 4015999.44 | Q58: 3753503.05 | R58: 3833760.95 | S58: 4289250 | T58: 4289250 | U58: 3317040.87 | V58: 3784731.36 | W58: 3331969.31 | X58: 2052134.24 | Y58: 4301794 | Z58: 3597985.44 | AA58: 4028882.27 | AB58: 4289250 | AC58: 3057422.6 | AD58: 4258419 | AE58: 4284477 | AF58: 2955716.86 | AG58: 2799120.43 | AH58: 4289250 | AI58: 4718175 | AJ58: 2025423.95 | AK58: 1647196.4 | AL58: 3688887.92 | AM58: 4335956.244 | AN58: 3934700.958 | AO58: 3665893.054 | AP58: 3372408.916 | AQ58: 3726565.954
B59: Economique | C59: oTauxSCA | D59: oTauxSCA | F59: 0 | G59: 3414828.34 | H59: 0 | I59: 2805790 | J59: 2894210.89 | K59: 2837262.49 | L59: 2805945.41 | M59: 2978912.82 | N59: 3090450 | O59: 2844304.3 | P59: 2748187.06 | Q59: 2775444.94 | R59: 2772063.31 | S59: 2773121.77 | T59: 2782747.97 | U59: 2870119.45 | V59: 2828088.57 | W59: 2787520.32 | X59: 2867152.16 | Y59: 2726500 | Z59: 2787101.4 | AA59: 2858936.17 | AB59: 2874304.5 | AC59: 2803450 | AD59: 2872484.69 | AE59: 2873112.74 | AF59: 2974684.12 | AG59: 3001274.17 | AH59: 3308979.62 | AI59: 3414828.34 | AJ59: 2809840.45 | AK59: 2837855.1 | AL59: 2803555.69 | AM59: 2921356.322 | AN59: 2782624.276 | AO59: 2820274.504 | AP59: 2970006.492 | AQ59: 2882842.705
B60: Economique | C60: oTauxREG | D60: oTauxREG | F60: 0 | G60: 1272105.9 | H60: 0 | I60: 0 | J60: 328135.52 | K60: 0 | L60: 9021.89 | M60: 0 | N60: 0 | O60: 147703.99 | P60: 0 | Q60: 0 | R60: 0 | S60: 0 | T60: 0 | U60: 0 | V60: 0 | W60: 0 | X60: 0 | Y60: 0 | Z60: 10766.63 | AA60: 200603.86 | AB60: 256166.28 | AC60: 0 | AD60: 249586.95 | AE60: 253227.99 | AF60: 0 | AG60: 0 | AH60: 850008.99 | AI60: 1272105.9 | AJ60: 0 | AK60: 73934.36 | AL60: 52374.78 | AM60: 67431.482 | AN60: 29540.798 | AO60: 51948.53 | AP60: 275123.897 | AQ60: 127711.6255
B61: Economique | C61: oTauxCPI | D61: oTauxCPI | F61: 0 | G61: 1001700 | H61: 0 | I61: 1001700 | J61: 503500 | K61: 503500 | L61: 503500 | M61: 503500 | N61: 503500 | O61: 503500 | P61: 141903.01 | Q61: 320256.99 | R61: 298130.29 | S61: 55597 | T61: 0 | U61: 0 | V61: 0 | W61: 0 | X61: 2480.14 | Y61: 0 | Z61: 377042 | AA61: 503500 | AB61: 503500 | AC61: 503500 | AD61: 503500 | AE61: 501019.86 | AF61: 556500 | AG61: 432663.68 | AH61: 395018.53 | AI61: 325358.11 | AJ61: 545314.09 | AK61: 556500 | AL61: 75737.53 | AM61: 503500 | AN61: 263877.458 | AO61: 154058.0156 | AP61: 439511.18 | AQ61: 331673.1459
B62: Economique | C62: oTauxCT | D62: oTauxCT | F62: 0 | G62: 0 | H62: 0 | I62: 0 | J62: 0 | K62: 0 | L62: 0 | M62: 0 | N62: 0 | O62: 0 | P62: 0 | Q62: 0 | R62: 0 | S62: 0 | T62: 0 | U62: 0 | V62: 0 | W62: 0 | X62: 0 | Y62: 0 | Z62: 0 | AA62: 0 | AB62: 0 | AC62: 0 | AD62: 0 | AE62: 0 | AF62: 0 | AG62: 0 | AH62: 0 | AI62: 0 | AJ62: 0 | AK62: 0 | AL62: 0 | AM62: 0 | AN62: 0 | AO62: 0 | AP62: 0 | AQ62: 0
B63: Economique | C63: oTauxPL | D63: oTauxPL | F63: 0 | G63: 8599500 | H63: 0 | I63: 7242404.81 | J63: 6675759.34 | K63: 7950586.27 | L63: 7258067.24 | M63: 8108514.94 | N63: 8599500 | O63: 7269517.31 | P63: 7725426.24 | Q63: 7672519.99 | R63: 7688696.01 | S63: 7877206.99 | T63: 7923177.78 | U63: 7948853.88 | V63: 7936502.15 | W63: 7742342.95 | X63: 7685423.2 | Y63: 7783028.25 | Z63: 7611395.33 | AA63: 7173161.04 | AB63: 7071954.98 | AC63: 7532224.71 | AD63: 7083939.12 | AE63: 7079120.16 | AF63: 7329803.63 | AG63: 7445258.79 | AH63: 6151918.62 | AI63: 5075711.65 | AJ63: 7324224.98 | AK63: 7008523.03 | AL63: 7268923.42 | AM63: 7718485.558 | AN63: 7646673.308 | AO63: 7652871.062 | AP63: 6929964.811 | AQ63: 7413837.31
B64: Economique | C64: oTauxEPC | D64: oTauxEPC | F64: 0 | G64: 0 | H64: 0 | I64: 0 | J64: 0 | K64: 0 | L64: 0 | M64: 0 | N64: 0 | O64: 0 | P64: 0 | Q64: 0 | R64: 0 | S64: 0 | T64: 0 | U64: 0 | V64: 0 | W64: 0 | X64: 0 | Y64: 0 | Z64: 0 | AA64: 0 | AB64: 0 | AC64: 0 | AD64: 0 | AE64: 0 | AF64: 0 | AG64: 0 | AH64: 0 | AI64: 0 | AJ64: 0 | AK64: 0 | AL64: 0 | AM64: 0 | AN64: 0 | AO64: 0 | AP64: 0 | AQ64: 0
B65: Economique | C65: oTauxEC | D65: oTauxEC | F65: 0 | G65: 4315500 | H65: 0 | I65: 0 | J65: 4315500 | K65: 2890152 | L65: 3733387 | M65: 2570668 | N65: 1776479 | O65: 3904500 | P65: 3904500 | Q65: 3904500 | R65: 3904500 | S65: 3904500 | T65: 3904500 | U65: 3904500 | V65: 3904500 | W65: 4191874.19 | X65: 4315500 | Y65: 3904500 | Z65: 3904500 | AA65: 3904500 | AB65: 3904500 | AC65: 3904500 | AD65: 3904500 | AE65: 3904500 | AF65: 3904500 | AG65: 3904500 | AH65: 3904500 | AI65: 3904500 | AJ65: 3904500 | AK65: 3904500 | AL65: 3904500 | AM65: 3057237.2 | AN65: 3904500 | AO65: 3982097.132 | AP65: 3904500 | AQ65: 3782502.076
B66: Economique | C66: oTauxNET | D66: oTauxNET | F66: 0 | G66: 2682170.12 | H66: 0 | I66: 2154177.75 | J66: 810768 | K66: 0 | L66: 458488 | M66: 20292 | N66: 0 | O66: 449158.81 | P66: 363660 | Q66: 473450.8 | R66: 402525.2 | S66: 0 | T66: 0 | U66: 859161.55 | V66: 445853.68 | W66: 845968.99 | X66: 1976986.02 | Y66: 183853.51 | Z66: 610884.96 | AA66: 230092.41 | AB66: 0 | AC66: 1098578.44 | AD66: 27246 | AE66: 4218 | AF66: 1178471.15 | AG66: 1316858.69 | AH66: 0 | AI66: 0 | AJ66: 2290372.29 | AK66: 2682170.12 | AL66: 916699.65 | AM66: 257909.6 | AN66: 337758.962 | AO66: 572533.4578 | AP66: 951461.434 | AQ66: 608474.4231
B67: Economique | C67: oSupRealDEG | D67: oSupRealDEG | F67: 0 | G67: 3675 | H67: 0 | I67: 2040.37 | J67: 2613.8 | K67: 3657.5 | L67: 3202.53 | M67: 3657.2 | N67: 3675 | O67: 2931 | P67: 3113.18 | Q67: 2909.69 | R67: 2971.91 | S67: 3325 | T67: 3325 | U67: 2571.35 | V67: 2933.9 | W67: 2582.92 | X67: 1590.8 | Y67: 3334.72 | Z67: 2789.14 | AA67: 3123.16 | AB67: 3325 | AC67: 2370.1 | AD67: 3301.1 | AE67: 3321.3 | AF67: 2291.25 | AG67: 2169.86 | AH67: 3325 | AI67: 3657.5 | AJ67: 1570.1 | AK67: 1276.9 | AL67: 2859.6 | AM67: 3361.206 | AN67: 3050.156 | AO67: 2841.776667 | AP67: 2614.271 | AQ67: 2888.81069
B68: Economique | C68: oSupRealSCA | D68: oSupRealSCA | F68: 0 | G68: 7492.5 | H68: 0 | I68: 6753.5 | J68: 6792.5 | K68: 6874.97 | L68: 6792.5 | M68: 7220.46 | N68: 7492.5 | O68: 6792.5 | P68: 6690.16 | Q68: 6740.64 | R68: 6734.38 | S68: 6758.72 | T68: 6787.19 | U68: 7000.29 | V68: 6897.78 | W68: 6798.83 | X68: 6992.83 | Y68: 6650 | Z68: 6756.71 | AA68: 6792.5 | AB68: 6792.5 | AC68: 6792.5 | AD68: 6792.5 | AE68: 6791.8 | AF68: 7205.39 | AG68: 7281.35 | AH68: 7461.8 | AI68: 7441.46 | AJ68: 6804.33 | AK68: 6821.78 | AL68: 6795.81 | AM68: =AVERAGE(J68:N68) -> 7034.586 | AN68: =AVERAGE(O68:S68) -> 6743.28 | AO68: =AVERAGE(T68:AB68) -> 6829.847778 | AP68: =AVERAGE(AC68:AL68) -> 7018.872 | AQ68: =AVERAGE(J68:AL68) -> 6915.402759
B69: Economique | C69: oSupRealREG | D69: oSupRealREG | F69: 0 | G69: 2706.61 | H69: 0 | I69: 0 | J69: 698.16 | K69: 0 | L69: 19.2 | M69: 0 | N69: 0 | O69: 314.26 | P69: 0 | Q69: 0 | R69: 0 | S69: 0 | T69: 0 | U69: 0 | V69: 0 | W69: 0 | X69: 0 | Y69: 0 | Z69: 22.91 | AA69: 426.82 | AB69: 545.03 | AC69: 0 | AD69: 531.04 | AE69: 538.78 | AF69: 0 | AG69: 0 | AH69: 1808.53 | AI69: 2706.61 | AJ69: 0 | AK69: 157.31 | AL69: 111.44 | AM69: 143.472 | AN69: 62.852 | AO69: 110.5288889 | AP69: 585.371 | AQ69: 271.7272414
B70: Economique | C70: oSupRealCPI | D70: oSupRealCPI | F70: 0 | G70: 1890 | H70: 0 | I70: 1890 | J70: 950 | K70: 950 | L70: 950 | M70: 950 | N70: 950 | O70: 950 | P70: 1050 | Q70: 1050 | R70: 1050 | S70: 950 | T70: 950 | U70: 1050 | V70: 1050 | W70: 1050 | X70: 950 | Y70: 950 | Z70: 950 | AA70: 950 | AB70: 950 | AC70: 950 | AD70: 950 | AE70: 950 | AF70: 1050 | AG70: 1050 | AH70: 1050 | AI70: 1050 | AJ70: 1050 | AK70: 1050 | AL70: 1050 | AM70: 950 | AN70: 1010 | AO70: 983.3333333 | AP70: 1020 | AQ70: 994.8275862
B71: Economique | C71: oSupRealCT | D71: oSupRealCT | F71: 0 | G71: 25505.87 | H71: 0 | I71: 24889.83 | J71: 23126.19 | K71: 23327.4 | L71: 22856.44 | M71: 23057.49 | N71: 22652.3 | O71: 20005.24 | P71: 21849.54 | Q71: 17507.6 | R71: 19908.8 | S71: 19413.44 | T71: 22968.64 | U71: 25505.87 | V71: 23480.04 | W71: 20912.15 | X71: 23564.5 | Y71: 21716.38 | Z71: 20077.94 | AA71: 20827.62 | AB71: 17195.8 | AC71: 23009.75 | AD71: 20032.31 | AE71: 19895.78 | AF71: 22263.66 | AG71: 22814.3 | AH71: 20191.35 | AI71: 20206.96 | AJ71: 22990.38 | AK71: 22808.45 | AL71: 23365.03 | AM71: 23003.964 | AN71: 19736.924 | AO71: 21805.43778 | AP71: 21757.797 | AQ71: 21639.01207
B72: Economique | C72: oSupRealPL | D72: oSupRealPL | F72: 0 | G72: 7350 | H72: 0 | I72: 6470 | J72: 5951.84 | K72: 6732.47 | L72: 6630.8 | M72: 7077.96 | N72: 7350 | O72: 6335.74 | P72: 6650 | Q72: 6650 | R72: 6650 | S72: 6742.99 | T72: 6787.19 | U72: 7000.29 | V72: 6897.78 | W72: 6798.83 | X72: 6992.13 | Y72: 6650 | Z72: 6627.09 | AA72: 6223.18 | AB72: 6104.97 | AC72: 6650 | AD72: 6118.96 | AE72: 6111.22 | AF72: 7047.89 | AG72: 7158.9 | AH72: 5541.47 | AI72: 4642.77 | AJ72: 6650 | AK72: 6506.97 | AL72: 6662.94 | AM72: 6748.614 | AN72: 6605.746 | AO72: 6675.717778 | AP72: 6309.112 | AQ72: 6549.806207
B73: Economique | C73: oSupRealEPC | D73: oSupRealEPC | F73: 0 | G73: 0 | H73: 0 | I73: 0 | J73: 0 | K73: 0 | L73: 0 | M73: 0 | N73: 0 | O73: 0 | P73: 0 | Q73: 0 | R73: 0 | S73: 0 | T73: 0 | U73: 0 | V73: 0 | W73: 0 | X73: 0 | Y73: 0 | Z73: 0 | AA73: 0 | AB73: 0 | AC73: 0 | AD73: 0 | AE73: 0 | AF73: 0 | AG73: 0 | AH73: 0 | AI73: 0 | AJ73: 0 | AK73: 0 | AL73: 0 | AM73: 0 | AN73: 0 | AO73: 0 | AP73: 0 | AQ73: 0
B74: Economique | C74: oSupRealEC | D74: oSupRealEC | F74: 0 | G74: 3150 | H74: 0 | I74: 0 | J74: 3150 | K74: 2109.6 | L74: 2725.1 | M74: 1876.4 | N74: 1296.7 | O74: 2850 | P74: 2850 | Q74: 2850 | R74: 2850 | S74: 2850 | T74: 2850 | U74: 2850 | V74: 2850 | W74: 3059.76 | X74: 3150 | Y74: 2850 | Z74: 2850 | AA74: 2850 | AB74: 2850 | AC74: 2850 | AD74: 2850 | AE74: 2850 | AF74: 2850 | AG74: 2850 | AH74: 2850 | AI74: 2850 | AJ74: 2850 | AK74: 2850 | AL74: 2850 | AM74: 2231.56 | AN74: 2850 | AO74: 2906.64 | AP74: 2850 | AQ74: 2760.950345
B75: Economique | C75: oSupRealNET | D75: oSupRealNET | F75: 0 | G75: 2352.78 | H75: 0 | I75: 1889.63 | J75: 711.2 | K75: 0 | L75: 402.18 | M75: 17.8 | N75: 0 | O75: 394 | P75: 319 | Q75: 415.31 | R75: 353.09 | S75: 0 | T75: 0 | U75: 753.65 | V75: 391.1 | W75: 742.08 | X75: 1734.2 | Y75: 161.28 | Z75: 535.86 | AA75: 201.84 | AB75: 0 | AC75: 963.67 | AD75: 23.9 | AE75: 3.7 | AF75: 1033.75 | AG75: 1155.14 | AH75: 0 | AI75: 0 | AJ75: 2009.1 | AK75: 2352.78 | AL75: 804.12 | AM75: 226.236 | AN75: 296.28 | AO75: 502.2233333 | AP75: 834.616 | AQ75: 533.75
B76: Economique | C76: oCoutProdPlants | D76: oCoutProdPlants | F76: 0 | G76: 0 | H76: 0 | I76: 0 | J76: 0 | K76: 0 | L76: 0 | M76: 0 | N76: 0 | O76: 0 | P76: 0 | Q76: 0 | R76: 0 | S76: 0 | T76: 0 | U76: 0 | V76: 0 | W76: 0 | X76: 0 | Y76: 0 | Z76: 0 | AA76: 0 | AB76: 0 | AC76: 0 | AD76: 0 | AE76: 0 | AF76: 0 | AG76: 0 | AH76: 0 | AI76: 0 | AJ76: 0 | AK76: 0 | AL76: 0 | AM76: 0 | AN76: 0 | AO76: 0 | AP76: 0 | AQ76: 0
B77: Economique | C77: oCoutTransPlants | D77: oCoutTransPlants | F77: 0 | G77: 0 | H77: 0 | I77: 0 | J77: 0 | K77: 0 | L77: 0 | M77: 0 | N77: 0 | O77: 0 | P77: 0 | Q77: 0 | R77: 0 | S77: 0 | T77: 0 | U77: 0 | V77: 0 | W77: 0 | X77: 0 | Y77: 0 | Z77: 0 | AA77: 0 | AB77: 0 | AC77: 0 | AD77: 0 | AE77: 0 | AF77: 0 | AG77: 0 | AH77: 0 | AI77: 0 | AJ77: 0 | AK77: 0 | AL77: 0 | AM77: 0 | AN77: 0 | AO77: 0 | AP77: 0 | AQ77: 0
B78: Economique | C78: o$InvestisTS | D78: o$InvestisTS | F78: 0 | G78: 18899675.76 | H78: 0 | I78: 15836150.36 | J78: 18899675.76 | K78: 18899675.76 | L78: 18899675.76 | M78: 18899675.76 | N78: 18710679 | O78: 18899675.76 | P78: 18899675.76 | Q78: 18899675.76 | R78: 18899675.76 | S78: 18899675.76 | T78: 18899675.76 | U78: 18899675.76 | V78: 18899675.76 | W78: 18899675.76 | X78: 18899675.76 | Y78: 18899675.76 | Z78: 18899675.76 | AA78: 18899675.76 | AB78: 18899675.76 | AC78: 18899675.76 | AD78: 18899675.76 | AE78: 18899675.76 | AF78: 18899675.76 | AG78: 18899675.76 | AH78: 18899675.76 | AI78: 18710679 | AJ78: 18899675.76 | AK78: 18710679 | AL78: 18710679 | AM78: 18861876.41 | AN78: 18899675.76 | AO78: 18899675.76 | AP78: 18842976.73 | AQ78: 18873607.24
B79: Economique | C79: oTauxREGAPAR | D79: oTauxREGAPAR | F79: 0 | G79: 4819000 | H79: 0 | I79: 1001700 | J79: 4819000 | K79: 3393652 | L79: 4236887 | M79: 3074168 | N79: 2279979 | O79: 4408000 | P79: 4046403.01 | Q79: 4224756.99 | R79: 4202630.29 | S79: 3960097 | T79: 3904500 | U79: 3904500 | V79: 3904500 | W79: 4191874.19 | X79: 4317980.14 | Y79: 3904500 | Z79: 4281542 | AA79: 4408000 | AB79: 4408000 | AC79: 4408000 | AD79: 4408000 | AE79: 4405519.87 | AF79: 4461000 | AG79: 4337163.68 | AH79: 4299518.53 | AI79: 4229858.11 | AJ79: 4449814.08 | AK79: 4461000 | AL79: 3980237.53 | AM79: 3560737.2 | AN79: 4168377.458 | AO79: 4136155.148 | AP79: 4344011.18 | AQ79: 4114175.221
B80: Economique | C80: oTauxREGAEDU | D80: oTauxREGAEDU | F80: 0 | G80: 4786255.56 | H80: 0 | I80: 4786255.56 | J80: 4182570 | K80: 4718175 | L80: 4589754.22 | M80: 4738080 | N80: 4740750 | O80: 4230150.16 | P80: 4379659.44 | Q80: 4226953.84 | R80: 4236286.16 | S80: 4289250 | T80: 4289250 | U80: 4176202.43 | V80: 4230585.04 | W80: 4177938.29 | X80: 4029120.26 | Y80: 4485647.51 | Z80: 4208870.4 | AA80: 4258974.68 | AB80: 4289250 | AC80: 4156001.05 | AD80: 4285665 | AE80: 4288695 | AF80: 4134188.01 | AG80: 4115979.12 | AH80: 4289250 | AI80: 4718175 | AJ80: 4315796.24 | AK80: 4329366.52 | AL80: 4605587.57 | AM80: 4593865.844 | AN80: 4272459.92 | AO80: 4238426.512 | AP80: 4323870.351 | AQ80: 4335040.377
B81: Economique | C81: oTauxAUTRES | D81: oTauxAUTRES | F81: 0 | G81: 3414828.34 | H81: 0 | I81: 2805790 | J81: 2894210.89 | K81: 2837262.49 | L81: 2805945.41 | M81: 2978912.82 | N81: 3090450 | O81: 2844304.3 | P81: 2748187.06 | Q81: 2775444.94 | R81: 2772063.31 | S81: 2773121.77 | T81: 2782747.97 | U81: 2870119.45 | V81: 2828088.57 | W81: 2787520.32 | X81: 2867152.16 | Y81: 2726500 | Z81: 2787101.4 | AA81: 2858936.17 | AB81: 2874304.5 | AC81: 2803450 | AD81: 2872484.69 | AE81: 2873112.74 | AF81: 2974684.12 | AG81: 3001274.17 | AH81: 3308979.62 | AI81: 3414828.34 | AJ81: 2809840.45 | AK81: 2837855.1 | AL81: 2803555.69 | AM81: 2921356.322 | AN81: 2782624.276 | AO81: 2820274.504 | AP81: 2970006.492 | AQ81: 2882842.705
B82: Economique | C82: oTauxREGAREG | D82: oTauxREGAREG | F82: 0 | G82: 8599500 | H82: 0 | I82: 7242404.81 | J82: 7003894.87 | K82: 7950586.27 | L82: 7267089.12 | M82: 8108514.94 | N82: 8599500 | O82: 7417221.31 | P82: 7725426.24 | Q82: 7672519.99 | R82: 7688696.01 | S82: 7877206.99 | T82: 7923177.78 | U82: 7948853.88 | V82: 7936502.15 | W82: 7742342.95 | X82: 7685423.2 | Y82: 7783028.25 | Z82: 7622161.95 | AA82: 7373764.9 | AB82: 7328121.26 | AC82: 7532224.71 | AD82: 7333526.07 | AE82: 7332348.15 | AF82: 7329803.63 | AG82: 7445258.79 | AH82: 7001927.61 | AI82: 6347817.56 | AJ82: 7324224.98 | AK82: 7082457.39 | AL82: 7321298.21 | AM82: 7785917.04 | AN82: 7676214.108 | AO82: 7704819.591 | AP82: 7205088.71 | AQ82: 7541548.937
B83: Economique | C83: oTauxREGAFIN | D83: oTauxREGAFIN | F83: 0 | G83: 0 | H83: 0 | I83: 0 | J83: 0 | K83: 0 | L83: 0 | M83: 0 | N83: 0 | O83: 0 | P83: 0 | Q83: 0 | R83: 0 | S83: 0 | T83: 0 | U83: 0 | V83: 0 | W83: 0 | X83: 0 | Y83: 0 | Z83: 0 | AA83: 0 | AB83: 0 | AC83: 0 | AD83: 0 | AE83: 0 | AF83: 0 | AG83: 0 | AH83: 0 | AI83: 0 | AJ83: 0 | AK83: 0 | AL83: 0 | AM83: 0 | AN83: 0 | AO83: 0 | AP83: 0 | AQ83: 0
B84: Economique | C84: oSupRealREGAPAR | D84: oSupRealREGAPAR | F84: 0 | G84: 4109.76 | H84: 0 | I84: 1890 | J84: 4100 | K84: 3059.6 | L84: 3675.1 | M84: 2826.4 | N84: 2246.7 | O84: 3800 | P84: 3900 | Q84: 3900 | R84: 3900 | S84: 3800 | T84: 3800 | U84: 3900 | V84: 3900 | W84: 4109.76 | X84: 4100 | Y84: 3800 | Z84: 3800 | AA84: 3800 | AB84: 3800 | AC84: 3800 | AD84: 3800 | AE84: 3800 | AF84: 3900 | AG84: 3900 | AH84: 3900 | AI84: 3900 | AJ84: 3900 | AK84: 3900 | AL84: 3900 | AM84: 3181.56 | AN84: 3860 | AO84: 3889.973333 | AP84: 3870 | AQ84: 3755.777931
B85: Economique | C85: oSupRealREGAEDU | D85: oSupRealREGAEDU | F85: 0 | G85: 3930 | H85: 0 | I85: 3930 | J85: 3325 | K85: 3657.5 | L85: 3604.71 | M85: 3675 | N85: 3675 | O85: 3325 | P85: 3432.18 | Q85: 3325 | R85: 3325 | S85: 3325 | T85: 3325 | U85: 3325 | V85: 3325 | W85: 3325 | X85: 3325 | Y85: 3496 | Z85: 3325 | AA85: 3325 | AB85: 3325 | AC85: 3333.76 | AD85: 3325 | AE85: 3325 | AF85: 3325 | AG85: 3325 | AH85: 3325 | AI85: 3657.5 | AJ85: 3579.19 | AK85: 3629.68 | AL85: 3663.73 | AM85: 3587.442 | AN85: 3346.436 | AO85: 3344 | AP85: 3448.886 | AQ85: 3422.560345
B86: Economique | C86: oSupRealAUTRES | D86: oSupRealAUTRES | F86: 0 | G86: 7492.5 | H86: 0 | I86: 6753.5 | J86: 6792.5 | K86: 6874.97 | L86: 6792.5 | M86: 7220.46 | N86: 7492.5 | O86: 6792.5 | P86: 6690.16 | Q86: 6740.64 | R86: 6734.38 | S86: 6758.72 | T86: 6787.19 | U86: 7000.29 | V86: 6897.78 | W86: 6798.83 | X86: 6992.83 | Y86: 6650 | Z86: 6756.71 | AA86: 6792.5 | AB86: 6792.5 | AC86: 6792.5 | AD86: 6792.5 | AE86: 6791.8 | AF86: 7205.39 | AG86: 7281.35 | AH86: 7461.8 | AI86: 7441.46 | AJ86: 6804.33 | AK86: 6821.78 | AL86: 6795.81 | AM86: 7034.586 | AN86: 6743.28 | AO86: 6829.847778 | AP86: 7018.872 | AQ86: 6915.402759
B87: Economique | C87: oSupRealREGAREG | D87: oSupRealREGAREG | F87: 0 | G87: 7350 | H87: 0 | I87: 6470 | J87: 6650 | K87: 6732.47 | L87: 6650 | M87: 7077.96 | N87: 7350 | O87: 6650 | P87: 6650 | Q87: 6650 | R87: 6650 | S87: 6742.99 | T87: 6787.19 | U87: 7000.29 | V87: 6897.78 | W87: 6798.83 | X87: 6992.13 | Y87: 6650 | Z87: 6650 | AA87: 6650 | AB87: 6650 | AC87: 6650 | AD87: 6650 | AE87: 6650 | AF87: 7047.89 | AG87: 7158.9 | AH87: 7350 | AI87: 7349.38 | AJ87: 6650 | AK87: 6664.28 | AL87: 6774.38 | AM87: 6892.086 | AN87: 6668.598 | AO87: 6786.246667 | AP87: 6894.483 | AQ87: 6821.533448
B88: Economique | C88: oSupRealREGAFIN | D88: oSupRealREGAFIN | F88: 0 | G88: 25505.87 | H88: 0 | I88: 24889.83 | J88: 23126.19 | K88: 23327.4 | L88: 22856.44 | M88: 23057.49 | N88: 22652.3 | O88: 20005.24 | P88: 21849.54 | Q88: 17507.6 | R88: 19908.8 | S88: 19413.44 | T88: 22968.64 | U88: 25505.87 | V88: 23480.04 | W88: 20912.15 | X88: 23564.5 | Y88: 21716.38 | Z88: 20077.94 | AA88: 20827.62 | AB88: 17195.8 | AC88: 23009.75 | AD88: 20032.31 | AE88: 19895.78 | AF88: 22263.66 | AG88: 22814.3 | AH88: 20191.35 | AI88: 20206.96 | AJ88: 22990.38 | AK88: 22808.45 | AL88: 23365.03 | AM88: 23003.964 | AN88: 19736.924 | AO88: 21805.43778 | AP88: 21757.797 | AQ88: 21639.01207
B89: VolExpl | C89: OVOLBOJADMaEC | D89: Volume BOJ Admissible InclusActions aEC | F89: 0 | G89: 0 | H89: 0 | I89: 0 | J89: 0 | K89: 0 | L89: 0 | M89: 0 | N89: 0 | O89: 0 | P89: 0 | Q89: 0 | R89: 0 | S89: 0 | T89: 0 | U89: 0 | V89: 0 | W89: 0 | X89: 0 | Y89: 0 | Z89: 0 | AA89: 0 | AB89: 0 | AC89: 0 | AD89: 0 | AE89: 0 | AF89: 0 | AG89: 0 | AH89: 0 | AI89: 0 | AJ89: 0 | AK89: 0 | AL89: 0 | AM89: 0 | AN89: 0 | AO89: 0 | AP89: 0 | AQ89: 0
B90: VolExpl | C90: OVOLBOJADMaEC2 | D90: Volume BOJ Admissible InclusActions aEC2 | F90: 0 | G90: 0 | H90: 0 | I90: 0 | J90: 0 | K90: 0 | L90: 0 | M90: 0 | N90: 0 | O90: 0 | P90: 0 | Q90: 0 | R90: 0 | S90: 0 | T90: 0 | U90: 0 | V90: 0 | W90: 0 | X90: 0 | Y90: 0 | Z90: 0 | AA90: 0 | AB90: 0 | AC90: 0 | AD90: 0 | AE90: 0 | AF90: 0 | AG90: 0 | AH90: 0 | AI90: 0 | AJ90: 0 | AK90: 0 | AL90: 0 | AM90: 0 | AN90: 0 | AO90: 0 | AP90: 0 | AQ90: 0
B91: VolExpl | C91: OVOLBOJADMaEC3 | D91: Volume BOJ Admissible InclusActions aEC3 | F91: 0 | G91: 0 | H91: 0 | I91: 0 | J91: 0 | K91: 0 | L91: 0 | M91: 0 | N91: 0 | O91: 0 | P91: 0 | Q91: 0 | R91: 0 | S91: 0 | T91: 0 | U91: 0 | V91: 0 | W91: 0 | X91: 0 | Y91: 0 | Z91: 0 | AA91: 0 | AB91: 0 | AC91: 0 | AD91: 0 | AE91: 0 | AF91: 0 | AG91: 0 | AH91: 0 | AI91: 0 | AJ91: 0 | AK91: 0 | AL91: 0 | AM91: 0 | AN91: 0 | AO91: 0 | AP91: 0 | AQ91: 0
B92: VolExpl | C92: OVOLBOJADMaCA | D92: Volume BOJ Admissible InclusActions aCA | F92: 0 | G92: 0 | H92: 0 | I92: 0 | J92: 0 | K92: 0 | L92: 0 | M92: 0 | N92: 0 | O92: 0 | P92: 0 | Q92: 0 | R92: 0 | S92: 0 | T92: 0 | U92: 0 | V92: 0 | W92: 0 | X92: 0 | Y92: 0 | Z92: 0 | AA92: 0 | AB92: 0 | AC92: 0 | AD92: 0 | AE92: 0 | AF92: 0 | AG92: 0 | AH92: 0 | AI92: 0 | AJ92: 0 | AK92: 0 | AL92: 0 | AM92: 0 | AN92: 0 | AO92: 0 | AP92: 0 | AQ92: 0
B93: VolExpl | C93: OVOLBOJADMaCA2 | D93: Volume BOJ Admissible InclusActions aCA2 | F93: 0 | G93: 0 | H93: 0 | I93: 0 | J93: 0 | K93: 0 | L93: 0 | M93: 0 | N93: 0 | O93: 0 | P93: 0 | Q93: 0 | R93: 0 | S93: 0 | T93: 0 | U93: 0 | V93: 0 | W93: 0 | X93: 0 | Y93: 0 | Z93: 0 | AA93: 0 | AB93: 0 | AC93: 0 | AD93: 0 | AE93: 0 | AF93: 0 | AG93: 0 | AH93: 0 | AI93: 0 | AJ93: 0 | AK93: 0 | AL93: 0 | AM93: 0 | AN93: 0 | AO93: 0 | AP93: 0 | AQ93: 0
B94: VolExpl | C94: OVOLBOJADMaCPROG | D94: Volume BOJ Admissible InclusActions aCPROG | F94: 0 | G94: 0 | H94: 0 | I94: 0 | J94: 0 | K94: 0 | L94: 0 | M94: 0 | N94: 0 | O94: 0 | P94: 0 | Q94: 0 | R94: 0 | S94: 0 | T94: 0 | U94: 0 | V94: 0 | W94: 0 | X94: 0 | Y94: 0 | Z94: 0 | AA94: 0 | AB94: 0 | AC94: 0 | AD94: 0 | AE94: 0 | AF94: 0 | AG94: 0 | AH94: 0 | AI94: 0 | AJ94: 0 | AK94: 0 | AL94: 0 | AM94: 0 | AN94: 0 | AO94: 0 | AP94: 0 | AQ94: 0
B95: VolExpl | C95: OVOLBOJADMaCPIL | D95: Volume BOJ Admissible InclusActions aCPIL | F95: 0 | G95: 0 | H95: 0 | I95: 0 | J95: 0 | K95: 0 | L95: 0 | M95: 0 | N95: 0 | O95: 0 | P95: 0 | Q95: 0 | R95: 0 | S95: 0 | T95: 0 | U95: 0 | V95: 0 | W95: 0 | X95: 0 | Y95: 0 | Z95: 0 | AA95: 0 | AB95: 0 | AC95: 0 | AD95: 0 | AE95: 0 | AF95: 0 | AG95: 0 | AH95: 0 | AI95: 0 | AJ95: 0 | AK95: 0 | AL95: 0 | AM95: 0 | AN95: 0 | AO95: 0 | AP95: 0 | AQ95: 0
B96: VolExpl | C96: OVOLBOJADMaCPIP | D96: Volume BOJ Admissible InclusActions aCPIP | F96: 0 | G96: 0 | H96: 0 | I96: 0 | J96: 0 | K96: 0 | L96: 0 | M96: 0 | N96: 0 | O96: 0 | P96: 0 | Q96: 0 | R96: 0 | S96: 0 | T96: 0 | U96: 0 | V96: 0 | W96: 0 | X96: 0 | Y96: 0 | Z96: 0 | AA96: 0 | AB96: 0 | AC96: 0 | AD96: 0 | AE96: 0 | AF96: 0 | AG96: 0 | AH96: 0 | AI96: 0 | AJ96: 0 | AK96: 0 | AL96: 0 | AM96: 0 | AN96: 0 | AO96: 0 | AP96: 0 | AQ96: 0
B97: VolExpl | C97: OVOLBOJADMaCPFORT | D97: Volume BOJ Admissible InclusActions aCPFORT | F97: 0 | G97: 0 | H97: 0 | I97: 0 | J97: 0 | K97: 0 | L97: 0 | M97: 0 | N97: 0 | O97: 0 | P97: 0 | Q97: 0 | R97: 0 | S97: 0 | T97: 0 | U97: 0 | V97: 0 | W97: 0 | X97: 0 | Y97: 0 | Z97: 0 | AA97: 0 | AB97: 0 | AC97: 0 | AD97: 0 | AE97: 0 | AF97: 0 | AG97: 0 | AH97: 0 | AI97: 0 | AJ97: 0 | AK97: 0 | AL97: 0 | AM97: 0 | AN97: 0 | AO97: 0 | AP97: 0 | AQ97: 0
B98: VolExpl | C98: OVOLBOJADMaCPFAIBL | D98: Volume BOJ Admissible InclusActions aCPFAIBL | F98: 0 | G98: 0 | H98: 0 | I98: 0 | J98: 0 | K98: 0 | L98: 0 | M98: 0 | N98: 0 | O98: 0 | P98: 0 | Q98: 0 | R98: 0 | S98: 0 | T98: 0 | U98: 0 | V98: 0 | W98: 0 | X98: 0 | Y98: 0 | Z98: 0 | AA98: 0 | AB98: 0 | AC98: 0 | AD98: 0 | AE98: 0 | AF98: 0 | AG98: 0 | AH98: 0 | AI98: 0 | AJ98: 0 | AK98: 0 | AL98: 0 | AM98: 0 | AN98: 0 | AO98: 0 | AP98: 0 | AQ98: 0
B99: VolExpl | C99: OVOLBOJADMaCP | D99: Volume BOJ Admissible InclusActions aCP | F99: 0 | G99: 0 | H99: 0 | I99: 0 | J99: 0 | K99: 0 | L99: 0 | M99: 0 | N99: 0 | O99: 0 | P99: 0 | Q99: 0 | R99: 0 | S99: 0 | T99: 0 | U99: 0 | V99: 0 | W99: 0 | X99: 0 | Y99: 0 | Z99: 0 | AA99: 0 | AB99: 0 | AC99: 0 | AD99: 0 | AE99: 0 | AF99: 0 | AG99: 0 | AH99: 0 | AI99: 0 | AJ99: 0 | AK99: 0 | AL99: 0 | AM99: 0 | AN99: 0 | AO99: 0 | AP99: 0 | AQ99: 0
B100: VolExpl | C100: OVOLBOJADMaCPJ | D100: Volume BOJ Admissible InclusActions aCPJ | F100: 0 | G100: 0 | H100: 0 | I100: 0 | J100: 0 | K100: 0 | L100: 0 | M100: 0 | N100: 0 | O100: 0 | P100: 0 | Q100: 0 | R100: 0 | S100: 0 | T100: 0 | U100: 0 | V100: 0 | W100: 0 | X100: 0 | Y100: 0 | Z100: 0 | AA100: 0 | AB100: 0 | AC100: 0 | AD100: 0 | AE100: 0 | AF100: 0 | AG100: 0 | AH100: 0 | AI100: 0 | AJ100: 0 | AK100: 0 | AL100: 0 | AM100: 0 | AN100: 0 | AO100: 0 | AP100: 0 | AQ100: 0
B101: VolExpl | C101: OVOLBOJADMaCJ | D101: Volume BOJ Admissible InclusActions aCJ | F101: 0 | G101: 0 | H101: 0 | I101: 0 | J101: 0 | K101: 0 | L101: 0 | M101: 0 | N101: 0 | O101: 0 | P101: 0 | Q101: 0 | R101: 0 | S101: 0 | T101: 0 | U101: 0 | V101: 0 | W101: 0 | X101: 0 | Y101: 0 | Z101: 0 | AA101: 0 | AB101: 0 | AC101: 0 | AD101: 0 | AE101: 0 | AF101: 0 | AG101: 0 | AH101: 0 | AI101: 0 | AJ101: 0 | AK101: 0 | AL101: 0 | AM101: 0 | AN101: 0 | AO101: 0 | AP101: 0 | AQ101: 0
B102: VolExpl | C102: OVOLBOJADMaCRV | D102: Volume BOJ Admissible InclusActions aCRV | F102: 0 | G102: 0 | H102: 0 | I102: 0 | J102: 0 | K102: 0 | L102: 0 | M102: 0 | N102: 0 | O102: 0 | P102: 0 | Q102: 0 | R102: 0 | S102: 0 | T102: 0 | U102: 0 | V102: 0 | W102: 0 | X102: 0 | Y102: 0 | Z102: 0 | AA102: 0 | AB102: 0 | AC102: 0 | AD102: 0 | AE102: 0 | AF102: 0 | AG102: 0 | AH102: 0 | AI102: 0 | AJ102: 0 | AK102: 0 | AL102: 0 | AM102: 0 | AN102: 0 | AO102: 0 | AP102: 0 | AQ102: 0
B103: VolExpl | C103: OVOLBOJADMaCRS | D103: Volume BOJ Admissible InclusActions aCRS | F103: 0 | G103: 0 | H103: 0 | I103: 0 | J103: 0 | K103: 0 | L103: 0 | M103: 0 | N103: 0 | O103: 0 | P103: 0 | Q103: 0 | R103: 0 | S103: 0 | T103: 0 | U103: 0 | V103: 0 | W103: 0 | X103: 0 | Y103: 0 | Z103: 0 | AA103: 0 | AB103: 0 | AC103: 0 | AD103: 0 | AE103: 0 | AF103: 0 | AG103: 0 | AH103: 0 | AI103: 0 | AJ103: 0 | AK103: 0 | AL103: 0 | AM103: 0 | AN103: 0 | AO103: 0 | AP103: 0 | AQ103: 0
B104: VolExpl | C104: OVOLBOJADMaCFP | D104: Volume BOJ Admissible InclusActions aCFP | F104: 0 | G104: 0 | H104: 0 | I104: 0 | J104: 0 | K104: 0 | L104: 0 | M104: 0 | N104: 0 | O104: 0 | P104: 0 | Q104: 0 | R104: 0 | S104: 0 | T104: 0 | U104: 0 | V104: 0 | W104: 0 | X104: 0 | Y104: 0 | Z104: 0 | AA104: 0 | AB104: 0 | AC104: 0 | AD104: 0 | AE104: 0 | AF104: 0 | AG104: 0 | AH104: 0 | AI104: 0 | AJ104: 0 | AK104: 0 | AL104: 0 | AM104: 0 | AN104: 0 | AO104: 0 | AP104: 0 | AQ104: 0
B105: VolExpl | C105: OVOLBOJADMaCPPTM | D105: Volume BOJ Admissible InclusActions aCPPTM | F105: 0 | G105: 0 | H105: 0 | I105: 0 | J105: 0 | K105: 0 | L105: 0 | M105: 0 | N105: 0 | O105: 0 | P105: 0 | Q105: 0 | R105: 0 | S105: 0 | T105: 0 | U105: 0 | V105: 0 | W105: 0 | X105: 0 | Y105: 0 | Z105: 0 | AA105: 0 | AB105: 0 | AC105: 0 | AD105: 0 | AE105: 0 | AF105: 0 | AG105: 0 | AH105: 0 | AI105: 0 | AJ105: 0 | AK105: 0 | AL105: 0 | AM105: 0 | AN105: 0 | AO105: 0 | AP105: 0 | AQ105: 0
B106: VolExpl | C106: OVOLBOJADMaCT | D106: Volume BOJ Admissible InclusActions aCT | F106: 0 | G106: 0 | H106: 0 | I106: 0 | J106: 0 | K106: 0 | L106: 0 | M106: 0 | N106: 0 | O106: 0 | P106: 0 | Q106: 0 | R106: 0 | S106: 0 | T106: 0 | U106: 0 | V106: 0 | W106: 0 | X106: 0 | Y106: 0 | Z106: 0 | AA106: 0 | AB106: 0 | AC106: 0 | AD106: 0 | AE106: 0 | AF106: 0 | AG106: 0 | AH106: 0 | AI106: 0 | AJ106: 0 | AK106: 0 | AL106: 0 | AM106: 0 | AN106: 0 | AO106: 0 | AP106: 0 | AQ106: 0
B107: VolExpl | C107: OVOLBOJADMregaPRE | D107: Volume BOJ Admissible InclusActions regaPRE | F107: 0 | G107: 0 | H107: 0 | I107: 0 | J107: 0 | K107: 0 | L107: 0 | M107: 0 | N107: 0 | O107: 0 | P107: 0 | Q107: 0 | R107: 0 | S107: 0 | T107: 0 | U107: 0 | V107: 0 | W107: 0 | X107: 0 | Y107: 0 | Z107: 0 | AA107: 0 | AB107: 0 | AC107: 0 | AD107: 0 | AE107: 0 | AF107: 0 | AG107: 0 | AH107: 0 | AI107: 0 | AJ107: 0 | AK107: 0 | AL107: 0 | AM107: 0 | AN107: 0 | AO107: 0 | AP107: 0 | AQ107: 0
B108: VolExpl | C108: OVOLERSADMaEC | D108: Volume ERS Admissible InclusActions aEC | F108: 0 | G108: 0 | H108: 0 | I108: 0 | J108: 0 | K108: 0 | L108: 0 | M108: 0 | N108: 0 | O108: 0 | P108: 0 | Q108: 0 | R108: 0 | S108: 0 | T108: 0 | U108: 0 | V108: 0 | W108: 0 | X108: 0 | Y108: 0 | Z108: 0 | AA108: 0 | AB108: 0 | AC108: 0 | AD108: 0 | AE108: 0 | AF108: 0 | AG108: 0 | AH108: 0 | AI108: 0 | AJ108: 0 | AK108: 0 | AL108: 0 | AM108: 0 | AN108: 0 | AO108: 0 | AP108: 0 | AQ108: 0
B109: VolExpl | C109: OVOLERSADMaEC2 | D109: Volume ERS Admissible InclusActions aEC2 | F109: 0 | G109: 0 | H109: 0 | I109: 0 | J109: 0 | K109: 0 | L109: 0 | M109: 0 | N109: 0 | O109: 0 | P109: 0 | Q109: 0 | R109: 0 | S109: 0 | T109: 0 | U109: 0 | V109: 0 | W109: 0 | X109: 0 | Y109: 0 | Z109: 0 | AA109: 0 | AB109: 0 | AC109: 0 | AD109: 0 | AE109: 0 | AF109: 0 | AG109: 0 | AH109: 0 | AI109: 0 | AJ109: 0 | AK109: 0 | AL109: 0 | AM109: 0 | AN109: 0 | AO109: 0 | AP109: 0 | AQ109: 0
B110: VolExpl | C110: OVOLERSADMaEC3 | D110: Volume ERS Admissible InclusActions aEC3 | F110: 0 | G110: 0 | H110: 0 | I110: 0 | J110: 0 | K110: 0 | L110: 0 | M110: 0 | N110: 0 | O110: 0 | P110: 0 | Q110: 0 | R110: 0 | S110: 0 | T110: 0 | U110: 0 | V110: 0 | W110: 0 | X110: 0 | Y110: 0 | Z110: 0 | AA110: 0 | AB110: 0 | AC110: 0 | AD110: 0 | AE110: 0 | AF110: 0 | AG110: 0 | AH110: 0 | AI110: 0 | AJ110: 0 | AK110: 0 | AL110: 0 | AM110: 0 | AN110: 0 | AO110: 0 | AP110: 0 | AQ110: 0
B111: VolExpl | C111: OVOLERSADMaCA | D111: Volume ERS Admissible InclusActions aCA | F111: 0 | G111: 0 | H111: 0 | I111: 0 | J111: 0 | K111: 0 | L111: 0 | M111: 0 | N111: 0 | O111: 0 | P111: 0 | Q111: 0 | R111: 0 | S111: 0 | T111: 0 | U111: 0 | V111: 0 | W111: 0 | X111: 0 | Y111: 0 | Z111: 0 | AA111: 0 | AB111: 0 | AC111: 0 | AD111: 0 | AE111: 0 | AF111: 0 | AG111: 0 | AH111: 0 | AI111: 0 | AJ111: 0 | AK111: 0 | AL111: 0 | AM111: 0 | AN111: 0 | AO111: 0 | AP111: 0 | AQ111: 0
B112: VolExpl | C112: OVOLERSADMaCA2 | D112: Volume ERS Admissible InclusActions aCA2 | F112: 0 | G112: 0 | H112: 0 | I112: 0 | J112: 0 | K112: 0 | L112: 0 | M112: 0 | N112: 0 | O112: 0 | P112: 0 | Q112: 0 | R112: 0 | S112: 0 | T112: 0 | U112: 0 | V112: 0 | W112: 0 | X112: 0 | Y112: 0 | Z112: 0 | AA112: 0 | AB112: 0 | AC112: 0 | AD112: 0 | AE112: 0 | AF112: 0 | AG112: 0 | AH112: 0 | AI112: 0 | AJ112: 0 | AK112: 0 | AL112: 0 | AM112: 0 | AN112: 0 | AO112: 0 | AP112: 0 | AQ112: 0
B113: VolExpl | C113: OVOLERSADMaCPROG | D113: Volume ERS Admissible InclusActions aCPROG | F113: 0 | G113: 0 | H113: 0 | I113: 0 | J113: 0 | K113: 0 | L113: 0 | M113: 0 | N113: 0 | O113: 0 | P113: 0 | Q113: 0 | R113: 0 | S113: 0 | T113: 0 | U113: 0 | V113: 0 | W113: 0 | X113: 0 | Y113: 0 | Z113: 0 | AA113: 0 | AB113: 0 | AC113: 0 | AD113: 0 | AE113: 0 | AF113: 0 | AG113: 0 | AH113: 0 | AI113: 0 | AJ113: 0 | AK113: 0 | AL113: 0 | AM113: 0 | AN113: 0 | AO113: 0 | AP113: 0 | AQ113: 0
B114: VolExpl | C114: OVOLERSADMaCPIL | D114: Volume ERS Admissible InclusActions aCPIL | F114: 0 | G114: 0 | H114: 0 | I114: 0 | J114: 0 | K114: 0 | L114: 0 | M114: 0 | N114: 0 | O114: 0 | P114: 0 | Q114: 0 | R114: 0 | S114: 0 | T114: 0 | U114: 0 | V114: 0 | W114: 0 | X114: 0 | Y114: 0 | Z114: 0 | AA114: 0 | AB114: 0 | AC114: 0 | AD114: 0 | AE114: 0 | AF114: 0 | AG114: 0 | AH114: 0 | AI114: 0 | AJ114: 0 | AK114: 0 | AL114: 0 | AM114: 0 | AN114: 0 | AO114: 0 | AP114: 0 | AQ114: 0
B115: VolExpl | C115: OVOLERSADMaCPIP | D115: Volume ERS Admissible InclusActions aCPIP | F115: 0 | G115: 0 | H115: 0 | I115: 0 | J115: 0 | K115: 0 | L115: 0 | M115: 0 | N115: 0 | O115: 0 | P115: 0 | Q115: 0 | R115: 0 | S115: 0 | T115: 0 | U115: 0 | V115: 0 | W115: 0 | X115: 0 | Y115: 0 | Z115: 0 | AA115: 0 | AB115: 0 | AC115: 0 | AD115: 0 | AE115: 0 | AF115: 0 | AG115: 0 | AH115: 0 | AI115: 0 | AJ115: 0 | AK115: 0 | AL115: 0 | AM115: 0 | AN115: 0 | AO115: 0 | AP115: 0 | AQ115: 0
B116: VolExpl | C116: OVOLERSADMaCPFORT | D116: Volume ERS Admissible InclusActions aCPFORT | F116: 0 | G116: 0 | H116: 0 | I116: 0 | J116: 0 | K116: 0 | L116: 0 | M116: 0 | N116: 0 | O116: 0 | P116: 0 | Q116: 0 | R116: 0 | S116: 0 | T116: 0 | U116: 0 | V116: 0 | W116: 0 | X116: 0 | Y116: 0 | Z116: 0 | AA116: 0 | AB116: 0 | AC116: 0 | AD116: 0 | AE116: 0 | AF116: 0 | AG116: 0 | AH116: 0 | AI116: 0 | AJ116: 0 | AK116: 0 | AL116: 0 | AM116: 0 | AN116: 0 | AO116: 0 | AP116: 0 | AQ116: 0
B117: VolExpl | C117: OVOLERSADMaCPFAIBL | D117: Volume ERS Admissible InclusActions aCPFAIBL | F117: 0 | G117: 0 | H117: 0 | I117: 0 | J117: 0 | K117: 0 | L117: 0 | M117: 0 | N117: 0 | O117: 0 | P117: 0 | Q117: 0 | R117: 0 | S117: 0 | T117: 0 | U117: 0 | V117: 0 | W117: 0 | X117: 0 | Y117: 0 | Z117: 0 | AA117: 0 | AB117: 0 | AC117: 0 | AD117: 0 | AE117: 0 | AF117: 0 | AG117: 0 | AH117: 0 | AI117: 0 | AJ117: 0 | AK117: 0 | AL117: 0 | AM117: 0 | AN117: 0 | AO117: 0 | AP117: 0 | AQ117: 0
